Workbook

Sheet Freedom
B2: Selectiontool Freedom
G4: Taal/Language/Sprache | H4: 0 | I4: 0 | J4: 0 | K4: English
G5: Langue/Språk/Lengua/Jazyk
G6: =IF(cal!$S$7=1,"Uitvoering",IF(cal!$S$7=2,"Version",IF(cal!$S$7=3,"Ausfürhung",IF(cal!$S$7=4,"Version",IF(cal!$S$7=5,"Modell",IF(cal!$S$7=6,"Version",IF(cal!$S$7=7,"Modell",IF(cal!$S$7=8,"Verze",IF(cal!$S$7=9,"Version",IF(cal!$S$7=10,"Version",IF(cal!$S$7=11,"Version",))))))))))) -> Version | K6: Freedom
B8: =cal!B7 -> Temperatures | M8: =cal!M7 -> Altitude
B9: =cal!B8 -> Heating: | G9: =cal!G8 -> Cooling: | M9: 0 | N9: 0 | O9: =cal!O8 -> m
B10: =cal!B9 -> Inlet temp. | C10: =cal!C9 -> 0 | D10: =cal!D9 -> 0 | E10: 75 | G10: =cal!G9 -> Inlet temp. | H10: =cal!H9 -> 0 | I10: =cal!I9 -> 0 | J10: =cal!J9 -> 0 | K10: 16 | M10: =cal!M9 -> Unit conversion
B11: =cal!B10 -> Return temp. | C11: =cal!C10 -> 0 | D11: =cal!D10 -> 0 | E11: 65 | G11: =cal!G10 -> Return temp. | H11: =cal!H10 -> 0 | I11: =cal!I10 -> 0 | J11: =cal!J10 -> 0 | K11: 18
B12: =cal!B11 -> Room temp. | C12: =cal!C11 -> 0 | D12: =cal!D11 -> 0 | E12: 20 | G12: =cal!G11 -> Room temp. | H12: =cal!H11 -> 0 | I12: =cal!I11 -> 0 | J12: =cal!J11 -> 0 | K12: 27
G13: =cal!G12 -> Relative humidity | K13: 0.5
D15: =cal!D14 -> 0 | E15: =cal!E14 -> 1 | F15: =cal!F14 -> 1 | G15: 3.412141633 | H15: =cal!H14 -> 1 | I15: =cal!I14 -> 1 | J15: =cal!J14 -> 1 | K15: =cal!K14 -> 0 | L15: =cal!L14 -> 0 | M15: =cal!M14 -> 0 | N15: =cal!N14 -> 1
B16: =cal!B15 -> Speed level: | C16: =cal!C15 -> Control voltage [V] | D16: =cal!D15 -> Heat output * 75/65/20 [W] | E16: =cal!E15 -> Water flowrate, heating [l/h] | F16: =cal!F15 -> Watersided pressure loss [kPa] | G16: =cal!G15 -> Sens. cooling capacity * 16/18/27 [W] | H16: =cal!H15 -> Tot. cooling capacity 16/18/27 [W] | I16: =cal!I15 -> Water flowrate, cooling [l/h] | J16: =cal!J15 -> Watersided pressure loss [kPa] | K16: =cal!K15 -> Sound pressure *** [dB(A)] | L16: =cal!L15 -> Sound power ** [dB(A)] | M16: =cal!M15 -> Electrical power [W] | N16: =cal!N15 -> Air flowrate [m³/h] | O16: =cal!O15 -> Air exhaust temp. heating [°C] | P16: =cal!P15 -> Air exhaust temp. cooling [°C]
B17: =cal!B16 -> Freedom height 20 cm width 19 cm length 74 cm (Type 1)
B18: =cal!B17 -> 0.2 | C18: =cal!C17 -> 2 | D18: =IF($E$10<=$E$11,cal!$AC$3,cal!D17) -> 312.708 | E18: =IF($E$10<=$E$11,"",cal!E17) -> 27 | F18: =IF($E$10<=$E$11,"",cal!F17) -> 0.1045197678 | G18: =IF($K$10>=$K$11,cal!$AC$3,cal!G17) -> 33.99 | H18: =IF($K$10>=$K$11,"",cal!H17) -> 33.99 | I18: =IF($K$10>=$K$11,"",cal!I17) -> 15 | J18: =IF($K$10>=$K$11,"",cal!J17) -> 0.0357853315 | K18: =cal!K17 -> 14 | L18: =cal!L17 -> 22 | M18: =cal!M17 -> 0.5 | N18: =cal!N17 -> 24
B19: =cal!B18 -> 0.4 | C19: =cal!C18 -> 4 | D19: =IF($E$10<=$E$11,cal!$AC$4,cal!D18) -> 561.968 | E19: =IF($E$10<=$E$11,"",cal!E18) -> 48 | F19: =IF($E$10<=$E$11,"",cal!F18) -> 0.2984378501 | G19: =IF($K$10>=$K$11,cal!$AC$5,cal!G18) -> 74.778 | H19: =IF($K$10>=$K$11,"",cal!H18) -> 74.778 | I19: =IF($K$10>=$K$11,"",cal!I18) -> 32 | J19: =IF($K$10>=$K$11,"",cal!J18) -> 0.1424783075 | K19: =cal!K18 -> 15 | L19: =cal!L18 -> 23 | M19: =cal!M18 -> 0.8 | N19: =cal!N18 -> 37
B20: =cal!B19 -> 0.6 | C20: =cal!C19 -> 6 | D20: =IF($E$10<=$E$11,"",cal!D19) -> 791.967 | E20: =IF($E$10<=$E$11,"",cal!E19) -> 68 | F20: =IF($E$10<=$E$11,"",cal!F19) -> 0.5632391912 | G20: =IF($K$10>=$K$11,"",cal!G19) -> 117.832 | H20: =IF($K$10>=$K$11,"",cal!H19) -> 117.832 | I20: =IF($K$10>=$K$11,"",cal!I19) -> 51 | J20: =IF($K$10>=$K$11,"",cal!J19) -> 0.3333228856 | K20: =cal!K19 -> 23 | L20: =cal!L19 -> 31 | M20: =cal!M19 -> 1.3 | N20: =cal!N19 -> 52
B21: =cal!B20 -> 0.8 | C21: =cal!C20 -> 8 | D21: =IF($E$10<=$E$11,"",cal!D20) -> 1009.503 | E21: =IF($E$10<=$E$11,"",cal!E20) -> 87 | F21: =IF($E$10<=$E$11,"",cal!F20) -> 0.8827300045 | G21: =IF($K$10>=$K$11,"",cal!G20) -> 163.152 | H21: =IF($K$10>=$K$11,"",cal!H20) -> 163.152 | I21: =IF($K$10>=$K$11,"",cal!I20) -> 70 | J21: =IF($K$10>=$K$11,"",cal!J20) -> 0.5938125008 | K21: =cal!K20 -> 28 | L21: =cal!L20 -> 36 | M21: =cal!M20 -> 2.1 | N21: =cal!N20 -> 68
B22: =cal!B21 -> 1 | C22: =cal!C21 -> 10 | D22: =IF($E$10<=$E$11,"",cal!D21) -> 1217.975 | E22: =IF($E$10<=$E$11,"",cal!E21) -> 105 | F22: =IF($E$10<=$E$11,"",cal!F21) -> 1.243811281 | G22: =IF($K$10>=$K$11,"",cal!G21) -> 209.605 | H22: =IF($K$10>=$K$11,"",cal!H21) -> 209.605 | I22: =IF($K$10>=$K$11,"",cal!I21) -> 90 | J22: =IF($K$10>=$K$11,"",cal!J21) -> 0.9390224535 | K22: =cal!K21 -> 34 | L22: =cal!L21 -> 42 | M22: =cal!M21 -> 3 | N22: =cal!N21 -> 79
B23: =cal!B22 -> Freedom height 20 cm width 19 cm length 110 cm (Type 2)
B24: =cal!B23 -> 0.2 | C24: =cal!C23 -> 2 | D24: =IF($E$10<=$E$11,cal!$AC$3,cal!D23) -> 625.331 | E24: =IF($E$10<=$E$11,"",cal!E23) -> 54 | F24: =IF($E$10<=$E$11,"",cal!F23) -> 0.5798221161 | G24: =IF($K$10>=$K$11,cal!$AC$3,cal!G23) -> 68.138 | H24: =IF($K$10>=$K$11,"",cal!H23) -> 68.138 | I24: =IF($K$10>=$K$11,"",cal!I23) -> 29 | J24: =IF($K$10>=$K$11,"",cal!J23) -> 0.1866178995 | K24: =cal!K23 -> 15 | L24: =cal!L23 -> 23 | M24: =cal!M23 -> 0.6 | N24: =cal!N23 -> 42
B25: =cal!B24 -> 0.4 | C25: =cal!C24 -> 4 | D25: =IF($E$10<=$E$11,cal!$AC$4,cal!D24) -> 1122.079 | E25: =IF($E$10<=$E$11,"",cal!E24) -> 96 | F25: =IF($E$10<=$E$11,"",cal!F24) -> 1.655580274 | G25: =IF($K$10>=$K$11,cal!$AC$5,cal!G24) -> 148.365 | H25: =IF($K$10>=$K$11,"",cal!H24) -> 148.365 | I25: =IF($K$10>=$K$11,"",cal!I24) -> 64 | J25: =IF($K$10>=$K$11,"",cal!J24) -> 0.7903966449 | K25: =cal!K24 -> 19 | L25: =cal!L24 -> 27 | M25: =cal!M24 -> 1.3 | N25: =cal!N24 -> 75
B26: =cal!B25 -> 0.6 | C26: =cal!C25 -> 6 | D26: =IF($E$10<=$E$11,"",cal!D25) -> 1580.362 | E26: =IF($E$10<=$E$11,"",cal!E25) -> 136 | F26: =IF($E$10<=$E$11,"",cal!F25) -> 3.124562432 | G26: =IF($K$10>=$K$11,"",cal!G25) -> 235.186 | H26: =IF($K$10>=$K$11,"",cal!H25) -> 235.186 | I26: =IF($K$10>=$K$11,"",cal!I25) -> 101 | J26: =IF($K$10>=$K$11,"",cal!J25) -> 1.816180543 | K26: =cal!K25 -> 29 | L26: =cal!L25 -> 37 | M26: =cal!M25 -> 2.7 | N26: =cal!N25 -> 98
B27: =cal!B26 -> 0.8 | C27: =cal!C26 -> 8 | D27: =IF($E$10<=$E$11,"",cal!D26) -> 2015.566 | E27: =IF($E$10<=$E$11,"",cal!E26) -> 173 | F27: =IF($E$10<=$E$11,"",cal!F26) -> 4.845735502 | G27: =IF($K$10>=$K$11,"",cal!G26) -> 325.304 | H27: =IF($K$10>=$K$11,"",cal!H26) -> 325.304 | I27: =IF($K$10>=$K$11,"",cal!I26) -> 140 | J27: =IF($K$10>=$K$11,"",cal!J26) -> 3.294167488 | K27: =cal!K26 -> 32 | L27: =cal!L26 -> 40 | M27: =cal!M26 -> 4.6 | N27: =cal!N26 -> 125
B28: =cal!B27 -> 1 | C28: =cal!C27 -> 10 | D28: =IF($E$10<=$E$11,"",cal!D27) -> 2433.186 | E28: =IF($E$10<=$E$11,"",cal!E27) -> 209 | F28: =IF($E$10<=$E$11,"",cal!F27) -> 6.840229423 | G28: =IF($K$10>=$K$11,"",cal!G27) -> 418.719 | H28: =IF($K$10>=$K$11,"",cal!H27) -> 418.719 | I28: =IF($K$10>=$K$11,"",cal!I27) -> 180 | J28: =IF($K$10>=$K$11,"",cal!J27) -> 5.209215421 | K28: =cal!K27 -> 37 | L28: =cal!L27 -> 45 | M28: =cal!M27 -> 7.1 | N28: =cal!N27 -> 160
B29: =cal!B28 -> Freedom height 20 cm width 19 cm length 145 cm (Type 3)
B30: =cal!B29 -> 0.2 | C30: =cal!C29 -> 2 | D30: =IF($E$10<=$E$11,cal!$AC$3,cal!D29) -> 939.594 | E30: =IF($E$10<=$E$11,"",cal!E29) -> 81 | F30: =IF($E$10<=$E$11,"",cal!F29) -> 1.693419584 | G30: =IF($K$10>=$K$11,cal!$AC$3,cal!G29) -> 101.947 | H30: =IF($K$10>=$K$11,"",cal!H29) -> 101.947 | I30: =IF($K$10>=$K$11,"",cal!I29) -> 44 | J30: =IF($K$10>=$K$11,"",cal!J29) -> 0.5565112796 | K30: =cal!K29 -> 16 | L30: =cal!L29 -> 24 | M30: =cal!M29 -> 1.1 | N30: =cal!N29 -> 66
B31: =cal!B30 -> 0.4 | C31: =cal!C30 -> 4 | D31: =IF($E$10<=$E$11,cal!$AC$4,cal!D30) -> 1686.855 | E31: =IF($E$10<=$E$11,"",cal!E30) -> 145 | F31: =IF($E$10<=$E$11,"",cal!F30) -> 4.896667774 | G31: =IF($K$10>=$K$11,cal!$AC$5,cal!G30) -> 222.812 | H31: =IF($K$10>=$K$11,"",cal!H30) -> 222.812 | I31: =IF($K$10>=$K$11,"",cal!I30) -> 96 | J31: =IF($K$10>=$K$11,"",cal!J30) -> 2.308420325 | K31: =cal!K30 -> 20 | L31: =cal!L30 -> 28 | M31: =cal!M30 -> 2.1 | N31: =cal!N30 -> 112
B32: =cal!B31 -> 0.6 | C32: =cal!C31 -> 6 | D32: =IF($E$10<=$E$11,"",cal!D31) -> 2375.26 | E32: =IF($E$10<=$E$11,"",cal!E31) -> 204 | F32: =IF($E$10<=$E$11,"",cal!F31) -> 9.125549142 | G32: =IF($K$10>=$K$11,"",cal!G31) -> 353.136 | H32: =IF($K$10>=$K$11,"",cal!H31) -> 353.136 | I32: =IF($K$10>=$K$11,"",cal!I31) -> 152 | J32: =IF($K$10>=$K$11,"",cal!J31) -> 5.336274834 | K32: =cal!K31 -> 30 | L32: =cal!L31 -> 38 | M32: =cal!M31 -> 4 | N32: =cal!N31 -> 150
B33: =cal!B32 -> 0.8 | C33: =cal!C32 -> 8 | D33: =IF($E$10<=$E$11,"",cal!D32) -> 3027.931 | E33: =IF($E$10<=$E$11,"",cal!E32) -> 260 | F33: =IF($E$10<=$E$11,"",cal!F32) -> 14.20214491 | G33: =IF($K$10>=$K$11,"",cal!G32) -> 488.715 | H33: =IF($K$10>=$K$11,"",cal!H32) -> 488.715 | I33: =IF($K$10>=$K$11,"",cal!I32) -> 210 | J33: =IF($K$10>=$K$11,"",cal!J32) -> 9.620895069 | K33: =cal!K32 -> 35 | L33: =cal!L32 -> 43 | M33: =cal!M32 -> 6.6 | N33: =cal!N32 -> 193
B34: =cal!B33 -> 1 | C34: =cal!C33 -> 10 | D34: =IF($E$10<=$E$11,"",cal!D33) -> 3656.429 | E34: =IF($E$10<=$E$11,"",cal!E33) -> 314 | F34: =IF($E$10<=$E$11,"",cal!F33) -> 20.03560819 | G34: =IF($K$10>=$K$11,"",cal!G33) -> 628.498 | H34: =IF($K$10>=$K$11,"",cal!H33) -> 628.498 | I34: =IF($K$10>=$K$11,"",cal!I33) -> 270 | J34: =IF($K$10>=$K$11,"",cal!J33) -> 15.21395471 | K34: =cal!K33 -> 39 | L34: =cal!L33 -> 47 | M34: =cal!M33 -> 10.1 | N34: =cal!N33 -> 239
B35: =cal!B34 -> Freedom height 20 cm width 19 cm length 181 cm (Type 4)
B36: =cal!B35 -> 0.2 | C36: =cal!C35 -> 2 | D36: =IF($E$10<=$E$11,cal!$AC$3,cal!D35) -> 1253.132 | E36: =IF($E$10<=$E$11,"",cal!E35) -> 108 | F36: =IF($E$10<=$E$11,"",cal!F35) -> 3.777027517 | G36: =IF($K$10>=$K$11,cal!$AC$3,cal!G35) -> 135.696 | H36: =IF($K$10>=$K$11,"",cal!H35) -> 135.696 | I36: =IF($K$10>=$K$11,"",cal!I35) -> 58 | J36: =IF($K$10>=$K$11,"",cal!J35) -> 1.215650321 | K36: =cal!K35 -> 18 | L36: =cal!L35 -> 26 | M36: =cal!M35 -> 1.2 | N36: =cal!N35 -> 84
B37: =cal!B36 -> 0.4 | C37: =cal!C36 -> 4 | D37: =IF($E$10<=$E$11,cal!$AC$4,cal!D36) -> 2249.264 | E37: =IF($E$10<=$E$11,"",cal!E36) -> 193 | F37: =IF($E$10<=$E$11,"",cal!F36) -> 10.88728554 | G37: =IF($K$10>=$K$11,cal!$AC$5,cal!G36) -> 298.12 | H37: =IF($K$10>=$K$11,"",cal!H36) -> 298.12 | I37: =IF($K$10>=$K$11,"",cal!I36) -> 128 | J37: =IF($K$10>=$K$11,"",cal!J36) -> 5.148734058 | K37: =cal!K36 -> 22 | L37: =cal!L36 -> 30 | M37: =cal!M36 -> 2.5 | N37: =cal!N36 -> 150
B38: =cal!B37 -> 0.6 | C38: =cal!C37 -> 6 | D38: =IF($E$10<=$E$11,"",cal!D37) -> 3168.296 | E38: =IF($E$10<=$E$11,"",cal!E37) -> 272 | F38: =IF($E$10<=$E$11,"",cal!F37) -> 20.35375671 | G38: =IF($K$10>=$K$11,"",cal!G37) -> 470.824 | H38: =IF($K$10>=$K$11,"",cal!H37) -> 470.824 | I38: =IF($K$10>=$K$11,"",cal!I37) -> 202 | J38: =IF($K$10>=$K$11,"",cal!J37) -> 11.83080758 | K38: =cal!K37 -> 32 | L38: =cal!L37 -> 40 | M38: =cal!M37 -> 5.4 | N38: =cal!N37 -> 196
B39: =cal!B38 -> 0.8 | C39: =cal!C38 -> 8 | D39: =IF($E$10<=$E$11,"",cal!D38) -> 4039.012 | E39: =IF($E$10<=$E$11,"",cal!E38) -> 347 | F39: =IF($E$10<=$E$11,"",cal!F38) -> 31.73223252 | G39: =IF($K$10>=$K$11,"",cal!G38) -> 651.752 | H39: =IF($K$10>=$K$11,"",cal!H38) -> 651.752 | I39: =IF($K$10>=$K$11,"",cal!I38) -> 280 | J39: =IF($K$10>=$K$11,"",cal!J38) -> 21.45858342 | K39: =cal!K38 -> 37 | L39: =cal!L38 -> 45 | M39: =cal!M38 -> 9.1 | N39: =cal!N38 -> 250
B40: =cal!B39 -> 1 | C40: =cal!C39 -> 10 | D40: =IF($E$10<=$E$11,"",cal!D39) -> 4876.832 | E40: =IF($E$10<=$E$11,"",cal!E39) -> 419 | F40: =IF($E$10<=$E$11,"",cal!F39) -> 44.75261093 | G40: =IF($K$10>=$K$11,"",cal!G39) -> 838.848 | H40: =IF($K$10>=$K$11,"",cal!H39) -> 838.848 | I40: =IF($K$10>=$K$11,"",cal!I39) -> 361 | J40: =IF($K$10>=$K$11,"",cal!J39) -> 34.10550473 | K40: =cal!K39 -> 41 | L40: =cal!L39 -> 49 | M40: =cal!M39 -> 14.1 | N40: =cal!N39 -> 320
B41: =IF(cal!$X$16=1,"",IF(cal!$X$16=2,"",cal!B40)) -> 
B42: =cal!B41 -> 0.2 | C42: =cal!C41 -> 2 | D42: =IF($E$10<=$E$11,cal!$AC$3,cal!D41) -> 0 | E42: =IF($E$10<=$E$11,"",cal!E41) -> 0 | F42: =IF($E$10<=$E$11,"",cal!F41) ->  | G42: =IF($K$10>=$K$11,cal!$AC$3,cal!G41) -> 0 | H42: =IF($K$10>=$K$11,"",cal!H41) -> 0 | I42: =IF($K$10>=$K$11,"",cal!I41) -> 0 | J42: =IF($K$10>=$K$11,"",cal!J41) ->  | K42: =IF(cal!K41=-8,"",cal!K41) ->  | L42: =IF(cal!L41=0,"",cal!L41) ->  | M42: =IF(cal!M41=0,"",cal!M41) ->  | N42: =IF(cal!N41=0,"",cal!N41) -> 
B43: =cal!B42 -> 0.4 | C43: =cal!C42 -> 4 | D43: =IF($E$10<=$E$11,cal!$AC$4,cal!D42) -> 0 | E43: =IF($E$10<=$E$11,"",cal!E42) -> 0 | F43: =IF($E$10<=$E$11,"",cal!F42) ->  | G43: =IF($K$10>=$K$11,cal!$AC$5,cal!G42) -> 0 | H43: =IF($K$10>=$K$11,"",cal!H42) -> 0 | I43: =IF($K$10>=$K$11,"",cal!I42) -> 0 | J43: =IF($K$10>=$K$11,"",cal!J42) ->  | K43: =IF(cal!K42=-8,"",cal!K42) ->  | L43: =IF(cal!L42=0,"",cal!L42) ->  | M43: =IF(cal!M42=0,"",cal!M42) ->  | N43: =IF(cal!N42=0,"",cal!N42) -> 
B44: =cal!B43 -> 0.6 | C44: =cal!C43 -> 6 | D44: =IF($E$10<=$E$11,"",cal!D43) -> 0 | E44: =IF($E$10<=$E$11,"",cal!E43) -> 0 | F44: =IF($E$10<=$E$11,"",cal!F43) ->  | G44: =IF($K$10>=$K$11,"",cal!G43) -> 0 | H44: =IF($K$10>=$K$11,"",cal!H43) -> 0 | I44: =IF($K$10>=$K$11,"",cal!I43) -> 0 | J44: =IF($K$10>=$K$11,"",cal!J43) ->  | K44: =IF(cal!K43=-8,"",cal!K43) ->  | L44: =IF(cal!L43=0,"",cal!L43) ->  | M44: =IF(cal!M43=0,"",cal!M43) ->  | N44: =IF(cal!N43=0,"",cal!N43) -> 
B45: =cal!B44 -> 0.8 | C45: =cal!C44 -> 8 | D45: =IF($E$10<=$E$11,"",cal!D44) -> 0 | E45: =IF($E$10<=$E$11,"",cal!E44) -> 0 | F45: =IF($E$10<=$E$11,"",cal!F44) ->  | G45: =IF($K$10>=$K$11,"",cal!G44) -> 0 | H45: =IF($K$10>=$K$11,"",cal!H44) -> 0 | I45: =IF($K$10>=$K$11,"",cal!I44) -> 0 | J45: =IF($K$10>=$K$11,"",cal!J44) ->  | K45: =IF(cal!K44=-8,"",cal!K44) ->  | L45: =IF(cal!L44=0,"",cal!L44) ->  | M45: =IF(cal!M44=0,"",cal!M44) ->  | N45: =IF(cal!N44=0,"",cal!N44) -> 
B46: =cal!B45 -> 1 | C46: =cal!C45 -> 10 | D46: =IF($E$10<=$E$11,"",cal!D45) -> 0 | E46: =IF($E$10<=$E$11,"",cal!E45) -> 0 | F46: =IF($E$10<=$E$11,"",cal!F45) ->  | G46: =IF($K$10>=$K$11,"",cal!G45) -> 0 | H46: =IF($K$10>=$K$11,"",cal!H45) -> 0 | I46: =IF($K$10>=$K$11,"",cal!I45) -> 0 | J46: =IF($K$10>=$K$11,"",cal!J45) ->  | K46: =IF(cal!K45=-8,"",cal!K45) ->  | L46: =IF(cal!L45=0,"",cal!L45) ->  | M46: =IF(cal!M45=0,"",cal!M45) ->  | N46: =IF(cal!N45=0,"",cal!N45) -> 
B47: =IF(cal!$X$16=1,"",IF(cal!$X$16=2,"",cal!B46)) -> 
B48: =cal!B47 -> 0.2 | C48: =cal!C47 -> 2 | D48: =IF($E$10<=$E$11,cal!$AC$3,cal!D47) -> 0 | E48: =IF($E$10<=$E$11,"",cal!E47) -> 0 | F48: =IF($E$10<=$E$11,"",cal!F47) ->  | G48: =IF($K$10>=$K$11,cal!$AC$3,cal!G47) -> 0 | H48: =IF($K$10>=$K$11,"",cal!H47) -> 0 | I48: =IF($K$10>=$K$11,"",cal!I47) -> 0 | J48: =IF($K$10>=$K$11,"",cal!J47) ->  | K48: =IF(cal!K47=-8,"",cal!K47) ->  | L48: =IF(cal!L47=0,"",cal!L47) ->  | M48: =IF(cal!M47=0,"",cal!M47) ->  | N48: =IF(cal!N47=0,"",cal!N47) -> 
B49: =cal!B48 -> 0.4 | C49: =cal!C48 -> 4 | D49: =IF($E$10<=$E$11,cal!$AC$4,cal!D48) -> 0 | E49: =IF($E$10<=$E$11,"",cal!E48) -> 0 | F49: =IF($E$10<=$E$11,"",cal!F48) ->  | G49: =IF($K$10>=$K$11,cal!$AC$5,cal!G48) -> 0 | H49: =IF($K$10>=$K$11,"",cal!H48) -> 0 | I49: =IF($K$10>=$K$11,"",cal!I48) -> 0 | J49: =IF($K$10>=$K$11,"",cal!J48) ->  | K49: =IF(cal!K48=-8,"",cal!K48) ->  | L49: =IF(cal!L48=0,"",cal!L48) ->  | M49: =IF(cal!M48=0,"",cal!M48) ->  | N49: =IF(cal!N48=0,"",cal!N48) -> 
B50: =cal!B49 -> 0.6 | C50: =cal!C49 -> 6 | D50: =IF($E$10<=$E$11,"",cal!D49) -> 0 | E50: =IF($E$10<=$E$11,"",cal!E49) -> 0 | F50: =IF($E$10<=$E$11,"",cal!F49) ->  | G50: =IF($K$10>=$K$11,"",cal!G49) -> 0 | H50: =IF($K$10>=$K$11,"",cal!H49) -> 0 | I50: =IF($K$10>=$K$11,"",cal!I49) -> 0 | J50: =IF($K$10>=$K$11,"",cal!J49) ->  | K50: =IF(cal!K49=-8,"",cal!K49) ->  | L50: =IF(cal!L49=0,"",cal!L49) ->  | M50: =IF(cal!M49=0,"",cal!M49) ->  | N50: =IF(cal!N49=0,"",cal!N49) -> 
B51: =cal!B50 -> 0.8 | C51: =cal!C50 -> 8 | D51: =IF($E$10<=$E$11,"",cal!D50) -> 0 | E51: =IF($E$10<=$E$11,"",cal!E50) -> 0 | F51: =IF($E$10<=$E$11,"",cal!F50) ->  | G51: =IF($K$10>=$K$11,"",cal!G50) -> 0 | H51: =IF($K$10>=$K$11,"",cal!H50) -> 0 | I51: =IF($K$10>=$K$11,"",cal!I50) -> 0 | J51: =IF($K$10>=$K$11,"",cal!J50) ->  | K51: =IF(cal!K50=-8,"",cal!K50) ->  | L51: =IF(cal!L50=0,"",cal!L50) ->  | M51: =IF(cal!M50=0,"",cal!M50) ->  | N51: =IF(cal!N50=0,"",cal!N50) -> 
B52: =cal!B51 -> 1 | C52: =cal!C51 -> 10 | D52: =IF($E$10<=$E$11,"",cal!D51) -> 0 | E52: =IF($E$10<=$E$11,"",cal!E51) -> 0 | F52: =IF($E$10<=$E$11,"",cal!F51) ->  | G52: =IF($K$10>=$K$11,"",cal!G51) -> 0 | H52: =IF($K$10>=$K$11,"",cal!H51) -> 0 | I52: =IF($K$10>=$K$11,"",cal!I51) -> 0 | J52: =IF($K$10>=$K$11,"",cal!J51) ->  | K52: =IF(cal!K51=-8,"",cal!K51) ->  | L52: =IF(cal!L51=0,"",cal!L51) ->  | M52: =IF(cal!M51=0,"",cal!M51) ->  | N52: =IF(cal!N51=0,"",cal!N51) -> 
B53: =IF(cal!$X$16=1,"",IF(cal!$X$16=2,"",cal!B52)) -> 
B54: =cal!B53 -> 0.2 | C54: =cal!C53 -> 2 | D54: =IF($E$10<=$E$11,cal!$AC$3,cal!D53) -> 0 | E54: =IF($E$10<=$E$11,"",cal!E53) -> 0 | F54: =IF($E$10<=$E$11,"",cal!F53) ->  | G54: =IF($K$10>=$K$11,cal!$AC$3,cal!G53) -> 0 | H54: =IF($K$10>=$K$11,"",cal!H53) -> 0 | I54: =IF($K$10>=$K$11,"",cal!I53) -> 0 | J54: =IF($K$10>=$K$11,"",cal!J53) ->  | K54: =IF(cal!K53=-8,"",cal!K53) ->  | L54: =IF(cal!L53=0,"",cal!L53) ->  | M54: =IF(cal!M53=0,"",cal!M53) ->  | N54: =IF(cal!N53=0,"",cal!N53) -> 
B55: =cal!B54 -> 0.4 | C55: =cal!C54 -> 4 | D55: =IF($E$10<=$E$11,cal!$AC$4,cal!D54) -> 0 | E55: =IF($E$10<=$E$11,"",cal!E54) -> 0 | F55: =IF($E$10<=$E$11,"",cal!F54) ->  | G55: =IF($K$10>=$K$11,cal!$AC$5,cal!G54) -> 0 | H55: =IF($K$10>=$K$11,"",cal!H54) -> 0 | I55: =IF($K$10>=$K$11,"",cal!I54) -> 0 | J55: =IF($K$10>=$K$11,"",cal!J54) ->  | K55: =IF(cal!K54=-8,"",cal!K54) ->  | L55: =IF(cal!L54=0,"",cal!L54) ->  | M55: =IF(cal!M54=0,"",cal!M54) ->  | N55: =IF(cal!N54=0,"",cal!N54) -> 
B56: =cal!B55 -> 0.6 | C56: =cal!C55 -> 6 | D56: =IF($E$10<=$E$11,"",cal!D55) -> 0 | E56: =IF($E$10<=$E$11,"",cal!E55) -> 0 | F56: =IF($E$10<=$E$11,"",cal!F55) ->  | G56: =IF($K$10>=$K$11,"",cal!G55) -> 0 | H56: =IF($K$10>=$K$11,"",cal!H55) -> 0 | I56: =IF($K$10>=$K$11,"",cal!I55) -> 0 | J56: =IF($K$10>=$K$11,"",cal!J55) ->  | K56: =IF(cal!K55=-8,"",cal!K55) ->  | L56: =IF(cal!L55=0,"",cal!L55) ->  | M56: =IF(cal!M55=0,"",cal!M55) ->  | N56: =IF(cal!N55=0,"",cal!N55) -> 
B57: =cal!B56 -> 0.8 | C57: =cal!C56 -> 8 | D57: =IF($E$10<=$E$11,"",cal!D56) -> 0 | E57: =IF($E$10<=$E$11,"",cal!E56) -> 0 | F57: =IF($E$10<=$E$11,"",cal!F56) ->  | G57: =IF($K$10>=$K$11,"",cal!G56) -> 0 | H57: =IF($K$10>=$K$11,"",cal!H56) -> 0 | I57: =IF($K$10>=$K$11,"",cal!I56) -> 0 | J57: =IF($K$10>=$K$11,"",cal!J56) ->  | K57: =IF(cal!K56=-8,"",cal!K56) ->  | L57: =IF(cal!L56=0,"",cal!L56) ->  | M57: =IF(cal!M56=0,"",cal!M56) ->  | N57: =IF(cal!N56=0,"",cal!N56) -> 
B58: =cal!B57 -> 1 | C58: =cal!C57 -> 10 | D58: =IF($E$10<=$E$11,"",cal!D57) -> 0 | E58: =IF($E$10<=$E$11,"",cal!E57) -> 0 | F58: =IF($E$10<=$E$11,"",cal!F57) ->  | G58: =IF($K$10>=$K$11,"",cal!G57) -> 0 | H58: =IF($K$10>=$K$11,"",cal!H57) -> 0 | I58: =IF($K$10>=$K$11,"",cal!I57) -> 0 | J58: =IF($K$10>=$K$11,"",cal!J57) ->  | K58: =IF(cal!K57=-8,"",cal!K57) ->  | L58: =IF(cal!L57=0,"",cal!L57) ->  | M58: =IF(cal!M57=0,"",cal!M57) ->  | N58: =IF(cal!N57=0,"",cal!N57) -> 
B59: =IF(cal!$X$16=1,"",IF(cal!$X$16=2,"",cal!B58)) -> 
B60: =cal!B59 -> 0.2 | C60: =cal!C59 -> 2 | D60: =IF($E$10<=$E$11,cal!$AC$3,cal!D59) -> 0 | E60: =IF($E$10<=$E$11,"",cal!E59) -> 0 | F60: =IF($E$10<=$E$11,"",cal!F59) ->  | G60: =IF($K$10>=$K$11,cal!$AC$3,cal!G59) -> 0 | H60: =IF($K$10>=$K$11,"",cal!H59) -> 0 | I60: =IF($K$10>=$K$11,"",cal!I59) -> 0 | J60: =IF($K$10>=$K$11,"",cal!J59) ->  | K60: =IF(cal!K59=-8,"",cal!K59) ->  | L60: =IF(cal!L59=0,"",cal!L59) ->  | M60: =IF(cal!M59=0,"",cal!M59) ->  | N60: =IF(cal!N59=0,"",cal!N59) -> 
B61: =cal!B60 -> 0.4 | C61: =cal!C60 -> 4 | D61: =IF($E$10<=$E$11,cal!$AC$4,cal!D60) -> 0 | E61: =IF($E$10<=$E$11,"",cal!E60) -> 0 | F61: =IF($E$10<=$E$11,"",cal!F60) ->  | G61: =IF($K$10>=$K$11,cal!$AC$5,cal!G60) -> 0 | H61: =IF($K$10>=$K$11,"",cal!H60) -> 0 | I61: =IF($K$10>=$K$11,"",cal!I60) -> 0 | J61: =IF($K$10>=$K$11,"",cal!J60) ->  | K61: =IF(cal!K60=-8,"",cal!K60) ->  | L61: =IF(cal!L60=0,"",cal!L60) ->  | M61: =IF(cal!M60=0,"",cal!M60) ->  | N61: =IF(cal!N60=0,"",cal!N60) -> 
B62: =cal!B61 -> 0.6 | C62: =cal!C61 -> 6 | D62: =IF($E$10<=$E$11,"",cal!D61) -> 0 | E62: =IF($E$10<=$E$11,"",cal!E61) -> 0 | F62: =IF($E$10<=$E$11,"",cal!F61) ->  | G62: =IF($K$10>=$K$11,"",cal!G61) -> 0 | H62: =IF($K$10>=$K$11,"",cal!H61) -> 0 | I62: =IF($K$10>=$K$11,"",cal!I61) -> 0 | J62: =IF($K$10>=$K$11,"",cal!J61) ->  | K62: =IF(cal!K61=-8,"",cal!K61) ->  | L62: =IF(cal!L61=0,"",cal!L61) ->  | M62: =IF(cal!M61=0,"",cal!M61) ->  | N62: =IF(cal!N61=0,"",cal!N61) -> 
B63: =cal!B62 -> 0.8 | C63: =cal!C62 -> 8 | D63: =IF($E$10<=$E$11,"",cal!D62) -> 0 | E63: =IF($E$10<=$E$11,"",cal!E62) -> 0 | F63: =IF($E$10<=$E$11,"",cal!F62) ->  | G63: =IF($K$10>=$K$11,"",cal!G62) -> 0 | H63: =IF($K$10>=$K$11,"",cal!H62) -> 0 | I63: =IF($K$10>=$K$11,"",cal!I62) -> 0 | J63: =IF($K$10>=$K$11,"",cal!J62) ->  | K63: =IF(cal!K62=-8,"",cal!K62) ->  | L63: =IF(cal!L62=0,"",cal!L62) ->  | M63: =IF(cal!M62=0,"",cal!M62) ->  | N63: =IF(cal!N62=0,"",cal!N62) -> 
B64: =cal!B63 -> 1 | C64: =cal!C63 -> 10 | D64: =IF($E$10<=$E$11,"",cal!D63) -> 0 | E64: =IF($E$10<=$E$11,"",cal!E63) -> 0 | F64: =IF($E$10<=$E$11,"",cal!F63) ->  | G64: =IF($K$10>=$K$11,"",cal!G63) -> 0 | H64: =IF($K$10>=$K$11,"",cal!H63) -> 0 | I64: =IF($K$10>=$K$11,"",cal!I63) -> 0 | J64: =IF($K$10>=$K$11,"",cal!J63) ->  | K64: =IF(cal!K63=-8,"",cal!K63) ->  | L64: =IF(cal!L63=0,"",cal!L63) ->  | M64: =IF(cal!M63=0,"",cal!M63) ->  | N64: =IF(cal!N63=0,"",cal!N63) -> 
B65: =IF(cal!$X$16=1,"",IF(cal!$X$16=2,"",cal!B64)) -> 
B66: =cal!B65 -> 0.2 | C66: =cal!C65 -> 2 | D66: =IF($E$10<=$E$11,cal!$AC$3,cal!D65) -> 0 | E66: =IF($E$10<=$E$11,"",cal!E65) -> 0 | F66: =IF($E$10<=$E$11,"",cal!F65) ->  | G66: =IF($K$10>=$K$11,cal!$AC$3,cal!G65) -> 0 | H66: =IF($K$10>=$K$11,"",cal!H65) -> 0 | I66: =IF($K$10>=$K$11,"",cal!I65) -> 0 | J66: =IF($K$10>=$K$11,"",cal!J65) ->  | K66: =IF(cal!K65=-8,"",cal!K65) ->  | L66: =IF(cal!L65=0,"",cal!L65) ->  | M66: =IF(cal!M65=0,"",cal!M65) ->  | N66: =IF(cal!N65=0,"",cal!N65) -> 
B67: =cal!B66 -> 0.4 | C67: =cal!C66 -> 4 | D67: =IF($E$10<=$E$11,cal!$AC$4,cal!D66) -> 0 | E67: =IF($E$10<=$E$11,"",cal!E66) -> 0 | F67: =IF($E$10<=$E$11,"",cal!F66) ->  | G67: =IF($K$10>=$K$11,cal!$AC$5,cal!G66) -> 0 | H67: =IF($K$10>=$K$11,"",cal!H66) -> 0 | I67: =IF($K$10>=$K$11,"",cal!I66) -> 0 | J67: =IF($K$10>=$K$11,"",cal!J66) ->  | K67: =IF(cal!K66=-8,"",cal!K66) ->  | L67: =IF(cal!L66=0,"",cal!L66) ->  | M67: =IF(cal!M66=0,"",cal!M66) ->  | N67: =IF(cal!N66=0,"",cal!N66) -> 
B68: =cal!B67 -> 0.6 | C68: =cal!C67 -> 6 | D68: =IF($E$10<=$E$11,"",cal!D67) -> 0 | E68: =IF($E$10<=$E$11,"",cal!E67) -> 0 | F68: =IF($E$10<=$E$11,"",cal!F67) ->  | G68: =IF($K$10>=$K$11,"",cal!G67) -> 0 | H68: =IF($K$10>=$K$11,"",cal!H67) -> 0 | I68: =IF($K$10>=$K$11,"",cal!I67) -> 0 | J68: =IF($K$10>=$K$11,"",cal!J67) ->  | K68: =IF(cal!K67=-8,"",cal!K67) ->  | L68: =IF(cal!L67=0,"",cal!L67) ->  | M68: =IF(cal!M67=0,"",cal!M67) ->  | N68: =IF(cal!N67=0,"",cal!N67) -> 
B69: =cal!B68 -> 0.8 | C69: =cal!C68 -> 8 | D69: =IF($E$10<=$E$11,"",cal!D68) -> 0 | E69: =IF($E$10<=$E$11,"",cal!E68) -> 0 | F69: =IF($E$10<=$E$11,"",cal!F68) ->  | G69: =IF($K$10>=$K$11,"",cal!G68) -> 0 | H69: =IF($K$10>=$K$11,"",cal!H68) -> 0 | I69: =IF($K$10>=$K$11,"",cal!I68) -> 0 | J69: =IF($K$10>=$K$11,"",cal!J68) ->  | K69: =IF(cal!K68=-8,"",cal!K68) ->  | L69: =IF(cal!L68=0,"",cal!L68) ->  | M69: =IF(cal!M68=0,"",cal!M68) ->  | N69: =IF(cal!N68=0,"",cal!N68) -> 
B70: =cal!B69 -> 1 | C70: =cal!C69 -> 10 | D70: =IF($E$10<=$E$11,"",cal!D69) -> 0 | E70: =IF($E$10<=$E$11,"",cal!E69) -> 0 | F70: =IF($E$10<=$E$11,"",cal!F69) ->  | G70: =IF($K$10>=$K$11,"",cal!G69) -> 0 | H70: =IF($K$10>=$K$11,"",cal!H69) -> 0 | I70: =IF($K$10>=$K$11,"",cal!I69) -> 0 | J70: =IF($K$10>=$K$11,"",cal!J69) ->  | K70: =IF(cal!K69=-8,"",cal!K69) ->  | L70: =IF(cal!L69=0,"",cal!L69) ->  | M70: =IF(cal!M69=0,"",cal!M69) ->  | N70: =IF(cal!N69=0,"",cal!N69) -> 
B71: =cal!B70 -> *Values according to EN 16430 | P71: v2022-08-26
B72: =cal!B71 -> **Sound power according to ISO 3741:2010
B73: =cal!B72 -> ***Sound pressure with an assumed room damping of 8dB(A)

Sheet cal (hidden)
G1: Nederlands | H1: English | I1: Deutsch | J1: Français | K1: Norsk | L1: Español | M1: Svenska | N1: Čeština | O1: ExtraTaal1 | P1: ExtraTaal2 | Q1: ExtraTaal3 | U1: =IF($S$7=1,NL!Q7,IF($S$7=2,EN!Q7,IF($S$7=3,DE!Q7,IF($S$7=4,FR!Q7,IF($S$7=5,NR!Q7,IF($S$7=6,SP!Q7,IF($S$7=7,SW!Q7,IF($S$7=8,TS!Q7,IF($S$7=9,ExtraTaal1!Q7,IF($S$7=10,ExtraTaal2!Q7,IF($S$7=11,ExtraTaal3!Q7,))))))))))) -> Copy all data | Z1: Freedom
U2: =IF($S$7=1,NL!Q8,IF($S$7=2,EN!Q8,IF($S$7=3,DE!Q8,IF($S$7=4,FR!Q8,IF($S$7=5,NR!Q8,IF($S$7=6,SP!Q8,IF($S$7=7,SW!Q8,IF($S$7=8,TS!Q8,IF($S$7=9,ExtraTaal1!Q8,IF($S$7=10,ExtraTaal2!Q8,IF($S$7=11,ExtraTaal3!Q8,))))))))))) -> SI-units | Y2: Freedom | Z2: =AE16 -> Freedom
B3: =IF($S$7=1,NL!A2,IF(cal!$S$7=2,EN!A2,IF(cal!$S$7=3,DE!A2,IF(cal!$S$7=4,FR!A2,)))) -> Formulary | U3: =IF($S$7=1,NL!Q9,IF($S$7=2,EN!Q9,IF($S$7=3,DE!Q9,IF($S$7=4,FR!Q9,IF($S$7=5,NR!Q9,IF($S$7=6,SP!Q9,IF($S$7=7,SW!Q9,IF($S$7=8,TS!Q9,IF($S$7=9,ExtraTaal1!Q9,IF($S$7=10,ExtraTaal2!Q9,IF($S$7=11,ExtraTaal3!Q9,))))))))))) -> Imperial-units | Y3: Clima H10 B18 | Z3: =AM16 -> 0 | AC3: =IF($S$7=1,NL!Q15,IF(cal!$S$7=2,EN!Q15,IF(cal!$S$7=3,DE!Q15,IF(cal!$S$7=4,FR!Q15,IF(cal!$S$7=5,NR!Q15,IF(cal!$S$7=6,SP!Q15,)))))) -> Temp.
X4: 1 | Y4: Clima H13 B27 4P | Z4: =AX16 -> 0 | AC4: =IF($S$7=1,NL!Q16,IF(cal!$S$7=2,EN!Q16,IF(cal!$S$7=3,DE!Q16,IF(cal!$S$7=4,FR!Q16,IF(cal!$S$7=5,NR!Q16,IF(cal!$S$7=6,SP!Q16,)))))) -> heating!
B5: =IF($S$7=1,NL!A4,IF(cal!$S$7=2,EN!A4,IF(cal!$S$7=3,DE!A4,IF(cal!$S$7=4,FR!A4,)))) -> Conditions | Y5: Clima H13 B32 2P | Z5: =BL16 -> 0 | AC5: =IF($S$7=1,NL!Q17,IF(cal!$S$7=2,EN!Q17,IF(cal!$S$7=3,DE!Q17,IF(cal!$S$7=4,FR!Q17,IF(cal!$S$7=5,NR!Q17,IF(cal!$S$7=6,SP!Q17,)))))) -> cooling!
Y6: Clima H13 B32 4P | Z6: =BE16 -> 0
B7: =IF($S$7=1,NL!A6,IF(cal!$S$7=2,EN!A6,IF(cal!$S$7=3,DE!A6,IF(cal!$S$7=4,FR!A6,IF(cal!$S$7=5,NR!A6,IF(cal!$S$7=6,SP!A6,IF(cal!$S$7=7,SW!A6,IF(cal!$S$7=8,TS!A6,IF(cal!$S$7=9,ExtraTaal1!A6,IF(cal!$S$7=10,ExtraTaal2!A6,IF(cal!$S$7=11,ExtraTaal3!A6,))))))))))) -> Temperatures | M7: =IF($S$7=1,NL!L6,IF(cal!$S$7=2,EN!L6,IF(cal!$S$7=3,DE!L6,IF(cal!$S$7=4,FR!L6,IF(cal!$S$7=5,NR!L6,IF(cal!$S$7=6,SP!L6,IF(cal!$S$7=7,SW!L6,IF(cal!$S$7=8,TS!L6,IF(cal!$S$7=9,ExtraTaal1!L6,IF(cal!$S$7=10,ExtraTaal2!L6,IF(cal!$S$7=11,ExtraTaal3!L6,))))))))))) -> Altitude | N7: =IF($S$7=1,NL!M6,IF(cal!$S$7=2,EN!M6,IF(cal!$S$7=3,DE!M6,IF(cal!$S$7=4,FR!M6,IF(cal!$S$7=5,NR!M6,IF(cal!$S$7=6,SP!M6,IF(cal!$S$7=7,SW!M6,IF(cal!$S$7=8,TS!M6,IF(cal!$S$7=9,ExtraTaal1!M6,IF(cal!$S$7=10,ExtraTaal2!M6,IF(cal!$S$7=11,ExtraTaal3!M6,))))))))))) -> 0 | S7: =IF(Freedom!$K$4=cal!G1,1,IF(Freedom!$K$4=cal!H1,2,IF(Freedom!$K$4=cal!I1,3,IF(Freedom!$K$4=cal!J1,4,IF(Freedom!$K$4=cal!K1,5,IF(Freedom!$K$4=cal!L1,6,IF(Freedom!$K$4=cal!M1,7,IF(Freedom!$K$4=cal!N1,8,IF(Freedom!$K$4=cal!O1,9,IF(Freedom!$K$4=cal!P1,10,IF(Freedom!$K$4=cal!Q1,11,))))))))))) -> 2 | Y7: Clima H19 B34 2P | Z7: =CA16 -> 0
B8: =IF($S$7=1,NL!A7,IF(cal!$S$7=2,EN!A7,IF(cal!$S$7=3,DE!A7,IF(cal!$S$7=4,FR!A7,IF(cal!$S$7=5,NR!A7,IF(cal!$S$7=6,SP!A7,IF(cal!$S$7=7,SW!A7,IF(cal!$S$7=8,TS!A7,IF(cal!$S$7=9,ExtraTaal1!A7,IF(cal!$S$7=10,ExtraTaal2!A7,IF(cal!$S$7=11,ExtraTaal3!A7,))))))))))) -> Heating: | G8: =IF($S$7=1,NL!F7,IF(cal!$S$7=2,EN!F7,IF(cal!$S$7=3,DE!F7,IF(cal!$S$7=4,FR!F7,IF(cal!$S$7=5,NR!F7,IF(cal!$S$7=6,SP!F7,IF(cal!$S$7=7,SW!F7,IF(cal!$S$7=8,TS!F7,IF(cal!$S$7=9,ExtraTaal1!F7,IF(cal!$S$7=10,ExtraTaal2!F7,IF(cal!$S$7=11,ExtraTaal3!F7,))))))))))) -> Cooling: | M8: =Freedom!M9:N9 -> 0 | N8: 0 | O8: =IF($X$4=1,"m",IF($X$4=2,"ft")) -> m | S8: Temp | X8: Temp | Y8: Clima H19 B34 4P | Z8: =BT16 -> 0
B9: =IF($S$7=1,NL!A8,IF(cal!$S$7=2,EN!A8,IF(cal!$S$7=3,DE!A8,IF(cal!$S$7=4,FR!A8,IF(cal!$S$7=5,NR!A8,IF(cal!$S$7=6,SP!A8,IF(cal!$S$7=7,SW!A8,IF(cal!$S$7=8,TS!A8,IF(cal!$S$7=9,ExtraTaal1!A8,IF(cal!$S$7=10,ExtraTaal2!A8,IF(cal!$S$7=11,ExtraTaal3!A8,))))))))))) -> Inlet temp. | C9: =IF($S$7=1,NL!B8,IF(cal!$S$7=2,EN!B8,IF(cal!$S$7=3,DE!B8,IF(cal!$S$7=4,FR!B8,IF(cal!$S$7=5,NR!B8,IF(cal!$S$7=6,SP!B8,IF(cal!$S$7=7,SW!B8,IF(cal!$S$7=8,TS!B8,IF(cal!$S$7=9,ExtraTaal1!B8,IF(cal!$S$7=10,ExtraTaal2!B8,IF(cal!$S$7=11,ExtraTaal3!B8,))))))))))) -> 0 | D9: =IF($S$7=1,NL!C8,IF(cal!$S$7=2,EN!C8,IF(cal!$S$7=3,DE!C8,IF(cal!$S$7=4,FR!C8,IF(cal!$S$7=5,NR!C8,IF(cal!$S$7=6,SP!C8,IF(cal!$S$7=7,SW!C8,IF(cal!$S$7=8,TS!C8,IF(cal!$S$7=9,ExtraTaal1!C8,IF(cal!$S$7=10,ExtraTaal2!C8,IF(cal!$S$7=11,ExtraTaal3!C8,))))))))))) -> 0 | E9: =Freedom!E10 -> 75 | G9: =B9 -> Inlet temp. | H9: =IF($S$7=1,NL!G8,IF(cal!$S$7=2,EN!G8,IF(cal!$S$7=3,DE!G8,IF(cal!$S$7=4,FR!G8,)))) -> 0 | I9: =IF($S$7=1,NL!H8,IF(cal!$S$7=2,EN!H8,IF(cal!$S$7=3,DE!H8,IF(cal!$S$7=4,FR!H8,)))) -> 0 | J9: =IF($S$7=1,NL!I8,IF(cal!$S$7=2,EN!I8,IF(cal!$S$7=3,DE!I8,IF(cal!$S$7=4,FR!I8,)))) -> 0 | K9: =Freedom!K10 -> 16 | M9: =IF($S$7=1,NL!L8,IF(cal!$S$7=2,EN!L8,IF(cal!$S$7=3,DE!L8,IF(cal!$S$7=4,FR!L8,IF(cal!$S$7=5,NR!L8,IF(cal!$S$7=6,SP!L8,IF(cal!$S$7=7,SW!L8,IF(cal!$S$7=8,TS!L8,IF(cal!$S$7=9,ExtraTaal1!L8,IF(cal!$S$7=10,ExtraTaal2!L8,IF(cal!$S$7=11,ExtraTaal3!L8,))))))))))) -> Unit conversion | N9: =IF($S$7=1,NL!M8,IF(cal!$S$7=2,EN!M8,IF(cal!$S$7=3,DE!M8,IF(cal!$S$7=4,FR!M8,IF(cal!$S$7=5,NR!M8,IF(cal!$S$7=6,SP!M8,IF(cal!$S$7=7,SW!M8,IF(cal!$S$7=8,TS!M8,IF(cal!$S$7=9,ExtraTaal1!M8,IF(cal!$S$7=10,ExtraTaal2!M8,IF(cal!$S$7=11,ExtraTaal3!M8,))))))))))) -> 0 | S9: =IF($X$4=1,E9,IF($X$4=2,(E9-32)/1.8)) -> 75 | X9: =IF($X$4=1,K9,IF($X$4=2,(K9-32)/1.8)) -> 16
B10: =IF($S$7=1,NL!A9,IF(cal!$S$7=2,EN!A9,IF(cal!$S$7=3,DE!A9,IF(cal!$S$7=4,FR!A9,IF(cal!$S$7=5,NR!A9,IF(cal!$S$7=6,SP!A9,IF(cal!$S$7=7,SW!A9,IF(cal!$S$7=8,TS!A9,IF(cal!$S$7=9,ExtraTaal1!A9,IF(cal!$S$7=10,ExtraTaal2!A9,IF(cal!$S$7=11,ExtraTaal3!A9,))))))))))) -> Return temp. | C10: =IF($S$7=1,NL!B9,IF(cal!$S$7=2,EN!B9,IF(cal!$S$7=3,DE!B9,IF(cal!$S$7=4,FR!B9,IF(cal!$S$7=5,NR!B9,IF(cal!$S$7=6,SP!B9,IF(cal!$S$7=7,SW!B9,IF(cal!$S$7=8,TS!B9,IF(cal!$S$7=9,ExtraTaal1!B9,IF(cal!$S$7=10,ExtraTaal2!B9,IF(cal!$S$7=11,ExtraTaal3!B9,))))))))))) -> 0 | D10: =IF($S$7=1,NL!C9,IF(cal!$S$7=2,EN!C9,IF(cal!$S$7=3,DE!C9,IF(cal!$S$7=4,FR!C9,IF(cal!$S$7=5,NR!C9,IF(cal!$S$7=6,SP!C9,IF(cal!$S$7=7,SW!C9,IF(cal!$S$7=8,TS!C9,IF(cal!$S$7=9,ExtraTaal1!C9,IF(cal!$S$7=10,ExtraTaal2!C9,IF(cal!$S$7=11,ExtraTaal3!C9,))))))))))) -> 0 | E10: =Freedom!E11 -> 65 | G10: =B10 -> Return temp. | H10: =IF($S$7=1,NL!G9,IF(cal!$S$7=2,EN!G9,IF(cal!$S$7=3,DE!G9,IF(cal!$S$7=4,FR!G9,)))) -> 0 | I10: =IF($S$7=1,NL!H9,IF(cal!$S$7=2,EN!H9,IF(cal!$S$7=3,DE!H9,IF(cal!$S$7=4,FR!H9,)))) -> 0 | J10: =IF($S$7=1,NL!I9,IF(cal!$S$7=2,EN!I9,IF(cal!$S$7=3,DE!I9,IF(cal!$S$7=4,FR!I9,)))) -> 0 | K10: =Freedom!K11 -> 18 | S10: =IF($X$4=1,E10,IF($X$4=2,(E10-32)/1.8)) -> 65 | T10: CF,h | W10: CF,c | X10: =IF($X$4=1,K10,IF($X$4=2,(K10-32)/1.8)) -> 18 | Z10: p_atm | AA10: h[mm] | AB10: cf_h
B11: =IF($S$7=1,NL!A10,IF(cal!$S$7=2,EN!A10,IF(cal!$S$7=3,DE!A10,IF(cal!$S$7=4,FR!A10,IF(cal!$S$7=5,NR!A10,IF(cal!$S$7=6,SP!A10,IF(cal!$S$7=7,SW!A10,IF(cal!$S$7=8,TS!A10,IF(cal!$S$7=9,ExtraTaal1!A10,IF(cal!$S$7=10,ExtraTaal2!A10,IF(cal!$S$7=11,ExtraTaal3!A10,))))))))))) -> Room temp. | C11: =IF($S$7=1,NL!B10,IF(cal!$S$7=2,EN!B10,IF(cal!$S$7=3,DE!B10,IF(cal!$S$7=4,FR!B10,IF(cal!$S$7=5,NR!B10,IF(cal!$S$7=6,SP!B10,IF(cal!$S$7=7,SW!B10,IF(cal!$S$7=8,TS!B10,IF(cal!$S$7=9,ExtraTaal1!B10,IF(cal!$S$7=10,ExtraTaal2!B10,IF(cal!$S$7=11,ExtraTaal3!B10,))))))))))) -> 0 | D11: =IF($S$7=1,NL!C10,IF(cal!$S$7=2,EN!C10,IF(cal!$S$7=3,DE!C10,IF(cal!$S$7=4,FR!C10,IF(cal!$S$7=5,NR!C10,IF(cal!$S$7=6,SP!C10,IF(cal!$S$7=7,SW!C10,IF(cal!$S$7=8,TS!C10,IF(cal!$S$7=9,ExtraTaal1!C10,IF(cal!$S$7=10,ExtraTaal2!C10,IF(cal!$S$7=11,ExtraTaal3!C10,))))))))))) -> 0 | E11: =Freedom!E12 -> 20 | G11: =B11 -> Room temp. | H11: =IF($S$7=1,NL!G10,IF(cal!$S$7=2,EN!G10,IF(cal!$S$7=3,DE!G10,IF(cal!$S$7=4,FR!G10,)))) -> 0 | K11: =Freedom!K12 -> 27 | S11: =IF($X$4=1,E11,IF($X$4=2,(E11-32)/1.8)) -> 20 | T11: =(($S$9-$S$10)/LN(($S$9-$S$11)/($S$10-$S$11)))/((75-65)/LN((75-20)/(65-20))) -> 1 | W11: =(($X$9-$X$10)/LN(($X$9-$X$11)/($X$10-$X$11)))/((16-18)/LN((16-27)/(18-27))) -> 1 | X11: =IF($X$4=1,K11,IF($X$4=2,(K11-32)/1.8)) -> 27 | Z11: =IF($X$4=1,(101325*(1-((0.0065*M8)/(288.15)))^((9.81*0.028964)/(8.31447*0.0065))),IF($X$4=2,(101325*(1-((0.0065*(M8*0.3048))/(288.15)))^((9.81*0.028964)/(8.31447*0.0065))))) -> 101325 | AA11: =IF($X$4=1,M8/1000,IF($X$4=2,M8*0.0003048)) -> 0 | AB11: =-(0.000265264729874266*AA11^6)+(0.000957582908802335*AA11^5)+(0.00470250661483425*AA11^4)-(0.0298716926548353*AA11^3)+(0.0557086806557086*AA11^2)-(0.0484008125693582*AA11)+1 -> 1
B12: =G12 -> Relative humidity | E12: 0.5 | G12: =IF($S$7=1,NL!F11,IF(cal!$S$7=2,EN!F11,IF(cal!$S$7=3,DE!F11,IF(cal!$S$7=4,FR!F11,IF(cal!$S$7=5,NR!F11,IF(cal!$S$7=6,SP!F11,IF(cal!$S$7=7,SW!F11,IF(cal!$S$7=8,TS!F11,IF(cal!$S$7=9,ExtraTaal1!F11,IF(cal!$S$7=10,ExtraTaal2!F11,IF(cal!$S$7=11,ExtraTaal3!F11,))))))))))) -> Relative humidity | K12: =Freedom!K13 -> 0.5
E14: =IF($X$4=1,1,IF($X$4=2,0.004403)) -> 1 | F14: =IF($X$4=1,1,IF($X$4=2,4.0147)) -> 1 | G14: =IF($X$4=1,0.000334444444444444,IF($X$4=2,0.000568224721372)) -> 0.0003344444444 | H14: =IF($X$4=1,1,IF($X$4=2,3.4121416331)) -> 1 | I14: =IF($X$4=1,1,IF($X$4=2,0.004403)) -> 1 | J14: =IF($X$4=1,1,IF($X$4=2,4.0147)) -> 1 | N14: =IF($X$4=1,1,IF($X$4=2,0.588575)) -> 1 | O14: =IF($X$4=1,1,1.8) -> 1 | P14: =IF($X$4=1,0,32) -> 0
B15: =IF($S$7=1,NL!A14,IF(cal!$S$7=2,EN!A14,IF(cal!$S$7=3,DE!A14,IF(cal!$S$7=4,FR!A14,IF(cal!$S$7=5,NR!A14,IF(cal!$S$7=6,SP!A14,IF(cal!$S$7=7,SW!A14,IF(cal!$S$7=8,TS!A14,IF(cal!$S$7=9,ExtraTaal1!A14,IF(cal!$S$7=10,ExtraTaal2!A14,IF(cal!$S$7=11,ExtraTaal3!A14,))))))))))) -> Speed level: | C15: =IF($S$7=1,NL!B14,IF(cal!$S$7=2,EN!B14,IF(cal!$S$7=3,DE!B14,IF(cal!$S$7=4,FR!B14,IF(cal!$S$7=5,NR!B14,IF(cal!$S$7=6,SP!B14,IF(cal!$S$7=7,SW!B14,IF(cal!$S$7=8,TS!B14,IF(cal!$S$7=9,ExtraTaal1!B14,IF(cal!$S$7=10,ExtraTaal2!B14,IF(cal!$S$7=11,ExtraTaal3!B14,))))))))))) -> Control voltage [V] | D15: =IF($S$7=1,NL!C14,IF(cal!$S$7=2,EN!C14,IF(cal!$S$7=3,DE!C14,IF(cal!$S$7=4,FR!C14,IF(cal!$S$7=5,NR!C14,IF(cal!$S$7=6,SP!C14,IF(cal!$S$7=7,SW!C14,IF(cal!$S$7=8,TS!C14,IF(cal!$S$7=9,ExtraTaal1!C14,IF(cal!$S$7=10,ExtraTaal2!C14,IF(cal!$S$7=11,ExtraTaal3!C14,))))))))))) -> Heat output * 75/65/20 [W] | E15: =IF($S$7=1,NL!D14,IF(cal!$S$7=2,EN!D14,IF(cal!$S$7=3,DE!D14,IF(cal!$S$7=4,FR!D14,IF(cal!$S$7=5,NR!D14,IF(cal!$S$7=6,SP!D14,IF(cal!$S$7=7,SW!D14,IF(cal!$S$7=8,TS!D14,IF(cal!$S$7=9,ExtraTaal1!D14,IF(cal!$S$7=10,ExtraTaal2!D14,IF(cal!$S$7=11,ExtraTaal3!D14,))))))))))) -> Water flowrate, heating [l/h] | F15: =IF($S$7=1,NL!E14,IF(cal!$S$7=2,EN!E14,IF(cal!$S$7=3,DE!E14,IF(cal!$S$7=4,FR!E14,IF(cal!$S$7=5,NR!E14,IF(cal!$S$7=6,SP!E14,IF(cal!$S$7=7,SW!E14,IF(cal!$S$7=8,TS!E14,IF(cal!$S$7=9,ExtraTaal1!E14,IF(cal!$S$7=10,ExtraTaal2!E14,IF(cal!$S$7=11,ExtraTaal3!E14,))))))))))) -> Watersided pressure loss [kPa] | G15: =IF($S$7=1,NL!F14,IF(cal!$S$7=2,EN!F14,IF(cal!$S$7=3,DE!F14,IF(cal!$S$7=4,FR!F14,IF(cal!$S$7=5,NR!F14,IF(cal!$S$7=6,SP!F14,IF(cal!$S$7=7,SW!F14,IF(cal!$S$7=8,TS!F14,IF(cal!$S$7=9,ExtraTaal1!F14,IF(cal!$S$7=10,ExtraTaal2!F14,IF(cal!$S$7=11,ExtraTaal3!F14,))))))))))) -> Sens. cooling capacity * 16/18/27 [W] | H15: =IF($S$7=1,NL!G14,IF(cal!$S$7=2,EN!G14,IF(cal!$S$7=3,DE!G14,IF(cal!$S$7=4,FR!G14,IF(cal!$S$7=5,NR!G14,IF(cal!$S$7=6,SP!G14,IF(cal!$S$7=7,SW!G14,IF(cal!$S$7=8,TS!G14,IF(cal!$S$7=9,ExtraTaal1!G14,IF(cal!$S$7=10,ExtraTaal2!G14,IF(cal!$S$7=11,ExtraTaal3!G14,))))))))))) -> Tot. cooling capacity 16/18/27 [W] | I15: =IF($S$7=1,NL!H14,IF(cal!$S$7=2,EN!H14,IF(cal!$S$7=3,DE!H14,IF(cal!$S$7=4,FR!H14,IF(cal!$S$7=5,NR!H14,IF(cal!$S$7=6,SP!H14,IF(cal!$S$7=7,SW!H14,IF(cal!$S$7=8,TS!H14,IF(cal!$S$7=9,ExtraTaal1!H14,IF(cal!$S$7=10,ExtraTaal2!H14,IF(cal!$S$7=11,ExtraTaal3!H14,))))))))))) -> Water flowrate, cooling [l/h] | J15: =IF($S$7=1,NL!I14,IF(cal!$S$7=2,EN!I14,IF(cal!$S$7=3,DE!I14,IF(cal!$S$7=4,FR!I14,IF(cal!$S$7=5,NR!I14,IF(cal!$S$7=6,SP!I14,IF(cal!$S$7=7,SW!I14,IF(cal!$S$7=8,TS!I14,IF(cal!$S$7=9,ExtraTaal1!I14,IF(cal!$S$7=10,ExtraTaal2!I14,IF(cal!$S$7=11,ExtraTaal3!I14,))))))))))) -> Watersided pressure loss [kPa] | K15: =IF($S$7=1,NL!J14,IF(cal!$S$7=2,EN!J14,IF(cal!$S$7=3,DE!J14,IF(cal!$S$7=4,FR!J14,IF(cal!$S$7=5,NR!J14,IF(cal!$S$7=6,SP!J14,IF(cal!$S$7=7,SW!J14,IF(cal!$S$7=8,TS!J14,IF(cal!$S$7=9,ExtraTaal1!J14,IF(cal!$S$7=10,ExtraTaal2!J14,IF(cal!$S$7=11,ExtraTaal3!J14,))))))))))) -> Sound pressure *** [dB(A)] | L15: =IF($S$7=1,NL!K14,IF(cal!$S$7=2,EN!K14,IF(cal!$S$7=3,DE!K14,IF(cal!$S$7=4,FR!K14,IF(cal!$S$7=5,NR!K14,IF(cal!$S$7=6,SP!K14,IF(cal!$S$7=7,SW!K14,IF(cal!$S$7=8,TS!K14,IF(cal!$S$7=9,ExtraTaal1!K14,IF(cal!$S$7=10,ExtraTaal2!K14,IF(cal!$S$7=11,ExtraTaal3!K14,))))))))))) -> Sound power ** [dB(A)] | M15: =IF($S$7=1,NL!L14,IF(cal!$S$7=2,EN!L14,IF(cal!$S$7=3,DE!L14,IF(cal!$S$7=4,FR!L14,IF(cal!$S$7=5,NR!L14,IF(cal!$S$7=6,SP!L14,IF(cal!$S$7=7,SW!L14,IF(cal!$S$7=8,TS!L14,IF(cal!$S$7=9,ExtraTaal1!L14,IF(cal!$S$7=10,ExtraTaal2!L14,IF(cal!$S$7=11,ExtraTaal3!L14,))))))))))) -> Electrical power [W] | N15: =IF($S$7=1,NL!M14,IF(cal!$S$7=2,EN!M14,IF(cal!$S$7=3,DE!M14,IF(cal!$S$7=4,FR!M14,IF(cal!$S$7=5,NR!M14,IF(cal!$S$7=6,SP!M14,IF(cal!$S$7=7,SW!M14,IF(cal!$S$7=8,TS!M14,IF(cal!$S$7=9,ExtraTaal1!M14,IF(cal!$S$7=10,ExtraTaal2!M14,IF(cal!$S$7=11,ExtraTaal3!M14,))))))))))) -> Air flowrate [m³/h] | O15: =IF($S$7=1,NL!N14,IF(cal!$S$7=2,EN!N14,IF(cal!$S$7=3,DE!N14,IF(cal!$S$7=4,FR!N14,IF(cal!$S$7=5,NR!N14,IF(cal!$S$7=6,SP!N14,IF(cal!$S$7=7,SW!N14,IF(cal!$S$7=8,TS!N14,IF(cal!$S$7=9,ExtraTaal1!N14,IF(cal!$S$7=10,ExtraTaal2!N14,IF(cal!$S$7=11,ExtraTaal3!N14,))))))))))) -> Air exhaust temp. heating [°C] | P15: =IF($S$7=1,NL!O14,IF(cal!$S$7=2,EN!O14,IF(cal!$S$7=3,DE!O14,IF(cal!$S$7=4,FR!O14,IF(cal!$S$7=5,NR!O14,IF(cal!$S$7=6,SP!O14,IF(cal!$S$7=7,SW!O14,IF(cal!$S$7=8,TS!O14,IF(cal!$S$7=9,ExtraTaal1!O14,IF(cal!$S$7=10,ExtraTaal2!O14,IF(cal!$S$7=11,ExtraTaal3!O14,))))))))))) -> Air exhaust temp. cooling [°C] | Q15: n- heating | R15: n- cooling | X15: Q_verw | Y15: dP_verw | Z15: Q_voelb_c | AA15: dP_cool | AB15: Geluid_P | AC15: P_elek | AD15: V_air | AE15: Q_verw | AF15: dP_verw | AG15: Q_voelb_c | AH15: dP_cool | AI15: Geluid_P | AJ15: P_elek | AK15: V_air | AM15: Q_verw | AN15: dP_verw | AO15: Q_voelb_c | AP15: dP_cool | AQ15: Geluid_P | AR15: P_elek | AS15: V_air | AX15: Q_verw | AY15: dP_verw | AZ15: Q_voelb_c | BA15: dP_cool | BB15: Geluid_P | BC15: P_elek | BD15: V_air | BE15: Q_verw | BF15: dP_verw | BG15: Q_voelb_c | BH15: dP_cool | BI15: Geluid_P | BJ15: P_elek | BK15: V_air | BL15: Q_verw | BM15: dP_verw | BN15: Q_voelb_c | BO15: dP_cool | BP15: Geluid_P | BQ15: P_elek | BR15: V_air | BT15: Q_verw | BU15: dP_verw | BV15: Q_voelb_c | BW15: dP_cool | BX15: Geluid_P | BY15: P_elek | BZ15: V_air | CA15: Q_verw | CB15: dP_verw | CC15: Q_voelb_c | CD15: dP_cool | CE15: Geluid_P | CF15: P_elek | CG15: V_air
B16: =IF($S$7=1,NL!A15,IF(cal!$S$7=2,EN!A15,IF(cal!$S$7=3,DE!A15,IF(cal!$S$7=4,FR!A15,IF(cal!$S$7=5,NR!A15,IF(cal!$S$7=6,SP!A15,IF(cal!$S$7=7,SW!A15,IF(cal!$S$7=8,TS!A15,IF(cal!$S$7=9,ExtraTaal1!A15,IF(cal!$S$7=10,ExtraTaal2!A15,IF(cal!$S$7=11,ExtraTaal3!A15,))))))))))) -> Freedom height 20 cm width 19 cm length 74 cm (Type 1) | C16: =IF($S$7=1,NL!B15,IF(cal!$S$7=2,EN!B15,IF(cal!$S$7=3,DE!B15,IF(cal!$S$7=4,FR!B15,IF(cal!$S$7=5,NR!B15,IF(cal!$S$7=6,SP!B15,IF(cal!$S$7=7,SW!B15,IF(cal!$S$7=8,TS!B15,IF(cal!$S$7=9,ExtraTaal1!B15,IF(cal!$S$7=10,ExtraTaal2!B15,IF(cal!$S$7=11,ExtraTaal3!B15,))))))))))) -> 0 | D16: =IF($S$7=1,NL!C15,IF(cal!$S$7=2,EN!C15,IF(cal!$S$7=3,DE!C15,IF(cal!$S$7=4,FR!C15,IF(cal!$S$7=5,NR!C15,IF(cal!$S$7=6,SP!C15,IF(cal!$S$7=7,SW!C15,IF(cal!$S$7=8,TS!C15,IF(cal!$S$7=9,ExtraTaal1!C15,IF(cal!$S$7=10,ExtraTaal2!C15,IF(cal!$S$7=11,ExtraTaal3!C15,))))))))))) -> 0 | E16: =IF($S$7=1,NL!D15,IF(cal!$S$7=2,EN!D15,IF(cal!$S$7=3,DE!D15,IF(cal!$S$7=4,FR!D15,IF(cal!$S$7=5,NR!D15,IF(cal!$S$7=6,SP!D15,IF(cal!$S$7=7,SW!D15,IF(cal!$S$7=8,TS!D15,IF(cal!$S$7=9,ExtraTaal1!D15,IF(cal!$S$7=10,ExtraTaal2!D15,IF(cal!$S$7=11,ExtraTaal3!D15,))))))))))) -> 0 | F16: =IF($S$7=1,NL!E15,IF(cal!$S$7=2,EN!E15,IF(cal!$S$7=3,DE!E15,IF(cal!$S$7=4,FR!E15,IF(cal!$S$7=5,NR!E15,IF(cal!$S$7=6,SP!E15,IF(cal!$S$7=7,SW!E15,IF(cal!$S$7=8,TS!E15,IF(cal!$S$7=9,ExtraTaal1!E15,IF(cal!$S$7=10,ExtraTaal2!E15,IF(cal!$S$7=11,ExtraTaal3!E15,))))))))))) -> 0 | G16: =IF($S$7=1,NL!F15,IF(cal!$S$7=2,EN!F15,IF(cal!$S$7=3,DE!F15,IF(cal!$S$7=4,FR!F15,IF(cal!$S$7=5,NR!F15,IF(cal!$S$7=6,SP!F15,IF(cal!$S$7=7,SW!F15,IF(cal!$S$7=8,TS!F15,IF(cal!$S$7=9,ExtraTaal1!F15,IF(cal!$S$7=10,ExtraTaal2!F15,IF(cal!$S$7=11,ExtraTaal3!F15,))))))))))) -> 0 | H16: =IF($S$7=1,NL!G15,IF(cal!$S$7=2,EN!G15,IF(cal!$S$7=3,DE!G15,IF(cal!$S$7=4,FR!G15,IF(cal!$S$7=5,NR!G15,IF(cal!$S$7=6,SP!G15,IF(cal!$S$7=7,SW!G15,IF(cal!$S$7=8,TS!G15,IF(cal!$S$7=9,ExtraTaal1!G15,IF(cal!$S$7=10,ExtraTaal2!G15,IF(cal!$S$7=11,ExtraTaal3!G15,))))))))))) -> 0 | I16: =IF($S$7=1,NL!H15,IF(cal!$S$7=2,EN!H15,IF(cal!$S$7=3,DE!H15,IF(cal!$S$7=4,FR!H15,IF(cal!$S$7=5,NR!H15,IF(cal!$S$7=6,SP!H15,IF(cal!$S$7=7,SW!H15,IF(cal!$S$7=8,TS!H15,IF(cal!$S$7=9,ExtraTaal1!H15,IF(cal!$S$7=10,ExtraTaal2!H15,IF(cal!$S$7=11,ExtraTaal3!H15,))))))))))) -> 0 | J16: =IF($S$7=1,NL!I15,IF(cal!$S$7=2,EN!I15,IF(cal!$S$7=3,DE!I15,IF(cal!$S$7=4,FR!I15,IF(cal!$S$7=5,NR!I15,IF(cal!$S$7=6,SP!I15,IF(cal!$S$7=7,SW!I15,IF(cal!$S$7=8,TS!I15,IF(cal!$S$7=9,ExtraTaal1!I15,IF(cal!$S$7=10,ExtraTaal2!I15,IF(cal!$S$7=11,ExtraTaal3!I15,))))))))))) -> 0 | K16: =IF($S$7=1,NL!J15,IF(cal!$S$7=2,EN!J15,IF(cal!$S$7=3,DE!J15,IF(cal!$S$7=4,FR!J15,IF(cal!$S$7=5,NR!J15,IF(cal!$S$7=6,SP!J15,IF(cal!$S$7=7,SW!J15,IF(cal!$S$7=8,TS!J15,IF(cal!$S$7=9,ExtraTaal1!J15,IF(cal!$S$7=10,ExtraTaal2!J15,IF(cal!$S$7=11,ExtraTaal3!J15,))))))))))) -> 0 | L16: =IF($S$7=1,NL!K15,IF(cal!$S$7=2,EN!K15,IF(cal!$S$7=3,DE!K15,IF(cal!$S$7=4,FR!K15,IF(cal!$S$7=5,NR!K15,IF(cal!$S$7=6,SP!K15,IF(cal!$S$7=7,SW!K15,IF(cal!$S$7=8,TS!K15,IF(cal!$S$7=9,ExtraTaal1!K15,IF(cal!$S$7=10,ExtraTaal2!K15,IF(cal!$S$7=11,ExtraTaal3!K15,))))))))))) -> 0 | M16: =IF($S$7=1,NL!L15,IF(cal!$S$7=2,EN!L15,IF(cal!$S$7=3,DE!L15,IF(cal!$S$7=4,FR!L15,IF(cal!$S$7=5,NR!L15,IF(cal!$S$7=6,SP!L15,IF(cal!$S$7=7,SW!L15,IF(cal!$S$7=8,TS!L15,IF(cal!$S$7=9,ExtraTaal1!L15,IF(cal!$S$7=10,ExtraTaal2!L15,IF(cal!$S$7=11,ExtraTaal3!L15,))))))))))) -> 0 | N16: =IF($S$7=1,NL!M15,IF(cal!$S$7=2,EN!M15,IF(cal!$S$7=3,DE!M15,IF(cal!$S$7=4,FR!M15,IF(cal!$S$7=5,NR!M15,IF(cal!$S$7=6,SP!M15,IF(cal!$S$7=7,SW!M15,IF(cal!$S$7=8,TS!M15,IF(cal!$S$7=9,ExtraTaal1!M15,IF(cal!$S$7=10,ExtraTaal2!M15,IF(cal!$S$7=11,ExtraTaal3!M15,))))))))))) -> 0 | O16: =IF($S$7=1,NL!N15,IF(cal!$S$7=2,EN!N15,IF(cal!$S$7=3,DE!N15,IF(cal!$S$7=4,FR!N15,IF(cal!$S$7=5,NR!N15,IF(cal!$S$7=6,SP!N15,IF(cal!$S$7=7,SW!N15,IF(cal!$S$7=8,TS!N15,IF(cal!$S$7=9,ExtraTaal1!N15,IF(cal!$S$7=10,ExtraTaal2!N15,IF(cal!$S$7=11,ExtraTaal3!N15,))))))))))) -> 0 | P16: =IF($S$7=1,NL!O15,IF(cal!$S$7=2,EN!O15,IF(cal!$S$7=3,DE!O15,IF(cal!$S$7=4,FR!O15,IF(cal!$S$7=5,NR!O15,IF(cal!$S$7=6,SP!O15,IF(cal!$S$7=7,SW!O15,IF(cal!$S$7=8,TS!O15,IF(cal!$S$7=9,ExtraTaal1!O15,IF(cal!$S$7=10,ExtraTaal2!O15,IF(cal!$S$7=11,ExtraTaal3!O15,))))))))))) -> 0 | Q16: n-value | R16: n-value | X16: =IF(Freedom!$K$6=cal!Y2,1,IF(Freedom!$K$6=cal!Y3,2,IF(Freedom!$K$6=cal!Y5,3,IF(Freedom!$K$6=cal!Y6,4,IF(Freedom!$K$6=cal!Y7,5,IF(Freedom!$K$6=cal!Y8,6,IF(Freedom!$K$6=cal!Y4,7,))))))) -> 1 | AE16: ="Freedom" -> Freedom | AU16: voelbare koelcapaciteit | AV16: totale koelcapaciteit
B17: 0.2 | C17: 2 | D17: =(X17*($T$11^$Q17))*Watts*CF_Altit -> 312.708 | E17: =ROUND(((D17/Watts)/(($S$9-$S$10)*1.163))*$E$14,IF($X$4=1,0,IF($X$4=2,2))) -> 27 | F17: =($Y$18*(E17/$E$14)^$Y$20)*$F$14 -> 0.1045197678 | G17: =(Z17*($W$11^R17))*Watts*CF_Altit -> 33.99 | H17: =((G17/Watts)/(IF((237.3*LN((RH*EXP(17.27*(Tl_cool/(Tl_cool+237.3))))))/(17.27-LN((RH*EXP(17.27*(Tl_cool/(Tl_cool+237.3))))))<Tavg_cold,1,IF(1/(1+((2258*((0.622/(($Z$11/(1*611*EXP(17.27*(Tavg_cold/(Tavg_cold+237.3))))))-1)*1000-(0.622/(($Z$11/(RH*611*EXP(17.27*(Tl_cool/(Tl_cool+237.3))))))-1)*1000))/(1005*(Tavg_cold-Tl_cool))))*1.039+((-0.000729*$C17+0.001448)*(Tl_cool-Tavg_cold)+(0.016908*$C17-0.033574))*1.039>1,1,1/(1+((2258*((0.622/(($Z$11/(1*611*EXP(17.27*(Tavg_cold/(Tavg_cold+237.3))))))-1)*1000-(0.622/(($Z$11/(RH*611*EXP(17.27*(Tl_cool/(Tl_cool+237.3))))))-1)*1000))/(1005*(Tavg_cold-Tl_cool))))*1.039+((-0.000729*$C17+0.001448)*(Tl_cool-Tavg_cold)+(0.016908*$C17-0.033574))*1.039))))*Watts -> 33.99 | I17: =ROUND(((H17/Watts)/((Tr_cool-Tv_cool)*1.163))*$I$14,IF($X$4=1,0,IF($X$4=2,2))) -> 15 | J17: =($AA$18*(I17/$I$14)^$AA$20)*$J$14 -> 0.0357853315 | K17: =L17-8 -> 14 | L17: =AB17 -> 22 | M17: 0.5 | N17: =AD17*Cubics -> 24 | O17: =((($D17/Watts)/(((p_atm*0.028964)/(8.31447*(20+273.15)))*(($N17/3600)/Cubics)*(1005+1870*((0.622)/(((p_atm)/($E$12*Pvs_Heat_in))-1)))))+Tl_heat)*Celc1+Celc2 -> 58.24578139 | P17: =(Tl_cool-(($G17/Watts)/(1006*$N17*kgss)))*Celc1+Celc2 -> 22.79062172 | Q17: 1 | R17: 0.9 | W17: =(H17-G17)/H17 -> 0 | X17: =IF($X$16=1,AE17,IF($X$16=2,AM17,IF($X$16=3,BL17,IF($X$16=4,BE17,IF($X$16=5,CA17,IF($X$16=6,BT17,IF($X$16=7,AX17,))))))) -> 312.708 | Y17: =IF($X$16=1,AF17,IF($X$16=2,AN17,IF($X$16=3,BM17,IF($X$16=4,BF17,IF($X$16=5,CB17,IF($X$16=6,BU17,IF($X$16=7,AY17,))))))) -> a | Z17: =IF($X$16=1,AG17,IF($X$16=2,AO17,IF($X$16=3,BN17,IF($X$16=4,BG17,IF($X$16=5,CC17,IF($X$16=6,BV17,IF($X$16=7,AZ17,))))))) -> 33.99 | AA17: =IF($X$16=1,AH17,IF($X$16=2,AP17,IF($X$16=3,BO17,IF($X$16=4,BH17,IF($X$16=5,CD17,IF($X$16=6,BW17,IF($X$16=7,BA17,))))))) -> a | AB17: =IF($X$16=1,AI17,IF($X$16=2,AQ17,IF($X$16=3,BP17,IF($X$16=4,BI17,IF($X$16=5,CE17,IF($X$16=6,BX17,IF($X$16=7,BB17,))))))) -> 22 | AC17: =IF($X$16=1,AJ17,IF($X$16=2,AR17,IF($X$16=3,BQ17,IF($X$16=4,BJ17,IF($X$16=5,CF17,IF($X$16=6,BY17,IF($X$16=7,BC17,))))))) -> 0.5 | AD17: =IF($X$16=1,AK17,IF($X$16=2,AS17,IF($X$16=3,BR17,IF($X$16=4,BK17,IF($X$16=5,CG17,IF($X$16=6,BZ17,IF($X$16=7,BD17,))))))) -> 24 | AE17: 312.708 | AF17: a | AG17: 33.99 | AH17: a | AI17: 22 | AJ17: 0.5 | AK17: 24 | AU17: =(AG17*((((Tv_cool-Tr_cool)/LN((Tv_cool-Tl_cool)/(Tr_cool-Tl_cool)))/((16-18)/LN((16-27)/(18-27))))^S17))*$G$14 -> 0.01136776667 | AV17: =((AU17/$G$14)/(IF((237.3*LN((RH*EXP(17.27*(Tl_cool/(Tl_cool+237.3))))))/(17.27-LN((RH*EXP(17.27*(Tl_cool/(Tl_cool+237.3))))))<((Tv_cool+Tr_cool)/2),1,1/(1+((2258*((0.622/((p_atm/(1*611*EXP(17.27*(((Tv_cool+Tr_cool)/2)/(((Tv_cool+Tr_cool)/2)+237.3))))))-1)*1000-(0.622/((p_atm/(RH*611*EXP(17.27*(Tl_cool/(Tl_cool+237.3))))))-1)*1000))/(1005*(((Tv_cool+Tr_cool)/2)-Tl_cool))))+-((-0.000625*$C17+0.00625)*(Tl_cool-(Tv_cool+Tr_cool)/2)-(-0.000625*$C17+0.00625)*10))))*$H$14 -> 33.99
B18: 0.4 | C18: 4 | D18: =(X18*($T$11^$Q18))*Watts*CF_Altit -> 561.968 | E18: =ROUND(((D18/Watts)/(($S$9-$S$10)*1.163))*$E$14,IF($X$4=1,0,IF($X$4=2,2))) -> 48 | F18: =($Y$18*(E18/$E$14)^$Y$20)*$F$14 -> 0.2984378501 | G18: =(Z18*($W$11^R18))*Watts*CF_Altit -> 74.778 | H18: =((G18/Watts)/(IF((237.3*LN((RH*EXP(17.27*(Tl_cool/(Tl_cool+237.3))))))/(17.27-LN((RH*EXP(17.27*(Tl_cool/(Tl_cool+237.3))))))<Tavg_cold,1,IF(1/(1+((2258*((0.622/(($Z$11/(1*611*EXP(17.27*(Tavg_cold/(Tavg_cold+237.3))))))-1)*1000-(0.622/(($Z$11/(RH*611*EXP(17.27*(Tl_cool/(Tl_cool+237.3))))))-1)*1000))/(1005*(Tavg_cold-Tl_cool))))*1.039+((-0.000729*$C18+0.001448)*(Tl_cool-Tavg_cold)+(0.016908*$C18-0.033574))*1.039>1,1,1/(1+((2258*((0.622/(($Z$11/(1*611*EXP(17.27*(Tavg_cold/(Tavg_cold+237.3))))))-1)*1000-(0.622/(($Z$11/(RH*611*EXP(17.27*(Tl_cool/(Tl_cool+237.3))))))-1)*1000))/(1005*(Tavg_cold-Tl_cool))))*1.039+((-0.000729*$C18+0.001448)*(Tl_cool-Tavg_cold)+(0.016908*$C18-0.033574))*1.039))))*Watts -> 74.778 | I18: =ROUND(((H18/Watts)/((Tr_cool-Tv_cool)*1.163))*$I$14,IF($X$4=1,0,IF($X$4=2,2))) -> 32 | J18: =($AA$18*(I18/$I$14)^$AA$20)*$J$14 -> 0.1424783075 | K18: =L18-8 -> 15 | L18: 23 | M18: 0.8 | N18: =AD18*Cubics -> 37 | O18: =((($D18/Watts)/(((p_atm*0.028964)/(8.31447*(20+273.15)))*(($N18/3600)/Cubics)*(1005+1870*((0.622)/(((p_atm)/($E$12*Pvs_Heat_in))-1)))))+Tl_heat)*Celc1+Celc2 -> 64.58262649 | P18: =(Tl_cool-(($G18/Watts)/(1006*$N18*kgss)))*Celc1+Celc2 -> 20.99310342 | Q18: 1 | R18: 0.9 | W18: =(H18-G18)/H18 -> 0 | X18: =IF($X$16=1,AE18,IF($X$16=2,AM18,IF($X$16=3,BL18,IF($X$16=4,BE18,IF($X$16=5,CA18,IF($X$16=6,BT18,IF($X$16=7,AX18,))))))) -> 561.968 | Y18: =IF($X$16=1,AF18,IF($X$16=2,AN18,IF($X$16=3,BM18,IF($X$16=4,BF18,IF($X$16=5,CB18,IF($X$16=6,BU18,IF($X$16=7,AY18,))))))) -> 0.0002564981899 | Z18: =IF($X$16=1,AG18,IF($X$16=2,AO18,IF($X$16=3,BN18,IF($X$16=4,BG18,IF($X$16=5,CC18,IF($X$16=6,BV18,IF($X$16=7,AZ18,))))))) -> 74.778 | AA18: =IF($X$16=1,AH18,IF($X$16=2,AP18,IF($X$16=3,BO18,IF($X$16=4,BH18,IF($X$16=5,CD18,IF($X$16=6,BW18,IF($X$16=7,BA18,))))))) -> 0.0002564981899 | AB18: =IF($X$16=1,AI18,IF($X$16=2,AQ18,IF($X$16=3,BP18,IF($X$16=4,BI18,IF($X$16=5,CE18,IF($X$16=6,BX18,IF($X$16=7,BB18,))))))) -> 23 | AC18: =IF($X$16=1,AJ18,IF($X$16=2,AR18,IF($X$16=3,BQ18,IF($X$16=4,BJ18,IF($X$16=5,CF18,IF($X$16=6,BY18,IF($X$16=7,BC18,))))))) -> 0.8 | AD18: =IF($X$16=1,AK18,IF($X$16=2,AS18,IF($X$16=3,BR18,IF($X$16=4,BK18,IF($X$16=5,CG18,IF($X$16=6,BZ18,IF($X$16=7,BD18,))))))) -> 37 | AE18: 561.968 | AF18: 0.0002564981899 | AG18: 74.778 | AH18: =AF18 -> 0.0002564981899 | AI18: 23 | AJ18: 0.8 | AK18: 37 | AU18: =(AG18*((((Tv_cool-Tr_cool)/LN((Tv_cool-Tl_cool)/(Tr_cool-Tl_cool)))/((16-18)/LN((16-27)/(18-27))))^S18))*$G$14 -> 0.02500908667 | AV18: =((AU18/$G$14)/(IF((237.3*LN((RH*EXP(17.27*(Tl_cool/(Tl_cool+237.3))))))/(17.27-LN((RH*EXP(17.27*(Tl_cool/(Tl_cool+237.3))))))<((Tv_cool+Tr_cool)/2),1,1/(1+((2258*((0.622/((p_atm/(1*611*EXP(17.27*(((Tv_cool+Tr_cool)/2)/(((Tv_cool+Tr_cool)/2)+237.3))))))-1)*1000-(0.622/((p_atm/(RH*611*EXP(17.27*(Tl_cool/(Tl_cool+237.3))))))-1)*1000))/(1005*(((Tv_cool+Tr_cool)/2)-Tl_cool))))+-((-0.000625*$C18+0.00625)*(Tl_cool-(Tv_cool+Tr_cool)/2)-(-0.000625*$C18+0.00625)*10))))*$H$14 -> 74.778
B19: 0.6 | C19: 6 | D19: =(X19*($T$11^$Q19))*Watts*CF_Altit -> 791.967 | E19: =ROUND(((D19/Watts)/(($S$9-$S$10)*1.163))*$E$14,IF($X$4=1,0,IF($X$4=2,2))) -> 68 | F19: =($Y$18*(E19/$E$14)^$Y$20)*$F$14 -> 0.5632391912 | G19: =(Z19*($W$11^R19))*Watts*CF_Altit -> 117.832 | H19: =((G19/Watts)/(IF((237.3*LN((RH*EXP(17.27*(Tl_cool/(Tl_cool+237.3))))))/(17.27-LN((RH*EXP(17.27*(Tl_cool/(Tl_cool+237.3))))))<Tavg_cold,1,IF(1/(1+((2258*((0.622/(($Z$11/(1*611*EXP(17.27*(Tavg_cold/(Tavg_cold+237.3))))))-1)*1000-(0.622/(($Z$11/(RH*611*EXP(17.27*(Tl_cool/(Tl_cool+237.3))))))-1)*1000))/(1005*(Tavg_cold-Tl_cool))))*1.039+((-0.000729*$C19+0.001448)*(Tl_cool-Tavg_cold)+(0.016908*$C19-0.033574))*1.039>1,1,1/(1+((2258*((0.622/(($Z$11/(1*611*EXP(17.27*(Tavg_cold/(Tavg_cold+237.3))))))-1)*1000-(0.622/(($Z$11/(RH*611*EXP(17.27*(Tl_cool/(Tl_cool+237.3))))))-1)*1000))/(1005*(Tavg_cold-Tl_cool))))*1.039+((-0.000729*$C19+0.001448)*(Tl_cool-Tavg_cold)+(0.016908*$C19-0.033574))*1.039))))*Watts -> 117.832 | I19: =ROUND(((H19/Watts)/((Tr_cool-Tv_cool)*1.163))*$I$14,IF($X$4=1,0,IF($X$4=2,2))) -> 51 | J19: =($AA$18*(I19/$I$14)^$AA$20)*$J$14 -> 0.3333228856 | K19: =L19-8 -> 23 | L19: 31 | M19: 1.3 | N19: =AD19*Cubics -> 52 | O19: =((($D19/Watts)/(((p_atm*0.028964)/(8.31447*(20+273.15)))*(($N19/3600)/Cubics)*(1005+1870*((0.622)/(((p_atm)/($E$12*Pvs_Heat_in))-1)))))+Tl_heat)*Celc1+Celc2 -> 64.70535317 | P19: =(Tl_cool-(($G19/Watts)/(1006*$N19*kgss)))*Celc1+Celc2 -> 20.26499475 | Q19: 1 | R19: 0.9 | W19: =(H19-G19)/H19 -> 0 | X19: =IF($X$16=1,AE19,IF($X$16=2,AM19,IF($X$16=3,BL19,IF($X$16=4,BE19,IF($X$16=5,CA19,IF($X$16=6,BT19,IF($X$16=7,AX19,))))))) -> 791.967 | Y19: =IF($X$16=1,AF19,IF($X$16=2,AN19,IF($X$16=3,BM19,IF($X$16=4,BF19,IF($X$16=5,CB19,IF($X$16=6,BU19,IF($X$16=7,AY19,))))))) -> b | Z19: =IF($X$16=1,AG19,IF($X$16=2,AO19,IF($X$16=3,BN19,IF($X$16=4,BG19,IF($X$16=5,CC19,IF($X$16=6,BV19,IF($X$16=7,AZ19,))))))) -> 117.832 | AA19: =IF($X$16=1,AH19,IF($X$16=2,AP19,IF($X$16=3,BO19,IF($X$16=4,BH19,IF($X$16=5,CD19,IF($X$16=6,BW19,IF($X$16=7,BA19,))))))) -> b | AB19: =IF($X$16=1,AI19,IF($X$16=2,AQ19,IF($X$16=3,BP19,IF($X$16=4,BI19,IF($X$16=5,CE19,IF($X$16=6,BX19,IF($X$16=7,BB19,))))))) -> 31 | AC19: =IF($X$16=1,AJ19,IF($X$16=2,AR19,IF($X$16=3,BQ19,IF($X$16=4,BJ19,IF($X$16=5,CF19,IF($X$16=6,BY19,IF($X$16=7,BC19,))))))) -> 1.3 | AD19: =IF($X$16=1,AK19,IF($X$16=2,AS19,IF($X$16=3,BR19,IF($X$16=4,BK19,IF($X$16=5,CG19,IF($X$16=6,BZ19,IF($X$16=7,BD19,))))))) -> 52 | AE19: 791.967 | AF19: b | AG19: 117.832 | AH19: b | AI19: 31 | AJ19: 1.3 | AK19: 52 | AU19: =(AG19*((((Tv_cool-Tr_cool)/LN((Tv_cool-Tl_cool)/(Tr_cool-Tl_cool)))/((16-18)/LN((16-27)/(18-27))))^S19))*$G$14 -> 0.03940825778 | AV19: =((AU19/$G$14)/(IF((237.3*LN((RH*EXP(17.27*(Tl_cool/(Tl_cool+237.3))))))/(17.27-LN((RH*EXP(17.27*(Tl_cool/(Tl_cool+237.3))))))<((Tv_cool+Tr_cool)/2),1,1/(1+((2258*((0.622/((p_atm/(1*611*EXP(17.27*(((Tv_cool+Tr_cool)/2)/(((Tv_cool+Tr_cool)/2)+237.3))))))-1)*1000-(0.622/((p_atm/(RH*611*EXP(17.27*(Tl_cool/(Tl_cool+237.3))))))-1)*1000))/(1005*(((Tv_cool+Tr_cool)/2)-Tl_cool))))+-((-0.000625*$C19+0.00625)*(Tl_cool-(Tv_cool+Tr_cool)/2)-(-0.000625*$C19+0.00625)*10))))*$H$14 -> 117.832
B20: 0.8 | C20: 8 | D20: =(X20*($T$11^$Q20))*Watts*CF_Altit -> 1009.503 | E20: =ROUND(((D20/Watts)/(($S$9-$S$10)*1.163))*$E$14,IF($X$4=1,0,IF($X$4=2,2))) -> 87 | F20: =($Y$18*(E20/$E$14)^$Y$20)*$F$14 -> 0.8827300045 | G20: =(Z20*($W$11^R20))*Watts*CF_Altit -> 163.152 | H20: =((G20/Watts)/(IF((237.3*LN((RH*EXP(17.27*(Tl_cool/(Tl_cool+237.3))))))/(17.27-LN((RH*EXP(17.27*(Tl_cool/(Tl_cool+237.3))))))<Tavg_cold,1,IF(1/(1+((2258*((0.622/(($Z$11/(1*611*EXP(17.27*(Tavg_cold/(Tavg_cold+237.3))))))-1)*1000-(0.622/(($Z$11/(RH*611*EXP(17.27*(Tl_cool/(Tl_cool+237.3))))))-1)*1000))/(1005*(Tavg_cold-Tl_cool))))*1.039+((-0.000729*$C20+0.001448)*(Tl_cool-Tavg_cold)+(0.016908*$C20-0.033574))*1.039>1,1,1/(1+((2258*((0.622/(($Z$11/(1*611*EXP(17.27*(Tavg_cold/(Tavg_cold+237.3))))))-1)*1000-(0.622/(($Z$11/(RH*611*EXP(17.27*(Tl_cool/(Tl_cool+237.3))))))-1)*1000))/(1005*(Tavg_cold-Tl_cool))))*1.039+((-0.000729*$C20+0.001448)*(Tl_cool-Tavg_cold)+(0.016908*$C20-0.033574))*1.039))))*Watts -> 163.152 | I20: =ROUND(((H20/Watts)/((Tr_cool-Tv_cool)*1.163))*$I$14,IF($X$4=1,0,IF($X$4=2,2))) -> 70 | J20: =($AA$18*(I20/$I$14)^$AA$20)*$J$14 -> 0.5938125008 | K20: =L20-8 -> 28 | L20: 36 | M20: 2.1 | N20: =AD20*Cubics -> 68 | O20: =((($D20/Watts)/(((p_atm*0.028964)/(8.31447*(20+273.15)))*(($N20/3600)/Cubics)*(1005+1870*((0.622)/(((p_atm)/($E$12*Pvs_Heat_in))-1)))))+Tl_heat)*Celc1+Celc2 -> 63.57671512 | P20: =(Tl_cool-(($G20/Watts)/(1006*$N20*kgss)))*Celc1+Celc2 -> 19.86881797 | Q20: 1 | R20: 0.9 | W20: =(H20-G20)/H20 -> 0 | X20: =IF($X$16=1,AE20,IF($X$16=2,AM20,IF($X$16=3,BL20,IF($X$16=4,BE20,IF($X$16=5,CA20,IF($X$16=6,BT20,IF($X$16=7,AX20,))))))) -> 1009.503 | Y20: =IF($X$16=1,AF20,IF($X$16=2,AN20,IF($X$16=3,BM20,IF($X$16=4,BF20,IF($X$16=5,CB20,IF($X$16=6,BU20,IF($X$16=7,AY20,))))))) -> 1.823515585 | Z20: =IF($X$16=1,AG20,IF($X$16=2,AO20,IF($X$16=3,BN20,IF($X$16=4,BG20,IF($X$16=5,CC20,IF($X$16=6,BV20,IF($X$16=7,AZ20,))))))) -> 163.152 | AA20: =IF($X$16=1,AH20,IF($X$16=2,AP20,IF($X$16=3,BO20,IF($X$16=4,BH20,IF($X$16=5,CD20,IF($X$16=6,BW20,IF($X$16=7,BA20,))))))) -> 1.823515585 | AB20: =IF($X$16=1,AI20,IF($X$16=2,AQ20,IF($X$16=3,BP20,IF($X$16=4,BI20,IF($X$16=5,CE20,IF($X$16=6,BX20,IF($X$16=7,BB20,))))))) -> 36 | AC20: =IF($X$16=1,AJ20,IF($X$16=2,AR20,IF($X$16=3,BQ20,IF($X$16=4,BJ20,IF($X$16=5,CF20,IF($X$16=6,BY20,IF($X$16=7,BC20,))))))) -> 2.1 | AD20: =IF($X$16=1,AK20,IF($X$16=2,AS20,IF($X$16=3,BR20,IF($X$16=4,BK20,IF($X$16=5,CG20,IF($X$16=6,BZ20,IF($X$16=7,BD20,))))))) -> 68 | AE20: 1009.503 | AF20: 1.823515585 | AG20: 163.152 | AH20: =AF20 -> 1.823515585 | AI20: 36 | AJ20: 2.1 | AK20: 68 | AU20: =(AG20*((((Tv_cool-Tr_cool)/LN((Tv_cool-Tl_cool)/(Tr_cool-Tl_cool)))/((16-18)/LN((16-27)/(18-27))))^S20))*$G$14 -> 0.05456528 | AV20: =((AU20/$G$14)/(IF((237.3*LN((RH*EXP(17.27*(Tl_cool/(Tl_cool+237.3))))))/(17.27-LN((RH*EXP(17.27*(Tl_cool/(Tl_cool+237.3))))))<((Tv_cool+Tr_cool)/2),1,1/(1+((2258*((0.622/((p_atm/(1*611*EXP(17.27*(((Tv_cool+Tr_cool)/2)/(((Tv_cool+Tr_cool)/2)+237.3))))))-1)*1000-(0.622/((p_atm/(RH*611*EXP(17.27*(Tl_cool/(Tl_cool+237.3))))))-1)*1000))/(1005*(((Tv_cool+Tr_cool)/2)-Tl_cool))))+-((-0.000625*$C20+0.00625)*(Tl_cool-(Tv_cool+Tr_cool)/2)-(-0.000625*$C20+0.00625)*10))))*$H$14 -> 163.152
B21: 1 | C21: 10 | D21: =(X21*($T$11^$Q21))*Watts*CF_Altit -> 1217.975 | E21: =ROUND(((D21/Watts)/(($S$9-$S$10)*1.163))*$E$14,IF($X$4=1,0,IF($X$4=2,2))) -> 105 | F21: =($Y$18*(E21/$E$14)^$Y$20)*$F$14 -> 1.243811281 | G21: =(Z21*($W$11^R21))*Watts*CF_Altit -> 209.605 | H21: =((G21/Watts)/(IF((237.3*LN((RH*EXP(17.27*(Tl_cool/(Tl_cool+237.3))))))/(17.27-LN((RH*EXP(17.27*(Tl_cool/(Tl_cool+237.3))))))<Tavg_cold,1,IF(1/(1+((2258*((0.622/(($Z$11/(1*611*EXP(17.27*(Tavg_cold/(Tavg_cold+237.3))))))-1)*1000-(0.622/(($Z$11/(RH*611*EXP(17.27*(Tl_cool/(Tl_cool+237.3))))))-1)*1000))/(1005*(Tavg_cold-Tl_cool))))*1.039+((-0.000729*$C21+0.001448)*(Tl_cool-Tavg_cold)+(0.016908*$C21-0.033574))*1.039>1,1,1/(1+((2258*((0.622/(($Z$11/(1*611*EXP(17.27*(Tavg_cold/(Tavg_cold+237.3))))))-1)*1000-(0.622/(($Z$11/(RH*611*EXP(17.27*(Tl_cool/(Tl_cool+237.3))))))-1)*1000))/(1005*(Tavg_cold-Tl_cool))))*1.039+((-0.000729*$C21+0.001448)*(Tl_cool-Tavg_cold)+(0.016908*$C21-0.033574))*1.039))))*Watts -> 209.605 | I21: =ROUND(((H21/Watts)/((Tr_cool-Tv_cool)*1.163))*$I$14,IF($X$4=1,0,IF($X$4=2,2))) -> 90 | J21: =($AA$18*(I21/$I$14)^$AA$20)*$J$14 -> 0.9390224535 | K21: =L21-8 -> 34 | L21: 42 | M21: 3 | N21: =AD21*Cubics -> 79 | O21: =((($D21/Watts)/(((p_atm*0.028964)/(8.31447*(20+273.15)))*(($N21/3600)/Cubics)*(1005+1870*((0.622)/(((p_atm)/($E$12*Pvs_Heat_in))-1)))))+Tl_heat)*Celc1+Celc2 -> 65.25505228 | P21: =(Tl_cool-(($G21/Watts)/(1006*$N21*kgss)))*Celc1+Celc2 -> 19.11407613 | Q21: 1 | R21: 0.9 | W21: =(H21-G21)/H21 -> 0 | X21: =IF($X$16=1,AE21,IF($X$16=2,AM21,IF($X$16=3,BL21,IF($X$16=4,BE21,IF($X$16=5,CA21,IF($X$16=6,BT21,IF($X$16=7,AX21,))))))) -> 1217.975 | Y21: =IF($X$16=1,AF21,IF($X$16=2,AN21,IF($X$16=3,BM21,IF($X$16=4,BF21,IF($X$16=5,CB21,IF($X$16=6,BU21,IF($X$16=7,AY21,))))))) -> 0 | Z21: =IF($X$16=1,AG21,IF($X$16=2,AO21,IF($X$16=3,BN21,IF($X$16=4,BG21,IF($X$16=5,CC21,IF($X$16=6,BV21,IF($X$16=7,AZ21,))))))) -> 209.605 | AA21: =IF($X$16=1,AH21,IF($X$16=2,AP21,IF($X$16=3,BO21,IF($X$16=4,BH21,IF($X$16=5,CD21,IF($X$16=6,BW21,IF($X$16=7,BA21,))))))) -> 0 | AB21: =IF($X$16=1,AI21,IF($X$16=2,AQ21,IF($X$16=3,BP21,IF($X$16=4,BI21,IF($X$16=5,CE21,IF($X$16=6,BX21,IF($X$16=7,BB21,))))))) -> 42 | AC21: =IF($X$16=1,AJ21,IF($X$16=2,AR21,IF($X$16=3,BQ21,IF($X$16=4,BJ21,IF($X$16=5,CF21,IF($X$16=6,BY21,IF($X$16=7,BC21,))))))) -> 3 | AD21: =IF($X$16=1,AK21,IF($X$16=2,AS21,IF($X$16=3,BR21,IF($X$16=4,BK21,IF($X$16=5,CG21,IF($X$16=6,BZ21,IF($X$16=7,BD21,))))))) -> 79 | AE21: 1217.975 | AG21: 209.605 | AI21: 42 | AJ21: 3 | AK21: 79 | AU21: =(AG21*((((Tv_cool-Tr_cool)/LN((Tv_cool-Tl_cool)/(Tr_cool-Tl_cool)))/((16-18)/LN((16-27)/(18-27))))^S21))*$G$14 -> 0.07010122778 | AV21: =((AU21/$G$14)/(IF((237.3*LN((RH*EXP(17.27*(Tl_cool/(Tl_cool+237.3))))))/(17.27-LN((RH*EXP(17.27*(Tl_cool/(Tl_cool+237.3))))))<((Tv_cool+Tr_cool)/2),1,1/(1+((2258*((0.622/((p_atm/(1*611*EXP(17.27*(((Tv_cool+Tr_cool)/2)/(((Tv_cool+Tr_cool)/2)+237.3))))))-1)*1000-(0.622/((p_atm/(RH*611*EXP(17.27*(Tl_cool/(Tl_cool+237.3))))))-1)*1000))/(1005*(((Tv_cool+Tr_cool)/2)-Tl_cool))))+-((-0.000625*$C21+0.00625)*(Tl_cool-(Tv_cool+Tr_cool)/2)-(-0.000625*$C21+0.00625)*10))))*$H$14 -> 209.605
B22: =IF($S$7=1,NL!A21,IF(cal!$S$7=2,EN!A21,IF(cal!$S$7=3,DE!A21,IF(cal!$S$7=4,FR!A21,IF(cal!$S$7=5,NR!A21,IF(cal!$S$7=6,SP!A21,IF(cal!$S$7=7,SW!A21,IF(cal!$S$7=8,TS!A21,IF(cal!$S$7=9,ExtraTaal1!A21,IF(cal!$S$7=10,ExtraTaal2!A21,IF(cal!$S$7=11,ExtraTaal3!A21,))))))))))) -> Freedom height 20 cm width 19 cm length 110 cm (Type 2) | C22: =IF($S$7=1,NL!B21,IF(cal!$S$7=2,EN!B21,IF(cal!$S$7=3,DE!B21,IF(cal!$S$7=4,FR!B21,IF(cal!$S$7=5,NR!B21,IF(cal!$S$7=6,SP!B21,IF(cal!$S$7=7,SW!B21,IF(cal!$S$7=8,TS!B21,IF(cal!$S$7=9,ExtraTaal1!B21,IF(cal!$S$7=10,ExtraTaal2!B21,IF(cal!$S$7=11,ExtraTaal3!B21,))))))))))) -> 0 | D22: =IF($S$7=1,NL!C21,IF(cal!$S$7=2,EN!C21,IF(cal!$S$7=3,DE!C21,IF(cal!$S$7=4,FR!C21,IF(cal!$S$7=5,NR!C21,IF(cal!$S$7=6,SP!C21,IF(cal!$S$7=7,SW!C21,IF(cal!$S$7=8,TS!C21,IF(cal!$S$7=9,ExtraTaal1!C21,IF(cal!$S$7=10,ExtraTaal2!C21,IF(cal!$S$7=11,ExtraTaal3!C21,))))))))))) -> 0 | E22: =IF($S$7=1,NL!D21,IF(cal!$S$7=2,EN!D21,IF(cal!$S$7=3,DE!D21,IF(cal!$S$7=4,FR!D21,IF(cal!$S$7=5,NR!D21,IF(cal!$S$7=6,SP!D21,IF(cal!$S$7=7,SW!D21,IF(cal!$S$7=8,TS!D21,IF(cal!$S$7=9,ExtraTaal1!D21,IF(cal!$S$7=10,ExtraTaal2!D21,IF(cal!$S$7=11,ExtraTaal3!D21,))))))))))) -> 0 | F22: =IF($S$7=1,NL!E21,IF(cal!$S$7=2,EN!E21,IF(cal!$S$7=3,DE!E21,IF(cal!$S$7=4,FR!E21,IF(cal!$S$7=5,NR!E21,IF(cal!$S$7=6,SP!E21,IF(cal!$S$7=7,SW!E21,IF(cal!$S$7=8,TS!E21,IF(cal!$S$7=9,ExtraTaal1!E21,IF(cal!$S$7=10,ExtraTaal2!E21,IF(cal!$S$7=11,ExtraTaal3!E21,))))))))))) -> 0 | G22: =IF($S$7=1,NL!F21,IF(cal!$S$7=2,EN!F21,IF(cal!$S$7=3,DE!F21,IF(cal!$S$7=4,FR!F21,IF(cal!$S$7=5,NR!F21,IF(cal!$S$7=6,SP!F21,IF(cal!$S$7=7,SW!F21,IF(cal!$S$7=8,TS!F21,IF(cal!$S$7=9,ExtraTaal1!F21,IF(cal!$S$7=10,ExtraTaal2!F21,IF(cal!$S$7=11,ExtraTaal3!F21,))))))))))) -> 0 | H22: =IF($S$7=1,NL!G21,IF(cal!$S$7=2,EN!G21,IF(cal!$S$7=3,DE!G21,IF(cal!$S$7=4,FR!G21,IF(cal!$S$7=5,NR!G21,IF(cal!$S$7=6,SP!G21,IF(cal!$S$7=7,SW!G21,IF(cal!$S$7=8,TS!G21,IF(cal!$S$7=9,ExtraTaal1!G21,IF(cal!$S$7=10,ExtraTaal2!G21,IF(cal!$S$7=11,ExtraTaal3!G21,))))))))))) -> 0 | I22: =IF($S$7=1,NL!H21,IF(cal!$S$7=2,EN!H21,IF(cal!$S$7=3,DE!H21,IF(cal!$S$7=4,FR!H21,IF(cal!$S$7=5,NR!H21,IF(cal!$S$7=6,SP!H21,IF(cal!$S$7=7,SW!H21,IF(cal!$S$7=8,TS!H21,IF(cal!$S$7=9,ExtraTaal1!H21,IF(cal!$S$7=10,ExtraTaal2!H21,IF(cal!$S$7=11,ExtraTaal3!H21,))))))))))) -> 0 | J22: =IF($S$7=1,NL!I21,IF(cal!$S$7=2,EN!I21,IF(cal!$S$7=3,DE!I21,IF(cal!$S$7=4,FR!I21,IF(cal!$S$7=5,NR!I21,IF(cal!$S$7=6,SP!I21,IF(cal!$S$7=7,SW!I21,IF(cal!$S$7=8,TS!I21,IF(cal!$S$7=9,ExtraTaal1!I21,IF(cal!$S$7=10,ExtraTaal2!I21,IF(cal!$S$7=11,ExtraTaal3!I21,))))))))))) -> 0 | K22: =IF($S$7=1,NL!J21,IF(cal!$S$7=2,EN!J21,IF(cal!$S$7=3,DE!J21,IF(cal!$S$7=4,FR!J21,IF(cal!$S$7=5,NR!J21,IF(cal!$S$7=6,SP!J21,IF(cal!$S$7=7,SW!J21,IF(cal!$S$7=8,TS!J21,IF(cal!$S$7=9,ExtraTaal1!J21,IF(cal!$S$7=10,ExtraTaal2!J21,IF(cal!$S$7=11,ExtraTaal3!J21,))))))))))) -> 0 | L22: =IF($S$7=1,NL!K21,IF(cal!$S$7=2,EN!K21,IF(cal!$S$7=3,DE!K21,IF(cal!$S$7=4,FR!K21,IF(cal!$S$7=5,NR!K21,IF(cal!$S$7=6,SP!K21,IF(cal!$S$7=7,SW!K21,IF(cal!$S$7=8,TS!K21,IF(cal!$S$7=9,ExtraTaal1!K21,IF(cal!$S$7=10,ExtraTaal2!K21,IF(cal!$S$7=11,ExtraTaal3!K21,))))))))))) -> 0 | M22: =IF($S$7=1,NL!L21,IF(cal!$S$7=2,EN!L21,IF(cal!$S$7=3,DE!L21,IF(cal!$S$7=4,FR!L21,IF(cal!$S$7=5,NR!L21,IF(cal!$S$7=6,SP!L21,IF(cal!$S$7=7,SW!L21,IF(cal!$S$7=8,TS!L21,IF(cal!$S$7=9,ExtraTaal1!L21,IF(cal!$S$7=10,ExtraTaal2!L21,IF(cal!$S$7=11,ExtraTaal3!L21,))))))))))) -> 0 | N22: =IF($S$7=1,NL!M21,IF(cal!$S$7=2,EN!M21,IF(cal!$S$7=3,DE!M21,IF(cal!$S$7=4,FR!M21,IF(cal!$S$7=5,NR!M21,IF(cal!$S$7=6,SP!M21,IF(cal!$S$7=7,SW!M21,IF(cal!$S$7=8,TS!M21,IF(cal!$S$7=9,ExtraTaal1!M21,IF(cal!$S$7=10,ExtraTaal2!M21,IF(cal!$S$7=11,ExtraTaal3!M21,))))))))))) -> 0 | O22: =IF($S$7=1,NL!N21,IF(cal!$S$7=2,EN!N21,IF(cal!$S$7=3,DE!N21,IF(cal!$S$7=4,FR!N21,IF(cal!$S$7=5,NR!N21,IF(cal!$S$7=6,SP!N21,IF(cal!$S$7=7,SW!N21,IF(cal!$S$7=8,TS!N21,IF(cal!$S$7=9,ExtraTaal1!N21,IF(cal!$S$7=10,ExtraTaal2!N21,IF(cal!$S$7=11,ExtraTaal3!N21,))))))))))) -> 0 | P22: =IF($S$7=1,NL!O21,IF(cal!$S$7=2,EN!O21,IF(cal!$S$7=3,DE!O21,IF(cal!$S$7=4,FR!O21,IF(cal!$S$7=5,NR!O21,IF(cal!$S$7=6,SP!O21,IF(cal!$S$7=7,SW!O21,IF(cal!$S$7=8,TS!O21,IF(cal!$S$7=9,ExtraTaal1!O21,IF(cal!$S$7=10,ExtraTaal2!O21,IF(cal!$S$7=11,ExtraTaal3!O21,))))))))))) -> 0 | Q22: n-value | R22: =IF($X$16=1,S22,IF($X$16=2,S22,IF($X$16=3,U22,IF($X$16=4,U22,IF($X$16=5,V22,IF($X$16=6,V22,IF($X$16=7,T22,))))))) -> 0 | X22: =IF($X$16=1,AE22,IF($X$16=2,AM22,IF($X$16=3,BL22,IF($X$16=4,BE22,IF($X$16=5,CA22,IF($X$16=6,BT22,IF($X$16=7,AX22,))))))) -> H | Y22: =IF($X$16=1,AF22,IF($X$16=2,AN22,IF($X$16=3,BM22,IF($X$16=4,BF22,IF($X$16=5,CB22,IF($X$16=6,BU22,IF($X$16=7,AY22,))))))) -> 20 | Z22: =IF($X$16=1,AG22,IF($X$16=2,AO22,IF($X$16=3,BN22,IF($X$16=4,BG22,IF($X$16=5,CC22,IF($X$16=6,BV22,IF($X$16=7,AZ22,))))))) -> B | AA22: =IF($X$16=1,AH22,IF($X$16=2,AP22,IF($X$16=3,BO22,IF($X$16=4,BH22,IF($X$16=5,CD22,IF($X$16=6,BW22,IF($X$16=7,BA22,))))))) -> 19 | AB22: =IF($X$16=1,AI22,IF($X$16=2,AQ22,IF($X$16=3,BP22,IF($X$16=4,BI22,IF($X$16=5,CE22,IF($X$16=6,BX22,IF($X$16=7,BB22,))))))) -> L | AC22: =IF($X$16=1,AJ22,IF($X$16=2,AR22,IF($X$16=3,BQ22,IF($X$16=4,BJ22,IF($X$16=5,CF22,IF($X$16=6,BY22,IF($X$16=7,BC22,))))))) -> 74 | AD22: =IF($X$16=1,AK22,IF($X$16=2,AS22,IF($X$16=3,BR22,IF($X$16=4,BK22,IF($X$16=5,CG22,IF($X$16=6,BZ22,IF($X$16=7,BD22,))))))) -> 0 | AE22: H | AF22: 20 | AG22: B | AH22: 19 | AI22: L | AJ22: 74
B23: 0.2 | C23: 2 | D23: =(X23*($T$11^$Q23))*Watts*CF_Altit -> 625.331 | E23: =ROUND(((D23/Watts)/(($S$9-$S$10)*1.163))*$E$14,IF($X$4=1,0,IF($X$4=2,2))) -> 54 | F23: =($Y$24*(E23/$E$14)^$Y$26)*$F$14 -> 0.5798221161 | G23: =(Z23*($W$11^R23))*Watts*CF_Altit -> 68.138 | H23: =((G23/Watts)/(IF((237.3*LN((RH*EXP(17.27*(Tl_cool/(Tl_cool+237.3))))))/(17.27-LN((RH*EXP(17.27*(Tl_cool/(Tl_cool+237.3))))))<Tavg_cold,1,IF(1/(1+((2258*((0.622/(($Z$11/(1*611*EXP(17.27*(Tavg_cold/(Tavg_cold+237.3))))))-1)*1000-(0.622/(($Z$11/(RH*611*EXP(17.27*(Tl_cool/(Tl_cool+237.3))))))-1)*1000))/(1005*(Tavg_cold-Tl_cool))))*1.039+((-0.000729*$C23+0.001448)*(Tl_cool-Tavg_cold)+(0.016908*$C23-0.033574))*1.039>1,1,1/(1+((2258*((0.622/(($Z$11/(1*611*EXP(17.27*(Tavg_cold/(Tavg_cold+237.3))))))-1)*1000-(0.622/(($Z$11/(RH*611*EXP(17.27*(Tl_cool/(Tl_cool+237.3))))))-1)*1000))/(1005*(Tavg_cold-Tl_cool))))*1.039+((-0.000729*$C23+0.001448)*(Tl_cool-Tavg_cold)+(0.016908*$C23-0.033574))*1.039))))*Watts -> 68.138 | I23: =ROUND(((H23/Watts)/((Tr_cool-Tv_cool)*1.163))*$I$14,IF($X$4=1,0,IF($X$4=2,2))) -> 29 | J23: =($AA$24*(I23/$I$14)^$AA$26)*$J$14 -> 0.1866178995 | K23: =L23-8 -> 15 | L23: =AB23 -> 23 | M23: 0.6 | N23: =AD23*Cubics -> 42 | O23: =((($D23/Watts)/(((p_atm*0.028964)/(8.31447*(20+273.15)))*(($N23/3600)/Cubics)*(1005+1870*((0.622)/(((p_atm)/($E$12*Pvs_Heat_in))-1)))))+Tl_heat)*Celc1+Celc2 -> 63.70352392 | P23: =(Tl_cool-(($G23/Watts)/(1006*$N23*kgss)))*Celc1+Celc2 -> 22.17810083 | Q23: 1 | R23: 0.9 | W23: =(H23-G23)/H23 -> 0 | X23: =IF($X$16=1,AE23,IF($X$16=2,AM23,IF($X$16=3,BL23,IF($X$16=4,BE23,IF($X$16=5,CA23,IF($X$16=6,BT23,IF($X$16=7,AX23,))))))) -> 625.331 | Y23: =IF($X$16=1,AF23,IF($X$16=2,AN23,IF($X$16=3,BM23,IF($X$16=4,BF23,IF($X$16=5,CB23,IF($X$16=6,BU23,IF($X$16=7,AY23,))))))) -> a | Z23: =IF($X$16=1,AG23,IF($X$16=2,AO23,IF($X$16=3,BN23,IF($X$16=4,BG23,IF($X$16=5,CC23,IF($X$16=6,BV23,IF($X$16=7,AZ23,))))))) -> 68.138 | AA23: =IF($X$16=1,AH23,IF($X$16=2,AP23,IF($X$16=3,BO23,IF($X$16=4,BH23,IF($X$16=5,CD23,IF($X$16=6,BW23,IF($X$16=7,BA23,))))))) -> a | AB23: =IF($X$16=1,AI23,IF($X$16=2,AQ23,IF($X$16=3,BP23,IF($X$16=4,BI23,IF($X$16=5,CE23,IF($X$16=6,BX23,IF($X$16=7,BB23,))))))) -> 23 | AC23: =IF($X$16=1,AJ23,IF($X$16=2,AR23,IF($X$16=3,BQ23,IF($X$16=4,BJ23,IF($X$16=5,CF23,IF($X$16=6,BY23,IF($X$16=7,BC23,))))))) -> 0.6 | AD23: =IF($X$16=1,AK23,IF($X$16=2,AS23,IF($X$16=3,BR23,IF($X$16=4,BK23,IF($X$16=5,CG23,IF($X$16=6,BZ23,IF($X$16=7,BD23,))))))) -> 42 | AE23: 625.331 | AF23: a | AG23: 68.138 | AH23: a | AI23: 23 | AJ23: 0.6 | AK23: 42 | AU23: =(AG23*((((Tv_cool-Tr_cool)/LN((Tv_cool-Tl_cool)/(Tr_cool-Tl_cool)))/((16-18)/LN((16-27)/(18-27))))^S23))*$G$14 -> 0.02278837556 | AV23: =((AU23/$G$14)/(IF((237.3*LN((RH*EXP(17.27*(Tl_cool/(Tl_cool+237.3))))))/(17.27-LN((RH*EXP(17.27*(Tl_cool/(Tl_cool+237.3))))))<((Tv_cool+Tr_cool)/2),1,1/(1+((2258*((0.622/((p_atm/(1*611*EXP(17.27*(((Tv_cool+Tr_cool)/2)/(((Tv_cool+Tr_cool)/2)+237.3))))))-1)*1000-(0.622/((p_atm/(RH*611*EXP(17.27*(Tl_cool/(Tl_cool+237.3))))))-1)*1000))/(1005*(((Tv_cool+Tr_cool)/2)-Tl_cool))))+-((-0.000625*$C23+0.00625)*(Tl_cool-(Tv_cool+Tr_cool)/2)-(-0.000625*$C23+0.00625)*10))))*$H$14 -> 68.138
B24: 0.4 | C24: 4 | D24: =(X24*($T$11^$Q24))*Watts*CF_Altit -> 1122.079 | E24: =ROUND(((D24/Watts)/(($S$9-$S$10)*1.163))*$E$14,IF($X$4=1,0,IF($X$4=2,2))) -> 96 | F24: =($Y$24*(E24/$E$14)^$Y$26)*$F$14 -> 1.655580274 | G24: =(Z24*($W$11^R24))*Watts*CF_Altit -> 148.365 | H24: =((G24/Watts)/(IF((237.3*LN((RH*EXP(17.27*(Tl_cool/(Tl_cool+237.3))))))/(17.27-LN((RH*EXP(17.27*(Tl_cool/(Tl_cool+237.3))))))<Tavg_cold,1,IF(1/(1+((2258*((0.622/(($Z$11/(1*611*EXP(17.27*(Tavg_cold/(Tavg_cold+237.3))))))-1)*1000-(0.622/(($Z$11/(RH*611*EXP(17.27*(Tl_cool/(Tl_cool+237.3))))))-1)*1000))/(1005*(Tavg_cold-Tl_cool))))*1.039+((-0.000729*$C24+0.001448)*(Tl_cool-Tavg_cold)+(0.016908*$C24-0.033574))*1.039>1,1,1/(1+((2258*((0.622/(($Z$11/(1*611*EXP(17.27*(Tavg_cold/(Tavg_cold+237.3))))))-1)*1000-(0.622/(($Z$11/(RH*611*EXP(17.27*(Tl_cool/(Tl_cool+237.3))))))-1)*1000))/(1005*(Tavg_cold-Tl_cool))))*1.039+((-0.000729*$C24+0.001448)*(Tl_cool-Tavg_cold)+(0.016908*$C24-0.033574))*1.039))))*Watts -> 148.365 | I24: =ROUND(((H24/Watts)/((Tr_cool-Tv_cool)*1.163))*$I$14,IF($X$4=1,0,IF($X$4=2,2))) -> 64 | J24: =($AA$24*(I24/$I$14)^$AA$26)*$J$14 -> 0.7903966449 | K24: =L24-8 -> 19 | L24: 27 | M24: 1.3 | N24: =AD24*Cubics -> 75 | O24: =((($D24/Watts)/(((p_atm*0.028964)/(8.31447*(20+273.15)))*(($N24/3600)/Cubics)*(1005+1870*((0.622)/(((p_atm)/($E$12*Pvs_Heat_in))-1)))))+Tl_heat)*Celc1+Celc2 -> 63.91551289 | P24: =(Tl_cool-(($G24/Watts)/(1006*$N24*kgss)))*Celc1+Celc2 -> 21.12039392 | Q24: 1 | R24: 0.9 | W24: =(H24-G24)/H24 -> 0 | X24: =IF($X$16=1,AE24,IF($X$16=2,AM24,IF($X$16=3,BL24,IF($X$16=4,BE24,IF($X$16=5,CA24,IF($X$16=6,BT24,IF($X$16=7,AX24,))))))) -> 1122.079 | Y24: =IF($X$16=1,AF24,IF($X$16=2,AN24,IF($X$16=3,BM24,IF($X$16=4,BF24,IF($X$16=5,CB24,IF($X$16=6,BU24,IF($X$16=7,AY24,))))))) -> 0.0004020200901 | Z24: =IF($X$16=1,AG24,IF($X$16=2,AO24,IF($X$16=3,BN24,IF($X$16=4,BG24,IF($X$16=5,CC24,IF($X$16=6,BV24,IF($X$16=7,AZ24,))))))) -> 148.365 | AA24: =IF($X$16=1,AH24,IF($X$16=2,AP24,IF($X$16=3,BO24,IF($X$16=4,BH24,IF($X$16=5,CD24,IF($X$16=6,BW24,IF($X$16=7,BA24,))))))) -> 0.0004020200901 | AB24: =IF($X$16=1,AI24,IF($X$16=2,AQ24,IF($X$16=3,BP24,IF($X$16=4,BI24,IF($X$16=5,CE24,IF($X$16=6,BX24,IF($X$16=7,BB24,))))))) -> 27 | AC24: =IF($X$16=1,AJ24,IF($X$16=2,AR24,IF($X$16=3,BQ24,IF($X$16=4,BJ24,IF($X$16=5,CF24,IF($X$16=6,BY24,IF($X$16=7,BC24,))))))) -> 1.3 | AD24: =IF($X$16=1,AK24,IF($X$16=2,AS24,IF($X$16=3,BR24,IF($X$16=4,BK24,IF($X$16=5,CG24,IF($X$16=6,BZ24,IF($X$16=7,BD24,))))))) -> 75 | AE24: 1122.079 | AF24: 0.0004020200901 | AG24: 148.365 | AH24: =AF24 -> 0.0004020200901 | AI24: 27 | AJ24: 1.3 | AK24: 75 | AU24: =(AG24*((((Tv_cool-Tr_cool)/LN((Tv_cool-Tl_cool)/(Tr_cool-Tl_cool)))/((16-18)/LN((16-27)/(18-27))))^S24))*$G$14 -> 0.04961985 | AV24: =((AU24/$G$14)/(IF((237.3*LN((RH*EXP(17.27*(Tl_cool/(Tl_cool+237.3))))))/(17.27-LN((RH*EXP(17.27*(Tl_cool/(Tl_cool+237.3))))))<((Tv_cool+Tr_cool)/2),1,1/(1+((2258*((0.622/((p_atm/(1*611*EXP(17.27*(((Tv_cool+Tr_cool)/2)/(((Tv_cool+Tr_cool)/2)+237.3))))))-1)*1000-(0.622/((p_atm/(RH*611*EXP(17.27*(Tl_cool/(Tl_cool+237.3))))))-1)*1000))/(1005*(((Tv_cool+Tr_cool)/2)-Tl_cool))))+-((-0.000625*$C24+0.00625)*(Tl_cool-(Tv_cool+Tr_cool)/2)-(-0.000625*$C24+0.00625)*10))))*$H$14 -> 148.365
B25: 0.6 | C25: 6 | D25: =(X25*($T$11^$Q25))*Watts*CF_Altit -> 1580.362 | E25: =ROUND(((D25/Watts)/(($S$9-$S$10)*1.163))*$E$14,IF($X$4=1,0,IF($X$4=2,2))) -> 136 | F25: =($Y$24*(E25/$E$14)^$Y$26)*$F$14 -> 3.124562432 | G25: =(Z25*($W$11^R25))*Watts*CF_Altit -> 235.186 | H25: =((G25/Watts)/(IF((237.3*LN((RH*EXP(17.27*(Tl_cool/(Tl_cool+237.3))))))/(17.27-LN((RH*EXP(17.27*(Tl_cool/(Tl_cool+237.3))))))<Tavg_cold,1,IF(1/(1+((2258*((0.622/(($Z$11/(1*611*EXP(17.27*(Tavg_cold/(Tavg_cold+237.3))))))-1)*1000-(0.622/(($Z$11/(RH*611*EXP(17.27*(Tl_cool/(Tl_cool+237.3))))))-1)*1000))/(1005*(Tavg_cold-Tl_cool))))*1.039+((-0.000729*$C25+0.001448)*(Tl_cool-Tavg_cold)+(0.016908*$C25-0.033574))*1.039>1,1,1/(1+((2258*((0.622/(($Z$11/(1*611*EXP(17.27*(Tavg_cold/(Tavg_cold+237.3))))))-1)*1000-(0.622/(($Z$11/(RH*611*EXP(17.27*(Tl_cool/(Tl_cool+237.3))))))-1)*1000))/(1005*(Tavg_cold-Tl_cool))))*1.039+((-0.000729*$C25+0.001448)*(Tl_cool-Tavg_cold)+(0.016908*$C25-0.033574))*1.039))))*Watts -> 235.186 | I25: =ROUND(((H25/Watts)/((Tr_cool-Tv_cool)*1.163))*$I$14,IF($X$4=1,0,IF($X$4=2,2))) -> 101 | J25: =($AA$24*(I25/$I$14)^$AA$26)*$J$14 -> 1.816180543 | K25: =L25-8 -> 29 | L25: 37 | M25: 2.7 | N25: =AD25*Cubics -> 98 | O25: =((($D25/Watts)/(((p_atm*0.028964)/(8.31447*(20+273.15)))*(($N25/3600)/Cubics)*(1005+1870*((0.622)/(((p_atm)/($E$12*Pvs_Heat_in))-1)))))+Tl_heat)*Celc1+Celc2 -> 67.33542611 | P25: =(Tl_cool-(($G25/Watts)/(1006*$N25*kgss)))*Celc1+Celc2 -> 19.86714455 | Q25: 1 | R25: 0.9 | W25: =(H25-G25)/H25 -> 0 | X25: =IF($X$16=1,AE25,IF($X$16=2,AM25,IF($X$16=3,BL25,IF($X$16=4,BE25,IF($X$16=5,CA25,IF($X$16=6,BT25,IF($X$16=7,AX25,))))))) -> 1580.362 | Y25: =IF($X$16=1,AF25,IF($X$16=2,AN25,IF($X$16=3,BM25,IF($X$16=4,BF25,IF($X$16=5,CB25,IF($X$16=6,BU25,IF($X$16=7,AY25,))))))) -> b | Z25: =IF($X$16=1,AG25,IF($X$16=2,AO25,IF($X$16=3,BN25,IF($X$16=4,BG25,IF($X$16=5,CC25,IF($X$16=6,BV25,IF($X$16=7,AZ25,))))))) -> 235.186 | AA25: =IF($X$16=1,AH25,IF($X$16=2,AP25,IF($X$16=3,BO25,IF($X$16=4,BH25,IF($X$16=5,CD25,IF($X$16=6,BW25,IF($X$16=7,BA25,))))))) -> b | AB25: =IF($X$16=1,AI25,IF($X$16=2,AQ25,IF($X$16=3,BP25,IF($X$16=4,BI25,IF($X$16=5,CE25,IF($X$16=6,BX25,IF($X$16=7,BB25,))))))) -> 37 | AC25: =IF($X$16=1,AJ25,IF($X$16=2,AR25,IF($X$16=3,BQ25,IF($X$16=4,BJ25,IF($X$16=5,CF25,IF($X$16=6,BY25,IF($X$16=7,BC25,))))))) -> 2.7 | AD25: =IF($X$16=1,AK25,IF($X$16=2,AS25,IF($X$16=3,BR25,IF($X$16=4,BK25,IF($X$16=5,CG25,IF($X$16=6,BZ25,IF($X$16=7,BD25,))))))) -> 98 | AE25: 1580.362 | AF25: b | AG25: 235.186 | AH25: b | AI25: 37 | AJ25: 2.7 | AK25: 98 | AU25: =(AG25*((((Tv_cool-Tr_cool)/LN((Tv_cool-Tl_cool)/(Tr_cool-Tl_cool)))/((16-18)/LN((16-27)/(18-27))))^S25))*$G$14 -> 0.07865665111 | AV25: =((AU25/$G$14)/(IF((237.3*LN((RH*EXP(17.27*(Tl_cool/(Tl_cool+237.3))))))/(17.27-LN((RH*EXP(17.27*(Tl_cool/(Tl_cool+237.3))))))<((Tv_cool+Tr_cool)/2),1,1/(1+((2258*((0.622/((p_atm/(1*611*EXP(17.27*(((Tv_cool+Tr_cool)/2)/(((Tv_cool+Tr_cool)/2)+237.3))))))-1)*1000-(0.622/((p_atm/(RH*611*EXP(17.27*(Tl_cool/(Tl_cool+237.3))))))-1)*1000))/(1005*(((Tv_cool+Tr_cool)/2)-Tl_cool))))+-((-0.000625*$C25+0.00625)*(Tl_cool-(Tv_cool+Tr_cool)/2)-(-0.000625*$C25+0.00625)*10))))*$H$14 -> 235.186
B26: 0.8 | C26: 8 | D26: =(X26*($T$11^$Q26))*Watts*CF_Altit -> 2015.566 | E26: =ROUND(((D26/Watts)/(($S$9-$S$10)*1.163))*$E$14,IF($X$4=1,0,IF($X$4=2,2))) -> 173 | F26: =($Y$24*(E26/$E$14)^$Y$26)*$F$14 -> 4.845735502 | G26: =(Z26*($W$11^R26))*Watts*CF_Altit -> 325.304 | H26: =((G26/Watts)/(IF((237.3*LN((RH*EXP(17.27*(Tl_cool/(Tl_cool+237.3))))))/(17.27-LN((RH*EXP(17.27*(Tl_cool/(Tl_cool+237.3))))))<Tavg_cold,1,IF(1/(1+((2258*((0.622/(($Z$11/(1*611*EXP(17.27*(Tavg_cold/(Tavg_cold+237.3))))))-1)*1000-(0.622/(($Z$11/(RH*611*EXP(17.27*(Tl_cool/(Tl_cool+237.3))))))-1)*1000))/(1005*(Tavg_cold-Tl_cool))))*1.039+((-0.000729*$C26+0.001448)*(Tl_cool-Tavg_cold)+(0.016908*$C26-0.033574))*1.039>1,1,1/(1+((2258*((0.622/(($Z$11/(1*611*EXP(17.27*(Tavg_cold/(Tavg_cold+237.3))))))-1)*1000-(0.622/(($Z$11/(RH*611*EXP(17.27*(Tl_cool/(Tl_cool+237.3))))))-1)*1000))/(1005*(Tavg_cold-Tl_cool))))*1.039+((-0.000729*$C26+0.001448)*(Tl_cool-Tavg_cold)+(0.016908*$C26-0.033574))*1.039))))*Watts -> 325.304 | I26: =ROUND(((H26/Watts)/((Tr_cool-Tv_cool)*1.163))*$I$14,IF($X$4=1,0,IF($X$4=2,2))) -> 140 | J26: =($AA$24*(I26/$I$14)^$AA$26)*$J$14 -> 3.294167488 | K26: =L26-8 -> 32 | L26: 40 | M26: 4.6 | N26: =AD26*Cubics -> 125 | O26: =((($D26/Watts)/(((p_atm*0.028964)/(8.31447*(20+273.15)))*(($N26/3600)/Cubics)*(1005+1870*((0.622)/(((p_atm)/($E$12*Pvs_Heat_in))-1)))))+Tl_heat)*Celc1+Celc2 -> 67.33068598 | P26: =(Tl_cool-(($G26/Watts)/(1006*$N26*kgss)))*Celc1+Celc2 -> 19.26505155 | Q26: 1 | R26: 0.9 | W26: =(H26-G26)/H26 -> 0 | X26: =IF($X$16=1,AE26,IF($X$16=2,AM26,IF($X$16=3,BL26,IF($X$16=4,BE26,IF($X$16=5,CA26,IF($X$16=6,BT26,IF($X$16=7,AX26,))))))) -> 2015.566 | Y26: =IF($X$16=1,AF26,IF($X$16=2,AN26,IF($X$16=3,BM26,IF($X$16=4,BF26,IF($X$16=5,CB26,IF($X$16=6,BU26,IF($X$16=7,AY26,))))))) -> 1.823515585 | Z26: =IF($X$16=1,AG26,IF($X$16=2,AO26,IF($X$16=3,BN26,IF($X$16=4,BG26,IF($X$16=5,CC26,IF($X$16=6,BV26,IF($X$16=7,AZ26,))))))) -> 325.304 | AA26: =IF($X$16=1,AH26,IF($X$16=2,AP26,IF($X$16=3,BO26,IF($X$16=4,BH26,IF($X$16=5,CD26,IF($X$16=6,BW26,IF($X$16=7,BA26,))))))) -> 1.823515585 | AB26: =IF($X$16=1,AI26,IF($X$16=2,AQ26,IF($X$16=3,BP26,IF($X$16=4,BI26,IF($X$16=5,CE26,IF($X$16=6,BX26,IF($X$16=7,BB26,))))))) -> 40 | AC26: =IF($X$16=1,AJ26,IF($X$16=2,AR26,IF($X$16=3,BQ26,IF($X$16=4,BJ26,IF($X$16=5,CF26,IF($X$16=6,BY26,IF($X$16=7,BC26,))))))) -> 4.6 | AD26: =IF($X$16=1,AK26,IF($X$16=2,AS26,IF($X$16=3,BR26,IF($X$16=4,BK26,IF($X$16=5,CG26,IF($X$16=6,BZ26,IF($X$16=7,BD26,))))))) -> 125 | AE26: 2015.566 | AF26: 1.823515585 | AG26: 325.304 | AH26: =AF26 -> 1.823515585 | AI26: 40 | AJ26: 4.6 | AK26: 125 | AU26: =(AG26*((((Tv_cool-Tr_cool)/LN((Tv_cool-Tl_cool)/(Tr_cool-Tl_cool)))/((16-18)/LN((16-27)/(18-27))))^S26))*$G$14 -> 0.1087961156 | AV26: =((AU26/$G$14)/(IF((237.3*LN((RH*EXP(17.27*(Tl_cool/(Tl_cool+237.3))))))/(17.27-LN((RH*EXP(17.27*(Tl_cool/(Tl_cool+237.3))))))<((Tv_cool+Tr_cool)/2),1,1/(1+((2258*((0.622/((p_atm/(1*611*EXP(17.27*(((Tv_cool+Tr_cool)/2)/(((Tv_cool+Tr_cool)/2)+237.3))))))-1)*1000-(0.622/((p_atm/(RH*611*EXP(17.27*(Tl_cool/(Tl_cool+237.3))))))-1)*1000))/(1005*(((Tv_cool+Tr_cool)/2)-Tl_cool))))+-((-0.000625*$C26+0.00625)*(Tl_cool-(Tv_cool+Tr_cool)/2)-(-0.000625*$C26+0.00625)*10))))*$H$14 -> 325.304
B27: 1 | C27: 10 | D27: =(X27*($T$11^$Q27))*Watts*CF_Altit -> 2433.186 | E27: =ROUND(((D27/Watts)/(($S$9-$S$10)*1.163))*$E$14,IF($X$4=1,0,IF($X$4=2,2))) -> 209 | F27: =($Y$24*(E27/$E$14)^$Y$26)*$F$14 -> 6.840229423 | G27: =(Z27*($W$11^R27))*Watts*CF_Altit -> 418.719 | H27: =((G27/Watts)/(IF((237.3*LN((RH*EXP(17.27*(Tl_cool/(Tl_cool+237.3))))))/(17.27-LN((RH*EXP(17.27*(Tl_cool/(Tl_cool+237.3))))))<Tavg_cold,1,IF(1/(1+((2258*((0.622/(($Z$11/(1*611*EXP(17.27*(Tavg_cold/(Tavg_cold+237.3))))))-1)*1000-(0.622/(($Z$11/(RH*611*EXP(17.27*(Tl_cool/(Tl_cool+237.3))))))-1)*1000))/(1005*(Tavg_cold-Tl_cool))))*1.039+((-0.000729*$C27+0.001448)*(Tl_cool-Tavg_cold)+(0.016908*$C27-0.033574))*1.039>1,1,1/(1+((2258*((0.622/(($Z$11/(1*611*EXP(17.27*(Tavg_cold/(Tavg_cold+237.3))))))-1)*1000-(0.622/(($Z$11/(RH*611*EXP(17.27*(Tl_cool/(Tl_cool+237.3))))))-1)*1000))/(1005*(Tavg_cold-Tl_cool))))*1.039+((-0.000729*$C27+0.001448)*(Tl_cool-Tavg_cold)+(0.016908*$C27-0.033574))*1.039))))*Watts -> 418.719 | I27: =ROUND(((H27/Watts)/((Tr_cool-Tv_cool)*1.163))*$I$14,IF($X$4=1,0,IF($X$4=2,2))) -> 180 | J27: =($AA$24*(I27/$I$14)^$AA$26)*$J$14 -> 5.209215421 | K27: =L27-8 -> 37 | L27: 45 | M27: 7.1 | N27: =AD27*Cubics -> 160 | O27: =((($D27/Watts)/(((p_atm*0.028964)/(8.31447*(20+273.15)))*(($N27/3600)/Cubics)*(1005+1870*((0.622)/(((p_atm)/($E$12*Pvs_Heat_in))-1)))))+Tl_heat)*Celc1+Celc2 -> 64.63865644 | P27: =(Tl_cool-(($G27/Watts)/(1006*$N27*kgss)))*Celc1+Celc2 -> 19.22177112 | Q27: 1 | R27: 0.9 | W27: =(H27-G27)/H27 -> 0 | X27: =IF($X$16=1,AE27,IF($X$16=2,AM27,IF($X$16=3,BL27,IF($X$16=4,BE27,IF($X$16=5,CA27,IF($X$16=6,BT27,IF($X$16=7,AX27,))))))) -> 2433.186 | Y27: =IF($X$16=1,AF27,IF($X$16=2,AN27,IF($X$16=3,BM27,IF($X$16=4,BF27,IF($X$16=5,CB27,IF($X$16=6,BU27,IF($X$16=7,AY27,))))))) -> 0 | Z27: =IF($X$16=1,AG27,IF($X$16=2,AO27,IF($X$16=3,BN27,IF($X$16=4,BG27,IF($X$16=5,CC27,IF($X$16=6,BV27,IF($X$16=7,AZ27,))))))) -> 418.719 | AA27: =IF($X$16=1,AH27,IF($X$16=2,AP27,IF($X$16=3,BO27,IF($X$16=4,BH27,IF($X$16=5,CD27,IF($X$16=6,BW27,IF($X$16=7,BA27,))))))) -> 0 | AB27: =IF($X$16=1,AI27,IF($X$16=2,AQ27,IF($X$16=3,BP27,IF($X$16=4,BI27,IF($X$16=5,CE27,IF($X$16=6,BX27,IF($X$16=7,BB27,))))))) -> 45 | AC27: =IF($X$16=1,AJ27,IF($X$16=2,AR27,IF($X$16=3,BQ27,IF($X$16=4,BJ27,IF($X$16=5,CF27,IF($X$16=6,BY27,IF($X$16=7,BC27,))))))) -> 7.1 | AD27: =IF($X$16=1,AK27,IF($X$16=2,AS27,IF($X$16=3,BR27,IF($X$16=4,BK27,IF($X$16=5,CG27,IF($X$16=6,BZ27,IF($X$16=7,BD27,))))))) -> 160 | AE27: 2433.186 | AG27: 418.719 | AI27: 45 | AJ27: 7.1 | AK27: 160 | AU27: =(AG27*((((Tv_cool-Tr_cool)/LN((Tv_cool-Tl_cool)/(Tr_cool-Tl_cool)))/((16-18)/LN((16-27)/(18-27))))^S27))*$G$14 -> 0.1400382433 | AV27: =((AU27/$G$14)/(IF((237.3*LN((RH*EXP(17.27*(Tl_cool/(Tl_cool+237.3))))))/(17.27-LN((RH*EXP(17.27*(Tl_cool/(Tl_cool+237.3))))))<((Tv_cool+Tr_cool)/2),1,1/(1+((2258*((0.622/((p_atm/(1*611*EXP(17.27*(((Tv_cool+Tr_cool)/2)/(((Tv_cool+Tr_cool)/2)+237.3))))))-1)*1000-(0.622/((p_atm/(RH*611*EXP(17.27*(Tl_cool/(Tl_cool+237.3))))))-1)*1000))/(1005*(((Tv_cool+Tr_cool)/2)-Tl_cool))))+-((-0.000625*$C27+0.00625)*(Tl_cool-(Tv_cool+Tr_cool)/2)-(-0.000625*$C27+0.00625)*10))))*$H$14 -> 418.719
B28: =IF($S$7=1,NL!A27,IF(cal!$S$7=2,EN!A27,IF(cal!$S$7=3,DE!A27,IF(cal!$S$7=4,FR!A27,IF(cal!$S$7=5,NR!A27,IF(cal!$S$7=6,SP!A27,IF(cal!$S$7=7,SW!A27,IF(cal!$S$7=8,TS!A27,IF(cal!$S$7=9,ExtraTaal1!A27,IF(cal!$S$7=10,ExtraTaal2!A27,IF(cal!$S$7=11,ExtraTaal3!A27,))))))))))) -> Freedom height 20 cm width 19 cm length 145 cm (Type 3) | C28: =IF($S$7=1,NL!B27,IF(cal!$S$7=2,EN!B27,IF(cal!$S$7=3,DE!B27,IF(cal!$S$7=4,FR!B27,IF(cal!$S$7=5,NR!B27,IF(cal!$S$7=6,SP!B27,IF(cal!$S$7=7,SW!B27,IF(cal!$S$7=8,TS!B27,IF(cal!$S$7=9,ExtraTaal1!B27,IF(cal!$S$7=10,ExtraTaal2!B27,IF(cal!$S$7=11,ExtraTaal3!B27,))))))))))) -> 0 | D28: =IF($S$7=1,NL!C27,IF(cal!$S$7=2,EN!C27,IF(cal!$S$7=3,DE!C27,IF(cal!$S$7=4,FR!C27,IF(cal!$S$7=5,NR!C27,IF(cal!$S$7=6,SP!C27,IF(cal!$S$7=7,SW!C27,IF(cal!$S$7=8,TS!C27,IF(cal!$S$7=9,ExtraTaal1!C27,IF(cal!$S$7=10,ExtraTaal2!C27,IF(cal!$S$7=11,ExtraTaal3!C27,))))))))))) -> 0 | E28: =IF($S$7=1,NL!D27,IF(cal!$S$7=2,EN!D27,IF(cal!$S$7=3,DE!D27,IF(cal!$S$7=4,FR!D27,IF(cal!$S$7=5,NR!D27,IF(cal!$S$7=6,SP!D27,IF(cal!$S$7=7,SW!D27,IF(cal!$S$7=8,TS!D27,IF(cal!$S$7=9,ExtraTaal1!D27,IF(cal!$S$7=10,ExtraTaal2!D27,IF(cal!$S$7=11,ExtraTaal3!D27,))))))))))) -> 0 | F28: =IF($S$7=1,NL!E27,IF(cal!$S$7=2,EN!E27,IF(cal!$S$7=3,DE!E27,IF(cal!$S$7=4,FR!E27,IF(cal!$S$7=5,NR!E27,IF(cal!$S$7=6,SP!E27,IF(cal!$S$7=7,SW!E27,IF(cal!$S$7=8,TS!E27,IF(cal!$S$7=9,ExtraTaal1!E27,IF(cal!$S$7=10,ExtraTaal2!E27,IF(cal!$S$7=11,ExtraTaal3!E27,))))))))))) -> 0 | G28: =IF($S$7=1,NL!F27,IF(cal!$S$7=2,EN!F27,IF(cal!$S$7=3,DE!F27,IF(cal!$S$7=4,FR!F27,IF(cal!$S$7=5,NR!F27,IF(cal!$S$7=6,SP!F27,IF(cal!$S$7=7,SW!F27,IF(cal!$S$7=8,TS!F27,IF(cal!$S$7=9,ExtraTaal1!F27,IF(cal!$S$7=10,ExtraTaal2!F27,IF(cal!$S$7=11,ExtraTaal3!F27,))))))))))) -> 0 | H28: =IF($S$7=1,NL!G27,IF(cal!$S$7=2,EN!G27,IF(cal!$S$7=3,DE!G27,IF(cal!$S$7=4,FR!G27,IF(cal!$S$7=5,NR!G27,IF(cal!$S$7=6,SP!G27,IF(cal!$S$7=7,SW!G27,IF(cal!$S$7=8,TS!G27,IF(cal!$S$7=9,ExtraTaal1!G27,IF(cal!$S$7=10,ExtraTaal2!G27,IF(cal!$S$7=11,ExtraTaal3!G27,))))))))))) -> 0 | I28: =IF($S$7=1,NL!H27,IF(cal!$S$7=2,EN!H27,IF(cal!$S$7=3,DE!H27,IF(cal!$S$7=4,FR!H27,IF(cal!$S$7=5,NR!H27,IF(cal!$S$7=6,SP!H27,IF(cal!$S$7=7,SW!H27,IF(cal!$S$7=8,TS!H27,IF(cal!$S$7=9,ExtraTaal1!H27,IF(cal!$S$7=10,ExtraTaal2!H27,IF(cal!$S$7=11,ExtraTaal3!H27,))))))))))) -> 0 | J28: =IF($S$7=1,NL!I27,IF(cal!$S$7=2,EN!I27,IF(cal!$S$7=3,DE!I27,IF(cal!$S$7=4,FR!I27,IF(cal!$S$7=5,NR!I27,IF(cal!$S$7=6,SP!I27,IF(cal!$S$7=7,SW!I27,IF(cal!$S$7=8,TS!I27,IF(cal!$S$7=9,ExtraTaal1!I27,IF(cal!$S$7=10,ExtraTaal2!I27,IF(cal!$S$7=11,ExtraTaal3!I27,))))))))))) -> 0 | K28: =IF($S$7=1,NL!J27,IF(cal!$S$7=2,EN!J27,IF(cal!$S$7=3,DE!J27,IF(cal!$S$7=4,FR!J27,IF(cal!$S$7=5,NR!J27,IF(cal!$S$7=6,SP!J27,IF(cal!$S$7=7,SW!J27,IF(cal!$S$7=8,TS!J27,IF(cal!$S$7=9,ExtraTaal1!J27,IF(cal!$S$7=10,ExtraTaal2!J27,IF(cal!$S$7=11,ExtraTaal3!J27,))))))))))) -> 0 | L28: =IF($S$7=1,NL!K27,IF(cal!$S$7=2,EN!K27,IF(cal!$S$7=3,DE!K27,IF(cal!$S$7=4,FR!K27,IF(cal!$S$7=5,NR!K27,IF(cal!$S$7=6,SP!K27,IF(cal!$S$7=7,SW!K27,IF(cal!$S$7=8,TS!K27,IF(cal!$S$7=9,ExtraTaal1!K27,IF(cal!$S$7=10,ExtraTaal2!K27,IF(cal!$S$7=11,ExtraTaal3!K27,))))))))))) -> 0 | M28: =IF($S$7=1,NL!L27,IF(cal!$S$7=2,EN!L27,IF(cal!$S$7=3,DE!L27,IF(cal!$S$7=4,FR!L27,IF(cal!$S$7=5,NR!L27,IF(cal!$S$7=6,SP!L27,IF(cal!$S$7=7,SW!L27,IF(cal!$S$7=8,TS!L27,IF(cal!$S$7=9,ExtraTaal1!L27,IF(cal!$S$7=10,ExtraTaal2!L27,IF(cal!$S$7=11,ExtraTaal3!L27,))))))))))) -> 0 | N28: =IF($S$7=1,NL!M27,IF(cal!$S$7=2,EN!M27,IF(cal!$S$7=3,DE!M27,IF(cal!$S$7=4,FR!M27,IF(cal!$S$7=5,NR!M27,IF(cal!$S$7=6,SP!M27,IF(cal!$S$7=7,SW!M27,IF(cal!$S$7=8,TS!M27,IF(cal!$S$7=9,ExtraTaal1!M27,IF(cal!$S$7=10,ExtraTaal2!M27,IF(cal!$S$7=11,ExtraTaal3!M27,))))))))))) -> 0 | O28: =IF($S$7=1,NL!N27,IF(cal!$S$7=2,EN!N27,IF(cal!$S$7=3,DE!N27,IF(cal!$S$7=4,FR!N27,IF(cal!$S$7=5,NR!N27,IF(cal!$S$7=6,SP!N27,IF(cal!$S$7=7,SW!N27,IF(cal!$S$7=8,TS!N27,IF(cal!$S$7=9,ExtraTaal1!N27,IF(cal!$S$7=10,ExtraTaal2!N27,IF(cal!$S$7=11,ExtraTaal3!N27,))))))))))) -> 0 | P28: =IF($S$7=1,NL!O27,IF(cal!$S$7=2,EN!O27,IF(cal!$S$7=3,DE!O27,IF(cal!$S$7=4,FR!O27,IF(cal!$S$7=5,NR!O27,IF(cal!$S$7=6,SP!O27,IF(cal!$S$7=7,SW!O27,IF(cal!$S$7=8,TS!O27,IF(cal!$S$7=9,ExtraTaal1!O27,IF(cal!$S$7=10,ExtraTaal2!O27,IF(cal!$S$7=11,ExtraTaal3!O27,))))))))))) -> 0 | Q28: n-value | R28: 0 | X28: =IF($X$16=1,AE28,IF($X$16=2,AM28,IF($X$16=3,BL28,IF($X$16=4,BE28,IF($X$16=5,CA28,IF($X$16=6,BT28,IF($X$16=7,AX28,))))))) -> H | Y28: =IF($X$16=1,AF28,IF($X$16=2,AN28,IF($X$16=3,BM28,IF($X$16=4,BF28,IF($X$16=5,CB28,IF($X$16=6,BU28,IF($X$16=7,AY28,))))))) -> 20 | Z28: =IF($X$16=1,AG28,IF($X$16=2,AO28,IF($X$16=3,BN28,IF($X$16=4,BG28,IF($X$16=5,CC28,IF($X$16=6,BV28,IF($X$16=7,AZ28,))))))) -> B | AA28: =IF($X$16=1,AH28,IF($X$16=2,AP28,IF($X$16=3,BO28,IF($X$16=4,BH28,IF($X$16=5,CD28,IF($X$16=6,BW28,IF($X$16=7,BA28,))))))) -> 19 | AB28: =IF($X$16=1,AI28,IF($X$16=2,AQ28,IF($X$16=3,BP28,IF($X$16=4,BI28,IF($X$16=5,CE28,IF($X$16=6,BX28,IF($X$16=7,BB28,))))))) -> L | AC28: =IF($X$16=1,AJ28,IF($X$16=2,AR28,IF($X$16=3,BQ28,IF($X$16=4,BJ28,IF($X$16=5,CF28,IF($X$16=6,BY28,IF($X$16=7,BC28,))))))) -> 110 | AD28: =IF($X$16=1,AK28,IF($X$16=2,AS28,IF($X$16=3,BR28,IF($X$16=4,BK28,IF($X$16=5,CG28,IF($X$16=6,BZ28,IF($X$16=7,BD28,))))))) -> 0 | AE28: H | AF28: =AF22 -> 20 | AG28: B | AH28: =AH22 -> 19 | AI28: L | AJ28: 110
B29: 0.2 | C29: 2 | D29: =(X29*($T$11^$Q29))*Watts*CF_Altit -> 939.594 | E29: =ROUND(((D29/Watts)/(($S$9-$S$10)*1.163))*$E$14,IF($X$4=1,0,IF($X$4=2,2))) -> 81 | F29: =($Y$30*(E29/$E$14)^$Y$32)*$F$14 -> 1.693419584 | G29: =(Z29*($W$11^R29))*Watts*CF_Altit -> 101.947 | H29: =((G29/Watts)/(IF((237.3*LN((RH*EXP(17.27*(Tl_cool/(Tl_cool+237.3))))))/(17.27-LN((RH*EXP(17.27*(Tl_cool/(Tl_cool+237.3))))))<Tavg_cold,1,IF(1/(1+((2258*((0.622/(($Z$11/(1*611*EXP(17.27*(Tavg_cold/(Tavg_cold+237.3))))))-1)*1000-(0.622/(($Z$11/(RH*611*EXP(17.27*(Tl_cool/(Tl_cool+237.3))))))-1)*1000))/(1005*(Tavg_cold-Tl_cool))))*1.039+((-0.000729*$C29+0.001448)*(Tl_cool-Tavg_cold)+(0.016908*$C29-0.033574))*1.039>1,1,1/(1+((2258*((0.622/(($Z$11/(1*611*EXP(17.27*(Tavg_cold/(Tavg_cold+237.3))))))-1)*1000-(0.622/(($Z$11/(RH*611*EXP(17.27*(Tl_cool/(Tl_cool+237.3))))))-1)*1000))/(1005*(Tavg_cold-Tl_cool))))*1.039+((-0.000729*$C29+0.001448)*(Tl_cool-Tavg_cold)+(0.016908*$C29-0.033574))*1.039))))*Watts -> 101.947 | I29: =ROUND(((H29/Watts)/((Tr_cool-Tv_cool)*1.163))*$I$14,IF($X$4=1,0,IF($X$4=2,2))) -> 44 | J29: =($AA$30*(I29/$I$14)^$AA$32)*$J$14 -> 0.5565112796 | K29: =L29-8 -> 16 | L29: =AB29 -> 24 | M29: 1.1 | N29: =AD29*Cubics -> 66 | O29: =((($D29/Watts)/(((p_atm*0.028964)/(8.31447*(20+273.15)))*(($N29/3600)/Cubics)*(1005+1870*((0.622)/(((p_atm)/($E$12*Pvs_Heat_in))-1)))))+Tl_heat)*Celc1+Celc2 -> 61.78804824 | P29: =(Tl_cool-(($G29/Watts)/(1006*$N29*kgss)))*Celc1+Celc2 -> 22.40898673 | Q29: 1 | R29: 0.9 | W29: =(H29-G29)/H29 -> 0 | X29: =IF($X$16=1,AE29,IF($X$16=2,AM29,IF($X$16=3,BL29,IF($X$16=4,BE29,IF($X$16=5,CA29,IF($X$16=6,BT29,IF($X$16=7,AX29,))))))) -> 939.594 | Y29: =IF($X$16=1,AF29,IF($X$16=2,AN29,IF($X$16=3,BM29,IF($X$16=4,BF29,IF($X$16=5,CB29,IF($X$16=6,BU29,IF($X$16=7,AY29,))))))) -> a | Z29: =IF($X$16=1,AG29,IF($X$16=2,AO29,IF($X$16=3,BN29,IF($X$16=4,BG29,IF($X$16=5,CC29,IF($X$16=6,BV29,IF($X$16=7,AZ29,))))))) -> 101.947 | AA29: =IF($X$16=1,AH29,IF($X$16=2,AP29,IF($X$16=3,BO29,IF($X$16=4,BH29,IF($X$16=5,CD29,IF($X$16=6,BW29,IF($X$16=7,BA29,))))))) -> a | AB29: =IF($X$16=1,AI29,IF($X$16=2,AQ29,IF($X$16=3,BP29,IF($X$16=4,BI29,IF($X$16=5,CE29,IF($X$16=6,BX29,IF($X$16=7,BB29,))))))) -> 24 | AC29: =IF($X$16=1,AJ29,IF($X$16=2,AR29,IF($X$16=3,BQ29,IF($X$16=4,BJ29,IF($X$16=5,CF29,IF($X$16=6,BY29,IF($X$16=7,BC29,))))))) -> 1.1 | AD29: =IF($X$16=1,AK29,IF($X$16=2,AS29,IF($X$16=3,BR29,IF($X$16=4,BK29,IF($X$16=5,CG29,IF($X$16=6,BZ29,IF($X$16=7,BD29,))))))) -> 66 | AE29: 939.594 | AF29: a | AG29: 101.947 | AH29: a | AI29: 24 | AJ29: 1.1 | AK29: 66 | AU29: =(AG29*((((Tv_cool-Tr_cool)/LN((Tv_cool-Tl_cool)/(Tr_cool-Tl_cool)))/((16-18)/LN((16-27)/(18-27))))^S29))*$G$14 -> 0.03409560778 | AV29: =((AU29/$G$14)/(IF((237.3*LN((RH*EXP(17.27*(Tl_cool/(Tl_cool+237.3))))))/(17.27-LN((RH*EXP(17.27*(Tl_cool/(Tl_cool+237.3))))))<((Tv_cool+Tr_cool)/2),1,1/(1+((2258*((0.622/((p_atm/(1*611*EXP(17.27*(((Tv_cool+Tr_cool)/2)/(((Tv_cool+Tr_cool)/2)+237.3))))))-1)*1000-(0.622/((p_atm/(RH*611*EXP(17.27*(Tl_cool/(Tl_cool+237.3))))))-1)*1000))/(1005*(((Tv_cool+Tr_cool)/2)-Tl_cool))))+-((-0.000625*$C29+0.00625)*(Tl_cool-(Tv_cool+Tr_cool)/2)-(-0.000625*$C29+0.00625)*10))))*$H$14 -> 101.947
B30: 0.4 | C30: 4 | D30: =(X30*($T$11^$Q30))*Watts*CF_Altit -> 1686.855 | E30: =ROUND(((D30/Watts)/(($S$9-$S$10)*1.163))*$E$14,IF($X$4=1,0,IF($X$4=2,2))) -> 145 | F30: =($Y$30*(E30/$E$14)^$Y$32)*$F$14 -> 4.896667774 | G30: =(Z30*($W$11^R30))*Watts*CF_Altit -> 222.812 | H30: =((G30/Watts)/(IF((237.3*LN((RH*EXP(17.27*(Tl_cool/(Tl_cool+237.3))))))/(17.27-LN((RH*EXP(17.27*(Tl_cool/(Tl_cool+237.3))))))<Tavg_cold,1,IF(1/(1+((2258*((0.622/(($Z$11/(1*611*EXP(17.27*(Tavg_cold/(Tavg_cold+237.3))))))-1)*1000-(0.622/(($Z$11/(RH*611*EXP(17.27*(Tl_cool/(Tl_cool+237.3))))))-1)*1000))/(1005*(Tavg_cold-Tl_cool))))*1.039+((-0.000729*$C30+0.001448)*(Tl_cool-Tavg_cold)+(0.016908*$C30-0.033574))*1.039>1,1,1/(1+((2258*((0.622/(($Z$11/(1*611*EXP(17.27*(Tavg_cold/(Tavg_cold+237.3))))))-1)*1000-(0.622/(($Z$11/(RH*611*EXP(17.27*(Tl_cool/(Tl_cool+237.3))))))-1)*1000))/(1005*(Tavg_cold-Tl_cool))))*1.039+((-0.000729*$C30+0.001448)*(Tl_cool-Tavg_cold)+(0.016908*$C30-0.033574))*1.039))))*Watts -> 222.812 | I30: =ROUND(((H30/Watts)/((Tr_cool-Tv_cool)*1.163))*$I$14,IF($X$4=1,0,IF($X$4=2,2))) -> 96 | J30: =($AA$30*(I30/$I$14)^$AA$32)*$J$14 -> 2.308420325 | K30: =L30-8 -> 20 | L30: 28 | M30: 2.1 | N30: =AD30*Cubics -> 112 | O30: =((($D30/Watts)/(((p_atm*0.028964)/(8.31447*(20+273.15)))*(($N30/3600)/Cubics)*(1005+1870*((0.622)/(((p_atm)/($E$12*Pvs_Heat_in))-1)))))+Tl_heat)*Celc1+Celc2 -> 64.20949136 | P30: =(Tl_cool-(($G30/Watts)/(1006*$N30*kgss)))*Celc1+Celc2 -> 21.08712651 | Q30: 1 | R30: 0.9 | W30: =(H30-G30)/H30 -> 0 | X30: =IF($X$16=1,AE30,IF($X$16=2,AM30,IF($X$16=3,BL30,IF($X$16=4,BE30,IF($X$16=5,CA30,IF($X$16=6,BT30,IF($X$16=7,AX30,))))))) -> 1686.855 | Y30: =IF($X$16=1,AF30,IF($X$16=2,AN30,IF($X$16=3,BM30,IF($X$16=4,BF30,IF($X$16=5,CB30,IF($X$16=6,BU30,IF($X$16=7,AY30,))))))) -> 0.0005605474778 | Z30: =IF($X$16=1,AG30,IF($X$16=2,AO30,IF($X$16=3,BN30,IF($X$16=4,BG30,IF($X$16=5,CC30,IF($X$16=6,BV30,IF($X$16=7,AZ30,))))))) -> 222.812 | AA30: =IF($X$16=1,AH30,IF($X$16=2,AP30,IF($X$16=3,BO30,IF($X$16=4,BH30,IF($X$16=5,CD30,IF($X$16=6,BW30,IF($X$16=7,BA30,))))))) -> 0.0005605474778 | AB30: =IF($X$16=1,AI30,IF($X$16=2,AQ30,IF($X$16=3,BP30,IF($X$16=4,BI30,IF($X$16=5,CE30,IF($X$16=6,BX30,IF($X$16=7,BB30,))))))) -> 28 | AC30: =IF($X$16=1,AJ30,IF($X$16=2,AR30,IF($X$16=3,BQ30,IF($X$16=4,BJ30,IF($X$16=5,CF30,IF($X$16=6,BY30,IF($X$16=7,BC30,))))))) -> 2.1 | AD30: =IF($X$16=1,AK30,IF($X$16=2,AS30,IF($X$16=3,BR30,IF($X$16=4,BK30,IF($X$16=5,CG30,IF($X$16=6,BZ30,IF($X$16=7,BD30,))))))) -> 112 | AE30: 1686.855 | AF30: 0.0005605474778 | AG30: 222.812 | AH30: =AF30 -> 0.0005605474778 | AI30: 28 | AJ30: 2.1 | AK30: 112 | AU30: =(AG30*((((Tv_cool-Tr_cool)/LN((Tv_cool-Tl_cool)/(Tr_cool-Tl_cool)))/((16-18)/LN((16-27)/(18-27))))^S30))*$G$14 -> 0.07451823556 | AV30: =((AU30/$G$14)/(IF((237.3*LN((RH*EXP(17.27*(Tl_cool/(Tl_cool+237.3))))))/(17.27-LN((RH*EXP(17.27*(Tl_cool/(Tl_cool+237.3))))))<((Tv_cool+Tr_cool)/2),1,1/(1+((2258*((0.622/((p_atm/(1*611*EXP(17.27*(((Tv_cool+Tr_cool)/2)/(((Tv_cool+Tr_cool)/2)+237.3))))))-1)*1000-(0.622/((p_atm/(RH*611*EXP(17.27*(Tl_cool/(Tl_cool+237.3))))))-1)*1000))/(1005*(((Tv_cool+Tr_cool)/2)-Tl_cool))))+-((-0.000625*$C30+0.00625)*(Tl_cool-(Tv_cool+Tr_cool)/2)-(-0.000625*$C30+0.00625)*10))))*$H$14 -> 222.812
B31: 0.6 | C31: 6 | D31: =(X31*($T$11^$Q31))*Watts*CF_Altit -> 2375.26 | E31: =ROUND(((D31/Watts)/(($S$9-$S$10)*1.163))*$E$14,IF($X$4=1,0,IF($X$4=2,2))) -> 204 | F31: =($Y$30*(E31/$E$14)^$Y$32)*$F$14 -> 9.125549142 | G31: =(Z31*($W$11^R31))*Watts*CF_Altit -> 353.136 | H31: =((G31/Watts)/(IF((237.3*LN((RH*EXP(17.27*(Tl_cool/(Tl_cool+237.3))))))/(17.27-LN((RH*EXP(17.27*(Tl_cool/(Tl_cool+237.3))))))<Tavg_cold,1,IF(1/(1+((2258*((0.622/(($Z$11/(1*611*EXP(17.27*(Tavg_cold/(Tavg_cold+237.3))))))-1)*1000-(0.622/(($Z$11/(RH*611*EXP(17.27*(Tl_cool/(Tl_cool+237.3))))))-1)*1000))/(1005*(Tavg_cold-Tl_cool))))*1.039+((-0.000729*$C31+0.001448)*(Tl_cool-Tavg_cold)+(0.016908*$C31-0.033574))*1.039>1,1,1/(1+((2258*((0.622/(($Z$11/(1*611*EXP(17.27*(Tavg_cold/(Tavg_cold+237.3))))))-1)*1000-(0.622/(($Z$11/(RH*611*EXP(17.27*(Tl_cool/(Tl_cool+237.3))))))-1)*1000))/(1005*(Tavg_cold-Tl_cool))))*1.039+((-0.000729*$C31+0.001448)*(Tl_cool-Tavg_cold)+(0.016908*$C31-0.033574))*1.039))))*Watts -> 353.136 | I31: =ROUND(((H31/Watts)/((Tr_cool-Tv_cool)*1.163))*$I$14,IF($X$4=1,0,IF($X$4=2,2))) -> 152 | J31: =($AA$30*(I31/$I$14)^$AA$32)*$J$14 -> 5.336274834 | K31: =L31-8 -> 30 | L31: 38 | M31: 4 | N31: =AD31*Cubics -> 150 | O31: =((($D31/Watts)/(((p_atm*0.028964)/(8.31447*(20+273.15)))*(($N31/3600)/Cubics)*(1005+1870*((0.622)/(((p_atm)/($E$12*Pvs_Heat_in))-1)))))+Tl_heat)*Celc1+Celc2 -> 66.48102368 | P31: =(Tl_cool-(($G31/Watts)/(1006*$N31*kgss)))*Celc1+Celc2 -> 20.00272782 | Q31: 1 | R31: 0.9 | W31: =(H31-G31)/H31 -> 0 | X31: =IF($X$16=1,AE31,IF($X$16=2,AM31,IF($X$16=3,BL31,IF($X$16=4,BE31,IF($X$16=5,CA31,IF($X$16=6,BT31,IF($X$16=7,AX31,))))))) -> 2375.26 | Y31: =IF($X$16=1,AF31,IF($X$16=2,AN31,IF($X$16=3,BM31,IF($X$16=4,BF31,IF($X$16=5,CB31,IF($X$16=6,BU31,IF($X$16=7,AY31,))))))) -> b | Z31: =IF($X$16=1,AG31,IF($X$16=2,AO31,IF($X$16=3,BN31,IF($X$16=4,BG31,IF($X$16=5,CC31,IF($X$16=6,BV31,IF($X$16=7,AZ31,))))))) -> 353.136 | AA31: =IF($X$16=1,AH31,IF($X$16=2,AP31,IF($X$16=3,BO31,IF($X$16=4,BH31,IF($X$16=5,CD31,IF($X$16=6,BW31,IF($X$16=7,BA31,))))))) -> b | AB31: =IF($X$16=1,AI31,IF($X$16=2,AQ31,IF($X$16=3,BP31,IF($X$16=4,BI31,IF($X$16=5,CE31,IF($X$16=6,BX31,IF($X$16=7,BB31,))))))) -> 38 | AC31: =IF($X$16=1,AJ31,IF($X$16=2,AR31,IF($X$16=3,BQ31,IF($X$16=4,BJ31,IF($X$16=5,CF31,IF($X$16=6,BY31,IF($X$16=7,BC31,))))))) -> 4 | AD31: =IF($X$16=1,AK31,IF($X$16=2,AS31,IF($X$16=3,BR31,IF($X$16=4,BK31,IF($X$16=5,CG31,IF($X$16=6,BZ31,IF($X$16=7,BD31,))))))) -> 150 | AE31: 2375.26 | AF31: b | AG31: 353.136 | AH31: b | AI31: 38 | AJ31: 4 | AK31: 150 | AU31: =(AG31*((((Tv_cool-Tr_cool)/LN((Tv_cool-Tl_cool)/(Tr_cool-Tl_cool)))/((16-18)/LN((16-27)/(18-27))))^S31))*$G$14 -> 0.1181043733 | AV31: =((AU31/$G$14)/(IF((237.3*LN((RH*EXP(17.27*(Tl_cool/(Tl_cool+237.3))))))/(17.27-LN((RH*EXP(17.27*(Tl_cool/(Tl_cool+237.3))))))<((Tv_cool+Tr_cool)/2),1,1/(1+((2258*((0.622/((p_atm/(1*611*EXP(17.27*(((Tv_cool+Tr_cool)/2)/(((Tv_cool+Tr_cool)/2)+237.3))))))-1)*1000-(0.622/((p_atm/(RH*611*EXP(17.27*(Tl_cool/(Tl_cool+237.3))))))-1)*1000))/(1005*(((Tv_cool+Tr_cool)/2)-Tl_cool))))+-((-0.000625*$C31+0.00625)*(Tl_cool-(Tv_cool+Tr_cool)/2)-(-0.000625*$C31+0.00625)*10))))*$H$14 -> 353.136
B32: 0.8 | C32: 8 | D32: =(X32*($T$11^$Q32))*Watts*CF_Altit -> 3027.931 | E32: =ROUND(((D32/Watts)/(($S$9-$S$10)*1.163))*$E$14,IF($X$4=1,0,IF($X$4=2,2))) -> 260 | F32: =($Y$30*(E32/$E$14)^$Y$32)*$F$14 -> 14.20214491 | G32: =(Z32*($W$11^R32))*Watts*CF_Altit -> 488.715 | H32: =((G32/Watts)/(IF((237.3*LN((RH*EXP(17.27*(Tl_cool/(Tl_cool+237.3))))))/(17.27-LN((RH*EXP(17.27*(Tl_cool/(Tl_cool+237.3))))))<Tavg_cold,1,IF(1/(1+((2258*((0.622/(($Z$11/(1*611*EXP(17.27*(Tavg_cold/(Tavg_cold+237.3))))))-1)*1000-(0.622/(($Z$11/(RH*611*EXP(17.27*(Tl_cool/(Tl_cool+237.3))))))-1)*1000))/(1005*(Tavg_cold-Tl_cool))))*1.039+((-0.000729*$C32+0.001448)*(Tl_cool-Tavg_cold)+(0.016908*$C32-0.033574))*1.039>1,1,1/(1+((2258*((0.622/(($Z$11/(1*611*EXP(17.27*(Tavg_cold/(Tavg_cold+237.3))))))-1)*1000-(0.622/(($Z$11/(RH*611*EXP(17.27*(Tl_cool/(Tl_cool+237.3))))))-1)*1000))/(1005*(Tavg_cold-Tl_cool))))*1.039+((-0.000729*$C32+0.001448)*(Tl_cool-Tavg_cold)+(0.016908*$C32-0.033574))*1.039))))*Watts -> 488.715 | I32: =ROUND(((H32/Watts)/((Tr_cool-Tv_cool)*1.163))*$I$14,IF($X$4=1,0,IF($X$4=2,2))) -> 210 | J32: =($AA$30*(I32/$I$14)^$AA$32)*$J$14 -> 9.620895069 | K32: =L32-8 -> 35 | L32: 43 | M32: 6.6 | N32: =AD32*Cubics -> 193 | O32: =((($D32/Watts)/(((p_atm*0.028964)/(8.31447*(20+273.15)))*(($N32/3600)/Cubics)*(1005+1870*((0.622)/(((p_atm)/($E$12*Pvs_Heat_in))-1)))))+Tl_heat)*Celc1+Celc2 -> 66.05157134 | P32: =(Tl_cool-(($G32/Watts)/(1006*$N32*kgss)))*Celc1+Celc2 -> 19.47378894 | Q32: 1 | R32: 0.9 | W32: =(H32-G32)/H32 -> 0 | X32: =IF($X$16=1,AE32,IF($X$16=2,AM32,IF($X$16=3,BL32,IF($X$16=4,BE32,IF($X$16=5,CA32,IF($X$16=6,BT32,IF($X$16=7,AX32,))))))) -> 3027.931 | Y32: =IF($X$16=1,AF32,IF($X$16=2,AN32,IF($X$16=3,BM32,IF($X$16=4,BF32,IF($X$16=5,CB32,IF($X$16=6,BU32,IF($X$16=7,AY32,))))))) -> 1.823515585 | Z32: =IF($X$16=1,AG32,IF($X$16=2,AO32,IF($X$16=3,BN32,IF($X$16=4,BG32,IF($X$16=5,CC32,IF($X$16=6,BV32,IF($X$16=7,AZ32,))))))) -> 488.715 | AA32: =IF($X$16=1,AH32,IF($X$16=2,AP32,IF($X$16=3,BO32,IF($X$16=4,BH32,IF($X$16=5,CD32,IF($X$16=6,BW32,IF($X$16=7,BA32,))))))) -> 1.823515585 | AB32: =IF($X$16=1,AI32,IF($X$16=2,AQ32,IF($X$16=3,BP32,IF($X$16=4,BI32,IF($X$16=5,CE32,IF($X$16=6,BX32,IF($X$16=7,BB32,))))))) -> 43 | AC32: =IF($X$16=1,AJ32,IF($X$16=2,AR32,IF($X$16=3,BQ32,IF($X$16=4,BJ32,IF($X$16=5,CF32,IF($X$16=6,BY32,IF($X$16=7,BC32,))))))) -> 6.6 | AD32: =IF($X$16=1,AK32,IF($X$16=2,AS32,IF($X$16=3,BR32,IF($X$16=4,BK32,IF($X$16=5,CG32,IF($X$16=6,BZ32,IF($X$16=7,BD32,))))))) -> 193 | AE32: 3027.931 | AF32: 1.823515585 | AG32: 488.715 | AH32: =AF32 -> 1.823515585 | AI32: 43 | AJ32: 6.6 | AK32: 193 | AU32: =(AG32*((((Tv_cool-Tr_cool)/LN((Tv_cool-Tl_cool)/(Tr_cool-Tl_cool)))/((16-18)/LN((16-27)/(18-27))))^S32))*$G$14 -> 0.1634480167 | AV32: =((AU32/$G$14)/(IF((237.3*LN((RH*EXP(17.27*(Tl_cool/(Tl_cool+237.3))))))/(17.27-LN((RH*EXP(17.27*(Tl_cool/(Tl_cool+237.3))))))<((Tv_cool+Tr_cool)/2),1,1/(1+((2258*((0.622/((p_atm/(1*611*EXP(17.27*(((Tv_cool+Tr_cool)/2)/(((Tv_cool+Tr_cool)/2)+237.3))))))-1)*1000-(0.622/((p_atm/(RH*611*EXP(17.27*(Tl_cool/(Tl_cool+237.3))))))-1)*1000))/(1005*(((Tv_cool+Tr_cool)/2)-Tl_cool))))+-((-0.000625*$C32+0.00625)*(Tl_cool-(Tv_cool+Tr_cool)/2)-(-0.000625*$C32+0.00625)*10))))*$H$14 -> 488.715
B33: 1 | C33: 10 | D33: =(X33*($T$11^$Q33))*Watts*CF_Altit -> 3656.429 | E33: =ROUND(((D33/Watts)/(($S$9-$S$10)*1.163))*$E$14,IF($X$4=1,0,IF($X$4=2,2))) -> 314 | F33: =($Y$30*(E33/$E$14)^$Y$32)*$F$14 -> 20.03560819 | G33: =(Z33*($W$11^R33))*Watts*CF_Altit -> 628.498 | H33: =((G33/Watts)/(IF((237.3*LN((RH*EXP(17.27*(Tl_cool/(Tl_cool+237.3))))))/(17.27-LN((RH*EXP(17.27*(Tl_cool/(Tl_cool+237.3))))))<Tavg_cold,1,IF(1/(1+((2258*((0.622/(($Z$11/(1*611*EXP(17.27*(Tavg_cold/(Tavg_cold+237.3))))))-1)*1000-(0.622/(($Z$11/(RH*611*EXP(17.27*(Tl_cool/(Tl_cool+237.3))))))-1)*1000))/(1005*(Tavg_cold-Tl_cool))))*1.039+((-0.000729*$C33+0.001448)*(Tl_cool-Tavg_cold)+(0.016908*$C33-0.033574))*1.039>1,1,1/(1+((2258*((0.622/(($Z$11/(1*611*EXP(17.27*(Tavg_cold/(Tavg_cold+237.3))))))-1)*1000-(0.622/(($Z$11/(RH*611*EXP(17.27*(Tl_cool/(Tl_cool+237.3))))))-1)*1000))/(1005*(Tavg_cold-Tl_cool))))*1.039+((-0.000729*$C33+0.001448)*(Tl_cool-Tavg_cold)+(0.016908*$C33-0.033574))*1.039))))*Watts -> 628.498 | I33: =ROUND(((H33/Watts)/((Tr_cool-Tv_cool)*1.163))*$I$14,IF($X$4=1,0,IF($X$4=2,2))) -> 270 | J33: =($AA$30*(I33/$I$14)^$AA$32)*$J$14 -> 15.21395471 | K33: =L33-8 -> 39 | L33: 47 | M33: 10.1 | N33: =AD33*Cubics -> 239 | O33: =((($D33/Watts)/(((p_atm*0.028964)/(8.31447*(20+273.15)))*(($N33/3600)/Cubics)*(1005+1870*((0.622)/(((p_atm)/($E$12*Pvs_Heat_in))-1)))))+Tl_heat)*Celc1+Celc2 -> 64.90710225 | P33: =(Tl_cool-(($G33/Watts)/(1006*$N33*kgss)))*Celc1+Celc2 -> 19.18400933 | Q33: 1 | R33: 0.9 | W33: =(H33-G33)/H33 -> 0 | X33: =IF($X$16=1,AE33,IF($X$16=2,AM33,IF($X$16=3,BL33,IF($X$16=4,BE33,IF($X$16=5,CA33,IF($X$16=6,BT33,IF($X$16=7,AX33,))))))) -> 3656.429 | Y33: =IF($X$16=1,AF33,IF($X$16=2,AN33,IF($X$16=3,BM33,IF($X$16=4,BF33,IF($X$16=5,CB33,IF($X$16=6,BU33,IF($X$16=7,AY33,))))))) -> 0 | Z33: =IF($X$16=1,AG33,IF($X$16=2,AO33,IF($X$16=3,BN33,IF($X$16=4,BG33,IF($X$16=5,CC33,IF($X$16=6,BV33,IF($X$16=7,AZ33,))))))) -> 628.498 | AA33: =IF($X$16=1,AH33,IF($X$16=2,AP33,IF($X$16=3,BO33,IF($X$16=4,BH33,IF($X$16=5,CD33,IF($X$16=6,BW33,IF($X$16=7,BA33,))))))) -> 0 | AB33: =IF($X$16=1,AI33,IF($X$16=2,AQ33,IF($X$16=3,BP33,IF($X$16=4,BI33,IF($X$16=5,CE33,IF($X$16=6,BX33,IF($X$16=7,BB33,))))))) -> 47 | AC33: =IF($X$16=1,AJ33,IF($X$16=2,AR33,IF($X$16=3,BQ33,IF($X$16=4,BJ33,IF($X$16=5,CF33,IF($X$16=6,BY33,IF($X$16=7,BC33,))))))) -> 10.1 | AD33: =IF($X$16=1,AK33,IF($X$16=2,AS33,IF($X$16=3,BR33,IF($X$16=4,BK33,IF($X$16=5,CG33,IF($X$16=6,BZ33,IF($X$16=7,BD33,))))))) -> 239 | AE33: 3656.429 | AG33: 628.498 | AI33: 47 | AJ33: 10.1 | AK33: 239 | AU33: =(AG33*((((Tv_cool-Tr_cool)/LN((Tv_cool-Tl_cool)/(Tr_cool-Tl_cool)))/((16-18)/LN((16-27)/(18-27))))^S33))*$G$14 -> 0.2101976644 | AV33: =((AU33/$G$14)/(IF((237.3*LN((RH*EXP(17.27*(Tl_cool/(Tl_cool+237.3))))))/(17.27-LN((RH*EXP(17.27*(Tl_cool/(Tl_cool+237.3))))))<((Tv_cool+Tr_cool)/2),1,1/(1+((2258*((0.622/((p_atm/(1*611*EXP(17.27*(((Tv_cool+Tr_cool)/2)/(((Tv_cool+Tr_cool)/2)+237.3))))))-1)*1000-(0.622/((p_atm/(RH*611*EXP(17.27*(Tl_cool/(Tl_cool+237.3))))))-1)*1000))/(1005*(((Tv_cool+Tr_cool)/2)-Tl_cool))))+-((-0.000625*$C33+0.00625)*(Tl_cool-(Tv_cool+Tr_cool)/2)-(-0.000625*$C33+0.00625)*10))))*$H$14 -> 628.498
B34: =IF($S$7=1,NL!A33,IF(cal!$S$7=2,EN!A33,IF(cal!$S$7=3,DE!A33,IF(cal!$S$7=4,FR!A33,IF(cal!$S$7=5,NR!A33,IF(cal!$S$7=6,SP!A33,IF(cal!$S$7=7,SW!A33,IF(cal!$S$7=8,TS!A33,IF(cal!$S$7=9,ExtraTaal1!A33,IF(cal!$S$7=10,ExtraTaal2!A33,IF(cal!$S$7=11,ExtraTaal3!A33,))))))))))) -> Freedom height 20 cm width 19 cm length 181 cm (Type 4) | C34: =IF($S$7=1,NL!B33,IF(cal!$S$7=2,EN!B33,IF(cal!$S$7=3,DE!B33,IF(cal!$S$7=4,FR!B33,IF(cal!$S$7=5,NR!B33,IF(cal!$S$7=6,SP!B33,IF(cal!$S$7=7,SW!B33,IF(cal!$S$7=8,TS!B33,IF(cal!$S$7=9,ExtraTaal1!B33,IF(cal!$S$7=10,ExtraTaal2!B33,IF(cal!$S$7=11,ExtraTaal3!B33,))))))))))) -> 0 | D34: =IF($S$7=1,NL!C33,IF(cal!$S$7=2,EN!C33,IF(cal!$S$7=3,DE!C33,IF(cal!$S$7=4,FR!C33,IF(cal!$S$7=5,NR!C33,IF(cal!$S$7=6,SP!C33,IF(cal!$S$7=7,SW!C33,IF(cal!$S$7=8,TS!C33,IF(cal!$S$7=9,ExtraTaal1!C33,IF(cal!$S$7=10,ExtraTaal2!C33,IF(cal!$S$7=11,ExtraTaal3!C33,))))))))))) -> 0 | E34: =IF($S$7=1,NL!D33,IF(cal!$S$7=2,EN!D33,IF(cal!$S$7=3,DE!D33,IF(cal!$S$7=4,FR!D33,IF(cal!$S$7=5,NR!D33,IF(cal!$S$7=6,SP!D33,IF(cal!$S$7=7,SW!D33,IF(cal!$S$7=8,TS!D33,IF(cal!$S$7=9,ExtraTaal1!D33,IF(cal!$S$7=10,ExtraTaal2!D33,IF(cal!$S$7=11,ExtraTaal3!D33,))))))))))) -> 0 | F34: =IF($S$7=1,NL!E33,IF(cal!$S$7=2,EN!E33,IF(cal!$S$7=3,DE!E33,IF(cal!$S$7=4,FR!E33,IF(cal!$S$7=5,NR!E33,IF(cal!$S$7=6,SP!E33,IF(cal!$S$7=7,SW!E33,IF(cal!$S$7=8,TS!E33,IF(cal!$S$7=9,ExtraTaal1!E33,IF(cal!$S$7=10,ExtraTaal2!E33,IF(cal!$S$7=11,ExtraTaal3!E33,))))))))))) -> 0 | G34: =IF($S$7=1,NL!F33,IF(cal!$S$7=2,EN!F33,IF(cal!$S$7=3,DE!F33,IF(cal!$S$7=4,FR!F33,IF(cal!$S$7=5,NR!F33,IF(cal!$S$7=6,SP!F33,IF(cal!$S$7=7,SW!F33,IF(cal!$S$7=8,TS!F33,IF(cal!$S$7=9,ExtraTaal1!F33,IF(cal!$S$7=10,ExtraTaal2!F33,IF(cal!$S$7=11,ExtraTaal3!F33,))))))))))) -> 0 | H34: =IF($S$7=1,NL!G33,IF(cal!$S$7=2,EN!G33,IF(cal!$S$7=3,DE!G33,IF(cal!$S$7=4,FR!G33,IF(cal!$S$7=5,NR!G33,IF(cal!$S$7=6,SP!G33,IF(cal!$S$7=7,SW!G33,IF(cal!$S$7=8,TS!G33,IF(cal!$S$7=9,ExtraTaal1!G33,IF(cal!$S$7=10,ExtraTaal2!G33,IF(cal!$S$7=11,ExtraTaal3!G33,))))))))))) -> 0 | I34: =IF($S$7=1,NL!H33,IF(cal!$S$7=2,EN!H33,IF(cal!$S$7=3,DE!H33,IF(cal!$S$7=4,FR!H33,IF(cal!$S$7=5,NR!H33,IF(cal!$S$7=6,SP!H33,IF(cal!$S$7=7,SW!H33,IF(cal!$S$7=8,TS!H33,IF(cal!$S$7=9,ExtraTaal1!H33,IF(cal!$S$7=10,ExtraTaal2!H33,IF(cal!$S$7=11,ExtraTaal3!H33,))))))))))) -> 0 | J34: =IF($S$7=1,NL!I33,IF(cal!$S$7=2,EN!I33,IF(cal!$S$7=3,DE!I33,IF(cal!$S$7=4,FR!I33,IF(cal!$S$7=5,NR!I33,IF(cal!$S$7=6,SP!I33,IF(cal!$S$7=7,SW!I33,IF(cal!$S$7=8,TS!I33,IF(cal!$S$7=9,ExtraTaal1!I33,IF(cal!$S$7=10,ExtraTaal2!I33,IF(cal!$S$7=11,ExtraTaal3!I33,))))))))))) -> 0 | K34: =IF($S$7=1,NL!J33,IF(cal!$S$7=2,EN!J33,IF(cal!$S$7=3,DE!J33,IF(cal!$S$7=4,FR!J33,IF(cal!$S$7=5,NR!J33,IF(cal!$S$7=6,SP!J33,IF(cal!$S$7=7,SW!J33,IF(cal!$S$7=8,TS!J33,IF(cal!$S$7=9,ExtraTaal1!J33,IF(cal!$S$7=10,ExtraTaal2!J33,IF(cal!$S$7=11,ExtraTaal3!J33,))))))))))) -> 0 | L34: =IF($S$7=1,NL!K33,IF(cal!$S$7=2,EN!K33,IF(cal!$S$7=3,DE!K33,IF(cal!$S$7=4,FR!K33,IF(cal!$S$7=5,NR!K33,IF(cal!$S$7=6,SP!K33,IF(cal!$S$7=7,SW!K33,IF(cal!$S$7=8,TS!K33,IF(cal!$S$7=9,ExtraTaal1!K33,IF(cal!$S$7=10,ExtraTaal2!K33,IF(cal!$S$7=11,ExtraTaal3!K33,))))))))))) -> 0 | M34: =IF($S$7=1,NL!L33,IF(cal!$S$7=2,EN!L33,IF(cal!$S$7=3,DE!L33,IF(cal!$S$7=4,FR!L33,IF(cal!$S$7=5,NR!L33,IF(cal!$S$7=6,SP!L33,IF(cal!$S$7=7,SW!L33,IF(cal!$S$7=8,TS!L33,IF(cal!$S$7=9,ExtraTaal1!L33,IF(cal!$S$7=10,ExtraTaal2!L33,IF(cal!$S$7=11,ExtraTaal3!L33,))))))))))) -> 0 | N34: =IF($S$7=1,NL!M33,IF(cal!$S$7=2,EN!M33,IF(cal!$S$7=3,DE!M33,IF(cal!$S$7=4,FR!M33,IF(cal!$S$7=5,NR!M33,IF(cal!$S$7=6,SP!M33,IF(cal!$S$7=7,SW!M33,IF(cal!$S$7=8,TS!M33,IF(cal!$S$7=9,ExtraTaal1!M33,IF(cal!$S$7=10,ExtraTaal2!M33,IF(cal!$S$7=11,ExtraTaal3!M33,))))))))))) -> 0 | O34: =IF($S$7=1,NL!N33,IF(cal!$S$7=2,EN!N33,IF(cal!$S$7=3,DE!N33,IF(cal!$S$7=4,FR!N33,IF(cal!$S$7=5,NR!N33,IF(cal!$S$7=6,SP!N33,IF(cal!$S$7=7,SW!N33,IF(cal!$S$7=8,TS!N33,IF(cal!$S$7=9,ExtraTaal1!N33,IF(cal!$S$7=10,ExtraTaal2!N33,IF(cal!$S$7=11,ExtraTaal3!N33,))))))))))) -> 0 | P34: =IF($S$7=1,NL!O33,IF(cal!$S$7=2,EN!O33,IF(cal!$S$7=3,DE!O33,IF(cal!$S$7=4,FR!O33,IF(cal!$S$7=5,NR!O33,IF(cal!$S$7=6,SP!O33,IF(cal!$S$7=7,SW!O33,IF(cal!$S$7=8,TS!O33,IF(cal!$S$7=9,ExtraTaal1!O33,IF(cal!$S$7=10,ExtraTaal2!O33,IF(cal!$S$7=11,ExtraTaal3!O33,))))))))))) -> 0 | Q34: n-value | R34: 0 | X34: =IF($X$16=1,AE34,IF($X$16=2,AM34,IF($X$16=3,BL34,IF($X$16=4,BE34,IF($X$16=5,CA34,IF($X$16=6,BT34,IF($X$16=7,AX34,))))))) -> H | Y34: =IF($X$16=1,AF34,IF($X$16=2,AN34,IF($X$16=3,BM34,IF($X$16=4,BF34,IF($X$16=5,CB34,IF($X$16=6,BU34,IF($X$16=7,AY34,))))))) -> 20 | Z34: =IF($X$16=1,AG34,IF($X$16=2,AO34,IF($X$16=3,BN34,IF($X$16=4,BG34,IF($X$16=5,CC34,IF($X$16=6,BV34,IF($X$16=7,AZ34,))))))) -> B | AA34: =IF($X$16=1,AH34,IF($X$16=2,AP34,IF($X$16=3,BO34,IF($X$16=4,BH34,IF($X$16=5,CD34,IF($X$16=6,BW34,IF($X$16=7,BA34,))))))) -> 19 | AB34: =IF($X$16=1,AI34,IF($X$16=2,AQ34,IF($X$16=3,BP34,IF($X$16=4,BI34,IF($X$16=5,CE34,IF($X$16=6,BX34,IF($X$16=7,BB34,))))))) -> L | AC34: =IF($X$16=1,AJ34,IF($X$16=2,AR34,IF($X$16=3,BQ34,IF($X$16=4,BJ34,IF($X$16=5,CF34,IF($X$16=6,BY34,IF($X$16=7,BC34,))))))) -> 145 | AD34: =IF($X$16=1,AK34,IF($X$16=2,AS34,IF($X$16=3,BR34,IF($X$16=4,BK34,IF($X$16=5,CG34,IF($X$16=6,BZ34,IF($X$16=7,BD34,))))))) -> 0 | AE34: H | AF34: =AF28 -> 20 | AG34: B | AH34: =AH28 -> 19 | AI34: L | AJ34: 145
B35: 0.2 | C35: 2 | D35: =(X35*($T$11^$Q35))*Watts*CF_Altit -> 1253.132 | E35: =ROUND(((D35/Watts)/(($S$9-$S$10)*1.163))*$E$14,IF($X$4=1,0,IF($X$4=2,2))) -> 108 | F35: =($Y$36*(E35/$E$14)^$Y$38)*$F$14 -> 3.777027517 | G35: =(Z35*($W$11^R35))*Watts*CF_Altit -> 135.696 | H35: =((G35/Watts)/(IF((237.3*LN((RH*EXP(17.27*(Tl_cool/(Tl_cool+237.3))))))/(17.27-LN((RH*EXP(17.27*(Tl_cool/(Tl_cool+237.3))))))<Tavg_cold,1,IF(1/(1+((2258*((0.622/(($Z$11/(1*611*EXP(17.27*(Tavg_cold/(Tavg_cold+237.3))))))-1)*1000-(0.622/(($Z$11/(RH*611*EXP(17.27*(Tl_cool/(Tl_cool+237.3))))))-1)*1000))/(1005*(Tavg_cold-Tl_cool))))*1.039+((-0.000729*$C35+0.001448)*(Tl_cool-Tavg_cold)+(0.016908*$C35-0.033574))*1.039>1,1,1/(1+((2258*((0.622/(($Z$11/(1*611*EXP(17.27*(Tavg_cold/(Tavg_cold+237.3))))))-1)*1000-(0.622/(($Z$11/(RH*611*EXP(17.27*(Tl_cool/(Tl_cool+237.3))))))-1)*1000))/(1005*(Tavg_cold-Tl_cool))))*1.039+((-0.000729*$C35+0.001448)*(Tl_cool-Tavg_cold)+(0.016908*$C35-0.033574))*1.039))))*Watts -> 135.696 | I35: =ROUND(((H35/Watts)/((Tr_cool-Tv_cool)*1.163))*$I$14,IF($X$4=1,0,IF($X$4=2,2))) -> 58 | J35: =($AA$36*(I35/$I$14)^$AA$38)*$J$14 -> 1.215650321 | K35: =L35-8 -> 18 | L35: =AB35 -> 26 | M35: 1.2 | N35: =AD35*Cubics -> 84 | O35: =((($D35/Watts)/(((p_atm*0.028964)/(8.31447*(20+273.15)))*(($N35/3600)/Cubics)*(1005+1870*((0.622)/(((p_atm)/($E$12*Pvs_Heat_in))-1)))))+Tl_heat)*Celc1+Celc2 -> 63.78983637 | P35: =(Tl_cool-(($G35/Watts)/(1006*$N35*kgss)))*Celc1+Celc2 -> 22.19862316 | Q35: 1 | R35: 0.9 | W35: =(H35-G35)/H35 -> 0 | X35: =IF($X$16=1,AE35,IF($X$16=2,AM35,IF($X$16=3,BL35,IF($X$16=4,BE35,IF($X$16=5,CA35,IF($X$16=6,BT35,IF($X$16=7,AX35,))))))) -> 1253.132 | Y35: =IF($X$16=1,AF35,IF($X$16=2,AN35,IF($X$16=3,BM35,IF($X$16=4,BF35,IF($X$16=5,CB35,IF($X$16=6,BU35,IF($X$16=7,AY35,))))))) -> a | Z35: =IF($X$16=1,AG35,IF($X$16=2,AO35,IF($X$16=3,BN35,IF($X$16=4,BG35,IF($X$16=5,CC35,IF($X$16=6,BV35,IF($X$16=7,AZ35,))))))) -> 135.696 | AA35: =IF($X$16=1,AH35,IF($X$16=2,AP35,IF($X$16=3,BO35,IF($X$16=4,BH35,IF($X$16=5,CD35,IF($X$16=6,BW35,IF($X$16=7,BA35,))))))) -> a | AB35: =IF($X$16=1,AI35,IF($X$16=2,AQ35,IF($X$16=3,BP35,IF($X$16=4,BI35,IF($X$16=5,CE35,IF($X$16=6,BX35,IF($X$16=7,BB35,))))))) -> 26 | AC35: =IF($X$16=1,AJ35,IF($X$16=2,AR35,IF($X$16=3,BQ35,IF($X$16=4,BJ35,IF($X$16=5,CF35,IF($X$16=6,BY35,IF($X$16=7,BC35,))))))) -> 1.2 | AD35: =IF($X$16=1,AK35,IF($X$16=2,AS35,IF($X$16=3,BR35,IF($X$16=4,BK35,IF($X$16=5,CG35,IF($X$16=6,BZ35,IF($X$16=7,BD35,))))))) -> 84 | AE35: 1253.132 | AF35: a | AG35: 135.696 | AH35: a | AI35: 26 | AJ35: 1.2 | AK35: 84 | AU35: =(AG35*((((Tv_cool-Tr_cool)/LN((Tv_cool-Tl_cool)/(Tr_cool-Tl_cool)))/((16-18)/LN((16-27)/(18-27))))^S35))*$G$14 -> 0.04538277333 | AV35: =((AU35/$G$14)/(IF((237.3*LN((RH*EXP(17.27*(Tl_cool/(Tl_cool+237.3))))))/(17.27-LN((RH*EXP(17.27*(Tl_cool/(Tl_cool+237.3))))))<((Tv_cool+Tr_cool)/2),1,1/(1+((2258*((0.622/((p_atm/(1*611*EXP(17.27*(((Tv_cool+Tr_cool)/2)/(((Tv_cool+Tr_cool)/2)+237.3))))))-1)*1000-(0.622/((p_atm/(RH*611*EXP(17.27*(Tl_cool/(Tl_cool+237.3))))))-1)*1000))/(1005*(((Tv_cool+Tr_cool)/2)-Tl_cool))))+-((-0.000625*$C35+0.00625)*(Tl_cool-(Tv_cool+Tr_cool)/2)-(-0.000625*$C35+0.00625)*10))))*$H$14 -> 135.696
B36: 0.4 | C36: 4 | D36: =(X36*($T$11^$Q36))*Watts*CF_Altit -> 2249.264 | E36: =ROUND(((D36/Watts)/(($S$9-$S$10)*1.163))*$E$14,IF($X$4=1,0,IF($X$4=2,2))) -> 193 | F36: =($Y$36*(E36/$E$14)^$Y$38)*$F$14 -> 10.88728554 | G36: =(Z36*($W$11^R36))*Watts*CF_Altit -> 298.12 | H36: =((G36/Watts)/(IF((237.3*LN((RH*EXP(17.27*(Tl_cool/(Tl_cool+237.3))))))/(17.27-LN((RH*EXP(17.27*(Tl_cool/(Tl_cool+237.3))))))<Tavg_cold,1,IF(1/(1+((2258*((0.622/(($Z$11/(1*611*EXP(17.27*(Tavg_cold/(Tavg_cold+237.3))))))-1)*1000-(0.622/(($Z$11/(RH*611*EXP(17.27*(Tl_cool/(Tl_cool+237.3))))))-1)*1000))/(1005*(Tavg_cold-Tl_cool))))*1.039+((-0.000729*$C36+0.001448)*(Tl_cool-Tavg_cold)+(0.016908*$C36-0.033574))*1.039>1,1,1/(1+((2258*((0.622/(($Z$11/(1*611*EXP(17.27*(Tavg_cold/(Tavg_cold+237.3))))))-1)*1000-(0.622/(($Z$11/(RH*611*EXP(17.27*(Tl_cool/(Tl_cool+237.3))))))-1)*1000))/(1005*(Tavg_cold-Tl_cool))))*1.039+((-0.000729*$C36+0.001448)*(Tl_cool-Tavg_cold)+(0.016908*$C36-0.033574))*1.039))))*Watts -> 298.12 | I36: =ROUND(((H36/Watts)/((Tr_cool-Tv_cool)*1.163))*$I$14,IF($X$4=1,0,IF($X$4=2,2))) -> 128 | J36: =($AA$36*(I36/$I$14)^$AA$38)*$J$14 -> 5.148734058 | K36: =L36-8 -> 22 | L36: 30 | M36: 2.5 | N36: =AD36*Cubics -> 150 | O36: =((($D36/Watts)/(((p_atm*0.028964)/(8.31447*(20+273.15)))*(($N36/3600)/Cubics)*(1005+1870*((0.622)/(((p_atm)/($E$12*Pvs_Heat_in))-1)))))+Tl_heat)*Celc1+Celc2 -> 64.01543126 | P36: =(Tl_cool-(($G36/Watts)/(1006*$N36*kgss)))*Celc1+Celc2 -> 21.09285153 | Q36: 1 | R36: 0.9 | W36: =(H36-G36)/H36 -> 0 | X36: =IF($X$16=1,AE36,IF($X$16=2,AM36,IF($X$16=3,BL36,IF($X$16=4,BE36,IF($X$16=5,CA36,IF($X$16=6,BT36,IF($X$16=7,AX36,))))))) -> 2249.264 | Y36: =IF($X$16=1,AF36,IF($X$16=2,AN36,IF($X$16=3,BM36,IF($X$16=4,BF36,IF($X$16=5,CB36,IF($X$16=6,BU36,IF($X$16=7,AY36,))))))) -> 0.0007398952517 | Z36: =IF($X$16=1,AG36,IF($X$16=2,AO36,IF($X$16=3,BN36,IF($X$16=4,BG36,IF($X$16=5,CC36,IF($X$16=6,BV36,IF($X$16=7,AZ36,))))))) -> 298.12 | AA36: =IF($X$16=1,AH36,IF($X$16=2,AP36,IF($X$16=3,BO36,IF($X$16=4,BH36,IF($X$16=5,CD36,IF($X$16=6,BW36,IF($X$16=7,BA36,))))))) -> 0.0007398952517 | AB36: =IF($X$16=1,AI36,IF($X$16=2,AQ36,IF($X$16=3,BP36,IF($X$16=4,BI36,IF($X$16=5,CE36,IF($X$16=6,BX36,IF($X$16=7,BB36,))))))) -> 30 | AC36: =IF($X$16=1,AJ36,IF($X$16=2,AR36,IF($X$16=3,BQ36,IF($X$16=4,BJ36,IF($X$16=5,CF36,IF($X$16=6,BY36,IF($X$16=7,BC36,))))))) -> 2.5 | AD36: =IF($X$16=1,AK36,IF($X$16=2,AS36,IF($X$16=3,BR36,IF($X$16=4,BK36,IF($X$16=5,CG36,IF($X$16=6,BZ36,IF($X$16=7,BD36,))))))) -> 150 | AE36: 2249.264 | AF36: 0.0007398952517 | AG36: 298.12 | AH36: =AF36 -> 0.0007398952517 | AI36: 30 | AJ36: 2.5 | AK36: 150 | AU36: =(AG36*((((Tv_cool-Tr_cool)/LN((Tv_cool-Tl_cool)/(Tr_cool-Tl_cool)))/((16-18)/LN((16-27)/(18-27))))^S36))*$G$14 -> 0.09970457778 | AV36: =((AU36/$G$14)/(IF((237.3*LN((RH*EXP(17.27*(Tl_cool/(Tl_cool+237.3))))))/(17.27-LN((RH*EXP(17.27*(Tl_cool/(Tl_cool+237.3))))))<((Tv_cool+Tr_cool)/2),1,1/(1+((2258*((0.622/((p_atm/(1*611*EXP(17.27*(((Tv_cool+Tr_cool)/2)/(((Tv_cool+Tr_cool)/2)+237.3))))))-1)*1000-(0.622/((p_atm/(RH*611*EXP(17.27*(Tl_cool/(Tl_cool+237.3))))))-1)*1000))/(1005*(((Tv_cool+Tr_cool)/2)-Tl_cool))))+-((-0.000625*$C36+0.00625)*(Tl_cool-(Tv_cool+Tr_cool)/2)-(-0.000625*$C36+0.00625)*10))))*$H$14 -> 298.12
B37: 0.6 | C37: 6 | D37: =(X37*($T$11^$Q37))*Watts*CF_Altit -> 3168.296 | E37: =ROUND(((D37/Watts)/(($S$9-$S$10)*1.163))*$E$14,IF($X$4=1,0,IF($X$4=2,2))) -> 272 | F37: =($Y$36*(E37/$E$14)^$Y$38)*$F$14 -> 20.35375671 | G37: =(Z37*($W$11^R37))*Watts*CF_Altit -> 470.824 | H37: =((G37/Watts)/(IF((237.3*LN((RH*EXP(17.27*(Tl_cool/(Tl_cool+237.3))))))/(17.27-LN((RH*EXP(17.27*(Tl_cool/(Tl_cool+237.3))))))<Tavg_cold,1,IF(1/(1+((2258*((0.622/(($Z$11/(1*611*EXP(17.27*(Tavg_cold/(Tavg_cold+237.3))))))-1)*1000-(0.622/(($Z$11/(RH*611*EXP(17.27*(Tl_cool/(Tl_cool+237.3))))))-1)*1000))/(1005*(Tavg_cold-Tl_cool))))*1.039+((-0.000729*$C37+0.001448)*(Tl_cool-Tavg_cold)+(0.016908*$C37-0.033574))*1.039>1,1,1/(1+((2258*((0.622/(($Z$11/(1*611*EXP(17.27*(Tavg_cold/(Tavg_cold+237.3))))))-1)*1000-(0.622/(($Z$11/(RH*611*EXP(17.27*(Tl_cool/(Tl_cool+237.3))))))-1)*1000))/(1005*(Tavg_cold-Tl_cool))))*1.039+((-0.000729*$C37+0.001448)*(Tl_cool-Tavg_cold)+(0.016908*$C37-0.033574))*1.039))))*Watts -> 470.824 | I37: =ROUND(((H37/Watts)/((Tr_cool-Tv_cool)*1.163))*$I$14,IF($X$4=1,0,IF($X$4=2,2))) -> 202 | J37: =($AA$36*(I37/$I$14)^$AA$38)*$J$14 -> 11.83080758 | K37: =L37-8 -> 32 | L37: 40 | M37: 5.4 | N37: =AD37*Cubics -> 196 | O37: =((($D37/Watts)/(((p_atm*0.028964)/(8.31447*(20+273.15)))*(($N37/3600)/Cubics)*(1005+1870*((0.622)/(((p_atm)/($E$12*Pvs_Heat_in))-1)))))+Tl_heat)*Celc1+Celc2 -> 67.44882539 | P37: =(Tl_cool-(($G37/Watts)/(1006*$N37*kgss)))*Celc1+Celc2 -> 19.86029029 | Q37: 1 | R37: 0.9 | W37: =(H37-G37)/H37 -> 0 | X37: =IF($X$16=1,AE37,IF($X$16=2,AM37,IF($X$16=3,BL37,IF($X$16=4,BE37,IF($X$16=5,CA37,IF($X$16=6,BT37,IF($X$16=7,AX37,))))))) -> 3168.296 | Y37: =IF($X$16=1,AF37,IF($X$16=2,AN37,IF($X$16=3,BM37,IF($X$16=4,BF37,IF($X$16=5,CB37,IF($X$16=6,BU37,IF($X$16=7,AY37,))))))) -> b | Z37: =IF($X$16=1,AG37,IF($X$16=2,AO37,IF($X$16=3,BN37,IF($X$16=4,BG37,IF($X$16=5,CC37,IF($X$16=6,BV37,IF($X$16=7,AZ37,))))))) -> 470.824 | AA37: =IF($X$16=1,AH37,IF($X$16=2,AP37,IF($X$16=3,BO37,IF($X$16=4,BH37,IF($X$16=5,CD37,IF($X$16=6,BW37,IF($X$16=7,BA37,))))))) -> b | AB37: =IF($X$16=1,AI37,IF($X$16=2,AQ37,IF($X$16=3,BP37,IF($X$16=4,BI37,IF($X$16=5,CE37,IF($X$16=6,BX37,IF($X$16=7,BB37,))))))) -> 40 | AC37: =IF($X$16=1,AJ37,IF($X$16=2,AR37,IF($X$16=3,BQ37,IF($X$16=4,BJ37,IF($X$16=5,CF37,IF($X$16=6,BY37,IF($X$16=7,BC37,))))))) -> 5.4 | AD37: =IF($X$16=1,AK37,IF($X$16=2,AS37,IF($X$16=3,BR37,IF($X$16=4,BK37,IF($X$16=5,CG37,IF($X$16=6,BZ37,IF($X$16=7,BD37,))))))) -> 196 | AE37: 3168.296 | AF37: b | AG37: 470.824 | AH37: b | AI37: 40 | AJ37: 5.4 | AK37: 196 | AU37: =(AG37*((((Tv_cool-Tr_cool)/LN((Tv_cool-Tl_cool)/(Tr_cool-Tl_cool)))/((16-18)/LN((16-27)/(18-27))))^S37))*$G$14 -> 0.1574644711 | AV37: =((AU37/$G$14)/(IF((237.3*LN((RH*EXP(17.27*(Tl_cool/(Tl_cool+237.3))))))/(17.27-LN((RH*EXP(17.27*(Tl_cool/(Tl_cool+237.3))))))<((Tv_cool+Tr_cool)/2),1,1/(1+((2258*((0.622/((p_atm/(1*611*EXP(17.27*(((Tv_cool+Tr_cool)/2)/(((Tv_cool+Tr_cool)/2)+237.3))))))-1)*1000-(0.622/((p_atm/(RH*611*EXP(17.27*(Tl_cool/(Tl_cool+237.3))))))-1)*1000))/(1005*(((Tv_cool+Tr_cool)/2)-Tl_cool))))+-((-0.000625*$C37+0.00625)*(Tl_cool-(Tv_cool+Tr_cool)/2)-(-0.000625*$C37+0.00625)*10))))*$H$14 -> 470.824
B38: 0.8 | C38: 8 | D38: =(X38*($T$11^$Q38))*Watts*CF_Altit -> 4039.012 | E38: =ROUND(((D38/Watts)/(($S$9-$S$10)*1.163))*$E$14,IF($X$4=1,0,IF($X$4=2,2))) -> 347 | F38: =($Y$36*(E38/$E$14)^$Y$38)*$F$14 -> 31.73223252 | G38: =(Z38*($W$11^R38))*Watts*CF_Altit -> 651.752 | H38: =((G38/Watts)/(IF((237.3*LN((RH*EXP(17.27*(Tl_cool/(Tl_cool+237.3))))))/(17.27-LN((RH*EXP(17.27*(Tl_cool/(Tl_cool+237.3))))))<Tavg_cold,1,IF(1/(1+((2258*((0.622/(($Z$11/(1*611*EXP(17.27*(Tavg_cold/(Tavg_cold+237.3))))))-1)*1000-(0.622/(($Z$11/(RH*611*EXP(17.27*(Tl_cool/(Tl_cool+237.3))))))-1)*1000))/(1005*(Tavg_cold-Tl_cool))))*1.039+((-0.000729*$C38+0.001448)*(Tl_cool-Tavg_cold)+(0.016908*$C38-0.033574))*1.039>1,1,1/(1+((2258*((0.622/(($Z$11/(1*611*EXP(17.27*(Tavg_cold/(Tavg_cold+237.3))))))-1)*1000-(0.622/(($Z$11/(RH*611*EXP(17.27*(Tl_cool/(Tl_cool+237.3))))))-1)*1000))/(1005*(Tavg_cold-Tl_cool))))*1.039+((-0.000729*$C38+0.001448)*(Tl_cool-Tavg_cold)+(0.016908*$C38-0.033574))*1.039))))*Watts -> 651.752 | I38: =ROUND(((H38/Watts)/((Tr_cool-Tv_cool)*1.163))*$I$14,IF($X$4=1,0,IF($X$4=2,2))) -> 280 | J38: =($AA$36*(I38/$I$14)^$AA$38)*$J$14 -> 21.45858342 | K38: =L38-8 -> 37 | L38: 45 | M38: 9.1 | N38: =AD38*Cubics -> 250 | O38: =((($D38/Watts)/(((p_atm*0.028964)/(8.31447*(20+273.15)))*(($N38/3600)/Cubics)*(1005+1870*((0.622)/(((p_atm)/($E$12*Pvs_Heat_in))-1)))))+Tl_heat)*Celc1+Celc2 -> 67.42320734 | P38: =(Tl_cool-(($G38/Watts)/(1006*$N38*kgss)))*Celc1+Celc2 -> 19.25145076 | Q38: 1 | R38: 0.9 | W38: =(H38-G38)/H38 -> 0 | X38: =IF($X$16=1,AE38,IF($X$16=2,AM38,IF($X$16=3,BL38,IF($X$16=4,BE38,IF($X$16=5,CA38,IF($X$16=6,BT38,IF($X$16=7,AX38,))))))) -> 4039.012 | Y38: =IF($X$16=1,AF38,IF($X$16=2,AN38,IF($X$16=3,BM38,IF($X$16=4,BF38,IF($X$16=5,CB38,IF($X$16=6,BU38,IF($X$16=7,AY38,))))))) -> 1.823515585 | Z38: =IF($X$16=1,AG38,IF($X$16=2,AO38,IF($X$16=3,BN38,IF($X$16=4,BG38,IF($X$16=5,CC38,IF($X$16=6,BV38,IF($X$16=7,AZ38,))))))) -> 651.752 | AA38: =IF($X$16=1,AH38,IF($X$16=2,AP38,IF($X$16=3,BO38,IF($X$16=4,BH38,IF($X$16=5,CD38,IF($X$16=6,BW38,IF($X$16=7,BA38,))))))) -> 1.823515585 | AB38: =IF($X$16=1,AI38,IF($X$16=2,AQ38,IF($X$16=3,BP38,IF($X$16=4,BI38,IF($X$16=5,CE38,IF($X$16=6,BX38,IF($X$16=7,BB38,))))))) -> 45 | AC38: =IF($X$16=1,AJ38,IF($X$16=2,AR38,IF($X$16=3,BQ38,IF($X$16=4,BJ38,IF($X$16=5,CF38,IF($X$16=6,BY38,IF($X$16=7,BC38,))))))) -> 9.1 | AD38: =IF($X$16=1,AK38,IF($X$16=2,AS38,IF($X$16=3,BR38,IF($X$16=4,BK38,IF($X$16=5,CG38,IF($X$16=6,BZ38,IF($X$16=7,BD38,))))))) -> 250 | AE38: 4039.012 | AF38: 1.823515585 | AG38: 651.752 | AH38: =AF38 -> 1.823515585 | AI38: 45 | AJ38: 9.1 | AK38: 250 | AU38: =(AG38*((((Tv_cool-Tr_cool)/LN((Tv_cool-Tl_cool)/(Tr_cool-Tl_cool)))/((16-18)/LN((16-27)/(18-27))))^S38))*$G$14 -> 0.2179748356 | AV38: =((AU38/$G$14)/(IF((237.3*LN((RH*EXP(17.27*(Tl_cool/(Tl_cool+237.3))))))/(17.27-LN((RH*EXP(17.27*(Tl_cool/(Tl_cool+237.3))))))<((Tv_cool+Tr_cool)/2),1,1/(1+((2258*((0.622/((p_atm/(1*611*EXP(17.27*(((Tv_cool+Tr_cool)/2)/(((Tv_cool+Tr_cool)/2)+237.3))))))-1)*1000-(0.622/((p_atm/(RH*611*EXP(17.27*(Tl_cool/(Tl_cool+237.3))))))-1)*1000))/(1005*(((Tv_cool+Tr_cool)/2)-Tl_cool))))+-((-0.000625*$C38+0.00625)*(Tl_cool-(Tv_cool+Tr_cool)/2)-(-0.000625*$C38+0.00625)*10))))*$H$14 -> 651.752
B39: 1 | C39: 10 | D39: =(X39*($T$11^$Q39))*Watts*CF_Altit -> 4876.832 | E39: =ROUND(((D39/Watts)/(($S$9-$S$10)*1.163))*$E$14,IF($X$4=1,0,IF($X$4=2,2))) -> 419 | F39: =($Y$36*(E39/$E$14)^$Y$38)*$F$14 -> 44.75261093 | G39: =(Z39*($W$11^R39))*Watts*CF_Altit -> 838.848 | H39: =((G39/Watts)/(IF((237.3*LN((RH*EXP(17.27*(Tl_cool/(Tl_cool+237.3))))))/(17.27-LN((RH*EXP(17.27*(Tl_cool/(Tl_cool+237.3))))))<Tavg_cold,1,IF(1/(1+((2258*((0.622/(($Z$11/(1*611*EXP(17.27*(Tavg_cold/(Tavg_cold+237.3))))))-1)*1000-(0.622/(($Z$11/(RH*611*EXP(17.27*(Tl_cool/(Tl_cool+237.3))))))-1)*1000))/(1005*(Tavg_cold-Tl_cool))))*1.039+((-0.000729*$C39+0.001448)*(Tl_cool-Tavg_cold)+(0.016908*$C39-0.033574))*1.039>1,1,1/(1+((2258*((0.622/(($Z$11/(1*611*EXP(17.27*(Tavg_cold/(Tavg_cold+237.3))))))-1)*1000-(0.622/(($Z$11/(RH*611*EXP(17.27*(Tl_cool/(Tl_cool+237.3))))))-1)*1000))/(1005*(Tavg_cold-Tl_cool))))*1.039+((-0.000729*$C39+0.001448)*(Tl_cool-Tavg_cold)+(0.016908*$C39-0.033574))*1.039))))*Watts -> 838.848 | I39: =ROUND(((H39/Watts)/((Tr_cool-Tv_cool)*1.163))*$I$14,IF($X$4=1,0,IF($X$4=2,2))) -> 361 | J39: =($AA$36*(I39/$I$14)^$AA$38)*$J$14 -> 34.10550473 | K39: =L39-8 -> 41 | L39: 49 | M39: 14.1 | N39: =AD39*Cubics -> 320 | O39: =((($D39/Watts)/(((p_atm*0.028964)/(8.31447*(20+273.15)))*(($N39/3600)/Cubics)*(1005+1870*((0.622)/(((p_atm)/($E$12*Pvs_Heat_in))-1)))))+Tl_heat)*Celc1+Celc2 -> 64.73460478 | P39: =(Tl_cool-(($G39/Watts)/(1006*$N39*kgss)))*Celc1+Celc2 -> 19.20867486 | Q39: 1 | R39: 0.9 | W39: =(H39-G39)/H39 -> 0 | X39: =IF($X$16=1,AE39,IF($X$16=2,AM39,IF($X$16=3,BL39,IF($X$16=4,BE39,IF($X$16=5,CA39,IF($X$16=6,BT39,IF($X$16=7,AX39,))))))) -> 4876.832 | Y39: =IF($X$16=1,AF39,IF($X$16=2,AN39,IF($X$16=3,BM39,IF($X$16=4,BF39,IF($X$16=5,CB39,IF($X$16=6,BU39,IF($X$16=7,AY39,))))))) -> 0 | Z39: =IF($X$16=1,AG39,IF($X$16=2,AO39,IF($X$16=3,BN39,IF($X$16=4,BG39,IF($X$16=5,CC39,IF($X$16=6,BV39,IF($X$16=7,AZ39,))))))) -> 838.848 | AA39: =IF($X$16=1,AH39,IF($X$16=2,AP39,IF($X$16=3,BO39,IF($X$16=4,BH39,IF($X$16=5,CD39,IF($X$16=6,BW39,IF($X$16=7,BA39,))))))) -> 0 | AB39: =IF($X$16=1,AI39,IF($X$16=2,AQ39,IF($X$16=3,BP39,IF($X$16=4,BI39,IF($X$16=5,CE39,IF($X$16=6,BX39,IF($X$16=7,BB39,))))))) -> 49 | AC39: =IF($X$16=1,AJ39,IF($X$16=2,AR39,IF($X$16=3,BQ39,IF($X$16=4,BJ39,IF($X$16=5,CF39,IF($X$16=6,BY39,IF($X$16=7,BC39,))))))) -> 14.1 | AD39: =IF($X$16=1,AK39,IF($X$16=2,AS39,IF($X$16=3,BR39,IF($X$16=4,BK39,IF($X$16=5,CG39,IF($X$16=6,BZ39,IF($X$16=7,BD39,))))))) -> 320 | AE39: 4876.832 | AG39: 838.848 | AI39: 49 | AJ39: 14.1 | AK39: 320 | AU39: =(AG39*((((Tv_cool-Tr_cool)/LN((Tv_cool-Tl_cool)/(Tr_cool-Tl_cool)))/((16-18)/LN((16-27)/(18-27))))^S39))*$G$14 -> 0.2805480533 | AV39: =((AU39/$G$14)/(IF((237.3*LN((RH*EXP(17.27*(Tl_cool/(Tl_cool+237.3))))))/(17.27-LN((RH*EXP(17.27*(Tl_cool/(Tl_cool+237.3))))))<((Tv_cool+Tr_cool)/2),1,1/(1+((2258*((0.622/((p_atm/(1*611*EXP(17.27*(((Tv_cool+Tr_cool)/2)/(((Tv_cool+Tr_cool)/2)+237.3))))))-1)*1000-(0.622/((p_atm/(RH*611*EXP(17.27*(Tl_cool/(Tl_cool+237.3))))))-1)*1000))/(1005*(((Tv_cool+Tr_cool)/2)-Tl_cool))))+-((-0.000625*$C39+0.00625)*(Tl_cool-(Tv_cool+Tr_cool)/2)-(-0.000625*$C39+0.00625)*10))))*$H$14 -> 838.848
B40: =IF($S$7=1,NL!A39,IF(cal!$S$7=2,EN!A39,IF(cal!$S$7=3,DE!A39,IF(cal!$S$7=4,FR!A39,IF(cal!$S$7=5,NR!A39,IF(cal!$S$7=6,SP!A39,IF(cal!$S$7=7,SW!A39,IF(cal!$S$7=8,TS!A39,IF(cal!$S$7=9,ExtraTaal1!A39,IF(cal!$S$7=10,ExtraTaal2!A39,IF(cal!$S$7=11,ExtraTaal3!A39,))))))))))) -> Freedom height 0 cm width 0 cm length 0 cm (Type 5) | C40: =IF($S$7=1,NL!B39,IF(cal!$S$7=2,EN!B39,IF(cal!$S$7=3,DE!B39,IF(cal!$S$7=4,FR!B39,IF(cal!$S$7=5,NR!B39,IF(cal!$S$7=6,SP!B39,IF(cal!$S$7=7,SW!B39,IF(cal!$S$7=8,TS!B39,IF(cal!$S$7=9,ExtraTaal1!B39,IF(cal!$S$7=10,ExtraTaal2!B39,IF(cal!$S$7=11,ExtraTaal3!B39,))))))))))) -> 0 | D40: =IF($S$7=1,NL!C39,IF(cal!$S$7=2,EN!C39,IF(cal!$S$7=3,DE!C39,IF(cal!$S$7=4,FR!C39,IF(cal!$S$7=5,NR!C39,IF(cal!$S$7=6,SP!C39,IF(cal!$S$7=7,SW!C39,IF(cal!$S$7=8,TS!C39,IF(cal!$S$7=9,ExtraTaal1!C39,IF(cal!$S$7=10,ExtraTaal2!C39,IF(cal!$S$7=11,ExtraTaal3!C39,))))))))))) -> 0 | E40: =IF($S$7=1,NL!D39,IF(cal!$S$7=2,EN!D39,IF(cal!$S$7=3,DE!D39,IF(cal!$S$7=4,FR!D39,IF(cal!$S$7=5,NR!D39,IF(cal!$S$7=6,SP!D39,IF(cal!$S$7=7,SW!D39,IF(cal!$S$7=8,TS!D39,IF(cal!$S$7=9,ExtraTaal1!D39,IF(cal!$S$7=10,ExtraTaal2!D39,IF(cal!$S$7=11,ExtraTaal3!D39,))))))))))) -> 0 | F40: =IF($S$7=1,NL!E39,IF(cal!$S$7=2,EN!E39,IF(cal!$S$7=3,DE!E39,IF(cal!$S$7=4,FR!E39,IF(cal!$S$7=5,NR!E39,IF(cal!$S$7=6,SP!E39,IF(cal!$S$7=7,SW!E39,IF(cal!$S$7=8,TS!E39,IF(cal!$S$7=9,ExtraTaal1!E39,IF(cal!$S$7=10,ExtraTaal2!E39,IF(cal!$S$7=11,ExtraTaal3!E39,))))))))))) -> 0 | G40: =IF($S$7=1,NL!F39,IF(cal!$S$7=2,EN!F39,IF(cal!$S$7=3,DE!F39,IF(cal!$S$7=4,FR!F39,IF(cal!$S$7=5,NR!F39,IF(cal!$S$7=6,SP!F39,IF(cal!$S$7=7,SW!F39,IF(cal!$S$7=8,TS!F39,IF(cal!$S$7=9,ExtraTaal1!F39,IF(cal!$S$7=10,ExtraTaal2!F39,IF(cal!$S$7=11,ExtraTaal3!F39,))))))))))) -> 0 | H40: =IF($S$7=1,NL!G39,IF(cal!$S$7=2,EN!G39,IF(cal!$S$7=3,DE!G39,IF(cal!$S$7=4,FR!G39,IF(cal!$S$7=5,NR!G39,IF(cal!$S$7=6,SP!G39,IF(cal!$S$7=7,SW!G39,IF(cal!$S$7=8,TS!G39,IF(cal!$S$7=9,ExtraTaal1!G39,IF(cal!$S$7=10,ExtraTaal2!G39,IF(cal!$S$7=11,ExtraTaal3!G39,))))))))))) -> 0 | I40: =IF($S$7=1,NL!H39,IF(cal!$S$7=2,EN!H39,IF(cal!$S$7=3,DE!H39,IF(cal!$S$7=4,FR!H39,IF(cal!$S$7=5,NR!H39,IF(cal!$S$7=6,SP!H39,IF(cal!$S$7=7,SW!H39,IF(cal!$S$7=8,TS!H39,IF(cal!$S$7=9,ExtraTaal1!H39,IF(cal!$S$7=10,ExtraTaal2!H39,IF(cal!$S$7=11,ExtraTaal3!H39,))))))))))) -> 0 | J40: =IF($S$7=1,NL!I39,IF(cal!$S$7=2,EN!I39,IF(cal!$S$7=3,DE!I39,IF(cal!$S$7=4,FR!I39,IF(cal!$S$7=5,NR!I39,IF(cal!$S$7=6,SP!I39,IF(cal!$S$7=7,SW!I39,IF(cal!$S$7=8,TS!I39,IF(cal!$S$7=9,ExtraTaal1!I39,IF(cal!$S$7=10,ExtraTaal2!I39,IF(cal!$S$7=11,ExtraTaal3!I39,))))))))))) -> 0 | K40: =IF($S$7=1,NL!J39,IF(cal!$S$7=2,EN!J39,IF(cal!$S$7=3,DE!J39,IF(cal!$S$7=4,FR!J39,IF(cal!$S$7=5,NR!J39,IF(cal!$S$7=6,SP!J39,IF(cal!$S$7=7,SW!J39,IF(cal!$S$7=8,TS!J39,IF(cal!$S$7=9,ExtraTaal1!J39,IF(cal!$S$7=10,ExtraTaal2!J39,IF(cal!$S$7=11,ExtraTaal3!J39,))))))))))) -> 0 | L40: =IF($S$7=1,NL!K39,IF(cal!$S$7=2,EN!K39,IF(cal!$S$7=3,DE!K39,IF(cal!$S$7=4,FR!K39,IF(cal!$S$7=5,NR!K39,IF(cal!$S$7=6,SP!K39,IF(cal!$S$7=7,SW!K39,IF(cal!$S$7=8,TS!K39,IF(cal!$S$7=9,ExtraTaal1!K39,IF(cal!$S$7=10,ExtraTaal2!K39,IF(cal!$S$7=11,ExtraTaal3!K39,))))))))))) -> 0 | M40: =IF($S$7=1,NL!L39,IF(cal!$S$7=2,EN!L39,IF(cal!$S$7=3,DE!L39,IF(cal!$S$7=4,FR!L39,IF(cal!$S$7=5,NR!L39,IF(cal!$S$7=6,SP!L39,IF(cal!$S$7=7,SW!L39,IF(cal!$S$7=8,TS!L39,IF(cal!$S$7=9,ExtraTaal1!L39,IF(cal!$S$7=10,ExtraTaal2!L39,IF(cal!$S$7=11,ExtraTaal3!L39,))))))))))) -> 0 | N40: =IF($S$7=1,NL!M39,IF(cal!$S$7=2,EN!M39,IF(cal!$S$7=3,DE!M39,IF(cal!$S$7=4,FR!M39,IF(cal!$S$7=5,NR!M39,IF(cal!$S$7=6,SP!M39,IF(cal!$S$7=7,SW!M39,IF(cal!$S$7=8,TS!M39,IF(cal!$S$7=9,ExtraTaal1!M39,IF(cal!$S$7=10,ExtraTaal2!M39,IF(cal!$S$7=11,ExtraTaal3!M39,))))))))))) -> 0 | O40: =IF($S$7=1,NL!N39,IF(cal!$S$7=2,EN!N39,IF(cal!$S$7=3,DE!N39,IF(cal!$S$7=4,FR!N39,IF(cal!$S$7=5,NR!N39,IF(cal!$S$7=6,SP!N39,IF(cal!$S$7=7,SW!N39,IF(cal!$S$7=8,TS!N39,IF(cal!$S$7=9,ExtraTaal1!N39,IF(cal!$S$7=10,ExtraTaal2!N39,IF(cal!$S$7=11,ExtraTaal3!N39,))))))))))) -> 0 | P40: =IF($S$7=1,NL!O39,IF(cal!$S$7=2,EN!O39,IF(cal!$S$7=3,DE!O39,IF(cal!$S$7=4,FR!O39,IF(cal!$S$7=5,NR!O39,IF(cal!$S$7=6,SP!O39,IF(cal!$S$7=7,SW!O39,IF(cal!$S$7=8,TS!O39,IF(cal!$S$7=9,ExtraTaal1!O39,IF(cal!$S$7=10,ExtraTaal2!O39,IF(cal!$S$7=11,ExtraTaal3!O39,))))))))))) -> 0 | Q40: n-value | R40: 0 | X40: =IF($X$16=1,AE40,IF($X$16=2,AM40,IF($X$16=3,BL40,IF($X$16=4,BE40,IF($X$16=5,CA40,IF($X$16=6,BT40,IF($X$16=7,AX40,))))))) -> H | Y40: =IF($X$16=1,AF40,IF($X$16=2,AN40,IF($X$16=3,BM40,IF($X$16=4,BF40,IF($X$16=5,CB40,IF($X$16=6,BU40,IF($X$16=7,AY40,))))))) -> 20 | Z40: =IF($X$16=1,AG40,IF($X$16=2,AO40,IF($X$16=3,BN40,IF($X$16=4,BG40,IF($X$16=5,CC40,IF($X$16=6,BV40,IF($X$16=7,AZ40,))))))) -> B | AA40: =IF($X$16=1,AH40,IF($X$16=2,AP40,IF($X$16=3,BO40,IF($X$16=4,BH40,IF($X$16=5,CD40,IF($X$16=6,BW40,IF($X$16=7,BA40,))))))) -> 19 | AB40: =IF($X$16=1,AI40,IF($X$16=2,AQ40,IF($X$16=3,BP40,IF($X$16=4,BI40,IF($X$16=5,CE40,IF($X$16=6,BX40,IF($X$16=7,BB40,))))))) -> L | AC40: =IF($X$16=1,AJ40,IF($X$16=2,AR40,IF($X$16=3,BQ40,IF($X$16=4,BJ40,IF($X$16=5,CF40,IF($X$16=6,BY40,IF($X$16=7,BC40,))))))) -> 181 | AD40: =IF($X$16=1,AK40,IF($X$16=2,AS40,IF($X$16=3,BR40,IF($X$16=4,BK40,IF($X$16=5,CG40,IF($X$16=6,BZ40,IF($X$16=7,BD40,))))))) -> 0 | AE40: H | AF40: =AF34 -> 20 | AG40: B | AH40: =AH34 -> 19 | AI40: L | AJ40: 181
B41: 0.2 | C41: 2 | D41: =(X41*($T$11^$Q41))*Watts*CF_Altit -> 0 | E41: =ROUND(((D41/Watts)/(($S$9-$S$10)*1.163))*$E$14,IF($X$4=1,0,IF($X$4=2,2))) -> 0 | F41: =($Y$42*(E41/$E$14)^$Y$44)*$F$14 ->  | G41: =(Z41*($W$11^R41))*Watts*CF_Altit -> 0 | H41: =((G41/Watts)/(IF((237.3*LN((RH*EXP(17.27*(Tl_cool/(Tl_cool+237.3))))))/(17.27-LN((RH*EXP(17.27*(Tl_cool/(Tl_cool+237.3))))))<Tavg_cold,1,IF(1/(1+((2258*((0.622/(($Z$11/(1*611*EXP(17.27*(Tavg_cold/(Tavg_cold+237.3))))))-1)*1000-(0.622/(($Z$11/(RH*611*EXP(17.27*(Tl_cool/(Tl_cool+237.3))))))-1)*1000))/(1005*(Tavg_cold-Tl_cool))))*1.039+((-0.000729*$C41+0.001448)*(Tl_cool-Tavg_cold)+(0.016908*$C41-0.033574))*1.039>1,1,1/(1+((2258*((0.622/(($Z$11/(1*611*EXP(17.27*(Tavg_cold/(Tavg_cold+237.3))))))-1)*1000-(0.622/(($Z$11/(RH*611*EXP(17.27*(Tl_cool/(Tl_cool+237.3))))))-1)*1000))/(1005*(Tavg_cold-Tl_cool))))*1.039+((-0.000729*$C41+0.001448)*(Tl_cool-Tavg_cold)+(0.016908*$C41-0.033574))*1.039))))*Watts -> 0 | I41: =ROUND(((H41/Watts)/((Tr_cool-Tv_cool)*1.163))*$I$14,IF($X$4=1,0,IF($X$4=2,2))) -> 0 | J41: =($AA$42*(I41/$I$14)^$AA$44)*$J$14 ->  | K41: =L41-8 -> -8 | L41: =AB41 -> 0 | M41: 0 | N41: =AD41*Cubics -> 0 | O41: =((($D41/Watts)/(((p_atm*0.028964)/(8.31447*(20+273.15)))*(($N41/3600)/Cubics)*(1005+1870*((0.622)/(((p_atm)/($E$12*Pvs_Heat_in))-1)))))+Tl_heat)*Celc1+Celc2 ->  | P41: =(Tl_cool-(($G41/Watts)/(1006*$N41*kgss)))*Celc1+Celc2 ->  | Q41: 1 | R41: 0 | W41: =(H41-G41)/H41 ->  | X41: =IF($X$16=1,AE41,IF($X$16=2,AM41,IF($X$16=3,BL41,IF($X$16=4,BE41,IF($X$16=5,CA41,IF($X$16=6,BT41,IF($X$16=7,AX41,))))))) -> 0 | Y41: =IF($X$16=1,AF41,IF($X$16=2,AN41,IF($X$16=3,BM41,IF($X$16=4,BF41,IF($X$16=5,CB41,IF($X$16=6,BU41,IF($X$16=7,AY41,))))))) -> 0 | Z41: =IF($X$16=1,AG41,IF($X$16=2,AO41,IF($X$16=3,BN41,IF($X$16=4,BG41,IF($X$16=5,CC41,IF($X$16=6,BV41,IF($X$16=7,AZ41,))))))) -> 0 | AA41: =IF($X$16=1,AH41,IF($X$16=2,AP41,IF($X$16=3,BO41,IF($X$16=4,BH41,IF($X$16=5,CD41,IF($X$16=6,BW41,IF($X$16=7,BA41,))))))) -> 0 | AB41: =IF($X$16=1,AI41,IF($X$16=2,AQ41,IF($X$16=3,BP41,IF($X$16=4,BI41,IF($X$16=5,CE41,IF($X$16=6,BX41,IF($X$16=7,BB41,))))))) -> 0 | AC41: =IF($X$16=1,AJ41,IF($X$16=2,AR41,IF($X$16=3,BQ41,IF($X$16=4,BJ41,IF($X$16=5,CF41,IF($X$16=6,BY41,IF($X$16=7,BC41,))))))) -> 0 | AD41: =IF($X$16=1,AK41,IF($X$16=2,AS41,IF($X$16=3,BR41,IF($X$16=4,BK41,IF($X$16=5,CG41,IF($X$16=6,BZ41,IF($X$16=7,BD41,))))))) -> 0
B42: 0.4 | C42: 4 | D42: =(X42*($T$11^$Q42))*Watts*CF_Altit -> 0 | E42: =ROUND(((D42/Watts)/(($S$9-$S$10)*1.163))*$E$14,IF($X$4=1,0,IF($X$4=2,2))) -> 0 | F42: =($Y$42*(E42/$E$14)^$Y$44)*$F$14 ->  | G42: =(Z42*($W$11^R42))*Watts*CF_Altit -> 0 | H42: =((G42/Watts)/(IF((237.3*LN((RH*EXP(17.27*(Tl_cool/(Tl_cool+237.3))))))/(17.27-LN((RH*EXP(17.27*(Tl_cool/(Tl_cool+237.3))))))<Tavg_cold,1,IF(1/(1+((2258*((0.622/(($Z$11/(1*611*EXP(17.27*(Tavg_cold/(Tavg_cold+237.3))))))-1)*1000-(0.622/(($Z$11/(RH*611*EXP(17.27*(Tl_cool/(Tl_cool+237.3))))))-1)*1000))/(1005*(Tavg_cold-Tl_cool))))*1.039+((-0.000729*$C42+0.001448)*(Tl_cool-Tavg_cold)+(0.016908*$C42-0.033574))*1.039>1,1,1/(1+((2258*((0.622/(($Z$11/(1*611*EXP(17.27*(Tavg_cold/(Tavg_cold+237.3))))))-1)*1000-(0.622/(($Z$11/(RH*611*EXP(17.27*(Tl_cool/(Tl_cool+237.3))))))-1)*1000))/(1005*(Tavg_cold-Tl_cool))))*1.039+((-0.000729*$C42+0.001448)*(Tl_cool-Tavg_cold)+(0.016908*$C42-0.033574))*1.039))))*Watts -> 0 | I42: =ROUND(((H42/Watts)/((Tr_cool-Tv_cool)*1.163))*$I$14,IF($X$4=1,0,IF($X$4=2,2))) -> 0 | J42: =($AA$42*(I42/$I$14)^$AA$44)*$J$14 ->  | K42: =L42-8 -> -8 | L42: 0 | M42: 0 | N42: =AD42*Cubics -> 0 | O42: =((($D42/Watts)/(((p_atm*0.028964)/(8.31447*(20+273.15)))*(($N42/3600)/Cubics)*(1005+1870*((0.622)/(((p_atm)/($E$12*Pvs_Heat_in))-1)))))+Tl_heat)*Celc1+Celc2 ->  | P42: =(Tl_cool-(($G42/Watts)/(1006*$N42*kgss)))*Celc1+Celc2 ->  | Q42: 1 | R42: 0 | W42: =(H42-G42)/H42 ->  | X42: =IF($X$16=1,AE42,IF($X$16=2,AM42,IF($X$16=3,BL42,IF($X$16=4,BE42,IF($X$16=5,CA42,IF($X$16=6,BT42,IF($X$16=7,AX42,))))))) -> 0 | Y42: =IF($X$16=1,AF42,IF($X$16=2,AN42,IF($X$16=3,BM42,IF($X$16=4,BF42,IF($X$16=5,CB42,IF($X$16=6,BU42,IF($X$16=7,AY42,))))))) -> 0 | Z42: =IF($X$16=1,AG42,IF($X$16=2,AO42,IF($X$16=3,BN42,IF($X$16=4,BG42,IF($X$16=5,CC42,IF($X$16=6,BV42,IF($X$16=7,AZ42,))))))) -> 0 | AA42: =IF($X$16=1,AH42,IF($X$16=2,AP42,IF($X$16=3,BO42,IF($X$16=4,BH42,IF($X$16=5,CD42,IF($X$16=6,BW42,IF($X$16=7,BA42,))))))) -> 0 | AB42: =IF($X$16=1,AI42,IF($X$16=2,AQ42,IF($X$16=3,BP42,IF($X$16=4,BI42,IF($X$16=5,CE42,IF($X$16=6,BX42,IF($X$16=7,BB42,))))))) -> 0 | AC42: =IF($X$16=1,AJ42,IF($X$16=2,AR42,IF($X$16=3,BQ42,IF($X$16=4,BJ42,IF($X$16=5,CF42,IF($X$16=6,BY42,IF($X$16=7,BC42,))))))) -> 0 | AD42: =IF($X$16=1,AK42,IF($X$16=2,AS42,IF($X$16=3,BR42,IF($X$16=4,BK42,IF($X$16=5,CG42,IF($X$16=6,BZ42,IF($X$16=7,BD42,))))))) -> 0
B43: 0.6 | C43: 6 | D43: =(X43*($T$11^$Q43))*Watts*CF_Altit -> 0 | E43: =ROUND(((D43/Watts)/(($S$9-$S$10)*1.163))*$E$14,IF($X$4=1,0,IF($X$4=2,2))) -> 0 | F43: =($Y$42*(E43/$E$14)^$Y$44)*$F$14 ->  | G43: =(Z43*($W$11^R43))*Watts*CF_Altit -> 0 | H43: =((G43/Watts)/(IF((237.3*LN((RH*EXP(17.27*(Tl_cool/(Tl_cool+237.3))))))/(17.27-LN((RH*EXP(17.27*(Tl_cool/(Tl_cool+237.3))))))<Tavg_cold,1,IF(1/(1+((2258*((0.622/(($Z$11/(1*611*EXP(17.27*(Tavg_cold/(Tavg_cold+237.3))))))-1)*1000-(0.622/(($Z$11/(RH*611*EXP(17.27*(Tl_cool/(Tl_cool+237.3))))))-1)*1000))/(1005*(Tavg_cold-Tl_cool))))*1.039+((-0.000729*$C43+0.001448)*(Tl_cool-Tavg_cold)+(0.016908*$C43-0.033574))*1.039>1,1,1/(1+((2258*((0.622/(($Z$11/(1*611*EXP(17.27*(Tavg_cold/(Tavg_cold+237.3))))))-1)*1000-(0.622/(($Z$11/(RH*611*EXP(17.27*(Tl_cool/(Tl_cool+237.3))))))-1)*1000))/(1005*(Tavg_cold-Tl_cool))))*1.039+((-0.000729*$C43+0.001448)*(Tl_cool-Tavg_cold)+(0.016908*$C43-0.033574))*1.039))))*Watts -> 0 | I43: =ROUND(((H43/Watts)/((Tr_cool-Tv_cool)*1.163))*$I$14,IF($X$4=1,0,IF($X$4=2,2))) -> 0 | J43: =($AA$42*(I43/$I$14)^$AA$44)*$J$14 ->  | K43: =L43-8 -> -8 | L43: 0 | M43: 0 | N43: =AD43*Cubics -> 0 | O43: =((($D43/Watts)/(((p_atm*0.028964)/(8.31447*(20+273.15)))*(($N43/3600)/Cubics)*(1005+1870*((0.622)/(((p_atm)/($E$12*Pvs_Heat_in))-1)))))+Tl_heat)*Celc1+Celc2 ->  | P43: =(Tl_cool-(($G43/Watts)/(1006*$N43*kgss)))*Celc1+Celc2 ->  | Q43: 1 | R43: 0 | W43: =(H43-G43)/H43 ->  | X43: =IF($X$16=1,AE43,IF($X$16=2,AM43,IF($X$16=3,BL43,IF($X$16=4,BE43,IF($X$16=5,CA43,IF($X$16=6,BT43,IF($X$16=7,AX43,))))))) -> 0 | Y43: =IF($X$16=1,AF43,IF($X$16=2,AN43,IF($X$16=3,BM43,IF($X$16=4,BF43,IF($X$16=5,CB43,IF($X$16=6,BU43,IF($X$16=7,AY43,))))))) -> 0 | Z43: =IF($X$16=1,AG43,IF($X$16=2,AO43,IF($X$16=3,BN43,IF($X$16=4,BG43,IF($X$16=5,CC43,IF($X$16=6,BV43,IF($X$16=7,AZ43,))))))) -> 0 | AA43: =IF($X$16=1,AH43,IF($X$16=2,AP43,IF($X$16=3,BO43,IF($X$16=4,BH43,IF($X$16=5,CD43,IF($X$16=6,BW43,IF($X$16=7,BA43,))))))) -> 0 | AB43: =IF($X$16=1,AI43,IF($X$16=2,AQ43,IF($X$16=3,BP43,IF($X$16=4,BI43,IF($X$16=5,CE43,IF($X$16=6,BX43,IF($X$16=7,BB43,))))))) -> 0 | AC43: =IF($X$16=1,AJ43,IF($X$16=2,AR43,IF($X$16=3,BQ43,IF($X$16=4,BJ43,IF($X$16=5,CF43,IF($X$16=6,BY43,IF($X$16=7,BC43,))))))) -> 0 | AD43: =IF($X$16=1,AK43,IF($X$16=2,AS43,IF($X$16=3,BR43,IF($X$16=4,BK43,IF($X$16=5,CG43,IF($X$16=6,BZ43,IF($X$16=7,BD43,))))))) -> 0
B44: 0.8 | C44: 8 | D44: =(X44*($T$11^$Q44))*Watts*CF_Altit -> 0 | E44: =ROUND(((D44/Watts)/(($S$9-$S$10)*1.163))*$E$14,IF($X$4=1,0,IF($X$4=2,2))) -> 0 | F44: =($Y$42*(E44/$E$14)^$Y$44)*$F$14 ->  | G44: =(Z44*($W$11^R44))*Watts*CF_Altit -> 0 | H44: =((G44/Watts)/(IF((237.3*LN((RH*EXP(17.27*(Tl_cool/(Tl_cool+237.3))))))/(17.27-LN((RH*EXP(17.27*(Tl_cool/(Tl_cool+237.3))))))<Tavg_cold,1,IF(1/(1+((2258*((0.622/(($Z$11/(1*611*EXP(17.27*(Tavg_cold/(Tavg_cold+237.3))))))-1)*1000-(0.622/(($Z$11/(RH*611*EXP(17.27*(Tl_cool/(Tl_cool+237.3))))))-1)*1000))/(1005*(Tavg_cold-Tl_cool))))*1.039+((-0.000729*$C44+0.001448)*(Tl_cool-Tavg_cold)+(0.016908*$C44-0.033574))*1.039>1,1,1/(1+((2258*((0.622/(($Z$11/(1*611*EXP(17.27*(Tavg_cold/(Tavg_cold+237.3))))))-1)*1000-(0.622/(($Z$11/(RH*611*EXP(17.27*(Tl_cool/(Tl_cool+237.3))))))-1)*1000))/(1005*(Tavg_cold-Tl_cool))))*1.039+((-0.000729*$C44+0.001448)*(Tl_cool-Tavg_cold)+(0.016908*$C44-0.033574))*1.039))))*Watts -> 0 | I44: =ROUND(((H44/Watts)/((Tr_cool-Tv_cool)*1.163))*$I$14,IF($X$4=1,0,IF($X$4=2,2))) -> 0 | J44: =($AA$42*(I44/$I$14)^$AA$44)*$J$14 ->  | K44: =L44-8 -> -8 | L44: 0 | M44: 0 | N44: =AD44*Cubics -> 0 | O44: =((($D44/Watts)/(((p_atm*0.028964)/(8.31447*(20+273.15)))*(($N44/3600)/Cubics)*(1005+1870*((0.622)/(((p_atm)/($E$12*Pvs_Heat_in))-1)))))+Tl_heat)*Celc1+Celc2 ->  | P44: =(Tl_cool-(($G44/Watts)/(1006*$N44*kgss)))*Celc1+Celc2 ->  | Q44: 1 | R44: 0 | W44: =(H44-G44)/H44 ->  | X44: =IF($X$16=1,AE44,IF($X$16=2,AM44,IF($X$16=3,BL44,IF($X$16=4,BE44,IF($X$16=5,CA44,IF($X$16=6,BT44,IF($X$16=7,AX44,))))))) -> 0 | Y44: =IF($X$16=1,AF44,IF($X$16=2,AN44,IF($X$16=3,BM44,IF($X$16=4,BF44,IF($X$16=5,CB44,IF($X$16=6,BU44,IF($X$16=7,AY44,))))))) -> 0 | Z44: =IF($X$16=1,AG44,IF($X$16=2,AO44,IF($X$16=3,BN44,IF($X$16=4,BG44,IF($X$16=5,CC44,IF($X$16=6,BV44,IF($X$16=7,AZ44,))))))) -> 0 | AA44: =IF($X$16=1,AH44,IF($X$16=2,AP44,IF($X$16=3,BO44,IF($X$16=4,BH44,IF($X$16=5,CD44,IF($X$16=6,BW44,IF($X$16=7,BA44,))))))) -> 0 | AB44: =IF($X$16=1,AI44,IF($X$16=2,AQ44,IF($X$16=3,BP44,IF($X$16=4,BI44,IF($X$16=5,CE44,IF($X$16=6,BX44,IF($X$16=7,BB44,))))))) -> 0 | AC44: =IF($X$16=1,AJ44,IF($X$16=2,AR44,IF($X$16=3,BQ44,IF($X$16=4,BJ44,IF($X$16=5,CF44,IF($X$16=6,BY44,IF($X$16=7,BC44,))))))) -> 0 | AD44: =IF($X$16=1,AK44,IF($X$16=2,AS44,IF($X$16=3,BR44,IF($X$16=4,BK44,IF($X$16=5,CG44,IF($X$16=6,BZ44,IF($X$16=7,BD44,))))))) -> 0
B45: 1 | C45: 10 | D45: =(X45*($T$11^$Q45))*Watts*CF_Altit -> 0 | E45: =ROUND(((D45/Watts)/(($S$9-$S$10)*1.163))*$E$14,IF($X$4=1,0,IF($X$4=2,2))) -> 0 | F45: =($Y$42*(E45/$E$14)^$Y$44)*$F$14 ->  | G45: =(Z45*($W$11^R45))*Watts*CF_Altit -> 0 | H45: =((G45/Watts)/(IF((237.3*LN((RH*EXP(17.27*(Tl_cool/(Tl_cool+237.3))))))/(17.27-LN((RH*EXP(17.27*(Tl_cool/(Tl_cool+237.3))))))<Tavg_cold,1,IF(1/(1+((2258*((0.622/(($Z$11/(1*611*EXP(17.27*(Tavg_cold/(Tavg_cold+237.3))))))-1)*1000-(0.622/(($Z$11/(RH*611*EXP(17.27*(Tl_cool/(Tl_cool+237.3))))))-1)*1000))/(1005*(Tavg_cold-Tl_cool))))*1.039+((-0.000729*$C45+0.001448)*(Tl_cool-Tavg_cold)+(0.016908*$C45-0.033574))*1.039>1,1,1/(1+((2258*((0.622/(($Z$11/(1*611*EXP(17.27*(Tavg_cold/(Tavg_cold+237.3))))))-1)*1000-(0.622/(($Z$11/(RH*611*EXP(17.27*(Tl_cool/(Tl_cool+237.3))))))-1)*1000))/(1005*(Tavg_cold-Tl_cool))))*1.039+((-0.000729*$C45+0.001448)*(Tl_cool-Tavg_cold)+(0.016908*$C45-0.033574))*1.039))))*Watts -> 0 | I45: =ROUND(((H45/Watts)/((Tr_cool-Tv_cool)*1.163))*$I$14,IF($X$4=1,0,IF($X$4=2,2))) -> 0 | J45: =($AA$42*(I45/$I$14)^$AA$44)*$J$14 ->  | K45: =L45-8 -> -8 | L45: 0 | M45: 0 | N45: =AD45*Cubics -> 0 | O45: =((($D45/Watts)/(((p_atm*0.028964)/(8.31447*(20+273.15)))*(($N45/3600)/Cubics)*(1005+1870*((0.622)/(((p_atm)/($E$12*Pvs_Heat_in))-1)))))+Tl_heat)*Celc1+Celc2 ->  | P45: =(Tl_cool-(($G45/Watts)/(1006*$N45*kgss)))*Celc1+Celc2 ->  | Q45: 1 | R45: 0 | W45: =(H45-G45)/H45 ->  | X45: =IF($X$16=1,AE45,IF($X$16=2,AM45,IF($X$16=3,BL45,IF($X$16=4,BE45,IF($X$16=5,CA45,IF($X$16=6,BT45,IF($X$16=7,AX45,))))))) -> 0 | Y45: =IF($X$16=1,AF45,IF($X$16=2,AN45,IF($X$16=3,BM45,IF($X$16=4,BF45,IF($X$16=5,CB45,IF($X$16=6,BU45,IF($X$16=7,AY45,))))))) -> 0 | Z45: =IF($X$16=1,AG45,IF($X$16=2,AO45,IF($X$16=3,BN45,IF($X$16=4,BG45,IF($X$16=5,CC45,IF($X$16=6,BV45,IF($X$16=7,AZ45,))))))) -> 0 | AA45: =IF($X$16=1,AH45,IF($X$16=2,AP45,IF($X$16=3,BO45,IF($X$16=4,BH45,IF($X$16=5,CD45,IF($X$16=6,BW45,IF($X$16=7,BA45,))))))) -> 0 | AB45: =IF($X$16=1,AI45,IF($X$16=2,AQ45,IF($X$16=3,BP45,IF($X$16=4,BI45,IF($X$16=5,CE45,IF($X$16=6,BX45,IF($X$16=7,BB45,))))))) -> 0 | AC45: =IF($X$16=1,AJ45,IF($X$16=2,AR45,IF($X$16=3,BQ45,IF($X$16=4,BJ45,IF($X$16=5,CF45,IF($X$16=6,BY45,IF($X$16=7,BC45,))))))) -> 0 | AD45: =IF($X$16=1,AK45,IF($X$16=2,AS45,IF($X$16=3,BR45,IF($X$16=4,BK45,IF($X$16=5,CG45,IF($X$16=6,BZ45,IF($X$16=7,BD45,))))))) -> 0
B46: =IF($S$7=1,NL!A45,IF(cal!$S$7=2,EN!A45,IF(cal!$S$7=3,DE!A45,IF(cal!$S$7=4,FR!A45,IF(cal!$S$7=5,NR!A45,IF(cal!$S$7=6,SP!A45,IF(cal!$S$7=7,SW!A45,IF(cal!$S$7=8,TS!A45,IF(cal!$S$7=9,ExtraTaal1!A45,IF(cal!$S$7=10,ExtraTaal2!A45,IF(cal!$S$7=11,ExtraTaal3!A45,))))))))))) -> Freedom height 0 cm width 0 cm length 0 cm (Type 6) | C46: =IF($S$7=1,NL!B45,IF(cal!$S$7=2,EN!B45,IF(cal!$S$7=3,DE!B45,IF(cal!$S$7=4,FR!B45,IF(cal!$S$7=5,NR!B45,IF(cal!$S$7=6,SP!B45,IF(cal!$S$7=7,SW!B45,IF(cal!$S$7=8,TS!B45,IF(cal!$S$7=9,ExtraTaal1!B45,IF(cal!$S$7=10,ExtraTaal2!B45,IF(cal!$S$7=11,ExtraTaal3!B45,))))))))))) -> 0 | D46: =IF($S$7=1,NL!C45,IF(cal!$S$7=2,EN!C45,IF(cal!$S$7=3,DE!C45,IF(cal!$S$7=4,FR!C45,IF(cal!$S$7=5,NR!C45,IF(cal!$S$7=6,SP!C45,IF(cal!$S$7=7,SW!C45,IF(cal!$S$7=8,TS!C45,IF(cal!$S$7=9,ExtraTaal1!C45,IF(cal!$S$7=10,ExtraTaal2!C45,IF(cal!$S$7=11,ExtraTaal3!C45,))))))))))) -> 0 | E46: =IF($S$7=1,NL!D45,IF(cal!$S$7=2,EN!D45,IF(cal!$S$7=3,DE!D45,IF(cal!$S$7=4,FR!D45,IF(cal!$S$7=5,NR!D45,IF(cal!$S$7=6,SP!D45,IF(cal!$S$7=7,SW!D45,IF(cal!$S$7=8,TS!D45,IF(cal!$S$7=9,ExtraTaal1!D45,IF(cal!$S$7=10,ExtraTaal2!D45,IF(cal!$S$7=11,ExtraTaal3!D45,))))))))))) -> 0 | F46: =IF($S$7=1,NL!E45,IF(cal!$S$7=2,EN!E45,IF(cal!$S$7=3,DE!E45,IF(cal!$S$7=4,FR!E45,IF(cal!$S$7=5,NR!E45,IF(cal!$S$7=6,SP!E45,IF(cal!$S$7=7,SW!E45,IF(cal!$S$7=8,TS!E45,IF(cal!$S$7=9,ExtraTaal1!E45,IF(cal!$S$7=10,ExtraTaal2!E45,IF(cal!$S$7=11,ExtraTaal3!E45,))))))))))) -> 0 | G46: =IF($S$7=1,NL!F45,IF(cal!$S$7=2,EN!F45,IF(cal!$S$7=3,DE!F45,IF(cal!$S$7=4,FR!F45,IF(cal!$S$7=5,NR!F45,IF(cal!$S$7=6,SP!F45,IF(cal!$S$7=7,SW!F45,IF(cal!$S$7=8,TS!F45,IF(cal!$S$7=9,ExtraTaal1!F45,IF(cal!$S$7=10,ExtraTaal2!F45,IF(cal!$S$7=11,ExtraTaal3!F45,))))))))))) -> 0 | H46: =IF($S$7=1,NL!G45,IF(cal!$S$7=2,EN!G45,IF(cal!$S$7=3,DE!G45,IF(cal!$S$7=4,FR!G45,IF(cal!$S$7=5,NR!G45,IF(cal!$S$7=6,SP!G45,IF(cal!$S$7=7,SW!G45,IF(cal!$S$7=8,TS!G45,IF(cal!$S$7=9,ExtraTaal1!G45,IF(cal!$S$7=10,ExtraTaal2!G45,IF(cal!$S$7=11,ExtraTaal3!G45,))))))))))) -> 0 | I46: =IF($S$7=1,NL!H45,IF(cal!$S$7=2,EN!H45,IF(cal!$S$7=3,DE!H45,IF(cal!$S$7=4,FR!H45,IF(cal!$S$7=5,NR!H45,IF(cal!$S$7=6,SP!H45,IF(cal!$S$7=7,SW!H45,IF(cal!$S$7=8,TS!H45,IF(cal!$S$7=9,ExtraTaal1!H45,IF(cal!$S$7=10,ExtraTaal2!H45,IF(cal!$S$7=11,ExtraTaal3!H45,))))))))))) -> 0 | J46: =IF($S$7=1,NL!I45,IF(cal!$S$7=2,EN!I45,IF(cal!$S$7=3,DE!I45,IF(cal!$S$7=4,FR!I45,IF(cal!$S$7=5,NR!I45,IF(cal!$S$7=6,SP!I45,IF(cal!$S$7=7,SW!I45,IF(cal!$S$7=8,TS!I45,IF(cal!$S$7=9,ExtraTaal1!I45,IF(cal!$S$7=10,ExtraTaal2!I45,IF(cal!$S$7=11,ExtraTaal3!I45,))))))))))) -> 0 | K46: =IF($S$7=1,NL!J45,IF(cal!$S$7=2,EN!J45,IF(cal!$S$7=3,DE!J45,IF(cal!$S$7=4,FR!J45,IF(cal!$S$7=5,NR!J45,IF(cal!$S$7=6,SP!J45,IF(cal!$S$7=7,SW!J45,IF(cal!$S$7=8,TS!J45,IF(cal!$S$7=9,ExtraTaal1!J45,IF(cal!$S$7=10,ExtraTaal2!J45,IF(cal!$S$7=11,ExtraTaal3!J45,))))))))))) -> 0 | L46: =IF($S$7=1,NL!K45,IF(cal!$S$7=2,EN!K45,IF(cal!$S$7=3,DE!K45,IF(cal!$S$7=4,FR!K45,IF(cal!$S$7=5,NR!K45,IF(cal!$S$7=6,SP!K45,IF(cal!$S$7=7,SW!K45,IF(cal!$S$7=8,TS!K45,IF(cal!$S$7=9,ExtraTaal1!K45,IF(cal!$S$7=10,ExtraTaal2!K45,IF(cal!$S$7=11,ExtraTaal3!K45,))))))))))) -> 0 | M46: =IF($S$7=1,NL!L45,IF(cal!$S$7=2,EN!L45,IF(cal!$S$7=3,DE!L45,IF(cal!$S$7=4,FR!L45,IF(cal!$S$7=5,NR!L45,IF(cal!$S$7=6,SP!L45,IF(cal!$S$7=7,SW!L45,IF(cal!$S$7=8,TS!L45,IF(cal!$S$7=9,ExtraTaal1!L45,IF(cal!$S$7=10,ExtraTaal2!L45,IF(cal!$S$7=11,ExtraTaal3!L45,))))))))))) -> 0 | N46: =IF($S$7=1,NL!M45,IF(cal!$S$7=2,EN!M45,IF(cal!$S$7=3,DE!M45,IF(cal!$S$7=4,FR!M45,IF(cal!$S$7=5,NR!M45,IF(cal!$S$7=6,SP!M45,IF(cal!$S$7=7,SW!M45,IF(cal!$S$7=8,TS!M45,IF(cal!$S$7=9,ExtraTaal1!M45,IF(cal!$S$7=10,ExtraTaal2!M45,IF(cal!$S$7=11,ExtraTaal3!M45,))))))))))) -> 0 | O46: =IF($S$7=1,NL!N45,IF(cal!$S$7=2,EN!N45,IF(cal!$S$7=3,DE!N45,IF(cal!$S$7=4,FR!N45,IF(cal!$S$7=5,NR!N45,IF(cal!$S$7=6,SP!N45,IF(cal!$S$7=7,SW!N45,IF(cal!$S$7=8,TS!N45,IF(cal!$S$7=9,ExtraTaal1!N45,IF(cal!$S$7=10,ExtraTaal2!N45,IF(cal!$S$7=11,ExtraTaal3!N45,))))))))))) -> 0 | P46: =IF($S$7=1,NL!O45,IF(cal!$S$7=2,EN!O45,IF(cal!$S$7=3,DE!O45,IF(cal!$S$7=4,FR!O45,IF(cal!$S$7=5,NR!O45,IF(cal!$S$7=6,SP!O45,IF(cal!$S$7=7,SW!O45,IF(cal!$S$7=8,TS!O45,IF(cal!$S$7=9,ExtraTaal1!O45,IF(cal!$S$7=10,ExtraTaal2!O45,IF(cal!$S$7=11,ExtraTaal3!O45,))))))))))) -> 0 | Q46: n-value | R46: 0 | X46: =IF($X$16=1,AE46,IF($X$16=2,AM46,IF($X$16=3,BL46,IF($X$16=4,BE46,IF($X$16=5,CA46,IF($X$16=6,BT46,IF($X$16=7,AX46,))))))) -> 0 | Y46: =IF($X$16=1,AF46,IF($X$16=2,AN46,IF($X$16=3,BM46,IF($X$16=4,BF46,IF($X$16=5,CB46,IF($X$16=6,BU46,IF($X$16=7,AY46,))))))) -> 0 | Z46: =IF($X$16=1,AG46,IF($X$16=2,AO46,IF($X$16=3,BN46,IF($X$16=4,BG46,IF($X$16=5,CC46,IF($X$16=6,BV46,IF($X$16=7,AZ46,))))))) -> 0 | AA46: =IF($X$16=1,AH46,IF($X$16=2,AP46,IF($X$16=3,BO46,IF($X$16=4,BH46,IF($X$16=5,CD46,IF($X$16=6,BW46,IF($X$16=7,BA46,))))))) -> 0 | AB46: =IF($X$16=1,AI46,IF($X$16=2,AQ46,IF($X$16=3,BP46,IF($X$16=4,BI46,IF($X$16=5,CE46,IF($X$16=6,BX46,IF($X$16=7,BB46,))))))) -> 0 | AC46: =IF($X$16=1,AJ46,IF($X$16=2,AR46,IF($X$16=3,BQ46,IF($X$16=4,BJ46,IF($X$16=5,CF46,IF($X$16=6,BY46,IF($X$16=7,BC46,))))))) -> 0 | AD46: =IF($X$16=1,AK46,IF($X$16=2,AS46,IF($X$16=3,BR46,IF($X$16=4,BK46,IF($X$16=5,CG46,IF($X$16=6,BZ46,IF($X$16=7,BD46,))))))) -> 0
B47: 0.2 | C47: 2 | D47: =(X47*($T$11^$Q47))*Watts*CF_Altit -> 0 | E47: =ROUND(((D47/Watts)/(($S$9-$S$10)*1.163))*$E$14,IF($X$4=1,0,IF($X$4=2,2))) -> 0 | F47: =($Y$48*(E47/$E$14)^$Y$50)*$F$14 ->  | G47: =(Z47*($W$11^R47))*Watts*CF_Altit -> 0 | H47: =((G47/Watts)/(IF((237.3*LN((RH*EXP(17.27*(Tl_cool/(Tl_cool+237.3))))))/(17.27-LN((RH*EXP(17.27*(Tl_cool/(Tl_cool+237.3))))))<Tavg_cold,1,IF(1/(1+((2258*((0.622/(($Z$11/(1*611*EXP(17.27*(Tavg_cold/(Tavg_cold+237.3))))))-1)*1000-(0.622/(($Z$11/(RH*611*EXP(17.27*(Tl_cool/(Tl_cool+237.3))))))-1)*1000))/(1005*(Tavg_cold-Tl_cool))))*1.039+((-0.000729*$C47+0.001448)*(Tl_cool-Tavg_cold)+(0.016908*$C47-0.033574))*1.039>1,1,1/(1+((2258*((0.622/(($Z$11/(1*611*EXP(17.27*(Tavg_cold/(Tavg_cold+237.3))))))-1)*1000-(0.622/(($Z$11/(RH*611*EXP(17.27*(Tl_cool/(Tl_cool+237.3))))))-1)*1000))/(1005*(Tavg_cold-Tl_cool))))*1.039+((-0.000729*$C47+0.001448)*(Tl_cool-Tavg_cold)+(0.016908*$C47-0.033574))*1.039))))*Watts -> 0 | I47: =ROUND(((H47/Watts)/((Tr_cool-Tv_cool)*1.163))*$I$14,IF($X$4=1,0,IF($X$4=2,2))) -> 0 | J47: =($AA$48*(I47/$I$14)^$AA$50)*$J$14 ->  | K47: =L47-8 -> -8 | L47: =AB47 -> 0 | M47: 0 | N47: =AD47*Cubics -> 0 | O47: =((($D47/Watts)/(((p_atm*0.028964)/(8.31447*(20+273.15)))*(($N47/3600)/Cubics)*(1005+1870*((0.622)/(((p_atm)/($E$12*Pvs_Heat_in))-1)))))+Tl_heat)*Celc1+Celc2 ->  | P47: =(Tl_cool-(($G47/Watts)/(1006*$N47*kgss)))*Celc1+Celc2 ->  | Q47: 1 | R47: 0 | W47: =(H47-G47)/H47 ->  | X47: =IF($X$16=1,AE47,IF($X$16=2,AM47,IF($X$16=3,BL47,IF($X$16=4,BE47,IF($X$16=5,CA47,IF($X$16=6,BT47,IF($X$16=7,AX47,))))))) -> 0 | Y47: =IF($X$16=1,AF47,IF($X$16=2,AN47,IF($X$16=3,BM47,IF($X$16=4,BF47,IF($X$16=5,CB47,IF($X$16=6,BU47,IF($X$16=7,AY47,))))))) -> 0 | Z47: =IF($X$16=1,AG47,IF($X$16=2,AO47,IF($X$16=3,BN47,IF($X$16=4,BG47,IF($X$16=5,CC47,IF($X$16=6,BV47,IF($X$16=7,AZ47,))))))) -> 0 | AA47: =IF($X$16=1,AH47,IF($X$16=2,AP47,IF($X$16=3,BO47,IF($X$16=4,BH47,IF($X$16=5,CD47,IF($X$16=6,BW47,IF($X$16=7,BA47,))))))) -> 0 | AB47: =IF($X$16=1,AI47,IF($X$16=2,AQ47,IF($X$16=3,BP47,IF($X$16=4,BI47,IF($X$16=5,CE47,IF($X$16=6,BX47,IF($X$16=7,BB47,))))))) -> 0 | AC47: =IF($X$16=1,AJ47,IF($X$16=2,AR47,IF($X$16=3,BQ47,IF($X$16=4,BJ47,IF($X$16=5,CF47,IF($X$16=6,BY47,IF($X$16=7,BC47,))))))) -> 0 | AD47: =IF($X$16=1,AK47,IF($X$16=2,AS47,IF($X$16=3,BR47,IF($X$16=4,BK47,IF($X$16=5,CG47,IF($X$16=6,BZ47,IF($X$16=7,BD47,))))))) -> 0
B48: 0.4 | C48: 4 | D48: =(X48*($T$11^$Q48))*Watts*CF_Altit -> 0 | E48: =ROUND(((D48/Watts)/(($S$9-$S$10)*1.163))*$E$14,IF($X$4=1,0,IF($X$4=2,2))) -> 0 | F48: =($Y$48*(E48/$E$14)^$Y$50)*$F$14 ->  | G48: =(Z48*($W$11^R48))*Watts*CF_Altit -> 0 | H48: =((G48/Watts)/(IF((237.3*LN((RH*EXP(17.27*(Tl_cool/(Tl_cool+237.3))))))/(17.27-LN((RH*EXP(17.27*(Tl_cool/(Tl_cool+237.3))))))<Tavg_cold,1,IF(1/(1+((2258*((0.622/(($Z$11/(1*611*EXP(17.27*(Tavg_cold/(Tavg_cold+237.3))))))-1)*1000-(0.622/(($Z$11/(RH*611*EXP(17.27*(Tl_cool/(Tl_cool+237.3))))))-1)*1000))/(1005*(Tavg_cold-Tl_cool))))*1.039+((-0.000729*$C48+0.001448)*(Tl_cool-Tavg_cold)+(0.016908*$C48-0.033574))*1.039>1,1,1/(1+((2258*((0.622/(($Z$11/(1*611*EXP(17.27*(Tavg_cold/(Tavg_cold+237.3))))))-1)*1000-(0.622/(($Z$11/(RH*611*EXP(17.27*(Tl_cool/(Tl_cool+237.3))))))-1)*1000))/(1005*(Tavg_cold-Tl_cool))))*1.039+((-0.000729*$C48+0.001448)*(Tl_cool-Tavg_cold)+(0.016908*$C48-0.033574))*1.039))))*Watts -> 0 | I48: =ROUND(((H48/Watts)/((Tr_cool-Tv_cool)*1.163))*$I$14,IF($X$4=1,0,IF($X$4=2,2))) -> 0 | J48: =($AA$48*(I48/$I$14)^$AA$50)*$J$14 ->  | K48: =L48-8 -> -8 | L48: 0 | M48: 0 | N48: =AD48*Cubics -> 0 | O48: =((($D48/Watts)/(((p_atm*0.028964)/(8.31447*(20+273.15)))*(($N48/3600)/Cubics)*(1005+1870*((0.622)/(((p_atm)/($E$12*Pvs_Heat_in))-1)))))+Tl_heat)*Celc1+Celc2 ->  | P48: =(Tl_cool-(($G48/Watts)/(1006*$N48*kgss)))*Celc1+Celc2 ->  | Q48: 1 | R48: 0 | W48: =(H48-G48)/H48 ->  | X48: =IF($X$16=1,AE48,IF($X$16=2,AM48,IF($X$16=3,BL48,IF($X$16=4,BE48,IF($X$16=5,CA48,IF($X$16=6,BT48,IF($X$16=7,AX48,))))))) -> 0 | Y48: =IF($X$16=1,AF48,IF($X$16=2,AN48,IF($X$16=3,BM48,IF($X$16=4,BF48,IF($X$16=5,CB48,IF($X$16=6,BU48,IF($X$16=7,AY48,))))))) -> 0 | Z48: =IF($X$16=1,AG48,IF($X$16=2,AO48,IF($X$16=3,BN48,IF($X$16=4,BG48,IF($X$16=5,CC48,IF($X$16=6,BV48,IF($X$16=7,AZ48,))))))) -> 0 | AA48: =IF($X$16=1,AH48,IF($X$16=2,AP48,IF($X$16=3,BO48,IF($X$16=4,BH48,IF($X$16=5,CD48,IF($X$16=6,BW48,IF($X$16=7,BA48,))))))) -> 0 | AB48: =IF($X$16=1,AI48,IF($X$16=2,AQ48,IF($X$16=3,BP48,IF($X$16=4,BI48,IF($X$16=5,CE48,IF($X$16=6,BX48,IF($X$16=7,BB48,))))))) -> 0 | AC48: =IF($X$16=1,AJ48,IF($X$16=2,AR48,IF($X$16=3,BQ48,IF($X$16=4,BJ48,IF($X$16=5,CF48,IF($X$16=6,BY48,IF($X$16=7,BC48,))))))) -> 0 | AD48: =IF($X$16=1,AK48,IF($X$16=2,AS48,IF($X$16=3,BR48,IF($X$16=4,BK48,IF($X$16=5,CG48,IF($X$16=6,BZ48,IF($X$16=7,BD48,))))))) -> 0
B49: 0.6 | C49: 6 | D49: =(X49*($T$11^$Q49))*Watts*CF_Altit -> 0 | E49: =ROUND(((D49/Watts)/(($S$9-$S$10)*1.163))*$E$14,IF($X$4=1,0,IF($X$4=2,2))) -> 0 | F49: =($Y$48*(E49/$E$14)^$Y$50)*$F$14 ->  | G49: =(Z49*($W$11^R49))*Watts*CF_Altit -> 0 | H49: =((G49/Watts)/(IF((237.3*LN((RH*EXP(17.27*(Tl_cool/(Tl_cool+237.3))))))/(17.27-LN((RH*EXP(17.27*(Tl_cool/(Tl_cool+237.3))))))<Tavg_cold,1,IF(1/(1+((2258*((0.622/(($Z$11/(1*611*EXP(17.27*(Tavg_cold/(Tavg_cold+237.3))))))-1)*1000-(0.622/(($Z$11/(RH*611*EXP(17.27*(Tl_cool/(Tl_cool+237.3))))))-1)*1000))/(1005*(Tavg_cold-Tl_cool))))*1.039+((-0.000729*$C49+0.001448)*(Tl_cool-Tavg_cold)+(0.016908*$C49-0.033574))*1.039>1,1,1/(1+((2258*((0.622/(($Z$11/(1*611*EXP(17.27*(Tavg_cold/(Tavg_cold+237.3))))))-1)*1000-(0.622/(($Z$11/(RH*611*EXP(17.27*(Tl_cool/(Tl_cool+237.3))))))-1)*1000))/(1005*(Tavg_cold-Tl_cool))))*1.039+((-0.000729*$C49+0.001448)*(Tl_cool-Tavg_cold)+(0.016908*$C49-0.033574))*1.039))))*Watts -> 0 | I49: =ROUND(((H49/Watts)/((Tr_cool-Tv_cool)*1.163))*$I$14,IF($X$4=1,0,IF($X$4=2,2))) -> 0 | J49: =($AA$48*(I49/$I$14)^$AA$50)*$J$14 ->  | K49: =L49-8 -> -8 | L49: 0 | M49: 0 | N49: =AD49*Cubics -> 0 | O49: =((($D49/Watts)/(((p_atm*0.028964)/(8.31447*(20+273.15)))*(($N49/3600)/Cubics)*(1005+1870*((0.622)/(((p_atm)/($E$12*Pvs_Heat_in))-1)))))+Tl_heat)*Celc1+Celc2 ->  | P49: =(Tl_cool-(($G49/Watts)/(1006*$N49*kgss)))*Celc1+Celc2 ->  | Q49: 1 | R49: 0 | W49: =(H49-G49)/H49 ->  | X49: =IF($X$16=1,AE49,IF($X$16=2,AM49,IF($X$16=3,BL49,IF($X$16=4,BE49,IF($X$16=5,CA49,IF($X$16=6,BT49,IF($X$16=7,AX49,))))))) -> 0 | Y49: =IF($X$16=1,AF49,IF($X$16=2,AN49,IF($X$16=3,BM49,IF($X$16=4,BF49,IF($X$16=5,CB49,IF($X$16=6,BU49,IF($X$16=7,AY49,))))))) -> 0 | Z49: =IF($X$16=1,AG49,IF($X$16=2,AO49,IF($X$16=3,BN49,IF($X$16=4,BG49,IF($X$16=5,CC49,IF($X$16=6,BV49,IF($X$16=7,AZ49,))))))) -> 0 | AA49: =IF($X$16=1,AH49,IF($X$16=2,AP49,IF($X$16=3,BO49,IF($X$16=4,BH49,IF($X$16=5,CD49,IF($X$16=6,BW49,IF($X$16=7,BA49,))))))) -> 0 | AB49: =IF($X$16=1,AI49,IF($X$16=2,AQ49,IF($X$16=3,BP49,IF($X$16=4,BI49,IF($X$16=5,CE49,IF($X$16=6,BX49,IF($X$16=7,BB49,))))))) -> 0 | AC49: =IF($X$16=1,AJ49,IF($X$16=2,AR49,IF($X$16=3,BQ49,IF($X$16=4,BJ49,IF($X$16=5,CF49,IF($X$16=6,BY49,IF($X$16=7,BC49,))))))) -> 0 | AD49: =IF($X$16=1,AK49,IF($X$16=2,AS49,IF($X$16=3,BR49,IF($X$16=4,BK49,IF($X$16=5,CG49,IF($X$16=6,BZ49,IF($X$16=7,BD49,))))))) -> 0
B50: 0.8 | C50: 8 | D50: =(X50*($T$11^$Q50))*Watts*CF_Altit -> 0 | E50: =ROUND(((D50/Watts)/(($S$9-$S$10)*1.163))*$E$14,IF($X$4=1,0,IF($X$4=2,2))) -> 0 | F50: =($Y$48*(E50/$E$14)^$Y$50)*$F$14 ->  | G50: =(Z50*($W$11^R50))*Watts*CF_Altit -> 0 | H50: =((G50/Watts)/(IF((237.3*LN((RH*EXP(17.27*(Tl_cool/(Tl_cool+237.3))))))/(17.27-LN((RH*EXP(17.27*(Tl_cool/(Tl_cool+237.3))))))<Tavg_cold,1,IF(1/(1+((2258*((0.622/(($Z$11/(1*611*EXP(17.27*(Tavg_cold/(Tavg_cold+237.3))))))-1)*1000-(0.622/(($Z$11/(RH*611*EXP(17.27*(Tl_cool/(Tl_cool+237.3))))))-1)*1000))/(1005*(Tavg_cold-Tl_cool))))*1.039+((-0.000729*$C50+0.001448)*(Tl_cool-Tavg_cold)+(0.016908*$C50-0.033574))*1.039>1,1,1/(1+((2258*((0.622/(($Z$11/(1*611*EXP(17.27*(Tavg_cold/(Tavg_cold+237.3))))))-1)*1000-(0.622/(($Z$11/(RH*611*EXP(17.27*(Tl_cool/(Tl_cool+237.3))))))-1)*1000))/(1005*(Tavg_cold-Tl_cool))))*1.039+((-0.000729*$C50+0.001448)*(Tl_cool-Tavg_cold)+(0.016908*$C50-0.033574))*1.039))))*Watts -> 0 | I50: =ROUND(((H50/Watts)/((Tr_cool-Tv_cool)*1.163))*$I$14,IF($X$4=1,0,IF($X$4=2,2))) -> 0 | J50: =($AA$48*(I50/$I$14)^$AA$50)*$J$14 ->  | K50: =L50-8 -> -8 | L50: 0 | M50: 0 | N50: =AD50*Cubics -> 0 | O50: =((($D50/Watts)/(((p_atm*0.028964)/(8.31447*(20+273.15)))*(($N50/3600)/Cubics)*(1005+1870*((0.622)/(((p_atm)/($E$12*Pvs_Heat_in))-1)))))+Tl_heat)*Celc1+Celc2 ->  | P50: =(Tl_cool-(($G50/Watts)/(1006*$N50*kgss)))*Celc1+Celc2 ->  | Q50: 1 | R50: 0 | W50: =(H50-G50)/H50 ->  | X50: =IF($X$16=1,AE50,IF($X$16=2,AM50,IF($X$16=3,BL50,IF($X$16=4,BE50,IF($X$16=5,CA50,IF($X$16=6,BT50,IF($X$16=7,AX50,))))))) -> 0 | Y50: =IF($X$16=1,AF50,IF($X$16=2,AN50,IF($X$16=3,BM50,IF($X$16=4,BF50,IF($X$16=5,CB50,IF($X$16=6,BU50,IF($X$16=7,AY50,))))))) -> 0 | Z50: =IF($X$16=1,AG50,IF($X$16=2,AO50,IF($X$16=3,BN50,IF($X$16=4,BG50,IF($X$16=5,CC50,IF($X$16=6,BV50,IF($X$16=7,AZ50,))))))) -> 0 | AA50: =IF($X$16=1,AH50,IF($X$16=2,AP50,IF($X$16=3,BO50,IF($X$16=4,BH50,IF($X$16=5,CD50,IF($X$16=6,BW50,IF($X$16=7,BA50,))))))) -> 0 | AB50: =IF($X$16=1,AI50,IF($X$16=2,AQ50,IF($X$16=3,BP50,IF($X$16=4,BI50,IF($X$16=5,CE50,IF($X$16=6,BX50,IF($X$16=7,BB50,))))))) -> 0 | AC50: =IF($X$16=1,AJ50,IF($X$16=2,AR50,IF($X$16=3,BQ50,IF($X$16=4,BJ50,IF($X$16=5,CF50,IF($X$16=6,BY50,IF($X$16=7,BC50,))))))) -> 0 | AD50: =IF($X$16=1,AK50,IF($X$16=2,AS50,IF($X$16=3,BR50,IF($X$16=4,BK50,IF($X$16=5,CG50,IF($X$16=6,BZ50,IF($X$16=7,BD50,))))))) -> 0
B51: 1 | C51: 10 | D51: =(X51*($T$11^$Q51))*Watts*CF_Altit -> 0 | E51: =ROUND(((D51/Watts)/(($S$9-$S$10)*1.163))*$E$14,IF($X$4=1,0,IF($X$4=2,2))) -> 0 | F51: =($Y$48*(E51/$E$14)^$Y$50)*$F$14 ->  | G51: =(Z51*($W$11^R51))*Watts*CF_Altit -> 0 | H51: =((G51/Watts)/(IF((237.3*LN((RH*EXP(17.27*(Tl_cool/(Tl_cool+237.3))))))/(17.27-LN((RH*EXP(17.27*(Tl_cool/(Tl_cool+237.3))))))<Tavg_cold,1,IF(1/(1+((2258*((0.622/(($Z$11/(1*611*EXP(17.27*(Tavg_cold/(Tavg_cold+237.3))))))-1)*1000-(0.622/(($Z$11/(RH*611*EXP(17.27*(Tl_cool/(Tl_cool+237.3))))))-1)*1000))/(1005*(Tavg_cold-Tl_cool))))*1.039+((-0.000729*$C51+0.001448)*(Tl_cool-Tavg_cold)+(0.016908*$C51-0.033574))*1.039>1,1,1/(1+((2258*((0.622/(($Z$11/(1*611*EXP(17.27*(Tavg_cold/(Tavg_cold+237.3))))))-1)*1000-(0.622/(($Z$11/(RH*611*EXP(17.27*(Tl_cool/(Tl_cool+237.3))))))-1)*1000))/(1005*(Tavg_cold-Tl_cool))))*1.039+((-0.000729*$C51+0.001448)*(Tl_cool-Tavg_cold)+(0.016908*$C51-0.033574))*1.039))))*Watts -> 0 | I51: =ROUND(((H51/Watts)/((Tr_cool-Tv_cool)*1.163))*$I$14,IF($X$4=1,0,IF($X$4=2,2))) -> 0 | J51: =($AA$48*(I51/$I$14)^$AA$50)*$J$14 ->  | K51: =L51-8 -> -8 | L51: 0 | M51: 0 | N51: =AD51*Cubics -> 0 | O51: =((($D51/Watts)/(((p_atm*0.028964)/(8.31447*(20+273.15)))*(($N51/3600)/Cubics)*(1005+1870*((0.622)/(((p_atm)/($E$12*Pvs_Heat_in))-1)))))+Tl_heat)*Celc1+Celc2 ->  | P51: =(Tl_cool-(($G51/Watts)/(1006*$N51*kgss)))*Celc1+Celc2 ->  | Q51: 1 | R51: 0 | W51: =(H51-G51)/H51 ->  | X51: =IF($X$16=1,AE51,IF($X$16=2,AM51,IF($X$16=3,BL51,IF($X$16=4,BE51,IF($X$16=5,CA51,IF($X$16=6,BT51,IF($X$16=7,AX51,))))))) -> 0 | Y51: =IF($X$16=1,AF51,IF($X$16=2,AN51,IF($X$16=3,BM51,IF($X$16=4,BF51,IF($X$16=5,CB51,IF($X$16=6,BU51,IF($X$16=7,AY51,))))))) -> 0 | Z51: =IF($X$16=1,AG51,IF($X$16=2,AO51,IF($X$16=3,BN51,IF($X$16=4,BG51,IF($X$16=5,CC51,IF($X$16=6,BV51,IF($X$16=7,AZ51,))))))) -> 0 | AA51: =IF($X$16=1,AH51,IF($X$16=2,AP51,IF($X$16=3,BO51,IF($X$16=4,BH51,IF($X$16=5,CD51,IF($X$16=6,BW51,IF($X$16=7,BA51,))))))) -> 0 | AB51: =IF($X$16=1,AI51,IF($X$16=2,AQ51,IF($X$16=3,BP51,IF($X$16=4,BI51,IF($X$16=5,CE51,IF($X$16=6,BX51,IF($X$16=7,BB51,))))))) -> 0 | AC51: =IF($X$16=1,AJ51,IF($X$16=2,AR51,IF($X$16=3,BQ51,IF($X$16=4,BJ51,IF($X$16=5,CF51,IF($X$16=6,BY51,IF($X$16=7,BC51,))))))) -> 0 | AD51: =IF($X$16=1,AK51,IF($X$16=2,AS51,IF($X$16=3,BR51,IF($X$16=4,BK51,IF($X$16=5,CG51,IF($X$16=6,BZ51,IF($X$16=7,BD51,))))))) -> 0
B52: =IF($S$7=1,NL!A51,IF(cal!$S$7=2,EN!A51,IF(cal!$S$7=3,DE!A51,IF(cal!$S$7=4,FR!A51,IF(cal!$S$7=5,NR!A51,IF(cal!$S$7=6,SP!A51,IF(cal!$S$7=7,SW!A51,IF(cal!$S$7=8,TS!A51,IF(cal!$S$7=9,ExtraTaal1!A51,IF(cal!$S$7=10,ExtraTaal2!A51,IF(cal!$S$7=11,ExtraTaal3!A51,))))))))))) -> Freedom height 0 cm width 0 cm length 0 cm (Type 7) | C52: =IF($S$7=1,NL!B51,IF(cal!$S$7=2,EN!B51,IF(cal!$S$7=3,DE!B51,IF(cal!$S$7=4,FR!B51,IF(cal!$S$7=5,NR!B51,IF(cal!$S$7=6,SP!B51,IF(cal!$S$7=7,SW!B51,IF(cal!$S$7=8,TS!B51,IF(cal!$S$7=9,ExtraTaal1!B51,IF(cal!$S$7=10,ExtraTaal2!B51,IF(cal!$S$7=11,ExtraTaal3!B51,))))))))))) -> 0 | D52: =IF($S$7=1,NL!C51,IF(cal!$S$7=2,EN!C51,IF(cal!$S$7=3,DE!C51,IF(cal!$S$7=4,FR!C51,IF(cal!$S$7=5,NR!C51,IF(cal!$S$7=6,SP!C51,IF(cal!$S$7=7,SW!C51,IF(cal!$S$7=8,TS!C51,IF(cal!$S$7=9,ExtraTaal1!C51,IF(cal!$S$7=10,ExtraTaal2!C51,IF(cal!$S$7=11,ExtraTaal3!C51,))))))))))) -> 0 | E52: =IF($S$7=1,NL!D51,IF(cal!$S$7=2,EN!D51,IF(cal!$S$7=3,DE!D51,IF(cal!$S$7=4,FR!D51,IF(cal!$S$7=5,NR!D51,IF(cal!$S$7=6,SP!D51,IF(cal!$S$7=7,SW!D51,IF(cal!$S$7=8,TS!D51,IF(cal!$S$7=9,ExtraTaal1!D51,IF(cal!$S$7=10,ExtraTaal2!D51,IF(cal!$S$7=11,ExtraTaal3!D51,))))))))))) -> 0 | F52: =IF($S$7=1,NL!E51,IF(cal!$S$7=2,EN!E51,IF(cal!$S$7=3,DE!E51,IF(cal!$S$7=4,FR!E51,IF(cal!$S$7=5,NR!E51,IF(cal!$S$7=6,SP!E51,IF(cal!$S$7=7,SW!E51,IF(cal!$S$7=8,TS!E51,IF(cal!$S$7=9,ExtraTaal1!E51,IF(cal!$S$7=10,ExtraTaal2!E51,IF(cal!$S$7=11,ExtraTaal3!E51,))))))))))) -> 0 | G52: =IF($S$7=1,NL!F51,IF(cal!$S$7=2,EN!F51,IF(cal!$S$7=3,DE!F51,IF(cal!$S$7=4,FR!F51,IF(cal!$S$7=5,NR!F51,IF(cal!$S$7=6,SP!F51,IF(cal!$S$7=7,SW!F51,IF(cal!$S$7=8,TS!F51,IF(cal!$S$7=9,ExtraTaal1!F51,IF(cal!$S$7=10,ExtraTaal2!F51,IF(cal!$S$7=11,ExtraTaal3!F51,))))))))))) -> 0 | H52: =IF($S$7=1,NL!G51,IF(cal!$S$7=2,EN!G51,IF(cal!$S$7=3,DE!G51,IF(cal!$S$7=4,FR!G51,IF(cal!$S$7=5,NR!G51,IF(cal!$S$7=6,SP!G51,IF(cal!$S$7=7,SW!G51,IF(cal!$S$7=8,TS!G51,IF(cal!$S$7=9,ExtraTaal1!G51,IF(cal!$S$7=10,ExtraTaal2!G51,IF(cal!$S$7=11,ExtraTaal3!G51,))))))))))) -> 0 | I52: =IF($S$7=1,NL!H51,IF(cal!$S$7=2,EN!H51,IF(cal!$S$7=3,DE!H51,IF(cal!$S$7=4,FR!H51,IF(cal!$S$7=5,NR!H51,IF(cal!$S$7=6,SP!H51,IF(cal!$S$7=7,SW!H51,IF(cal!$S$7=8,TS!H51,IF(cal!$S$7=9,ExtraTaal1!H51,IF(cal!$S$7=10,ExtraTaal2!H51,IF(cal!$S$7=11,ExtraTaal3!H51,))))))))))) -> 0 | J52: =IF($S$7=1,NL!I51,IF(cal!$S$7=2,EN!I51,IF(cal!$S$7=3,DE!I51,IF(cal!$S$7=4,FR!I51,IF(cal!$S$7=5,NR!I51,IF(cal!$S$7=6,SP!I51,IF(cal!$S$7=7,SW!I51,IF(cal!$S$7=8,TS!I51,IF(cal!$S$7=9,ExtraTaal1!I51,IF(cal!$S$7=10,ExtraTaal2!I51,IF(cal!$S$7=11,ExtraTaal3!I51,))))))))))) -> 0 | K52: =IF($S$7=1,NL!J51,IF(cal!$S$7=2,EN!J51,IF(cal!$S$7=3,DE!J51,IF(cal!$S$7=4,FR!J51,IF(cal!$S$7=5,NR!J51,IF(cal!$S$7=6,SP!J51,IF(cal!$S$7=7,SW!J51,IF(cal!$S$7=8,TS!J51,IF(cal!$S$7=9,ExtraTaal1!J51,IF(cal!$S$7=10,ExtraTaal2!J51,IF(cal!$S$7=11,ExtraTaal3!J51,))))))))))) -> 0 | L52: =IF($S$7=1,NL!K51,IF(cal!$S$7=2,EN!K51,IF(cal!$S$7=3,DE!K51,IF(cal!$S$7=4,FR!K51,IF(cal!$S$7=5,NR!K51,IF(cal!$S$7=6,SP!K51,IF(cal!$S$7=7,SW!K51,IF(cal!$S$7=8,TS!K51,IF(cal!$S$7=9,ExtraTaal1!K51,IF(cal!$S$7=10,ExtraTaal2!K51,IF(cal!$S$7=11,ExtraTaal3!K51,))))))))))) -> 0 | M52: =IF($S$7=1,NL!L51,IF(cal!$S$7=2,EN!L51,IF(cal!$S$7=3,DE!L51,IF(cal!$S$7=4,FR!L51,IF(cal!$S$7=5,NR!L51,IF(cal!$S$7=6,SP!L51,IF(cal!$S$7=7,SW!L51,IF(cal!$S$7=8,TS!L51,IF(cal!$S$7=9,ExtraTaal1!L51,IF(cal!$S$7=10,ExtraTaal2!L51,IF(cal!$S$7=11,ExtraTaal3!L51,))))))))))) -> 0 | N52: =IF($S$7=1,NL!M51,IF(cal!$S$7=2,EN!M51,IF(cal!$S$7=3,DE!M51,IF(cal!$S$7=4,FR!M51,IF(cal!$S$7=5,NR!M51,IF(cal!$S$7=6,SP!M51,IF(cal!$S$7=7,SW!M51,IF(cal!$S$7=8,TS!M51,IF(cal!$S$7=9,ExtraTaal1!M51,IF(cal!$S$7=10,ExtraTaal2!M51,IF(cal!$S$7=11,ExtraTaal3!M51,))))))))))) -> 0 | O52: =IF($S$7=1,NL!N51,IF(cal!$S$7=2,EN!N51,IF(cal!$S$7=3,DE!N51,IF(cal!$S$7=4,FR!N51,IF(cal!$S$7=5,NR!N51,IF(cal!$S$7=6,SP!N51,IF(cal!$S$7=7,SW!N51,IF(cal!$S$7=8,TS!N51,IF(cal!$S$7=9,ExtraTaal1!N51,IF(cal!$S$7=10,ExtraTaal2!N51,IF(cal!$S$7=11,ExtraTaal3!N51,))))))))))) -> 0 | P52: =IF($S$7=1,NL!O51,IF(cal!$S$7=2,EN!O51,IF(cal!$S$7=3,DE!O51,IF(cal!$S$7=4,FR!O51,IF(cal!$S$7=5,NR!O51,IF(cal!$S$7=6,SP!O51,IF(cal!$S$7=7,SW!O51,IF(cal!$S$7=8,TS!O51,IF(cal!$S$7=9,ExtraTaal1!O51,IF(cal!$S$7=10,ExtraTaal2!O51,IF(cal!$S$7=11,ExtraTaal3!O51,))))))))))) -> 0 | Q52: n-value | R52: 0 | X52: =IF($X$16=1,AE52,IF($X$16=2,AM52,IF($X$16=3,BL52,IF($X$16=4,BE52,IF($X$16=5,CA52,IF($X$16=6,BT52,IF($X$16=7,AX52,))))))) -> 0 | Y52: =IF($X$16=1,AF52,IF($X$16=2,AN52,IF($X$16=3,BM52,IF($X$16=4,BF52,IF($X$16=5,CB52,IF($X$16=6,BU52,IF($X$16=7,AY52,))))))) -> 0 | Z52: =IF($X$16=1,AG52,IF($X$16=2,AO52,IF($X$16=3,BN52,IF($X$16=4,BG52,IF($X$16=5,CC52,IF($X$16=6,BV52,IF($X$16=7,AZ52,))))))) -> 0 | AA52: =IF($X$16=1,AH52,IF($X$16=2,AP52,IF($X$16=3,BO52,IF($X$16=4,BH52,IF($X$16=5,CD52,IF($X$16=6,BW52,IF($X$16=7,BA52,))))))) -> 0 | AB52: =IF($X$16=1,AI52,IF($X$16=2,AQ52,IF($X$16=3,BP52,IF($X$16=4,BI52,IF($X$16=5,CE52,IF($X$16=6,BX52,IF($X$16=7,BB52,))))))) -> 0 | AC52: =IF($X$16=1,AJ52,IF($X$16=2,AR52,IF($X$16=3,BQ52,IF($X$16=4,BJ52,IF($X$16=5,CF52,IF($X$16=6,BY52,IF($X$16=7,BC52,))))))) -> 0 | AD52: =IF($X$16=1,AK52,IF($X$16=2,AS52,IF($X$16=3,BR52,IF($X$16=4,BK52,IF($X$16=5,CG52,IF($X$16=6,BZ52,IF($X$16=7,BD52,))))))) -> 0
B53: 0.2 | C53: 2 | D53: =(X53*($T$11^$Q53))*Watts*CF_Altit -> 0 | E53: =ROUND(((D53/Watts)/(($S$9-$S$10)*1.163))*$E$14,IF($X$4=1,0,IF($X$4=2,2))) -> 0 | F53: =($Y$54*(E53/$E$14)^$Y$56)*$F$14 ->  | G53: =(Z53*($W$11^R53))*Watts*CF_Altit -> 0 | H53: =((G53/Watts)/(IF((237.3*LN((RH*EXP(17.27*(Tl_cool/(Tl_cool+237.3))))))/(17.27-LN((RH*EXP(17.27*(Tl_cool/(Tl_cool+237.3))))))<Tavg_cold,1,IF(1/(1+((2258*((0.622/(($Z$11/(1*611*EXP(17.27*(Tavg_cold/(Tavg_cold+237.3))))))-1)*1000-(0.622/(($Z$11/(RH*611*EXP(17.27*(Tl_cool/(Tl_cool+237.3))))))-1)*1000))/(1005*(Tavg_cold-Tl_cool))))*1.039+((-0.000729*$C53+0.001448)*(Tl_cool-Tavg_cold)+(0.016908*$C53-0.033574))*1.039>1,1,1/(1+((2258*((0.622/(($Z$11/(1*611*EXP(17.27*(Tavg_cold/(Tavg_cold+237.3))))))-1)*1000-(0.622/(($Z$11/(RH*611*EXP(17.27*(Tl_cool/(Tl_cool+237.3))))))-1)*1000))/(1005*(Tavg_cold-Tl_cool))))*1.039+((-0.000729*$C53+0.001448)*(Tl_cool-Tavg_cold)+(0.016908*$C53-0.033574))*1.039))))*Watts -> 0 | I53: =ROUND(((H53/Watts)/((Tr_cool-Tv_cool)*1.163))*$I$14,IF($X$4=1,0,IF($X$4=2,2))) -> 0 | J53: =($AA$54*(I53/$I$14)^$AA$56)*$J$14 ->  | K53: =L53-8 -> -8 | L53: =AB53 -> 0 | M53: 0 | N53: =AD53*Cubics -> 0 | O53: =((($D53/Watts)/(((p_atm*0.028964)/(8.31447*(20+273.15)))*(($N53/3600)/Cubics)*(1005+1870*((0.622)/(((p_atm)/($E$12*Pvs_Heat_in))-1)))))+Tl_heat)*Celc1+Celc2 ->  | P53: =(Tl_cool-(($G53/Watts)/(1006*$N53*kgss)))*Celc1+Celc2 ->  | Q53: 1 | R53: 0 | W53: =(H53-G53)/H53 ->  | X53: =IF($X$16=1,AE53,IF($X$16=2,AM53,IF($X$16=3,BL53,IF($X$16=4,BE53,IF($X$16=5,CA53,IF($X$16=6,BT53,IF($X$16=7,AX53,))))))) -> 0 | Y53: =IF($X$16=1,AF53,IF($X$16=2,AN53,IF($X$16=3,BM53,IF($X$16=4,BF53,IF($X$16=5,CB53,IF($X$16=6,BU53,IF($X$16=7,AY53,))))))) -> 0 | Z53: =IF($X$16=1,AG53,IF($X$16=2,AO53,IF($X$16=3,BN53,IF($X$16=4,BG53,IF($X$16=5,CC53,IF($X$16=6,BV53,IF($X$16=7,AZ53,))))))) -> 0 | AA53: =IF($X$16=1,AH53,IF($X$16=2,AP53,IF($X$16=3,BO53,IF($X$16=4,BH53,IF($X$16=5,CD53,IF($X$16=6,BW53,IF($X$16=7,BA53,))))))) -> 0 | AB53: =IF($X$16=1,AI53,IF($X$16=2,AQ53,IF($X$16=3,BP53,IF($X$16=4,BI53,IF($X$16=5,CE53,IF($X$16=6,BX53,IF($X$16=7,BB53,))))))) -> 0 | AC53: =IF($X$16=1,AJ53,IF($X$16=2,AR53,IF($X$16=3,BQ53,IF($X$16=4,BJ53,IF($X$16=5,CF53,IF($X$16=6,BY53,IF($X$16=7,BC53,))))))) -> 0 | AD53: =IF($X$16=1,AK53,IF($X$16=2,AS53,IF($X$16=3,BR53,IF($X$16=4,BK53,IF($X$16=5,CG53,IF($X$16=6,BZ53,IF($X$16=7,BD53,))))))) -> 0
B54: 0.4 | C54: 4 | D54: =(X54*($T$11^$Q54))*Watts*CF_Altit -> 0 | E54: =ROUND(((D54/Watts)/(($S$9-$S$10)*1.163))*$E$14,IF($X$4=1,0,IF($X$4=2,2))) -> 0 | F54: =($Y$54*(E54/$E$14)^$Y$56)*$F$14 ->  | G54: =(Z54*($W$11^R54))*Watts*CF_Altit -> 0 | H54: =((G54/Watts)/(IF((237.3*LN((RH*EXP(17.27*(Tl_cool/(Tl_cool+237.3))))))/(17.27-LN((RH*EXP(17.27*(Tl_cool/(Tl_cool+237.3))))))<Tavg_cold,1,IF(1/(1+((2258*((0.622/(($Z$11/(1*611*EXP(17.27*(Tavg_cold/(Tavg_cold+237.3))))))-1)*1000-(0.622/(($Z$11/(RH*611*EXP(17.27*(Tl_cool/(Tl_cool+237.3))))))-1)*1000))/(1005*(Tavg_cold-Tl_cool))))*1.039+((-0.000729*$C54+0.001448)*(Tl_cool-Tavg_cold)+(0.016908*$C54-0.033574))*1.039>1,1,1/(1+((2258*((0.622/(($Z$11/(1*611*EXP(17.27*(Tavg_cold/(Tavg_cold+237.3))))))-1)*1000-(0.622/(($Z$11/(RH*611*EXP(17.27*(Tl_cool/(Tl_cool+237.3))))))-1)*1000))/(1005*(Tavg_cold-Tl_cool))))*1.039+((-0.000729*$C54+0.001448)*(Tl_cool-Tavg_cold)+(0.016908*$C54-0.033574))*1.039))))*Watts -> 0 | I54: =ROUND(((H54/Watts)/((Tr_cool-Tv_cool)*1.163))*$I$14,IF($X$4=1,0,IF($X$4=2,2))) -> 0 | J54: =($AA$54*(I54/$I$14)^$AA$56)*$J$14 ->  | K54: =L54-8 -> -8 | L54: 0 | M54: 0 | N54: =AD54*Cubics -> 0 | O54: =((($D54/Watts)/(((p_atm*0.028964)/(8.31447*(20+273.15)))*(($N54/3600)/Cubics)*(1005+1870*((0.622)/(((p_atm)/($E$12*Pvs_Heat_in))-1)))))+Tl_heat)*Celc1+Celc2 ->  | P54: =(Tl_cool-(($G54/Watts)/(1006*$N54*kgss)))*Celc1+Celc2 ->  | Q54: 1 | R54: 0 | W54: =(H54-G54)/H54 ->  | X54: =IF($X$16=1,AE54,IF($X$16=2,AM54,IF($X$16=3,BL54,IF($X$16=4,BE54,IF($X$16=5,CA54,IF($X$16=6,BT54,IF($X$16=7,AX54,))))))) -> 0 | Y54: =IF($X$16=1,AF54,IF($X$16=2,AN54,IF($X$16=3,BM54,IF($X$16=4,BF54,IF($X$16=5,CB54,IF($X$16=6,BU54,IF($X$16=7,AY54,))))))) -> 0 | Z54: =IF($X$16=1,AG54,IF($X$16=2,AO54,IF($X$16=3,BN54,IF($X$16=4,BG54,IF($X$16=5,CC54,IF($X$16=6,BV54,IF($X$16=7,AZ54,))))))) -> 0 | AA54: =IF($X$16=1,AH54,IF($X$16=2,AP54,IF($X$16=3,BO54,IF($X$16=4,BH54,IF($X$16=5,CD54,IF($X$16=6,BW54,IF($X$16=7,BA54,))))))) -> 0 | AB54: =IF($X$16=1,AI54,IF($X$16=2,AQ54,IF($X$16=3,BP54,IF($X$16=4,BI54,IF($X$16=5,CE54,IF($X$16=6,BX54,IF($X$16=7,BB54,))))))) -> 0 | AC54: =IF($X$16=1,AJ54,IF($X$16=2,AR54,IF($X$16=3,BQ54,IF($X$16=4,BJ54,IF($X$16=5,CF54,IF($X$16=6,BY54,IF($X$16=7,BC54,))))))) -> 0 | AD54: =IF($X$16=1,AK54,IF($X$16=2,AS54,IF($X$16=3,BR54,IF($X$16=4,BK54,IF($X$16=5,CG54,IF($X$16=6,BZ54,IF($X$16=7,BD54,))))))) -> 0
B55: 0.6 | C55: 6 | D55: =(X55*($T$11^$Q55))*Watts*CF_Altit -> 0 | E55: =ROUND(((D55/Watts)/(($S$9-$S$10)*1.163))*$E$14,IF($X$4=1,0,IF($X$4=2,2))) -> 0 | F55: =($Y$54*(E55/$E$14)^$Y$56)*$F$14 ->  | G55: =(Z55*($W$11^R55))*Watts*CF_Altit -> 0 | H55: =((G55/Watts)/(IF((237.3*LN((RH*EXP(17.27*(Tl_cool/(Tl_cool+237.3))))))/(17.27-LN((RH*EXP(17.27*(Tl_cool/(Tl_cool+237.3))))))<Tavg_cold,1,IF(1/(1+((2258*((0.622/(($Z$11/(1*611*EXP(17.27*(Tavg_cold/(Tavg_cold+237.3))))))-1)*1000-(0.622/(($Z$11/(RH*611*EXP(17.27*(Tl_cool/(Tl_cool+237.3))))))-1)*1000))/(1005*(Tavg_cold-Tl_cool))))*1.039+((-0.000729*$C55+0.001448)*(Tl_cool-Tavg_cold)+(0.016908*$C55-0.033574))*1.039>1,1,1/(1+((2258*((0.622/(($Z$11/(1*611*EXP(17.27*(Tavg_cold/(Tavg_cold+237.3))))))-1)*1000-(0.622/(($Z$11/(RH*611*EXP(17.27*(Tl_cool/(Tl_cool+237.3))))))-1)*1000))/(1005*(Tavg_cold-Tl_cool))))*1.039+((-0.000729*$C55+0.001448)*(Tl_cool-Tavg_cold)+(0.016908*$C55-0.033574))*1.039))))*Watts -> 0 | I55: =ROUND(((H55/Watts)/((Tr_cool-Tv_cool)*1.163))*$I$14,IF($X$4=1,0,IF($X$4=2,2))) -> 0 | J55: =($AA$54*(I55/$I$14)^$AA$56)*$J$14 ->  | K55: =L55-8 -> -8 | L55: 0 | M55: 0 | N55: =AD55*Cubics -> 0 | O55: =((($D55/Watts)/(((p_atm*0.028964)/(8.31447*(20+273.15)))*(($N55/3600)/Cubics)*(1005+1870*((0.622)/(((p_atm)/($E$12*Pvs_Heat_in))-1)))))+Tl_heat)*Celc1+Celc2 ->  | P55: =(Tl_cool-(($G55/Watts)/(1006*$N55*kgss)))*Celc1+Celc2 ->  | Q55: 1 | R55: 0 | W55: =(H55-G55)/H55 ->  | X55: =IF($X$16=1,AE55,IF($X$16=2,AM55,IF($X$16=3,BL55,IF($X$16=4,BE55,IF($X$16=5,CA55,IF($X$16=6,BT55,IF($X$16=7,AX55,))))))) -> 0 | Y55: =IF($X$16=1,AF55,IF($X$16=2,AN55,IF($X$16=3,BM55,IF($X$16=4,BF55,IF($X$16=5,CB55,IF($X$16=6,BU55,IF($X$16=7,AY55,))))))) -> 0 | Z55: =IF($X$16=1,AG55,IF($X$16=2,AO55,IF($X$16=3,BN55,IF($X$16=4,BG55,IF($X$16=5,CC55,IF($X$16=6,BV55,IF($X$16=7,AZ55,))))))) -> 0 | AA55: =IF($X$16=1,AH55,IF($X$16=2,AP55,IF($X$16=3,BO55,IF($X$16=4,BH55,IF($X$16=5,CD55,IF($X$16=6,BW55,IF($X$16=7,BA55,))))))) -> 0 | AB55: =IF($X$16=1,AI55,IF($X$16=2,AQ55,IF($X$16=3,BP55,IF($X$16=4,BI55,IF($X$16=5,CE55,IF($X$16=6,BX55,IF($X$16=7,BB55,))))))) -> 0 | AC55: =IF($X$16=1,AJ55,IF($X$16=2,AR55,IF($X$16=3,BQ55,IF($X$16=4,BJ55,IF($X$16=5,CF55,IF($X$16=6,BY55,IF($X$16=7,BC55,))))))) -> 0 | AD55: =IF($X$16=1,AK55,IF($X$16=2,AS55,IF($X$16=3,BR55,IF($X$16=4,BK55,IF($X$16=5,CG55,IF($X$16=6,BZ55,IF($X$16=7,BD55,))))))) -> 0
B56: 0.8 | C56: 8 | D56: =(X56*($T$11^$Q56))*Watts*CF_Altit -> 0 | E56: =ROUND(((D56/Watts)/(($S$9-$S$10)*1.163))*$E$14,IF($X$4=1,0,IF($X$4=2,2))) -> 0 | F56: =($Y$54*(E56/$E$14)^$Y$56)*$F$14 ->  | G56: =(Z56*($W$11^R56))*Watts*CF_Altit -> 0 | H56: =((G56/Watts)/(IF((237.3*LN((RH*EXP(17.27*(Tl_cool/(Tl_cool+237.3))))))/(17.27-LN((RH*EXP(17.27*(Tl_cool/(Tl_cool+237.3))))))<Tavg_cold,1,IF(1/(1+((2258*((0.622/(($Z$11/(1*611*EXP(17.27*(Tavg_cold/(Tavg_cold+237.3))))))-1)*1000-(0.622/(($Z$11/(RH*611*EXP(17.27*(Tl_cool/(Tl_cool+237.3))))))-1)*1000))/(1005*(Tavg_cold-Tl_cool))))*1.039+((-0.000729*$C56+0.001448)*(Tl_cool-Tavg_cold)+(0.016908*$C56-0.033574))*1.039>1,1,1/(1+((2258*((0.622/(($Z$11/(1*611*EXP(17.27*(Tavg_cold/(Tavg_cold+237.3))))))-1)*1000-(0.622/(($Z$11/(RH*611*EXP(17.27*(Tl_cool/(Tl_cool+237.3))))))-1)*1000))/(1005*(Tavg_cold-Tl_cool))))*1.039+((-0.000729*$C56+0.001448)*(Tl_cool-Tavg_cold)+(0.016908*$C56-0.033574))*1.039))))*Watts -> 0 | I56: =ROUND(((H56/Watts)/((Tr_cool-Tv_cool)*1.163))*$I$14,IF($X$4=1,0,IF($X$4=2,2))) -> 0 | J56: =($AA$54*(I56/$I$14)^$AA$56)*$J$14 ->  | K56: =L56-8 -> -8 | L56: 0 | M56: 0 | N56: =AD56*Cubics -> 0 | O56: =((($D56/Watts)/(((p_atm*0.028964)/(8.31447*(20+273.15)))*(($N56/3600)/Cubics)*(1005+1870*((0.622)/(((p_atm)/($E$12*Pvs_Heat_in))-1)))))+Tl_heat)*Celc1+Celc2 ->  | P56: =(Tl_cool-(($G56/Watts)/(1006*$N56*kgss)))*Celc1+Celc2 ->  | Q56: 1 | R56: 0 | W56: =(H56-G56)/H56 ->  | X56: =IF($X$16=1,AE56,IF($X$16=2,AM56,IF($X$16=3,BL56,IF($X$16=4,BE56,IF($X$16=5,CA56,IF($X$16=6,BT56,IF($X$16=7,AX56,))))))) -> 0 | Y56: =IF($X$16=1,AF56,IF($X$16=2,AN56,IF($X$16=3,BM56,IF($X$16=4,BF56,IF($X$16=5,CB56,IF($X$16=6,BU56,IF($X$16=7,AY56,))))))) -> 0 | Z56: =IF($X$16=1,AG56,IF($X$16=2,AO56,IF($X$16=3,BN56,IF($X$16=4,BG56,IF($X$16=5,CC56,IF($X$16=6,BV56,IF($X$16=7,AZ56,))))))) -> 0 | AA56: =IF($X$16=1,AH56,IF($X$16=2,AP56,IF($X$16=3,BO56,IF($X$16=4,BH56,IF($X$16=5,CD56,IF($X$16=6,BW56,IF($X$16=7,BA56,))))))) -> 0 | AB56: =IF($X$16=1,AI56,IF($X$16=2,AQ56,IF($X$16=3,BP56,IF($X$16=4,BI56,IF($X$16=5,CE56,IF($X$16=6,BX56,IF($X$16=7,BB56,))))))) -> 0 | AC56: =IF($X$16=1,AJ56,IF($X$16=2,AR56,IF($X$16=3,BQ56,IF($X$16=4,BJ56,IF($X$16=5,CF56,IF($X$16=6,BY56,IF($X$16=7,BC56,))))))) -> 0 | AD56: =IF($X$16=1,AK56,IF($X$16=2,AS56,IF($X$16=3,BR56,IF($X$16=4,BK56,IF($X$16=5,CG56,IF($X$16=6,BZ56,IF($X$16=7,BD56,))))))) -> 0
B57: 1 | C57: 10 | D57: =(X57*($T$11^$Q57))*Watts*CF_Altit -> 0 | E57: =ROUND(((D57/Watts)/(($S$9-$S$10)*1.163))*$E$14,IF($X$4=1,0,IF($X$4=2,2))) -> 0 | F57: =($Y$54*(E57/$E$14)^$Y$56)*$F$14 ->  | G57: =(Z57*($W$11^R57))*Watts*CF_Altit -> 0 | H57: =((G57/Watts)/(IF((237.3*LN((RH*EXP(17.27*(Tl_cool/(Tl_cool+237.3))))))/(17.27-LN((RH*EXP(17.27*(Tl_cool/(Tl_cool+237.3))))))<Tavg_cold,1,IF(1/(1+((2258*((0.622/(($Z$11/(1*611*EXP(17.27*(Tavg_cold/(Tavg_cold+237.3))))))-1)*1000-(0.622/(($Z$11/(RH*611*EXP(17.27*(Tl_cool/(Tl_cool+237.3))))))-1)*1000))/(1005*(Tavg_cold-Tl_cool))))*1.039+((-0.000729*$C57+0.001448)*(Tl_cool-Tavg_cold)+(0.016908*$C57-0.033574))*1.039>1,1,1/(1+((2258*((0.622/(($Z$11/(1*611*EXP(17.27*(Tavg_cold/(Tavg_cold+237.3))))))-1)*1000-(0.622/(($Z$11/(RH*611*EXP(17.27*(Tl_cool/(Tl_cool+237.3))))))-1)*1000))/(1005*(Tavg_cold-Tl_cool))))*1.039+((-0.000729*$C57+0.001448)*(Tl_cool-Tavg_cold)+(0.016908*$C57-0.033574))*1.039))))*Watts -> 0 | I57: =ROUND(((H57/Watts)/((Tr_cool-Tv_cool)*1.163))*$I$14,IF($X$4=1,0,IF($X$4=2,2))) -> 0 | J57: =($AA$54*(I57/$I$14)^$AA$56)*$J$14 ->  | K57: =L57-8 -> -8 | L57: 0 | M57: 0 | N57: =AD57*Cubics -> 0 | O57: =((($D57/Watts)/(((p_atm*0.028964)/(8.31447*(20+273.15)))*(($N57/3600)/Cubics)*(1005+1870*((0.622)/(((p_atm)/($E$12*Pvs_Heat_in))-1)))))+Tl_heat)*Celc1+Celc2 ->  | P57: =(Tl_cool-(($G57/Watts)/(1006*$N57*kgss)))*Celc1+Celc2 ->  | Q57: 1 | R57: 0 | W57: =(H57-G57)/H57 ->  | X57: =IF($X$16=1,AE57,IF($X$16=2,AM57,IF($X$16=3,BL57,IF($X$16=4,BE57,IF($X$16=5,CA57,IF($X$16=6,BT57,IF($X$16=7,AX57,))))))) -> 0 | Y57: =IF($X$16=1,AF57,IF($X$16=2,AN57,IF($X$16=3,BM57,IF($X$16=4,BF57,IF($X$16=5,CB57,IF($X$16=6,BU57,IF($X$16=7,AY57,))))))) -> 0 | Z57: =IF($X$16=1,AG57,IF($X$16=2,AO57,IF($X$16=3,BN57,IF($X$16=4,BG57,IF($X$16=5,CC57,IF($X$16=6,BV57,IF($X$16=7,AZ57,))))))) -> 0 | AA57: =IF($X$16=1,AH57,IF($X$16=2,AP57,IF($X$16=3,BO57,IF($X$16=4,BH57,IF($X$16=5,CD57,IF($X$16=6,BW57,IF($X$16=7,BA57,))))))) -> 0 | AB57: =IF($X$16=1,AI57,IF($X$16=2,AQ57,IF($X$16=3,BP57,IF($X$16=4,BI57,IF($X$16=5,CE57,IF($X$16=6,BX57,IF($X$16=7,BB57,))))))) -> 0 | AC57: =IF($X$16=1,AJ57,IF($X$16=2,AR57,IF($X$16=3,BQ57,IF($X$16=4,BJ57,IF($X$16=5,CF57,IF($X$16=6,BY57,IF($X$16=7,BC57,))))))) -> 0 | AD57: =IF($X$16=1,AK57,IF($X$16=2,AS57,IF($X$16=3,BR57,IF($X$16=4,BK57,IF($X$16=5,CG57,IF($X$16=6,BZ57,IF($X$16=7,BD57,))))))) -> 0
B58: =IF($S$7=1,NL!A57,IF(cal!$S$7=2,EN!A57,IF(cal!$S$7=3,DE!A57,IF(cal!$S$7=4,FR!A57,IF(cal!$S$7=5,NR!A57,IF(cal!$S$7=6,SP!A57,IF(cal!$S$7=7,SW!A57,IF(cal!$S$7=8,TS!A57,IF(cal!$S$7=9,ExtraTaal1!A57,IF(cal!$S$7=10,ExtraTaal2!A57,IF(cal!$S$7=11,ExtraTaal3!A57,))))))))))) -> Freedom height 0 cm width 0 cm length 0 cm (Type 8) | C58: =IF($S$7=1,NL!B57,IF(cal!$S$7=2,EN!B57,IF(cal!$S$7=3,DE!B57,IF(cal!$S$7=4,FR!B57,IF(cal!$S$7=5,NR!B57,IF(cal!$S$7=6,SP!B57,IF(cal!$S$7=7,SW!B57,IF(cal!$S$7=8,TS!B57,IF(cal!$S$7=9,ExtraTaal1!B57,IF(cal!$S$7=10,ExtraTaal2!B57,IF(cal!$S$7=11,ExtraTaal3!B57,))))))))))) -> 0 | D58: =IF($S$7=1,NL!C57,IF(cal!$S$7=2,EN!C57,IF(cal!$S$7=3,DE!C57,IF(cal!$S$7=4,FR!C57,IF(cal!$S$7=5,NR!C57,IF(cal!$S$7=6,SP!C57,IF(cal!$S$7=7,SW!C57,IF(cal!$S$7=8,TS!C57,IF(cal!$S$7=9,ExtraTaal1!C57,IF(cal!$S$7=10,ExtraTaal2!C57,IF(cal!$S$7=11,ExtraTaal3!C57,))))))))))) -> 0 | E58: =IF($S$7=1,NL!D57,IF(cal!$S$7=2,EN!D57,IF(cal!$S$7=3,DE!D57,IF(cal!$S$7=4,FR!D57,IF(cal!$S$7=5,NR!D57,IF(cal!$S$7=6,SP!D57,IF(cal!$S$7=7,SW!D57,IF(cal!$S$7=8,TS!D57,IF(cal!$S$7=9,ExtraTaal1!D57,IF(cal!$S$7=10,ExtraTaal2!D57,IF(cal!$S$7=11,ExtraTaal3!D57,))))))))))) -> 0 | F58: =IF($S$7=1,NL!E57,IF(cal!$S$7=2,EN!E57,IF(cal!$S$7=3,DE!E57,IF(cal!$S$7=4,FR!E57,IF(cal!$S$7=5,NR!E57,IF(cal!$S$7=6,SP!E57,IF(cal!$S$7=7,SW!E57,IF(cal!$S$7=8,TS!E57,IF(cal!$S$7=9,ExtraTaal1!E57,IF(cal!$S$7=10,ExtraTaal2!E57,IF(cal!$S$7=11,ExtraTaal3!E57,))))))))))) -> 0 | G58: =IF($S$7=1,NL!F57,IF(cal!$S$7=2,EN!F57,IF(cal!$S$7=3,DE!F57,IF(cal!$S$7=4,FR!F57,IF(cal!$S$7=5,NR!F57,IF(cal!$S$7=6,SP!F57,IF(cal!$S$7=7,SW!F57,IF(cal!$S$7=8,TS!F57,IF(cal!$S$7=9,ExtraTaal1!F57,IF(cal!$S$7=10,ExtraTaal2!F57,IF(cal!$S$7=11,ExtraTaal3!F57,))))))))))) -> 0 | H58: =IF($S$7=1,NL!G57,IF(cal!$S$7=2,EN!G57,IF(cal!$S$7=3,DE!G57,IF(cal!$S$7=4,FR!G57,IF(cal!$S$7=5,NR!G57,IF(cal!$S$7=6,SP!G57,IF(cal!$S$7=7,SW!G57,IF(cal!$S$7=8,TS!G57,IF(cal!$S$7=9,ExtraTaal1!G57,IF(cal!$S$7=10,ExtraTaal2!G57,IF(cal!$S$7=11,ExtraTaal3!G57,))))))))))) -> 0 | I58: =IF($S$7=1,NL!H57,IF(cal!$S$7=2,EN!H57,IF(cal!$S$7=3,DE!H57,IF(cal!$S$7=4,FR!H57,IF(cal!$S$7=5,NR!H57,IF(cal!$S$7=6,SP!H57,IF(cal!$S$7=7,SW!H57,IF(cal!$S$7=8,TS!H57,IF(cal!$S$7=9,ExtraTaal1!H57,IF(cal!$S$7=10,ExtraTaal2!H57,IF(cal!$S$7=11,ExtraTaal3!H57,))))))))))) -> 0 | J58: =IF($S$7=1,NL!I57,IF(cal!$S$7=2,EN!I57,IF(cal!$S$7=3,DE!I57,IF(cal!$S$7=4,FR!I57,IF(cal!$S$7=5,NR!I57,IF(cal!$S$7=6,SP!I57,IF(cal!$S$7=7,SW!I57,IF(cal!$S$7=8,TS!I57,IF(cal!$S$7=9,ExtraTaal1!I57,IF(cal!$S$7=10,ExtraTaal2!I57,IF(cal!$S$7=11,ExtraTaal3!I57,))))))))))) -> 0 | K58: =IF($S$7=1,NL!J57,IF(cal!$S$7=2,EN!J57,IF(cal!$S$7=3,DE!J57,IF(cal!$S$7=4,FR!J57,IF(cal!$S$7=5,NR!J57,IF(cal!$S$7=6,SP!J57,IF(cal!$S$7=7,SW!J57,IF(cal!$S$7=8,TS!J57,IF(cal!$S$7=9,ExtraTaal1!J57,IF(cal!$S$7=10,ExtraTaal2!J57,IF(cal!$S$7=11,ExtraTaal3!J57,))))))))))) -> 0 | L58: =IF($S$7=1,NL!K57,IF(cal!$S$7=2,EN!K57,IF(cal!$S$7=3,DE!K57,IF(cal!$S$7=4,FR!K57,IF(cal!$S$7=5,NR!K57,IF(cal!$S$7=6,SP!K57,IF(cal!$S$7=7,SW!K57,IF(cal!$S$7=8,TS!K57,IF(cal!$S$7=9,ExtraTaal1!K57,IF(cal!$S$7=10,ExtraTaal2!K57,IF(cal!$S$7=11,ExtraTaal3!K57,))))))))))) -> 0 | M58: =IF($S$7=1,NL!L57,IF(cal!$S$7=2,EN!L57,IF(cal!$S$7=3,DE!L57,IF(cal!$S$7=4,FR!L57,IF(cal!$S$7=5,NR!L57,IF(cal!$S$7=6,SP!L57,IF(cal!$S$7=7,SW!L57,IF(cal!$S$7=8,TS!L57,IF(cal!$S$7=9,ExtraTaal1!L57,IF(cal!$S$7=10,ExtraTaal2!L57,IF(cal!$S$7=11,ExtraTaal3!L57,))))))))))) -> 0 | N58: =IF($S$7=1,NL!M57,IF(cal!$S$7=2,EN!M57,IF(cal!$S$7=3,DE!M57,IF(cal!$S$7=4,FR!M57,IF(cal!$S$7=5,NR!M57,IF(cal!$S$7=6,SP!M57,IF(cal!$S$7=7,SW!M57,IF(cal!$S$7=8,TS!M57,IF(cal!$S$7=9,ExtraTaal1!M57,IF(cal!$S$7=10,ExtraTaal2!M57,IF(cal!$S$7=11,ExtraTaal3!M57,))))))))))) -> 0 | O58: =IF($S$7=1,NL!N57,IF(cal!$S$7=2,EN!N57,IF(cal!$S$7=3,DE!N57,IF(cal!$S$7=4,FR!N57,IF(cal!$S$7=5,NR!N57,IF(cal!$S$7=6,SP!N57,IF(cal!$S$7=7,SW!N57,IF(cal!$S$7=8,TS!N57,IF(cal!$S$7=9,ExtraTaal1!N57,IF(cal!$S$7=10,ExtraTaal2!N57,IF(cal!$S$7=11,ExtraTaal3!N57,))))))))))) -> 0 | P58: =IF($S$7=1,NL!O57,IF(cal!$S$7=2,EN!O57,IF(cal!$S$7=3,DE!O57,IF(cal!$S$7=4,FR!O57,IF(cal!$S$7=5,NR!O57,IF(cal!$S$7=6,SP!O57,IF(cal!$S$7=7,SW!O57,IF(cal!$S$7=8,TS!O57,IF(cal!$S$7=9,ExtraTaal1!O57,IF(cal!$S$7=10,ExtraTaal2!O57,IF(cal!$S$7=11,ExtraTaal3!O57,))))))))))) -> 0 | Q58: n-value | R58: 0 | X58: =IF($X$16=1,AE58,IF($X$16=2,AM58,IF($X$16=3,BL58,IF($X$16=4,BE58,IF($X$16=5,CA58,IF($X$16=6,BT58,IF($X$16=7,AX58,))))))) -> 0 | Y58: =IF($X$16=1,AF58,IF($X$16=2,AN58,IF($X$16=3,BM58,IF($X$16=4,BF58,IF($X$16=5,CB58,IF($X$16=6,BU58,IF($X$16=7,AY58,))))))) -> 0 | Z58: =IF($X$16=1,AG58,IF($X$16=2,AO58,IF($X$16=3,BN58,IF($X$16=4,BG58,IF($X$16=5,CC58,IF($X$16=6,BV58,IF($X$16=7,AZ58,))))))) -> 0 | AA58: =IF($X$16=1,AH58,IF($X$16=2,AP58,IF($X$16=3,BO58,IF($X$16=4,BH58,IF($X$16=5,CD58,IF($X$16=6,BW58,IF($X$16=7,BA58,))))))) -> 0 | AB58: =IF($X$16=1,AI58,IF($X$16=2,AQ58,IF($X$16=3,BP58,IF($X$16=4,BI58,IF($X$16=5,CE58,IF($X$16=6,BX58,IF($X$16=7,BB58,))))))) -> 0 | AC58: =IF($X$16=1,AJ58,IF($X$16=2,AR58,IF($X$16=3,BQ58,IF($X$16=4,BJ58,IF($X$16=5,CF58,IF($X$16=6,BY58,IF($X$16=7,BC58,))))))) -> 0 | AD58: =IF($X$16=1,AK58,IF($X$16=2,AS58,IF($X$16=3,BR58,IF($X$16=4,BK58,IF($X$16=5,CG58,IF($X$16=6,BZ58,IF($X$16=7,BD58,))))))) -> 0
B59: 0.2 | C59: 2 | D59: =(X59*($T$11^$Q59))*Watts*CF_Altit -> 0 | E59: =ROUND(((D59/Watts)/(($S$9-$S$10)*1.163))*$E$14,IF($X$4=1,0,IF($X$4=2,2))) -> 0 | F59: =($Y$66*(E59/$E$14)^$Y$68)*$F$14 ->  | G59: =(Z59*($W$11^R59))*Watts*CF_Altit -> 0 | H59: =((G59/Watts)/(IF((237.3*LN((RH*EXP(17.27*(Tl_cool/(Tl_cool+237.3))))))/(17.27-LN((RH*EXP(17.27*(Tl_cool/(Tl_cool+237.3))))))<Tavg_cold,1,IF(1/(1+((2258*((0.622/(($Z$11/(1*611*EXP(17.27*(Tavg_cold/(Tavg_cold+237.3))))))-1)*1000-(0.622/(($Z$11/(RH*611*EXP(17.27*(Tl_cool/(Tl_cool+237.3))))))-1)*1000))/(1005*(Tavg_cold-Tl_cool))))*1.039+((-0.000729*$C59+0.001448)*(Tl_cool-Tavg_cold)+(0.016908*$C59-0.033574))*1.039>1,1,1/(1+((2258*((0.622/(($Z$11/(1*611*EXP(17.27*(Tavg_cold/(Tavg_cold+237.3))))))-1)*1000-(0.622/(($Z$11/(RH*611*EXP(17.27*(Tl_cool/(Tl_cool+237.3))))))-1)*1000))/(1005*(Tavg_cold-Tl_cool))))*1.039+((-0.000729*$C59+0.001448)*(Tl_cool-Tavg_cold)+(0.016908*$C59-0.033574))*1.039))))*Watts -> 0 | I59: =ROUND(((H59/Watts)/((Tr_cool-Tv_cool)*1.163))*$I$14,IF($X$4=1,0,IF($X$4=2,2))) -> 0 | J59: =($AA$60*(I59/$I$14)^$AA$62)*$J$14 ->  | K59: =L59-8 -> -8 | L59: =AB59 -> 0 | M59: 0 | N59: =AD59*Cubics -> 0 | O59: =((($D59/Watts)/(((p_atm*0.028964)/(8.31447*(20+273.15)))*(($N59/3600)/Cubics)*(1005+1870*((0.622)/(((p_atm)/($E$12*Pvs_Heat_in))-1)))))+Tl_heat)*Celc1+Celc2 ->  | P59: =(Tl_cool-(($G59/Watts)/(1006*$N59*kgss)))*Celc1+Celc2 ->  | Q59: 1 | R59: 0 | W59: =(H59-G59)/H59 ->  | X59: =IF($X$16=1,AE59,IF($X$16=2,AM59,IF($X$16=3,BL59,IF($X$16=4,BE59,IF($X$16=5,CA59,IF($X$16=6,BT59,IF($X$16=7,AX59,))))))) -> 0 | Y59: =IF($X$16=1,AF59,IF($X$16=2,AN59,IF($X$16=3,BM59,IF($X$16=4,BF59,IF($X$16=5,CB59,IF($X$16=6,BU59,IF($X$16=7,AY59,))))))) -> 0 | Z59: =IF($X$16=1,AG59,IF($X$16=2,AO59,IF($X$16=3,BN59,IF($X$16=4,BG59,IF($X$16=5,CC59,IF($X$16=6,BV59,IF($X$16=7,AZ59,))))))) -> 0 | AA59: =IF($X$16=1,AH59,IF($X$16=2,AP59,IF($X$16=3,BO59,IF($X$16=4,BH59,IF($X$16=5,CD59,IF($X$16=6,BW59,IF($X$16=7,BA59,))))))) -> 0 | AB59: =IF($X$16=1,AI59,IF($X$16=2,AQ59,IF($X$16=3,BP59,IF($X$16=4,BI59,IF($X$16=5,CE59,IF($X$16=6,BX59,IF($X$16=7,BB59,))))))) -> 0 | AC59: =IF($X$16=1,AJ59,IF($X$16=2,AR59,IF($X$16=3,BQ59,IF($X$16=4,BJ59,IF($X$16=5,CF59,IF($X$16=6,BY59,IF($X$16=7,BC59,))))))) -> 0 | AD59: =IF($X$16=1,AK59,IF($X$16=2,AS59,IF($X$16=3,BR59,IF($X$16=4,BK59,IF($X$16=5,CG59,IF($X$16=6,BZ59,IF($X$16=7,BD59,))))))) -> 0
B60: 0.4 | C60: 4 | D60: =(X60*($T$11^$Q60))*Watts*CF_Altit -> 0 | E60: =ROUND(((D60/Watts)/(($S$9-$S$10)*1.163))*$E$14,IF($X$4=1,0,IF($X$4=2,2))) -> 0 | F60: =($Y$66*(E60/$E$14)^$Y$68)*$F$14 ->  | G60: =(Z60*($W$11^R60))*Watts*CF_Altit -> 0 | H60: =((G60/Watts)/(IF((237.3*LN((RH*EXP(17.27*(Tl_cool/(Tl_cool+237.3))))))/(17.27-LN((RH*EXP(17.27*(Tl_cool/(Tl_cool+237.3))))))<Tavg_cold,1,IF(1/(1+((2258*((0.622/(($Z$11/(1*611*EXP(17.27*(Tavg_cold/(Tavg_cold+237.3))))))-1)*1000-(0.622/(($Z$11/(RH*611*EXP(17.27*(Tl_cool/(Tl_cool+237.3))))))-1)*1000))/(1005*(Tavg_cold-Tl_cool))))*1.039+((-0.000729*$C60+0.001448)*(Tl_cool-Tavg_cold)+(0.016908*$C60-0.033574))*1.039>1,1,1/(1+((2258*((0.622/(($Z$11/(1*611*EXP(17.27*(Tavg_cold/(Tavg_cold+237.3))))))-1)*1000-(0.622/(($Z$11/(RH*611*EXP(17.27*(Tl_cool/(Tl_cool+237.3))))))-1)*1000))/(1005*(Tavg_cold-Tl_cool))))*1.039+((-0.000729*$C60+0.001448)*(Tl_cool-Tavg_cold)+(0.016908*$C60-0.033574))*1.039))))*Watts -> 0 | I60: =ROUND(((H60/Watts)/((Tr_cool-Tv_cool)*1.163))*$I$14,IF($X$4=1,0,IF($X$4=2,2))) -> 0 | J60: =($AA$60*(I60/$I$14)^$AA$62)*$J$14 ->  | K60: =L60-8 -> -8 | L60: 0 | M60: 0 | N60: =AD60*Cubics -> 0 | O60: =((($D60/Watts)/(((p_atm*0.028964)/(8.31447*(20+273.15)))*(($N60/3600)/Cubics)*(1005+1870*((0.622)/(((p_atm)/($E$12*Pvs_Heat_in))-1)))))+Tl_heat)*Celc1+Celc2 ->  | P60: =(Tl_cool-(($G60/Watts)/(1006*$N60*kgss)))*Celc1+Celc2 ->  | Q60: 1 | R60: 0 | W60: =(H60-G60)/H60 ->  | X60: =IF($X$16=1,AE60,IF($X$16=2,AM60,IF($X$16=3,BL60,IF($X$16=4,BE60,IF($X$16=5,CA60,IF($X$16=6,BT60,IF($X$16=7,AX60,))))))) -> 0 | Y60: =IF($X$16=1,AF60,IF($X$16=2,AN60,IF($X$16=3,BM60,IF($X$16=4,BF60,IF($X$16=5,CB60,IF($X$16=6,BU60,IF($X$16=7,AY60,))))))) -> 0 | Z60: =IF($X$16=1,AG60,IF($X$16=2,AO60,IF($X$16=3,BN60,IF($X$16=4,BG60,IF($X$16=5,CC60,IF($X$16=6,BV60,IF($X$16=7,AZ60,))))))) -> 0 | AA60: =IF($X$16=1,AH60,IF($X$16=2,AP60,IF($X$16=3,BO60,IF($X$16=4,BH60,IF($X$16=5,CD60,IF($X$16=6,BW60,IF($X$16=7,BA60,))))))) -> 0 | AB60: =IF($X$16=1,AI60,IF($X$16=2,AQ60,IF($X$16=3,BP60,IF($X$16=4,BI60,IF($X$16=5,CE60,IF($X$16=6,BX60,IF($X$16=7,BB60,))))))) -> 0 | AC60: =IF($X$16=1,AJ60,IF($X$16=2,AR60,IF($X$16=3,BQ60,IF($X$16=4,BJ60,IF($X$16=5,CF60,IF($X$16=6,BY60,IF($X$16=7,BC60,))))))) -> 0 | AD60: =IF($X$16=1,AK60,IF($X$16=2,AS60,IF($X$16=3,BR60,IF($X$16=4,BK60,IF($X$16=5,CG60,IF($X$16=6,BZ60,IF($X$16=7,BD60,))))))) -> 0
B61: 0.6 | C61: 6 | D61: =(X61*($T$11^$Q61))*Watts*CF_Altit -> 0 | E61: =ROUND(((D61/Watts)/(($S$9-$S$10)*1.163))*$E$14,IF($X$4=1,0,IF($X$4=2,2))) -> 0 | F61: =($Y$66*(E61/$E$14)^$Y$68)*$F$14 ->  | G61: =(Z61*($W$11^R61))*Watts*CF_Altit -> 0 | H61: =((G61/Watts)/(IF((237.3*LN((RH*EXP(17.27*(Tl_cool/(Tl_cool+237.3))))))/(17.27-LN((RH*EXP(17.27*(Tl_cool/(Tl_cool+237.3))))))<Tavg_cold,1,IF(1/(1+((2258*((0.622/(($Z$11/(1*611*EXP(17.27*(Tavg_cold/(Tavg_cold+237.3))))))-1)*1000-(0.622/(($Z$11/(RH*611*EXP(17.27*(Tl_cool/(Tl_cool+237.3))))))-1)*1000))/(1005*(Tavg_cold-Tl_cool))))*1.039+((-0.000729*$C61+0.001448)*(Tl_cool-Tavg_cold)+(0.016908*$C61-0.033574))*1.039>1,1,1/(1+((2258*((0.622/(($Z$11/(1*611*EXP(17.27*(Tavg_cold/(Tavg_cold+237.3))))))-1)*1000-(0.622/(($Z$11/(RH*611*EXP(17.27*(Tl_cool/(Tl_cool+237.3))))))-1)*1000))/(1005*(Tavg_cold-Tl_cool))))*1.039+((-0.000729*$C61+0.001448)*(Tl_cool-Tavg_cold)+(0.016908*$C61-0.033574))*1.039))))*Watts -> 0 | I61: =ROUND(((H61/Watts)/((Tr_cool-Tv_cool)*1.163))*$I$14,IF($X$4=1,0,IF($X$4=2,2))) -> 0 | J61: =($AA$60*(I61/$I$14)^$AA$62)*$J$14 ->  | K61: =L61-8 -> -8 | L61: 0 | M61: 0 | N61: =AD61*Cubics -> 0 | O61: =((($D61/Watts)/(((p_atm*0.028964)/(8.31447*(20+273.15)))*(($N61/3600)/Cubics)*(1005+1870*((0.622)/(((p_atm)/($E$12*Pvs_Heat_in))-1)))))+Tl_heat)*Celc1+Celc2 ->  | P61: =(Tl_cool-(($G61/Watts)/(1006*$N61*kgss)))*Celc1+Celc2 ->  | Q61: 1 | R61: 0 | W61: =(H61-G61)/H61 ->  | X61: =IF($X$16=1,AE61,IF($X$16=2,AM61,IF($X$16=3,BL61,IF($X$16=4,BE61,IF($X$16=5,CA61,IF($X$16=6,BT61,IF($X$16=7,AX61,))))))) -> 0 | Y61: =IF($X$16=1,AF61,IF($X$16=2,AN61,IF($X$16=3,BM61,IF($X$16=4,BF61,IF($X$16=5,CB61,IF($X$16=6,BU61,IF($X$16=7,AY61,))))))) -> 0 | Z61: =IF($X$16=1,AG61,IF($X$16=2,AO61,IF($X$16=3,BN61,IF($X$16=4,BG61,IF($X$16=5,CC61,IF($X$16=6,BV61,IF($X$16=7,AZ61,))))))) -> 0 | AA61: =IF($X$16=1,AH61,IF($X$16=2,AP61,IF($X$16=3,BO61,IF($X$16=4,BH61,IF($X$16=5,CD61,IF($X$16=6,BW61,IF($X$16=7,BA61,))))))) -> 0 | AB61: =IF($X$16=1,AI61,IF($X$16=2,AQ61,IF($X$16=3,BP61,IF($X$16=4,BI61,IF($X$16=5,CE61,IF($X$16=6,BX61,IF($X$16=7,BB61,))))))) -> 0 | AC61: =IF($X$16=1,AJ61,IF($X$16=2,AR61,IF($X$16=3,BQ61,IF($X$16=4,BJ61,IF($X$16=5,CF61,IF($X$16=6,BY61,IF($X$16=7,BC61,))))))) -> 0 | AD61: =IF($X$16=1,AK61,IF($X$16=2,AS61,IF($X$16=3,BR61,IF($X$16=4,BK61,IF($X$16=5,CG61,IF($X$16=6,BZ61,IF($X$16=7,BD61,))))))) -> 0
B62: 0.8 | C62: 8 | D62: =(X62*($T$11^$Q62))*Watts*CF_Altit -> 0 | E62: =ROUND(((D62/Watts)/(($S$9-$S$10)*1.163))*$E$14,IF($X$4=1,0,IF($X$4=2,2))) -> 0 | F62: =($Y$66*(E62/$E$14)^$Y$68)*$F$14 ->  | G62: =(Z62*($W$11^R62))*Watts*CF_Altit -> 0 | H62: =((G62/Watts)/(IF((237.3*LN((RH*EXP(17.27*(Tl_cool/(Tl_cool+237.3))))))/(17.27-LN((RH*EXP(17.27*(Tl_cool/(Tl_cool+237.3))))))<Tavg_cold,1,IF(1/(1+((2258*((0.622/(($Z$11/(1*611*EXP(17.27*(Tavg_cold/(Tavg_cold+237.3))))))-1)*1000-(0.622/(($Z$11/(RH*611*EXP(17.27*(Tl_cool/(Tl_cool+237.3))))))-1)*1000))/(1005*(Tavg_cold-Tl_cool))))*1.039+((-0.000729*$C62+0.001448)*(Tl_cool-Tavg_cold)+(0.016908*$C62-0.033574))*1.039>1,1,1/(1+((2258*((0.622/(($Z$11/(1*611*EXP(17.27*(Tavg_cold/(Tavg_cold+237.3))))))-1)*1000-(0.622/(($Z$11/(RH*611*EXP(17.27*(Tl_cool/(Tl_cool+237.3))))))-1)*1000))/(1005*(Tavg_cold-Tl_cool))))*1.039+((-0.000729*$C62+0.001448)*(Tl_cool-Tavg_cold)+(0.016908*$C62-0.033574))*1.039))))*Watts -> 0 | I62: =ROUND(((H62/Watts)/((Tr_cool-Tv_cool)*1.163))*$I$14,IF($X$4=1,0,IF($X$4=2,2))) -> 0 | J62: =($AA$60*(I62/$I$14)^$AA$62)*$J$14 ->  | K62: =L62-8 -> -8 | L62: 0 | M62: 0 | N62: =AD62*Cubics -> 0 | O62: =((($D62/Watts)/(((p_atm*0.028964)/(8.31447*(20+273.15)))*(($N62/3600)/Cubics)*(1005+1870*((0.622)/(((p_atm)/($E$12*Pvs_Heat_in))-1)))))+Tl_heat)*Celc1+Celc2 ->  | P62: =(Tl_cool-(($G62/Watts)/(1006*$N62*kgss)))*Celc1+Celc2 ->  | Q62: 1 | R62: 0 | W62: =(H62-G62)/H62 ->  | X62: =IF($X$16=1,AE62,IF($X$16=2,AM62,IF($X$16=3,BL62,IF($X$16=4,BE62,IF($X$16=5,CA62,IF($X$16=6,BT62,IF($X$16=7,AX62,))))))) -> 0 | Y62: =IF($X$16=1,AF62,IF($X$16=2,AN62,IF($X$16=3,BM62,IF($X$16=4,BF62,IF($X$16=5,CB62,IF($X$16=6,BU62,IF($X$16=7,AY62,))))))) -> 0 | Z62: =IF($X$16=1,AG62,IF($X$16=2,AO62,IF($X$16=3,BN62,IF($X$16=4,BG62,IF($X$16=5,CC62,IF($X$16=6,BV62,IF($X$16=7,AZ62,))))))) -> 0 | AA62: =IF($X$16=1,AH62,IF($X$16=2,AP62,IF($X$16=3,BO62,IF($X$16=4,BH62,IF($X$16=5,CD62,IF($X$16=6,BW62,IF($X$16=7,BA62,))))))) -> 0 | AB62: =IF($X$16=1,AI62,IF($X$16=2,AQ62,IF($X$16=3,BP62,IF($X$16=4,BI62,IF($X$16=5,CE62,IF($X$16=6,BX62,IF($X$16=7,BB62,))))))) -> 0 | AC62: =IF($X$16=1,AJ62,IF($X$16=2,AR62,IF($X$16=3,BQ62,IF($X$16=4,BJ62,IF($X$16=5,CF62,IF($X$16=6,BY62,IF($X$16=7,BC62,))))))) -> 0 | AD62: =IF($X$16=1,AK62,IF($X$16=2,AS62,IF($X$16=3,BR62,IF($X$16=4,BK62,IF($X$16=5,CG62,IF($X$16=6,BZ62,IF($X$16=7,BD62,))))))) -> 0
B63: 1 | C63: 10 | D63: =(X63*($T$11^$Q63))*Watts*CF_Altit -> 0 | E63: =ROUND(((D63/Watts)/(($S$9-$S$10)*1.163))*$E$14,IF($X$4=1,0,IF($X$4=2,2))) -> 0 | F63: =($Y$66*(E63/$E$14)^$Y$68)*$F$14 ->  | G63: =(Z63*($W$11^R63))*Watts*CF_Altit -> 0 | H63: =((G63/Watts)/(IF((237.3*LN((RH*EXP(17.27*(Tl_cool/(Tl_cool+237.3))))))/(17.27-LN((RH*EXP(17.27*(Tl_cool/(Tl_cool+237.3))))))<Tavg_cold,1,IF(1/(1+((2258*((0.622/(($Z$11/(1*611*EXP(17.27*(Tavg_cold/(Tavg_cold+237.3))))))-1)*1000-(0.622/(($Z$11/(RH*611*EXP(17.27*(Tl_cool/(Tl_cool+237.3))))))-1)*1000))/(1005*(Tavg_cold-Tl_cool))))*1.039+((-0.000729*$C63+0.001448)*(Tl_cool-Tavg_cold)+(0.016908*$C63-0.033574))*1.039>1,1,1/(1+((2258*((0.622/(($Z$11/(1*611*EXP(17.27*(Tavg_cold/(Tavg_cold+237.3))))))-1)*1000-(0.622/(($Z$11/(RH*611*EXP(17.27*(Tl_cool/(Tl_cool+237.3))))))-1)*1000))/(1005*(Tavg_cold-Tl_cool))))*1.039+((-0.000729*$C63+0.001448)*(Tl_cool-Tavg_cold)+(0.016908*$C63-0.033574))*1.039))))*Watts -> 0 | I63: =ROUND(((H63/Watts)/((Tr_cool-Tv_cool)*1.163))*$I$14,IF($X$4=1,0,IF($X$4=2,2))) -> 0 | J63: =($AA$60*(I63/$I$14)^$AA$62)*$J$14 ->  | K63: =L63-8 -> -8 | L63: 0 | M63: 0 | N63: =AD63*Cubics -> 0 | O63: =((($D63/Watts)/(((p_atm*0.028964)/(8.31447*(20+273.15)))*(($N63/3600)/Cubics)*(1005+1870*((0.622)/(((p_atm)/($E$12*Pvs_Heat_in))-1)))))+Tl_heat)*Celc1+Celc2 ->  | P63: =(Tl_cool-(($G63/Watts)/(1006*$N63*kgss)))*Celc1+Celc2 ->  | Q63: 1 | R63: 0 | W63: =(H63-G63)/H63 ->  | X63: =IF($X$16=1,AE63,IF($X$16=2,AM63,IF($X$16=3,BL63,IF($X$16=4,BE63,IF($X$16=5,CA63,IF($X$16=6,BT63,IF($X$16=7,AX63,))))))) -> 0 | Y63: =IF($X$16=1,AF63,IF($X$16=2,AN63,IF($X$16=3,BM63,IF($X$16=4,BF63,IF($X$16=5,CB63,IF($X$16=6,BU63,IF($X$16=7,AY63,))))))) -> 0 | Z63: =IF($X$16=1,AG63,IF($X$16=2,AO63,IF($X$16=3,BN63,IF($X$16=4,BG63,IF($X$16=5,CC63,IF($X$16=6,BV63,IF($X$16=7,AZ63,))))))) -> 0 | AA63: =IF($X$16=1,AH63,IF($X$16=2,AP63,IF($X$16=3,BO63,IF($X$16=4,BH63,IF($X$16=5,CD63,IF($X$16=6,BW63,IF($X$16=7,BA63,))))))) -> 0 | AB63: =IF($X$16=1,AI63,IF($X$16=2,AQ63,IF($X$16=3,BP63,IF($X$16=4,BI63,IF($X$16=5,CE63,IF($X$16=6,BX63,IF($X$16=7,BB63,))))))) -> 0 | AC63: =IF($X$16=1,AJ63,IF($X$16=2,AR63,IF($X$16=3,BQ63,IF($X$16=4,BJ63,IF($X$16=5,CF63,IF($X$16=6,BY63,IF($X$16=7,BC63,))))))) -> 0 | AD63: =IF($X$16=1,AK63,IF($X$16=2,AS63,IF($X$16=3,BR63,IF($X$16=4,BK63,IF($X$16=5,CG63,IF($X$16=6,BZ63,IF($X$16=7,BD63,))))))) -> 0
B64: =IF($S$7=1,NL!A63,IF(cal!$S$7=2,EN!A63,IF(cal!$S$7=3,DE!A63,IF(cal!$S$7=4,FR!A63,IF(cal!$S$7=5,NR!A63,IF(cal!$S$7=6,SP!A63,IF(cal!$S$7=7,SW!A63,IF(cal!$S$7=8,TS!A63,IF(cal!$S$7=9,ExtraTaal1!A63,IF(cal!$S$7=10,ExtraTaal2!A63,IF(cal!$S$7=11,ExtraTaal3!A63,))))))))))) -> Freedom height 0 cm width 0 cm length 0 cm (Type 9) | C64: =IF($S$7=1,NL!B63,IF(cal!$S$7=2,EN!B63,IF(cal!$S$7=3,DE!B63,IF(cal!$S$7=4,FR!B63,IF(cal!$S$7=5,NR!B63,IF(cal!$S$7=6,SP!B63,IF(cal!$S$7=7,SW!B63,IF(cal!$S$7=8,TS!B63,IF(cal!$S$7=9,ExtraTaal1!B63,IF(cal!$S$7=10,ExtraTaal2!B63,IF(cal!$S$7=11,ExtraTaal3!B63,))))))))))) -> 0 | D64: =IF($S$7=1,NL!C63,IF(cal!$S$7=2,EN!C63,IF(cal!$S$7=3,DE!C63,IF(cal!$S$7=4,FR!C63,IF(cal!$S$7=5,NR!C63,IF(cal!$S$7=6,SP!C63,IF(cal!$S$7=7,SW!C63,IF(cal!$S$7=8,TS!C63,IF(cal!$S$7=9,ExtraTaal1!C63,IF(cal!$S$7=10,ExtraTaal2!C63,IF(cal!$S$7=11,ExtraTaal3!C63,))))))))))) -> 0 | E64: =IF($S$7=1,NL!D63,IF(cal!$S$7=2,EN!D63,IF(cal!$S$7=3,DE!D63,IF(cal!$S$7=4,FR!D63,IF(cal!$S$7=5,NR!D63,IF(cal!$S$7=6,SP!D63,IF(cal!$S$7=7,SW!D63,IF(cal!$S$7=8,TS!D63,IF(cal!$S$7=9,ExtraTaal1!D63,IF(cal!$S$7=10,ExtraTaal2!D63,IF(cal!$S$7=11,ExtraTaal3!D63,))))))))))) -> 0 | F64: =IF($S$7=1,NL!E63,IF(cal!$S$7=2,EN!E63,IF(cal!$S$7=3,DE!E63,IF(cal!$S$7=4,FR!E63,IF(cal!$S$7=5,NR!E63,IF(cal!$S$7=6,SP!E63,IF(cal!$S$7=7,SW!E63,IF(cal!$S$7=8,TS!E63,IF(cal!$S$7=9,ExtraTaal1!E63,IF(cal!$S$7=10,ExtraTaal2!E63,IF(cal!$S$7=11,ExtraTaal3!E63,))))))))))) -> 0 | G64: =IF($S$7=1,NL!F63,IF(cal!$S$7=2,EN!F63,IF(cal!$S$7=3,DE!F63,IF(cal!$S$7=4,FR!F63,IF(cal!$S$7=5,NR!F63,IF(cal!$S$7=6,SP!F63,IF(cal!$S$7=7,SW!F63,IF(cal!$S$7=8,TS!F63,IF(cal!$S$7=9,ExtraTaal1!F63,IF(cal!$S$7=10,ExtraTaal2!F63,IF(cal!$S$7=11,ExtraTaal3!F63,))))))))))) -> 0 | H64: =IF($S$7=1,NL!G63,IF(cal!$S$7=2,EN!G63,IF(cal!$S$7=3,DE!G63,IF(cal!$S$7=4,FR!G63,IF(cal!$S$7=5,NR!G63,IF(cal!$S$7=6,SP!G63,IF(cal!$S$7=7,SW!G63,IF(cal!$S$7=8,TS!G63,IF(cal!$S$7=9,ExtraTaal1!G63,IF(cal!$S$7=10,ExtraTaal2!G63,IF(cal!$S$7=11,ExtraTaal3!G63,))))))))))) -> 0 | I64: =IF($S$7=1,NL!H63,IF(cal!$S$7=2,EN!H63,IF(cal!$S$7=3,DE!H63,IF(cal!$S$7=4,FR!H63,IF(cal!$S$7=5,NR!H63,IF(cal!$S$7=6,SP!H63,IF(cal!$S$7=7,SW!H63,IF(cal!$S$7=8,TS!H63,IF(cal!$S$7=9,ExtraTaal1!H63,IF(cal!$S$7=10,ExtraTaal2!H63,IF(cal!$S$7=11,ExtraTaal3!H63,))))))))))) -> 0 | J64: =IF($S$7=1,NL!I63,IF(cal!$S$7=2,EN!I63,IF(cal!$S$7=3,DE!I63,IF(cal!$S$7=4,FR!I63,IF(cal!$S$7=5,NR!I63,IF(cal!$S$7=6,SP!I63,IF(cal!$S$7=7,SW!I63,IF(cal!$S$7=8,TS!I63,IF(cal!$S$7=9,ExtraTaal1!I63,IF(cal!$S$7=10,ExtraTaal2!I63,IF(cal!$S$7=11,ExtraTaal3!I63,))))))))))) -> 0 | K64: =IF($S$7=1,NL!J63,IF(cal!$S$7=2,EN!J63,IF(cal!$S$7=3,DE!J63,IF(cal!$S$7=4,FR!J63,IF(cal!$S$7=5,NR!J63,IF(cal!$S$7=6,SP!J63,IF(cal!$S$7=7,SW!J63,IF(cal!$S$7=8,TS!J63,IF(cal!$S$7=9,ExtraTaal1!J63,IF(cal!$S$7=10,ExtraTaal2!J63,IF(cal!$S$7=11,ExtraTaal3!J63,))))))))))) -> 0 | L64: =IF($S$7=1,NL!K63,IF(cal!$S$7=2,EN!K63,IF(cal!$S$7=3,DE!K63,IF(cal!$S$7=4,FR!K63,IF(cal!$S$7=5,NR!K63,IF(cal!$S$7=6,SP!K63,IF(cal!$S$7=7,SW!K63,IF(cal!$S$7=8,TS!K63,IF(cal!$S$7=9,ExtraTaal1!K63,IF(cal!$S$7=10,ExtraTaal2!K63,IF(cal!$S$7=11,ExtraTaal3!K63,))))))))))) -> 0 | M64: =IF($S$7=1,NL!L63,IF(cal!$S$7=2,EN!L63,IF(cal!$S$7=3,DE!L63,IF(cal!$S$7=4,FR!L63,IF(cal!$S$7=5,NR!L63,IF(cal!$S$7=6,SP!L63,IF(cal!$S$7=7,SW!L63,IF(cal!$S$7=8,TS!L63,IF(cal!$S$7=9,ExtraTaal1!L63,IF(cal!$S$7=10,ExtraTaal2!L63,IF(cal!$S$7=11,ExtraTaal3!L63,))))))))))) -> 0 | N64: =IF($S$7=1,NL!M63,IF(cal!$S$7=2,EN!M63,IF(cal!$S$7=3,DE!M63,IF(cal!$S$7=4,FR!M63,IF(cal!$S$7=5,NR!M63,IF(cal!$S$7=6,SP!M63,IF(cal!$S$7=7,SW!M63,IF(cal!$S$7=8,TS!M63,IF(cal!$S$7=9,ExtraTaal1!M63,IF(cal!$S$7=10,ExtraTaal2!M63,IF(cal!$S$7=11,ExtraTaal3!M63,))))))))))) -> 0 | O64: =IF($S$7=1,NL!N63,IF(cal!$S$7=2,EN!N63,IF(cal!$S$7=3,DE!N63,IF(cal!$S$7=4,FR!N63,IF(cal!$S$7=5,NR!N63,IF(cal!$S$7=6,SP!N63,IF(cal!$S$7=7,SW!N63,IF(cal!$S$7=8,TS!N63,IF(cal!$S$7=9,ExtraTaal1!N63,IF(cal!$S$7=10,ExtraTaal2!N63,IF(cal!$S$7=11,ExtraTaal3!N63,))))))))))) -> 0 | P64: =IF($S$7=1,NL!O63,IF(cal!$S$7=2,EN!O63,IF(cal!$S$7=3,DE!O63,IF(cal!$S$7=4,FR!O63,IF(cal!$S$7=5,NR!O63,IF(cal!$S$7=6,SP!O63,IF(cal!$S$7=7,SW!O63,IF(cal!$S$7=8,TS!O63,IF(cal!$S$7=9,ExtraTaal1!O63,IF(cal!$S$7=10,ExtraTaal2!O63,IF(cal!$S$7=11,ExtraTaal3!O63,))))))))))) -> 0 | Q64: n-value | R64: 0 | X64: =IF($X$16=1,AE64,IF($X$16=2,AM64,IF($X$16=3,BL64,IF($X$16=4,BE64,IF($X$16=5,CA64,IF($X$16=6,BT64,IF($X$16=7,AX64,))))))) -> 0 | Y64: =IF($X$16=1,AF64,IF($X$16=2,AN64,IF($X$16=3,BM64,IF($X$16=4,BF64,IF($X$16=5,CB64,IF($X$16=6,BU64,IF($X$16=7,AY64,))))))) -> 0 | Z64: =IF($X$16=1,AG64,IF($X$16=2,AO64,IF($X$16=3,BN64,IF($X$16=4,BG64,IF($X$16=5,CC64,IF($X$16=6,BV64,IF($X$16=7,AZ64,))))))) -> 0 | AA64: =IF($X$16=1,AH64,IF($X$16=2,AP64,IF($X$16=3,BO64,IF($X$16=4,BH64,IF($X$16=5,CD64,IF($X$16=6,BW64,IF($X$16=7,BA64,))))))) -> 0 | AB64: =IF($X$16=1,AI64,IF($X$16=2,AQ64,IF($X$16=3,BP64,IF($X$16=4,BI64,IF($X$16=5,CE64,IF($X$16=6,BX64,IF($X$16=7,BB64,))))))) -> 0 | AC64: =IF($X$16=1,AJ64,IF($X$16=2,AR64,IF($X$16=3,BQ64,IF($X$16=4,BJ64,IF($X$16=5,CF64,IF($X$16=6,BY64,IF($X$16=7,BC64,))))))) -> 0 | AD64: =IF($X$16=1,AK64,IF($X$16=2,AS64,IF($X$16=3,BR64,IF($X$16=4,BK64,IF($X$16=5,CG64,IF($X$16=6,BZ64,IF($X$16=7,BD64,))))))) -> 0
B65: 0.2 | C65: 2 | D65: =(X65*($T$11^$Q65))*Watts*CF_Altit -> 0 | E65: =ROUND(((D65/Watts)/(($S$9-$S$10)*1.163))*$E$14,IF($X$4=1,0,IF($X$4=2,2))) -> 0 | F65: =($Y$66*(E65/$E$14)^$Y$68)*$F$14 ->  | G65: =(Z65*($W$11^R65))*Watts*CF_Altit -> 0 | H65: =((G65/Watts)/(IF((237.3*LN((RH*EXP(17.27*(Tl_cool/(Tl_cool+237.3))))))/(17.27-LN((RH*EXP(17.27*(Tl_cool/(Tl_cool+237.3))))))<Tavg_cold,1,IF(1/(1+((2258*((0.622/(($Z$11/(1*611*EXP(17.27*(Tavg_cold/(Tavg_cold+237.3))))))-1)*1000-(0.622/(($Z$11/(RH*611*EXP(17.27*(Tl_cool/(Tl_cool+237.3))))))-1)*1000))/(1005*(Tavg_cold-Tl_cool))))*1.039+((-0.000729*$C65+0.001448)*(Tl_cool-Tavg_cold)+(0.016908*$C65-0.033574))*1.039>1,1,1/(1+((2258*((0.622/(($Z$11/(1*611*EXP(17.27*(Tavg_cold/(Tavg_cold+237.3))))))-1)*1000-(0.622/(($Z$11/(RH*611*EXP(17.27*(Tl_cool/(Tl_cool+237.3))))))-1)*1000))/(1005*(Tavg_cold-Tl_cool))))*1.039+((-0.000729*$C65+0.001448)*(Tl_cool-Tavg_cold)+(0.016908*$C65-0.033574))*1.039))))*Watts -> 0 | I65: =ROUND(((H65/Watts)/((Tr_cool-Tv_cool)*1.163))*$I$14,IF($X$4=1,0,IF($X$4=2,2))) -> 0 | J65: =($AA$66*(I65/$I$14)^$AA$68)*$J$14 ->  | K65: =L65-8 -> -8 | L65: =AB65 -> 0 | M65: 0 | N65: =AD65*Cubics -> 0 | O65: =((($D65/Watts)/(((p_atm*0.028964)/(8.31447*(20+273.15)))*(($N65/3600)/Cubics)*(1005+1870*((0.622)/(((p_atm)/($E$12*Pvs_Heat_in))-1)))))+Tl_heat)*Celc1+Celc2 ->  | P65: =(Tl_cool-(($G65/Watts)/(1006*$N65*kgss)))*Celc1+Celc2 ->  | Q65: 1 | R65: 0 | W65: =(H65-G65)/H65 ->  | X65: =IF($X$16=1,AE65,IF($X$16=2,AM65,IF($X$16=3,BL65,IF($X$16=4,BE65,IF($X$16=5,CA65,IF($X$16=6,BT65,IF($X$16=7,AX65,))))))) -> 0 | Y65: =IF($X$16=1,AF65,IF($X$16=2,AN65,IF($X$16=3,BM65,IF($X$16=4,BF65,IF($X$16=5,CB65,IF($X$16=6,BU65,IF($X$16=7,AY65,))))))) -> 0 | Z65: =IF($X$16=1,AG65,IF($X$16=2,AO65,IF($X$16=3,BN65,IF($X$16=4,BG65,IF($X$16=5,CC65,IF($X$16=6,BV65,IF($X$16=7,AZ65,))))))) -> 0 | AA65: =IF($X$16=1,AH65,IF($X$16=2,AP65,IF($X$16=3,BO65,IF($X$16=4,BH65,IF($X$16=5,CD65,IF($X$16=6,BW65,IF($X$16=7,BA65,))))))) -> 0 | AB65: =IF($X$16=1,AI65,IF($X$16=2,AQ65,IF($X$16=3,BP65,IF($X$16=4,BI65,IF($X$16=5,CE65,IF($X$16=6,BX65,IF($X$16=7,BB65,))))))) -> 0 | AC65: =IF($X$16=1,AJ65,IF($X$16=2,AR65,IF($X$16=3,BQ65,IF($X$16=4,BJ65,IF($X$16=5,CF65,IF($X$16=6,BY65,IF($X$16=7,BC65,))))))) -> 0 | AD65: =IF($X$16=1,AK65,IF($X$16=2,AS65,IF($X$16=3,BR65,IF($X$16=4,BK65,IF($X$16=5,CG65,IF($X$16=6,BZ65,IF($X$16=7,BD65,))))))) -> 0
B66: 0.4 | C66: 4 | D66: =(X66*($T$11^$Q66))*Watts*CF_Altit -> 0 | E66: =ROUND(((D66/Watts)/(($S$9-$S$10)*1.163))*$E$14,IF($X$4=1,0,IF($X$4=2,2))) -> 0 | F66: =($Y$66*(E66/$E$14)^$Y$68)*$F$14 ->  | G66: =(Z66*($W$11^R66))*Watts*CF_Altit -> 0 | H66: =((G66/Watts)/(IF((237.3*LN((RH*EXP(17.27*(Tl_cool/(Tl_cool+237.3))))))/(17.27-LN((RH*EXP(17.27*(Tl_cool/(Tl_cool+237.3))))))<Tavg_cold,1,IF(1/(1+((2258*((0.622/(($Z$11/(1*611*EXP(17.27*(Tavg_cold/(Tavg_cold+237.3))))))-1)*1000-(0.622/(($Z$11/(RH*611*EXP(17.27*(Tl_cool/(Tl_cool+237.3))))))-1)*1000))/(1005*(Tavg_cold-Tl_cool))))*1.039+((-0.000729*$C66+0.001448)*(Tl_cool-Tavg_cold)+(0.016908*$C66-0.033574))*1.039>1,1,1/(1+((2258*((0.622/(($Z$11/(1*611*EXP(17.27*(Tavg_cold/(Tavg_cold+237.3))))))-1)*1000-(0.622/(($Z$11/(RH*611*EXP(17.27*(Tl_cool/(Tl_cool+237.3))))))-1)*1000))/(1005*(Tavg_cold-Tl_cool))))*1.039+((-0.000729*$C66+0.001448)*(Tl_cool-Tavg_cold)+(0.016908*$C66-0.033574))*1.039))))*Watts -> 0 | I66: =ROUND(((H66/Watts)/((Tr_cool-Tv_cool)*1.163))*$I$14,IF($X$4=1,0,IF($X$4=2,2))) -> 0 | J66: =($AA$66*(I66/$I$14)^$AA$68)*$J$14 ->  | K66: =L66-8 -> -8 | L66: 0 | M66: 0 | N66: =AD66*Cubics -> 0 | O66: =((($D66/Watts)/(((p_atm*0.028964)/(8.31447*(20+273.15)))*(($N66/3600)/Cubics)*(1005+1870*((0.622)/(((p_atm)/($E$12*Pvs_Heat_in))-1)))))+Tl_heat)*Celc1+Celc2 ->  | P66: =(Tl_cool-(($G66/Watts)/(1006*$N66*kgss)))*Celc1+Celc2 ->  | Q66: 1 | R66: 0 | W66: =(H66-G66)/H66 ->  | X66: =IF($X$16=1,AE66,IF($X$16=2,AM66,IF($X$16=3,BL66,IF($X$16=4,BE66,IF($X$16=5,CA66,IF($X$16=6,BT66,IF($X$16=7,AX66,))))))) -> 0 | Y66: =IF($X$16=1,AF66,IF($X$16=2,AN66,IF($X$16=3,BM66,IF($X$16=4,BF66,IF($X$16=5,CB66,IF($X$16=6,BU66,IF($X$16=7,AY66,))))))) -> 0 | Z66: =IF($X$16=1,AG66,IF($X$16=2,AO66,IF($X$16=3,BN66,IF($X$16=4,BG66,IF($X$16=5,CC66,IF($X$16=6,BV66,IF($X$16=7,AZ66,))))))) -> 0 | AA66: =IF($X$16=1,AH66,IF($X$16=2,AP66,IF($X$16=3,BO66,IF($X$16=4,BH66,IF($X$16=5,CD66,IF($X$16=6,BW66,IF($X$16=7,BA66,))))))) -> 0 | AB66: =IF($X$16=1,AI66,IF($X$16=2,AQ66,IF($X$16=3,BP66,IF($X$16=4,BI66,IF($X$16=5,CE66,IF($X$16=6,BX66,IF($X$16=7,BB66,))))))) -> 0 | AC66: =IF($X$16=1,AJ66,IF($X$16=2,AR66,IF($X$16=3,BQ66,IF($X$16=4,BJ66,IF($X$16=5,CF66,IF($X$16=6,BY66,IF($X$16=7,BC66,))))))) -> 0 | AD66: =IF($X$16=1,AK66,IF($X$16=2,AS66,IF($X$16=3,BR66,IF($X$16=4,BK66,IF($X$16=5,CG66,IF($X$16=6,BZ66,IF($X$16=7,BD66,))))))) -> 0
B67: 0.6 | C67: 6 | D67: =(X67*($T$11^$Q67))*Watts*CF_Altit -> 0 | E67: =ROUND(((D67/Watts)/(($S$9-$S$10)*1.163))*$E$14,IF($X$4=1,0,IF($X$4=2,2))) -> 0 | F67: =($Y$66*(E67/$E$14)^$Y$68)*$F$14 ->  | G67: =(Z67*($W$11^R67))*Watts*CF_Altit -> 0 | H67: =((G67/Watts)/(IF((237.3*LN((RH*EXP(17.27*(Tl_cool/(Tl_cool+237.3))))))/(17.27-LN((RH*EXP(17.27*(Tl_cool/(Tl_cool+237.3))))))<Tavg_cold,1,IF(1/(1+((2258*((0.622/(($Z$11/(1*611*EXP(17.27*(Tavg_cold/(Tavg_cold+237.3))))))-1)*1000-(0.622/(($Z$11/(RH*611*EXP(17.27*(Tl_cool/(Tl_cool+237.3))))))-1)*1000))/(1005*(Tavg_cold-Tl_cool))))*1.039+((-0.000729*$C67+0.001448)*(Tl_cool-Tavg_cold)+(0.016908*$C67-0.033574))*1.039>1,1,1/(1+((2258*((0.622/(($Z$11/(1*611*EXP(17.27*(Tavg_cold/(Tavg_cold+237.3))))))-1)*1000-(0.622/(($Z$11/(RH*611*EXP(17.27*(Tl_cool/(Tl_cool+237.3))))))-1)*1000))/(1005*(Tavg_cold-Tl_cool))))*1.039+((-0.000729*$C67+0.001448)*(Tl_cool-Tavg_cold)+(0.016908*$C67-0.033574))*1.039))))*Watts -> 0 | I67: =ROUND(((H67/Watts)/((Tr_cool-Tv_cool)*1.163))*$I$14,IF($X$4=1,0,IF($X$4=2,2))) -> 0 | J67: =($AA$66*(I67/$I$14)^$AA$68)*$J$14 ->  | K67: =L67-8 -> -8 | L67: 0 | M67: 0 | N67: =AD67*Cubics -> 0 | O67: =((($D67/Watts)/(((p_atm*0.028964)/(8.31447*(20+273.15)))*(($N67/3600)/Cubics)*(1005+1870*((0.622)/(((p_atm)/($E$12*Pvs_Heat_in))-1)))))+Tl_heat)*Celc1+Celc2 ->  | P67: =(Tl_cool-(($G67/Watts)/(1006*$N67*kgss)))*Celc1+Celc2 ->  | Q67: 1 | R67: 0 | W67: =(H67-G67)/H67 ->  | X67: =IF($X$16=1,AE67,IF($X$16=2,AM67,IF($X$16=3,BL67,IF($X$16=4,BE67,IF($X$16=5,CA67,IF($X$16=6,BT67,IF($X$16=7,AX67,))))))) -> 0 | Y67: =IF($X$16=1,AF67,IF($X$16=2,AN67,IF($X$16=3,BM67,IF($X$16=4,BF67,IF($X$16=5,CB67,IF($X$16=6,BU67,IF($X$16=7,AY67,))))))) -> 0 | Z67: =IF($X$16=1,AG67,IF($X$16=2,AO67,IF($X$16=3,BN67,IF($X$16=4,BG67,IF($X$16=5,CC67,IF($X$16=6,BV67,IF($X$16=7,AZ67,))))))) -> 0 | AA67: =IF($X$16=1,AH67,IF($X$16=2,AP67,IF($X$16=3,BO67,IF($X$16=4,BH67,IF($X$16=5,CD67,IF($X$16=6,BW67,IF($X$16=7,BA67,))))))) -> 0 | AB67: =IF($X$16=1,AI67,IF($X$16=2,AQ67,IF($X$16=3,BP67,IF($X$16=4,BI67,IF($X$16=5,CE67,IF($X$16=6,BX67,IF($X$16=7,BB67,))))))) -> 0 | AC67: =IF($X$16=1,AJ67,IF($X$16=2,AR67,IF($X$16=3,BQ67,IF($X$16=4,BJ67,IF($X$16=5,CF67,IF($X$16=6,BY67,IF($X$16=7,BC67,))))))) -> 0 | AD67: =IF($X$16=1,AK67,IF($X$16=2,AS67,IF($X$16=3,BR67,IF($X$16=4,BK67,IF($X$16=5,CG67,IF($X$16=6,BZ67,IF($X$16=7,BD67,))))))) -> 0
B68: 0.8 | C68: 8 | D68: =(X68*($T$11^$Q68))*Watts*CF_Altit -> 0 | E68: =ROUND(((D68/Watts)/(($S$9-$S$10)*1.163))*$E$14,IF($X$4=1,0,IF($X$4=2,2))) -> 0 | F68: =($Y$66*(E68/$E$14)^$Y$68)*$F$14 ->  | G68: =(Z68*($W$11^R68))*Watts*CF_Altit -> 0 | H68: =((G68/Watts)/(IF((237.3*LN((RH*EXP(17.27*(Tl_cool/(Tl_cool+237.3))))))/(17.27-LN((RH*EXP(17.27*(Tl_cool/(Tl_cool+237.3))))))<Tavg_cold,1,IF(1/(1+((2258*((0.622/(($Z$11/(1*611*EXP(17.27*(Tavg_cold/(Tavg_cold+237.3))))))-1)*1000-(0.622/(($Z$11/(RH*611*EXP(17.27*(Tl_cool/(Tl_cool+237.3))))))-1)*1000))/(1005*(Tavg_cold-Tl_cool))))*1.039+((-0.000729*$C68+0.001448)*(Tl_cool-Tavg_cold)+(0.016908*$C68-0.033574))*1.039>1,1,1/(1+((2258*((0.622/(($Z$11/(1*611*EXP(17.27*(Tavg_cold/(Tavg_cold+237.3))))))-1)*1000-(0.622/(($Z$11/(RH*611*EXP(17.27*(Tl_cool/(Tl_cool+237.3))))))-1)*1000))/(1005*(Tavg_cold-Tl_cool))))*1.039+((-0.000729*$C68+0.001448)*(Tl_cool-Tavg_cold)+(0.016908*$C68-0.033574))*1.039))))*Watts -> 0 | I68: =ROUND(((H68/Watts)/((Tr_cool-Tv_cool)*1.163))*$I$14,IF($X$4=1,0,IF($X$4=2,2))) -> 0 | J68: =($AA$66*(I68/$I$14)^$AA$68)*$J$14 ->  | K68: =L68-8 -> -8 | L68: 0 | M68: 0 | N68: =AD68*Cubics -> 0 | O68: =((($D68/Watts)/(((p_atm*0.028964)/(8.31447*(20+273.15)))*(($N68/3600)/Cubics)*(1005+1870*((0.622)/(((p_atm)/($E$12*Pvs_Heat_in))-1)))))+Tl_heat)*Celc1+Celc2 ->  | P68: =(Tl_cool-(($G68/Watts)/(1006*$N68*kgss)))*Celc1+Celc2 ->  | Q68: 1 | R68: 0 | W68: =(H68-G68)/H68 ->  | X68: =IF($X$16=1,AE68,IF($X$16=2,AM68,IF($X$16=3,BL68,IF($X$16=4,BE68,IF($X$16=5,CA68,IF($X$16=6,BT68,IF($X$16=7,AX68,))))))) -> 0 | Y68: =IF($X$16=1,AF68,IF($X$16=2,AN68,IF($X$16=3,BM68,IF($X$16=4,BF68,IF($X$16=5,CB68,IF($X$16=6,BU68,IF($X$16=7,AY68,))))))) -> 0 | Z68: =IF($X$16=1,AG68,IF($X$16=2,AO68,IF($X$16=3,BN68,IF($X$16=4,BG68,IF($X$16=5,CC68,IF($X$16=6,BV68,IF($X$16=7,AZ68,))))))) -> 0 | AA68: =IF($X$16=1,AH68,IF($X$16=2,AP68,IF($X$16=3,BO68,IF($X$16=4,BH68,IF($X$16=5,CD68,IF($X$16=6,BW68,IF($X$16=7,BA68,))))))) -> 0 | AB68: =IF($X$16=1,AI68,IF($X$16=2,AQ68,IF($X$16=3,BP68,IF($X$16=4,BI68,IF($X$16=5,CE68,IF($X$16=6,BX68,IF($X$16=7,BB68,))))))) -> 0 | AC68: =IF($X$16=1,AJ68,IF($X$16=2,AR68,IF($X$16=3,BQ68,IF($X$16=4,BJ68,IF($X$16=5,CF68,IF($X$16=6,BY68,IF($X$16=7,BC68,))))))) -> 0 | AD68: =IF($X$16=1,AK68,IF($X$16=2,AS68,IF($X$16=3,BR68,IF($X$16=4,BK68,IF($X$16=5,CG68,IF($X$16=6,BZ68,IF($X$16=7,BD68,))))))) -> 0
B69: 1 | C69: 10 | D69: =(X69*($T$11^$Q69))*Watts*CF_Altit -> 0 | E69: =ROUND(((D69/Watts)/(($S$9-$S$10)*1.163))*$E$14,IF($X$4=1,0,IF($X$4=2,2))) -> 0 | F69: =($Y$66*(E69/$E$14)^$Y$68)*$F$14 ->  | G69: =(Z69*($W$11^R69))*Watts*CF_Altit -> 0 | H69: =((G69/Watts)/(IF((237.3*LN((RH*EXP(17.27*(Tl_cool/(Tl_cool+237.3))))))/(17.27-LN((RH*EXP(17.27*(Tl_cool/(Tl_cool+237.3))))))<Tavg_cold,1,IF(1/(1+((2258*((0.622/(($Z$11/(1*611*EXP(17.27*(Tavg_cold/(Tavg_cold+237.3))))))-1)*1000-(0.622/(($Z$11/(RH*611*EXP(17.27*(Tl_cool/(Tl_cool+237.3))))))-1)*1000))/(1005*(Tavg_cold-Tl_cool))))*1.039+((-0.000729*$C69+0.001448)*(Tl_cool-Tavg_cold)+(0.016908*$C69-0.033574))*1.039>1,1,1/(1+((2258*((0.622/(($Z$11/(1*611*EXP(17.27*(Tavg_cold/(Tavg_cold+237.3))))))-1)*1000-(0.622/(($Z$11/(RH*611*EXP(17.27*(Tl_cool/(Tl_cool+237.3))))))-1)*1000))/(1005*(Tavg_cold-Tl_cool))))*1.039+((-0.000729*$C69+0.001448)*(Tl_cool-Tavg_cold)+(0.016908*$C69-0.033574))*1.039))))*Watts -> 0 | I69: =ROUND(((H69/Watts)/((Tr_cool-Tv_cool)*1.163))*$I$14,IF($X$4=1,0,IF($X$4=2,2))) -> 0 | J69: =($AA$66*(I69/$I$14)^$AA$68)*$J$14 ->  | K69: =L69-8 -> -8 | L69: 0 | M69: 0 | N69: =AD69*Cubics -> 0 | O69: =((($D69/Watts)/(((p_atm*0.028964)/(8.31447*(20+273.15)))*(($N69/3600)/Cubics)*(1005+1870*((0.622)/(((p_atm)/($E$12*Pvs_Heat_in))-1)))))+Tl_heat)*Celc1+Celc2 ->  | P69: =(Tl_cool-(($G69/Watts)/(1006*$N69*kgss)))*Celc1+Celc2 ->  | Q69: 1 | R69: 0 | W69: =(H69-G69)/H69 ->  | X69: =IF($X$16=1,AE69,IF($X$16=2,AM69,IF($X$16=3,BL69,IF($X$16=4,BE69,IF($X$16=5,CA69,IF($X$16=6,BT69,IF($X$16=7,AX69,))))))) -> 0 | Y69: =IF($X$16=1,AF69,IF($X$16=2,AN69,IF($X$16=3,BM69,IF($X$16=4,BF69,IF($X$16=5,CB69,IF($X$16=6,BU69,IF($X$16=7,AY69,))))))) -> 0 | Z69: =IF($X$16=1,AG69,IF($X$16=2,AO69,IF($X$16=3,BN69,IF($X$16=4,BG69,IF($X$16=5,CC69,IF($X$16=6,BV69,IF($X$16=7,AZ69,))))))) -> 0 | AA69: =IF($X$16=1,AH69,IF($X$16=2,AP69,IF($X$16=3,BO69,IF($X$16=4,BH69,IF($X$16=5,CD69,IF($X$16=6,BW69,IF($X$16=7,BA69,))))))) -> 0 | AB69: =IF($X$16=1,AI69,IF($X$16=2,AQ69,IF($X$16=3,BP69,IF($X$16=4,BI69,IF($X$16=5,CE69,IF($X$16=6,BX69,IF($X$16=7,BB69,))))))) -> 0 | AC69: =IF($X$16=1,AJ69,IF($X$16=2,AR69,IF($X$16=3,BQ69,IF($X$16=4,BJ69,IF($X$16=5,CF69,IF($X$16=6,BY69,IF($X$16=7,BC69,))))))) -> 0 | AD69: =IF($X$16=1,AK69,IF($X$16=2,AS69,IF($X$16=3,BR69,IF($X$16=4,BK69,IF($X$16=5,CG69,IF($X$16=6,BZ69,IF($X$16=7,BD69,))))))) -> 0
B70: =IF($S$7=1,NL!A69,IF(cal!$S$7=2,EN!A69,IF(cal!$S$7=3,DE!A69,IF(cal!$S$7=4,FR!A69,IF(cal!$S$7=5,NR!A69,IF(cal!$S$7=6,SP!A69,IF(cal!$S$7=7,SW!A69,IF(cal!$S$7=8,TS!A69,IF(cal!$S$7=9,ExtraTaal1!A69,IF(cal!$S$7=10,ExtraTaal2!A69,IF(cal!$S$7=11,ExtraTaal3!A69,))))))))))) -> *Values according to EN 16430 | N70: =Freedom!P71 -> v2022-08-26 | X70: =IF($X$16=1,AE70,IF($X$16=2,AM70,IF($X$16=3,BL70,IF($X$16=4,BE70,IF($X$16=5,CA70,IF($X$16=6,BT70,IF($X$16=7,AX70,))))))) -> 0 | Y70: =IF($X$16=1,AF70,IF($X$16=2,AN70,IF($X$16=3,BM70,IF($X$16=4,BF70,IF($X$16=5,CB70,IF($X$16=6,BU70,IF($X$16=7,AY70,))))))) -> 0 | Z70: =IF($X$16=1,AG70,IF($X$16=2,AO70,IF($X$16=3,BN70,IF($X$16=4,BG70,IF($X$16=5,CC70,IF($X$16=6,BV70,IF($X$16=7,AZ70,))))))) -> 0 | AA70: =IF($X$16=1,AH70,IF($X$16=2,AP70,IF($X$16=3,BO70,IF($X$16=4,BH70,IF($X$16=5,CD70,IF($X$16=6,BW70,IF($X$16=7,BA70,))))))) -> 0 | AB70: =IF($X$16=1,AI70,IF($X$16=2,AQ70,IF($X$16=3,BP70,IF($X$16=4,BI70,IF($X$16=5,CE70,IF($X$16=6,BX70,IF($X$16=7,BB70,))))))) -> 0 | AC70: =IF($X$16=1,AJ70,IF($X$16=2,AR70,IF($X$16=3,BQ70,IF($X$16=4,BJ70,IF($X$16=5,CF70,IF($X$16=6,BY70,IF($X$16=7,BC70,))))))) -> 0 | AD70: =IF($X$16=1,AK70,IF($X$16=2,AS70,IF($X$16=3,BR70,IF($X$16=4,BK70,IF($X$16=5,CG70,IF($X$16=6,BZ70,IF($X$16=7,BD70,))))))) -> 0
B71: =IF($S$7=1,NL!A70,IF(cal!$S$7=2,EN!A70,IF(cal!$S$7=3,DE!A70,IF(cal!$S$7=4,FR!A70,IF(cal!$S$7=5,NR!A70,IF(cal!$S$7=6,SP!A70,IF(cal!$S$7=7,SW!A70,IF(cal!$S$7=8,TS!A70,IF(cal!$S$7=9,ExtraTaal1!A70,IF(cal!$S$7=10,ExtraTaal2!A70,IF(cal!$S$7=11,ExtraTaal3!A70,))))))))))) -> **Sound power according to ISO 3741:2010
B72: =IF($S$7=1,NL!A71,IF(cal!$S$7=2,EN!A71,IF(cal!$S$7=3,DE!A71,IF(cal!$S$7=4,FR!A71,IF(cal!$S$7=5,NR!A71,IF(cal!$S$7=6,SP!A71,IF(cal!$S$7=7,SW!A71,IF(cal!$S$7=8,TS!A71,IF(cal!$S$7=9,ExtraTaal1!A71,IF(cal!$S$7=10,ExtraTaal2!A71,IF(cal!$S$7=11,ExtraTaal3!A71,))))))))))) -> ***Sound pressure with an assumed room damping of 8dB(A)

Sheet NL (hidden)
A2: Invulformulier
A4: Randvoorwaarden
A6: Temperaturen | L6: Geplaatste hoogte
A7: Verwarmen: | F7: Koelen: | Q7: Kopieer alle data
A8: ="Aanvoertemp." -> Aanvoertemp. | D8: =cal!E9 -> 75 | E8: =IF(cal!$X$4=1,"°C",IF(cal!$X$4=2,"°F")) -> °C | F8: =A8 -> Aanvoertemp. | J8: =cal!K9 -> 16 | K8: =E8 -> °C | L8: Eenheidsstelsel | Q8: SI-eenheden
A9: ="Retourtemp." -> Retourtemp. | D9: =cal!E10 -> 65 | E9: =E8 -> °C | F9: =A9 -> Retourtemp. | J9: =cal!K10 -> 18 | K9: =E8 -> °C | Q9: Imperiale-eenheden
A10: ="Ruimtetemp." -> Ruimtetemp. | D10: =cal!E11 -> 20 | E10: =E8 -> °C | F10: =A10 -> Ruimtetemp. | J10: =cal!K11 -> 27 | K10: =E8 -> °C
F11: Relatieve vochtigheid | J11: =cal!K12 -> 0.5
A14: Snelheidsniveau: | B14: Stuurspanning: [V] | C14: =CONCATENATE("Warmteafgifte * ",ROUND(D8,0),"/",ROUND(D9,0),"/",ROUND(D10,0)," ["&IF(cal!$X$4=1,"W",IF(cal!$X$4=2,"Btu/h"))&"]") -> Warmteafgifte * 75/65/20 [W] | D14: ="Waterdebiet, verwarming ["&IF(cal!$X$4=1,"l/h",IF(cal!$X$4=2,"GPM"))&"]" -> Waterdebiet, verwarming [l/h] | E14: ="Waterzijdig drukverlies ["&IF(cal!$X$4=1,"kPa",IF(cal!$X$4=2,"inH2O"))&"]" -> Waterzijdig drukverlies [kPa] | F14: =CONCATENATE("Voelb. Koelcapaciteit * ",ROUND(J8,0),"/",,ROUND(J9,0),"/",,ROUND(J10,0)," ["&IF(cal!$X$4=1,"W",IF(cal!$X$4=2,"Btu/h"))&"]") -> Voelb. Koelcapaciteit * 16/18/27 [W] | G14: =CONCATENATE("Tot. koelcapaciteit ",,ROUND(J8,0),"/",,ROUND(J9,0),"/",,ROUND(J10,0)," ["&IF(cal!$X$4=1,"W",IF(cal!$X$4=2,"Btu/h"))&"]") -> Tot. koelcapaciteit 16/18/27 [W] | H14: ="Waterdebiet, koeling ["&IF(cal!$X$4=1,"l/h",IF(cal!$X$4=2,"GPM"))&"]" -> Waterdebiet, koeling [l/h] | I14: ="Waterzijdig drukverlies ["&IF(cal!$X$4=1,"kPa",IF(cal!$X$4=2,"inH2O"))&"]" -> Waterzijdig drukverlies [kPa] | J14: Geluidsdruk *** [dB(A)] | K14: Geluidsvermogen ** [dB(A)] | L14: Opgenomen elektr. vermogen [W] | M14: ="Luchtdebiet ["&IF(cal!$X$4=1,"m³/h",IF(cal!$X$4=2,"CFM"))&"]" -> Luchtdebiet [m³/h] | N14: ="Uitblaastemp. verwarming ["&IF(cal!$X$4=1,"°C",IF(cal!$X$4=2,"°F"))&"]" -> Uitblaastemp. verwarming [°C] | O14: ="Uitblaastemp. koeling ["&IF(cal!$X$4=1,"°C",IF(cal!$X$4=2,"°F"))&"]" -> Uitblaastemp. koeling [°C]
A15: =cal!$Z$1&" "&$R$15&" "&ROUND(cal!Y22,1)&IF(cal!$X$4=1," cm",IF(cal!$X$4=2," in"))&" "&$R$16&" "&ROUND(cal!AA22,1)&IF(cal!$X$4=1," cm",IF(cal!$X$4=2," in"))&" "&$R$17&" "&ROUND(cal!AC22,1)&IF(cal!$X$4=1," cm",IF(cal!$X$4=2," in"))&" (Type 1)" -> Freedom hoogte 20 cm breedte 19 cm lengte 74 cm (Type 1) | Q15: Temp. | R15: hoogte
Q16: verw.! | R16: breedte
Q17: koelen! | R17: lengte
A21: =cal!$Z$1&" "&$R$15&" "&ROUND(cal!Y28,1)&IF(cal!$X$4=1," cm",IF(cal!$X$4=2," in"))&" "&$R$16&" "&ROUND(cal!AA28,1)&IF(cal!$X$4=1," cm",IF(cal!$X$4=2," in"))&" "&$R$17&" "&ROUND(cal!AC28,1)&IF(cal!$X$4=1," cm",IF(cal!$X$4=2," in"))&" (Type 2)" -> Freedom hoogte 20 cm breedte 19 cm lengte 110 cm (Type 2)
A27: =cal!$Z$1&" "&$R$15&" "&ROUND(cal!Y34,1)&IF(cal!$X$4=1," cm",IF(cal!$X$4=2," in"))&" "&$R$16&" "&ROUND(cal!AA34,1)&IF(cal!$X$4=1," cm",IF(cal!$X$4=2," in"))&" "&$R$17&" "&ROUND(cal!AC34,1)&IF(cal!$X$4=1," cm",IF(cal!$X$4=2," in"))&" (Type 3)" -> Freedom hoogte 20 cm breedte 19 cm lengte 145 cm (Type 3)
A33: =cal!$Z$1&" "&$R$15&" "&ROUND(cal!Y40,1)&IF(cal!$X$4=1," cm",IF(cal!$X$4=2," in"))&" "&$R$16&" "&ROUND(cal!AA40,1)&IF(cal!$X$4=1," cm",IF(cal!$X$4=2," in"))&" "&$R$17&" "&ROUND(cal!AC40,1)&IF(cal!$X$4=1," cm",IF(cal!$X$4=2," in"))&" (Type 4)" -> Freedom hoogte 20 cm breedte 19 cm lengte 181 cm (Type 4)
A39: =cal!$Z$1&" "&$R$15&" "&ROUND(cal!Y46,1)&IF(cal!$X$4=1," cm",IF(cal!$X$4=2," in"))&" "&$R$16&" "&ROUND(cal!AA46,1)&IF(cal!$X$4=1," cm",IF(cal!$X$4=2," in"))&" "&$R$17&" "&ROUND(cal!AC46,1)&IF(cal!$X$4=1," cm",IF(cal!$X$4=2," in"))&" (Type 5)" -> Freedom hoogte 0 cm breedte 0 cm lengte 0 cm (Type 5)
A45: =cal!$Z$1&" "&$R$15&" "&ROUND(cal!Y52,1)&IF(cal!$X$4=1," cm",IF(cal!$X$4=2," in"))&" "&$R$16&" "&ROUND(cal!AA52,1)&IF(cal!$X$4=1," cm",IF(cal!$X$4=2," in"))&" "&$R$17&" "&ROUND(cal!AC52,1)&IF(cal!$X$4=1," cm",IF(cal!$X$4=2," in"))&" (Type 6)" -> Freedom hoogte 0 cm breedte 0 cm lengte 0 cm (Type 6)
A51: =cal!$Z$1&" "&$R$15&" "&ROUND(cal!Y58,1)&IF(cal!$X$4=1," cm",IF(cal!$X$4=2," in"))&" "&$R$16&" "&ROUND(cal!AA58,1)&IF(cal!$X$4=1," cm",IF(cal!$X$4=2," in"))&" "&$R$17&" "&ROUND(cal!AC58,1)&IF(cal!$X$4=1," cm",IF(cal!$X$4=2," in"))&" (Type 7)" -> Freedom hoogte 0 cm breedte 0 cm lengte 0 cm (Type 7)
A57: =cal!$Z$1&" "&$R$15&" "&ROUND(cal!Y64,1)&IF(cal!$X$4=1," cm",IF(cal!$X$4=2," in"))&" "&$R$16&" "&ROUND(cal!AA64,1)&IF(cal!$X$4=1," cm",IF(cal!$X$4=2," in"))&" "&$R$17&" "&ROUND(cal!AC64,1)&IF(cal!$X$4=1," cm",IF(cal!$X$4=2," in"))&" (Type 8)" -> Freedom hoogte 0 cm breedte 0 cm lengte 0 cm (Type 8)
A63: =cal!$Z$1&" "&$R$15&" "&ROUND(cal!Y70,1)&IF(cal!$X$4=1," cm",IF(cal!$X$4=2," in"))&" "&$R$16&" "&ROUND(cal!AA70,1)&IF(cal!$X$4=1," cm",IF(cal!$X$4=2," in"))&" "&$R$17&" "&ROUND(cal!AC70,1)&IF(cal!$X$4=1," cm",IF(cal!$X$4=2," in"))&" (Type 9)" -> Freedom hoogte 0 cm breedte 0 cm lengte 0 cm (Type 9)
A69: *Waardes gemeten volgens EN 16430 | M69: =cal!N70 -> v2022-08-26
A70: **Geluidsvermogen gemeten volgens ISO 3741:2010
A71: ***Geluidsdruk bij een aangenomen ruimtedemping van 8 dB(A)

Sheet EN (hidden)
A2: Formulary
A4: Conditions
A6: Temperatures | L6: Altitude
A7: Heating: | F7: Cooling: | Q7: Copy all data
A8: ="Inlet temp." -> Inlet temp. | D8: =cal!E9 -> 75 | E8: =IF(cal!$X$4=1,"°C",IF(cal!$X$4=2,"°F")) -> °C | F8: =A8 -> Inlet temp. | J8: =cal!K9 -> 16 | K8: =E8 -> °C | L8: Unit conversion | Q8: SI-units
A9: ="Return temp." -> Return temp. | D9: =cal!E10 -> 65 | E9: =E8 -> °C | F9: =A9 -> Return temp. | J9: =cal!K10 -> 18 | K9: =E8 -> °C | Q9: Imperial-units
A10: ="Room temp." -> Room temp. | D10: =cal!E11 -> 20 | E10: =E8 -> °C | F10: =A10 -> Room temp. | J10: =cal!K11 -> 27 | K10: =E8 -> °C
F11: Relative humidity | J11: =cal!K12 -> 0.5
A14: Speed level: | B14: Control voltage [V] | C14: =CONCATENATE("Heat output * ",ROUND(D8,0),"/",ROUND(D9,0),"/",ROUND(D10,0)," ["&IF(cal!$X$4=1,"W",IF(cal!$X$4=2,"Btu/h"))&"]") -> Heat output * 75/65/20 [W] | D14: ="Water flowrate, heating ["&IF(cal!$X$4=1,"l/h",IF(cal!$X$4=2,"GPM"))&"]" -> Water flowrate, heating [l/h] | E14: ="Watersided pressure loss ["&IF(cal!$X$4=1,"kPa",IF(cal!$X$4=2,"inH2O"))&"]" -> Watersided pressure loss [kPa] | F14: =CONCATENATE("Sens. cooling capacity * ",ROUND(J8,0),"/",ROUND(J9,0),"/",ROUND(J10,0)," ["&IF(cal!$X$4=1,"W",IF(cal!$X$4=2,"Btu/h"))&"]") -> Sens. cooling capacity * 16/18/27 [W] | G14: =CONCATENATE("Tot. cooling capacity ",ROUND(J8,0),"/",ROUND(J9,0),"/",ROUND(J10,0)," ["&IF(cal!$X$4=1,"W",IF(cal!$X$4=2,"Btu/h"))&"]") -> Tot. cooling capacity 16/18/27 [W] | H14: ="Water flowrate, cooling ["&IF(cal!$X$4=1,"l/h",IF(cal!$X$4=2,"GPM"))&"]" -> Water flowrate, cooling [l/h] | I14: ="Watersided pressure loss ["&IF(cal!$X$4=1,"kPa",IF(cal!$X$4=2,"inH2O"))&"]" -> Watersided pressure loss [kPa] | J14: Sound pressure *** [dB(A)] | K14: Sound power ** [dB(A)] | L14: Electrical power [W] | M14: ="Air flowrate ["&IF(cal!$X$4=1,"m³/h",IF(cal!$X$4=2,"CFM"))&"]" -> Air flowrate [m³/h] | N14: ="Air exhaust temp. heating ["&IF(cal!$X$4=1,"°C",IF(cal!$X$4=2,"°F"))&"]" -> Air exhaust temp. heating [°C] | O14: ="Air exhaust temp. cooling ["&IF(cal!$X$4=1,"°C",IF(cal!$X$4=2,"°F"))&"]" -> Air exhaust temp. cooling [°C]
A15: =cal!$Z$1&" "&$R$15&" "&ROUND(cal!Y22,1)&IF(cal!$X$4=1," cm",IF(cal!$X$4=2," in"))&" "&$R$16&" "&ROUND(cal!AA22,1)&IF(cal!$X$4=1," cm",IF(cal!$X$4=2," in"))&" "&$R$17&" "&ROUND(cal!AC22,1)&IF(cal!$X$4=1," cm",IF(cal!$X$4=2," in"))&" (Type 1)" -> Freedom height 20 cm width 19 cm length 74 cm (Type 1) | Q15: Temp. | R15: height
Q16: heating! | R16: width
Q17: cooling! | R17: length
A21: =cal!$Z$1&" "&$R$15&" "&ROUND(cal!Y28,1)&IF(cal!$X$4=1," cm",IF(cal!$X$4=2," in"))&" "&$R$16&" "&ROUND(cal!AA28,1)&IF(cal!$X$4=1," cm",IF(cal!$X$4=2," in"))&" "&$R$17&" "&ROUND(cal!AC28,1)&IF(cal!$X$4=1," cm",IF(cal!$X$4=2," in"))&" (Type 2)" -> Freedom height 20 cm width 19 cm length 110 cm (Type 2)
A27: =cal!$Z$1&" "&$R$15&" "&ROUND(cal!Y34,1)&IF(cal!$X$4=1," cm",IF(cal!$X$4=2," in"))&" "&$R$16&" "&ROUND(cal!AA34,1)&IF(cal!$X$4=1," cm",IF(cal!$X$4=2," in"))&" "&$R$17&" "&ROUND(cal!AC34,1)&IF(cal!$X$4=1," cm",IF(cal!$X$4=2," in"))&" (Type 3)" -> Freedom height 20 cm width 19 cm length 145 cm (Type 3)
A33: =cal!$Z$1&" "&$R$15&" "&ROUND(cal!Y40,1)&IF(cal!$X$4=1," cm",IF(cal!$X$4=2," in"))&" "&$R$16&" "&ROUND(cal!AA40,1)&IF(cal!$X$4=1," cm",IF(cal!$X$4=2," in"))&" "&$R$17&" "&ROUND(cal!AC40,1)&IF(cal!$X$4=1," cm",IF(cal!$X$4=2," in"))&" (Type 4)" -> Freedom height 20 cm width 19 cm length 181 cm (Type 4)
A39: =cal!$Z$1&" "&$R$15&" "&ROUND(cal!Y46,1)&IF(cal!$X$4=1," cm",IF(cal!$X$4=2," in"))&" "&$R$16&" "&ROUND(cal!AA46,1)&IF(cal!$X$4=1," cm",IF(cal!$X$4=2," in"))&" "&$R$17&" "&ROUND(cal!AC46,1)&IF(cal!$X$4=1," cm",IF(cal!$X$4=2," in"))&" (Type 5)" -> Freedom height 0 cm width 0 cm length 0 cm (Type 5)
A45: =cal!$Z$1&" "&$R$15&" "&ROUND(cal!Y52,1)&IF(cal!$X$4=1," cm",IF(cal!$X$4=2," in"))&" "&$R$16&" "&ROUND(cal!AA52,1)&IF(cal!$X$4=1," cm",IF(cal!$X$4=2," in"))&" "&$R$17&" "&ROUND(cal!AC52,1)&IF(cal!$X$4=1," cm",IF(cal!$X$4=2," in"))&" (Type 6)" -> Freedom height 0 cm width 0 cm length 0 cm (Type 6)
A51: =cal!$Z$1&" "&$R$15&" "&ROUND(cal!Y58,1)&IF(cal!$X$4=1," cm",IF(cal!$X$4=2," in"))&" "&$R$16&" "&ROUND(cal!AA58,1)&IF(cal!$X$4=1," cm",IF(cal!$X$4=2," in"))&" "&$R$17&" "&ROUND(cal!AC58,1)&IF(cal!$X$4=1," cm",IF(cal!$X$4=2," in"))&" (Type 7)" -> Freedom height 0 cm width 0 cm length 0 cm (Type 7)
A57: =cal!$Z$1&" "&$R$15&" "&ROUND(cal!Y64,1)&IF(cal!$X$4=1," cm",IF(cal!$X$4=2," in"))&" "&$R$16&" "&ROUND(cal!AA64,1)&IF(cal!$X$4=1," cm",IF(cal!$X$4=2," in"))&" "&$R$17&" "&ROUND(cal!AC64,1)&IF(cal!$X$4=1," cm",IF(cal!$X$4=2," in"))&" (Type 8)" -> Freedom height 0 cm width 0 cm length 0 cm (Type 8)
A63: =cal!$Z$1&" "&$R$15&" "&ROUND(cal!Y70,1)&IF(cal!$X$4=1," cm",IF(cal!$X$4=2," in"))&" "&$R$16&" "&ROUND(cal!AA70,1)&IF(cal!$X$4=1," cm",IF(cal!$X$4=2," in"))&" "&$R$17&" "&ROUND(cal!AC70,1)&IF(cal!$X$4=1," cm",IF(cal!$X$4=2," in"))&" (Type 9)" -> Freedom height 0 cm width 0 cm length 0 cm (Type 9)
A69: *Values according to EN 16430 | M69: =cal!N70 -> v2022-08-26
A70: **Sound power according to ISO 3741:2010
A71: ***Sound pressure with an assumed room damping of 8dB(A)

Sheet DE (hidden)
A2: Eingabefelder
A4: Auslegungsrandbedingungen
A6: Temperaturen | L6: Platzierte Höhe
A7: Heizen: | F7: Kühlen: | Q7: Kopieren Sie alle daten
A8: ="Vorlauftemp." -> Vorlauftemp. | D8: =cal!E9 -> 75 | E8: =IF(cal!$X$4=1,"°C",IF(cal!$X$4=2,"°F")) -> °C | F8: =A8 -> Vorlauftemp. | J8: =cal!K9 -> 16 | K8: =E8 -> °C | L8: Einheiten | Q8: SI-einheiten
A9: ="Rücklauftemp." -> Rücklauftemp. | D9: =cal!E10 -> 65 | E9: =E8 -> °C | F9: =A9 -> Rücklauftemp. | J9: =cal!K10 -> 18 | K9: =E8 -> °C | Q9: Imperiale-einheiten
A10: ="Raumtemp." -> Raumtemp. | D10: =cal!E11 -> 20 | E10: =E8 -> °C | F10: =A10 -> Raumtemp. | J10: =cal!K11 -> 27 | K10: =E8 -> °C
F11: Relative Luftfeuchtigkeit | J11: =cal!K12 -> 0.5
A14: Drehzahlstufe: | B14: Regelspannung: [V] | C14: =CONCATENATE("Wärmeleistung * ",ROUND(D8,0),"/",ROUND(D9,0),"/",ROUND(D10,0)," ["&IF(cal!$X$4=1,"W",IF(cal!$X$4=2,"Btu/h"))&"]") -> Wärmeleistung * 75/65/20 [W] | D14: ="Heizmittelstrom ["&IF(cal!$X$4=1,"l/h",IF(cal!$X$4=2,"GPM"))&"]" -> Heizmittelstrom [l/h] | E14: ="zug. wassers. Druckverlust ["&IF(cal!$X$4=1,"kPa",IF(cal!$X$4=2,"inH2O"))&"]" -> zug. wassers. Druckverlust [kPa] | F14: =CONCATENATE("Sens. Kälteleistung * ",ROUND(J8,0),"/",ROUND(J9,0),"/",ROUND(J10,0)," ["&IF(cal!$X$4=1,"W",IF(cal!$X$4=2,"Btu/h"))&"]") -> Sens. Kälteleistung * 16/18/27 [W] | G14: =CONCATENATE("Tot. Kälteleistung ",ROUND(J8,0),"/",ROUND(J9,0),"/",ROUND(J10,0)," ["&IF(cal!$X$4=1,"W",IF(cal!$X$4=2,"Btu/h"))&"]") -> Tot. Kälteleistung 16/18/27 [W] | H14: ="Kühlmittelstrom ["&IF(cal!$X$4=1,"l/h",IF(cal!$X$4=2,"GPM"))&"]" -> Kühlmittelstrom [l/h] | I14: ="zug. wassers. Druckverlust ["&IF(cal!$X$4=1,"kPa",IF(cal!$X$4=2,"inH2O"))&"]" -> zug. wassers. Druckverlust [kPa] | J14: Schalldruckpegel *** [dB(A)] | K14: Schallleistungspegel ** [dB(A)] | L14: Leistungsaufnahme [W] | M14: ="Luftvolumenstrom ["&IF(cal!$X$4=1,"m³/h",IF(cal!$X$4=2,"CFM"))&"]" -> Luftvolumenstrom [m³/h] | N14: ="Luftaustrittstemp. Heizung ["&IF(cal!$X$4=1,"°C",IF(cal!$X$4=2,"°F"))&"]" -> Luftaustrittstemp. Heizung [°C] | O14: ="Luftaustrittstemp. kühlung ["&IF(cal!$X$4=1,"°C",IF(cal!$X$4=2,"°F"))&"]" -> Luftaustrittstemp. kühlung [°C]
A15: =cal!$Z$1&" "&$R$15&" "&ROUND(cal!Y22,1)&IF(cal!$X$4=1," cm",IF(cal!$X$4=2," in"))&" "&$R$16&" "&ROUND(cal!AA22,1)&IF(cal!$X$4=1," cm",IF(cal!$X$4=2," in"))&" "&$R$17&" "&ROUND(cal!AC22,1)&IF(cal!$X$4=1," cm",IF(cal!$X$4=2," in"))&" (Type 1)" -> Freedom höhe 20 cm breite 19 cm länge 74 cm (Type 1) | Q15: Temp. | R15: höhe
Q16: heizen! | R16: breite
Q17: kühlen! | R17: länge
A21: =cal!$Z$1&" "&$R$15&" "&ROUND(cal!Y28,1)&IF(cal!$X$4=1," cm",IF(cal!$X$4=2," in"))&" "&$R$16&" "&ROUND(cal!AA28,1)&IF(cal!$X$4=1," cm",IF(cal!$X$4=2," in"))&" "&$R$17&" "&ROUND(cal!AC28,1)&IF(cal!$X$4=1," cm",IF(cal!$X$4=2," in"))&" (Type 2)" -> Freedom höhe 20 cm breite 19 cm länge 110 cm (Type 2)
A27: =cal!$Z$1&" "&$R$15&" "&ROUND(cal!Y34,1)&IF(cal!$X$4=1," cm",IF(cal!$X$4=2," in"))&" "&$R$16&" "&ROUND(cal!AA34,1)&IF(cal!$X$4=1," cm",IF(cal!$X$4=2," in"))&" "&$R$17&" "&ROUND(cal!AC34,1)&IF(cal!$X$4=1," cm",IF(cal!$X$4=2," in"))&" (Type 3)" -> Freedom höhe 20 cm breite 19 cm länge 145 cm (Type 3)
A33: =cal!$Z$1&" "&$R$15&" "&ROUND(cal!Y40,1)&IF(cal!$X$4=1," cm",IF(cal!$X$4=2," in"))&" "&$R$16&" "&ROUND(cal!AA40,1)&IF(cal!$X$4=1," cm",IF(cal!$X$4=2," in"))&" "&$R$17&" "&ROUND(cal!AC40,1)&IF(cal!$X$4=1," cm",IF(cal!$X$4=2," in"))&" (Type 4)" -> Freedom höhe 20 cm breite 19 cm länge 181 cm (Type 4)
A39: =cal!$Z$1&" "&$R$15&" "&ROUND(cal!Y46,1)&IF(cal!$X$4=1," cm",IF(cal!$X$4=2," in"))&" "&$R$16&" "&ROUND(cal!AA46,1)&IF(cal!$X$4=1," cm",IF(cal!$X$4=2," in"))&" "&$R$17&" "&ROUND(cal!AC46,1)&IF(cal!$X$4=1," cm",IF(cal!$X$4=2," in"))&" (Type 5)" -> Freedom höhe 0 cm breite 0 cm länge 0 cm (Type 5)
A45: =cal!$Z$1&" "&$R$15&" "&ROUND(cal!Y52,1)&IF(cal!$X$4=1," cm",IF(cal!$X$4=2," in"))&" "&$R$16&" "&ROUND(cal!AA52,1)&IF(cal!$X$4=1," cm",IF(cal!$X$4=2," in"))&" "&$R$17&" "&ROUND(cal!AC52,1)&IF(cal!$X$4=1," cm",IF(cal!$X$4=2," in"))&" (Type 6)" -> Freedom höhe 0 cm breite 0 cm länge 0 cm (Type 6)
A51: =cal!$Z$1&" "&$R$15&" "&ROUND(cal!Y58,1)&IF(cal!$X$4=1," cm",IF(cal!$X$4=2," in"))&" "&$R$16&" "&ROUND(cal!AA58,1)&IF(cal!$X$4=1," cm",IF(cal!$X$4=2," in"))&" "&$R$17&" "&ROUND(cal!AC58,1)&IF(cal!$X$4=1," cm",IF(cal!$X$4=2," in"))&" (Type 7)" -> Freedom höhe 0 cm breite 0 cm länge 0 cm (Type 7)
A57: =cal!$Z$1&" "&$R$15&" "&ROUND(cal!Y64,1)&IF(cal!$X$4=1," cm",IF(cal!$X$4=2," in"))&" "&$R$16&" "&ROUND(cal!AA64,1)&IF(cal!$X$4=1," cm",IF(cal!$X$4=2," in"))&" "&$R$17&" "&ROUND(cal!AC64,1)&IF(cal!$X$4=1," cm",IF(cal!$X$4=2," in"))&" (Type 8)" -> Freedom höhe 0 cm breite 0 cm länge 0 cm (Type 8)
A63: =cal!$Z$1&" "&$R$15&" "&ROUND(cal!Y70,1)&IF(cal!$X$4=1," cm",IF(cal!$X$4=2," in"))&" "&$R$16&" "&ROUND(cal!AA70,1)&IF(cal!$X$4=1," cm",IF(cal!$X$4=2," in"))&" "&$R$17&" "&ROUND(cal!AC70,1)&IF(cal!$X$4=1," cm",IF(cal!$X$4=2," in"))&" (Type 9)" -> Freedom höhe 0 cm breite 0 cm länge 0 cm (Type 9)
A69: *Leistungsangaben nach EN 16430 | M69: =cal!N70 -> v2022-08-26
A70: **Schallleistungspegel nach ISO 3741:2010
A71: ***Schalldruckpegel bei angenommener Raumdämpfung von 8dB(A)

Sheet FR (hidden)
A2: Formulaire
A4: Conditions
A6: Températures | L6: Hauteur placée
A7: Chauffer: | F7: Refroidir: | Q7: Copier toutes des données
A8: ="Temp. entrée" -> Temp. entrée | D8: =cal!E9 -> 75 | E8: =IF(cal!$X$4=1,"°C",IF(cal!$X$4=2,"°F")) -> °C | F8: =A8 -> Temp. entrée | J8: =cal!K9 -> 16 | K8: =E8 -> °C | L8: Système unitaire | Q8: Unités-SI
A9: ="Temp. retour" -> Temp. retour | D9: =cal!E10 -> 65 | E9: =E8 -> °C | F9: =A9 -> Temp. retour | J9: =cal!K10 -> 18 | K9: =E8 -> °C | Q9: Unités-Impériales
A10: ="Temp. ambiante" -> Temp. ambiante | D10: =cal!E11 -> 20 | E10: =E8 -> °C | F10: =A10 -> Temp. ambiante | J10: =cal!K11 -> 27 | K10: =E8 -> °C
F11: Humidité relative | J11: =cal!K12 -> 0.5
A14: Niveau de vitesse | B14: Voltage [V] | C14: =CONCATENATE("Puissance de cha. * ",ROUND(D8,0),"/",ROUND(D9,0),"/",ROUND(D10,0)," ["&IF(cal!$X$4=1,"W",IF(cal!$X$4=2,"Btu/h"))&"]") -> Puissance de cha. * 75/65/20 [W] | D14: ="Débit d'eau, chauffer ["&IF(cal!$X$4=1,"l/h",IF(cal!$X$4=2,"GPM"))&"]" -> Débit d'eau, chauffer [l/h] | E14: ="Perte de charge ["&IF(cal!$X$4=1,"kPa",IF(cal!$X$4=2,"inH2O"))&"]" -> Perte de charge [kPa] | F14: =CONCATENATE("Puissance sens. de refr. * ",ROUND(J8,0),"/",ROUND(J9,0),"/",ROUND(J10,0)," ["&IF(cal!$X$4=1,"W",IF(cal!$X$4=2,"Btu/h"))&"]") -> Puissance sens. de refr. * 16/18/27 [W] | G14: =CONCATENATE("Puissance tot. de refr. ",ROUND(J8,0),"/",ROUND(J9,0),"/",ROUND(J10,0)," ["&IF(cal!$X$4=1,"W",IF(cal!$X$4=2,"Btu/h"))&"]") -> Puissance tot. de refr. 16/18/27 [W] | H14: ="Débit d'eau, refroidir ["&IF(cal!$X$4=1,"l/h",IF(cal!$X$4=2,"GPM"))&"]" -> Débit d'eau, refroidir [l/h] | I14: ="Perte de charge ["&IF(cal!$X$4=1,"kPa",IF(cal!$X$4=2,"inH2O"))&"]" -> Perte de charge [kPa] | J14: Pression sonore *** [dB(A)] | K14: Puissance sonore ** [dB(A)] | L14: Puissance absorbée [W] | M14: ="Débit d'air ["&IF(cal!$X$4=1,"m³/h",IF(cal!$X$4=2,"CFM"))&"]" -> Débit d'air [m³/h] | N14: ="Temp. de la sortie d'air cha. ["&IF(cal!$X$4=1,"°C",IF(cal!$X$4=2,"°F"))&"]" -> Temp. de la sortie d'air cha. [°C] | O14: ="Temp. de la sortie d'air refr. ["&IF(cal!$X$4=1,"°C",IF(cal!$X$4=2,"°F"))&"]" -> Temp. de la sortie d'air refr. [°C]
A15: =cal!$Z$1&" "&$R$15&" "&ROUND(cal!Y22,1)&IF(cal!$X$4=1," cm",IF(cal!$X$4=2," in"))&" "&$R$16&" "&ROUND(cal!AA22,1)&IF(cal!$X$4=1," cm",IF(cal!$X$4=2," in"))&" "&$R$17&" "&ROUND(cal!AC22,1)&IF(cal!$X$4=1," cm",IF(cal!$X$4=2," in"))&" (Type 1)" -> Freedom hauteur 20 cm largeur 19 cm longueur 74 cm (Type 1) | Q15: Temp. | R15: hauteur
Q16: chauf.! | R16: largeur
Q17: refr.! | R17: longueur
A21: =cal!$Z$1&" "&$R$15&" "&ROUND(cal!Y28,1)&IF(cal!$X$4=1," cm",IF(cal!$X$4=2," in"))&" "&$R$16&" "&ROUND(cal!AA28,1)&IF(cal!$X$4=1," cm",IF(cal!$X$4=2," in"))&" "&$R$17&" "&ROUND(cal!AC28,1)&IF(cal!$X$4=1," cm",IF(cal!$X$4=2," in"))&" (Type 2)" -> Freedom hauteur 20 cm largeur 19 cm longueur 110 cm (Type 2)
A27: =cal!$Z$1&" "&$R$15&" "&ROUND(cal!Y34,1)&IF(cal!$X$4=1," cm",IF(cal!$X$4=2," in"))&" "&$R$16&" "&ROUND(cal!AA34,1)&IF(cal!$X$4=1," cm",IF(cal!$X$4=2," in"))&" "&$R$17&" "&ROUND(cal!AC34,1)&IF(cal!$X$4=1," cm",IF(cal!$X$4=2," in"))&" (Type 3)" -> Freedom hauteur 20 cm largeur 19 cm longueur 145 cm (Type 3)
A33: =cal!$Z$1&" "&$R$15&" "&ROUND(cal!Y40,1)&IF(cal!$X$4=1," cm",IF(cal!$X$4=2," in"))&" "&$R$16&" "&ROUND(cal!AA40,1)&IF(cal!$X$4=1," cm",IF(cal!$X$4=2," in"))&" "&$R$17&" "&ROUND(cal!AC40,1)&IF(cal!$X$4=1," cm",IF(cal!$X$4=2," in"))&" (Type 4)" -> Freedom hauteur 20 cm largeur 19 cm longueur 181 cm (Type 4)
A39: =cal!$Z$1&" "&$R$15&" "&ROUND(cal!Y46,1)&IF(cal!$X$4=1," cm",IF(cal!$X$4=2," in"))&" "&$R$16&" "&ROUND(cal!AA46,1)&IF(cal!$X$4=1," cm",IF(cal!$X$4=2," in"))&" "&$R$17&" "&ROUND(cal!AC46,1)&IF(cal!$X$4=1," cm",IF(cal!$X$4=2," in"))&" (Type 5)" -> Freedom hauteur 0 cm largeur 0 cm longueur 0 cm (Type 5)
A45: =cal!$Z$1&" "&$R$15&" "&ROUND(cal!Y52,1)&IF(cal!$X$4=1," cm",IF(cal!$X$4=2," in"))&" "&$R$16&" "&ROUND(cal!AA52,1)&IF(cal!$X$4=1," cm",IF(cal!$X$4=2," in"))&" "&$R$17&" "&ROUND(cal!AC52,1)&IF(cal!$X$4=1," cm",IF(cal!$X$4=2," in"))&" (Type 6)" -> Freedom hauteur 0 cm largeur 0 cm longueur 0 cm (Type 6)
A51: =cal!$Z$1&" "&$R$15&" "&ROUND(cal!Y58,1)&IF(cal!$X$4=1," cm",IF(cal!$X$4=2," in"))&" "&$R$16&" "&ROUND(cal!AA58,1)&IF(cal!$X$4=1," cm",IF(cal!$X$4=2," in"))&" "&$R$17&" "&ROUND(cal!AC58,1)&IF(cal!$X$4=1," cm",IF(cal!$X$4=2," in"))&" (Type 7)" -> Freedom hauteur 0 cm largeur 0 cm longueur 0 cm (Type 7)
A57: =cal!$Z$1&" "&$R$15&" "&ROUND(cal!Y64,1)&IF(cal!$X$4=1," cm",IF(cal!$X$4=2," in"))&" "&$R$16&" "&ROUND(cal!AA64,1)&IF(cal!$X$4=1," cm",IF(cal!$X$4=2," in"))&" "&$R$17&" "&ROUND(cal!AC64,1)&IF(cal!$X$4=1," cm",IF(cal!$X$4=2," in"))&" (Type 8)" -> Freedom hauteur 0 cm largeur 0 cm longueur 0 cm (Type 8)
A63: =cal!$Z$1&" "&$R$15&" "&ROUND(cal!Y70,1)&IF(cal!$X$4=1," cm",IF(cal!$X$4=2," in"))&" "&$R$16&" "&ROUND(cal!AA70,1)&IF(cal!$X$4=1," cm",IF(cal!$X$4=2," in"))&" "&$R$17&" "&ROUND(cal!AC70,1)&IF(cal!$X$4=1," cm",IF(cal!$X$4=2," in"))&" (Type 9)" -> Freedom hauteur 0 cm largeur 0 cm longueur 0 cm (Type 9)
A69: *Testé selon EN 16430 | M69: =cal!N70 -> v2022-08-26
A70: **Puissance sonore testé selon ISO 3741:2010
A71: ***Pression sonore avec une atténuation ambiante du 8dB(A)

Sheet NR (hidden)
A2: Modell
A4: Conditions
A6: Temperaturer | L6: Plassert høyde
A7: Varme: | F7: Kjøling: | Q7: Kopier alle data
A8: Tur vanntemp. | B8: 0 | C8: 0 | D8: =cal!E9 -> 75 | E8: =IF(cal!$X$4=1,"°C",IF(cal!$X$4=2,"°F")) -> °C | F8: =A8 -> Tur vanntemp. | J8: =cal!K9 -> 16 | K8: =E8 -> °C | L8: Enhetssystem | Q8: SI-enheter
A9: Retur vanntemp. | B9: 0 | C9: 0 | D9: =cal!E10 -> 65 | E9: =E8 -> °C | F9: =A9 -> Retur vanntemp. | J9: =cal!K10 -> 18 | K9: =E8 -> °C | Q9: Imperiale-enheter
A10: Rom temp. | B10: 0 | C10: 0 | D10: =cal!E11 -> 20 | E10: =E8 -> °C | F10: =A10 -> Rom temp. | J10: =cal!K11 -> 27 | K10: =E8 -> °C
F11: Relativ fuktighet | J11: =cal!K12 -> 0.5
A14: Hastighet: | B14: Styresignal[V] | C14: =CONCATENATE("Varme effekt * ",ROUND(D8,0),"/",ROUND(D9,0),"/",ROUND(D10,0)," ["&IF(cal!$X$4=1,"W",IF(cal!$X$4=2,"Btu/h"))&"]") -> Varme effekt * 75/65/20 [W] | D14: ="Vannmengde, varme ["&IF(cal!$X$4=1,"l/h",IF(cal!$X$4=2,"GPM"))&"]" -> Vannmengde, varme [l/h] | E14: ="Trykktap ["&IF(cal!$X$4=1,"kPa",IF(cal!$X$4=2,"ftH2O"))&"]" -> Trykktap [kPa] | F14: =CONCATENATE("Sens. Kjøling effekt * ",ROUND(J8,0),"/",ROUND(J9,0),"/",ROUND(J10,0)," ["&IF(cal!$X$4=1,"W",IF(cal!$X$4=2,"Btu/h"))&"]") -> Sens. Kjøling effekt * 16/18/27 [W] | G14: =CONCATENATE("Tot. Kjøle effekt * ",ROUND(J8,0),"/",ROUND(J9,0),"/",ROUND(J10,0)," ["&IF(cal!$X$4=1,"W",IF(cal!$X$4=2,"Btu/h"))&"]") -> Tot. Kjøle effekt * 16/18/27 [W] | H14: ="Vannmengde, kjøling ["&IF(cal!$X$4=1,"l/h",IF(cal!$X$4=2,"GPM"))&"]" -> Vannmengde, kjøling [l/h] | I14: =E14 -> Trykktap [kPa] | J14: Lydtrykk *** [dB(A)] | K14: Lydeffekt ** [dB(A)] | L14: Elektrisk effekt [W] | M14: ="Luftmengde ["&IF(cal!$X$4=1,"m³/h",IF(cal!$X$4=2,"CFM"))&"]" -> Luftmengde [m³/h] | N14: ="Utluft temperatur, Varme ["&IF(cal!$X$4=1,"°C",IF(cal!$X$4=2,"°F"))&"]" -> Utluft temperatur, Varme [°C] | O14: ="Utluft temperatur, Kjøling ["&IF(cal!$X$4=1,"°C",IF(cal!$X$4=2,"°F"))&"]" -> Utluft temperatur, Kjøling [°C]
A15: =cal!$Z$1&" "&$R$15&" "&ROUND(cal!Y22,1)&IF(cal!$X$4=1," cm",IF(cal!$X$4=2," in"))&" "&$R$16&" "&ROUND(cal!AA22,1)&IF(cal!$X$4=1," cm",IF(cal!$X$4=2," in"))&" "&$R$17&" "&ROUND(cal!AC22,1)&IF(cal!$X$4=1," cm",IF(cal!$X$4=2," in"))&" (Type 1)" -> Freedom høyde 20 cm bredde 19 cm lengde 74 cm (Type 1) | Q15: Temp. | R15: høyde
Q16: varme! | R16: bredde
Q17: kjøling! | R17: lengde
A21: =cal!$Z$1&" "&$R$15&" "&ROUND(cal!Y28,1)&IF(cal!$X$4=1," cm",IF(cal!$X$4=2," in"))&" "&$R$16&" "&ROUND(cal!AA28,1)&IF(cal!$X$4=1," cm",IF(cal!$X$4=2," in"))&" "&$R$17&" "&ROUND(cal!AC28,1)&IF(cal!$X$4=1," cm",IF(cal!$X$4=2," in"))&" (Type 2)" -> Freedom høyde 20 cm bredde 19 cm lengde 110 cm (Type 2)
A27: =cal!$Z$1&" "&$R$15&" "&ROUND(cal!Y34,1)&IF(cal!$X$4=1," cm",IF(cal!$X$4=2," in"))&" "&$R$16&" "&ROUND(cal!AA34,1)&IF(cal!$X$4=1," cm",IF(cal!$X$4=2," in"))&" "&$R$17&" "&ROUND(cal!AC34,1)&IF(cal!$X$4=1," cm",IF(cal!$X$4=2," in"))&" (Type 3)" -> Freedom høyde 20 cm bredde 19 cm lengde 145 cm (Type 3)
A33: =cal!$Z$1&" "&$R$15&" "&ROUND(cal!Y40,1)&IF(cal!$X$4=1," cm",IF(cal!$X$4=2," in"))&" "&$R$16&" "&ROUND(cal!AA40,1)&IF(cal!$X$4=1," cm",IF(cal!$X$4=2," in"))&" "&$R$17&" "&ROUND(cal!AC40,1)&IF(cal!$X$4=1," cm",IF(cal!$X$4=2," in"))&" (Type 4)" -> Freedom høyde 20 cm bredde 19 cm lengde 181 cm (Type 4)
A39: =cal!$Z$1&" "&$R$15&" "&ROUND(cal!Y46,1)&IF(cal!$X$4=1," cm",IF(cal!$X$4=2," in"))&" "&$R$16&" "&ROUND(cal!AA46,1)&IF(cal!$X$4=1," cm",IF(cal!$X$4=2," in"))&" "&$R$17&" "&ROUND(cal!AC46,1)&IF(cal!$X$4=1," cm",IF(cal!$X$4=2," in"))&" (Type 5)" -> Freedom høyde 0 cm bredde 0 cm lengde 0 cm (Type 5)
A45: =cal!$Z$1&" "&$R$15&" "&ROUND(cal!Y52,1)&IF(cal!$X$4=1," cm",IF(cal!$X$4=2," in"))&" "&$R$16&" "&ROUND(cal!AA52,1)&IF(cal!$X$4=1," cm",IF(cal!$X$4=2," in"))&" "&$R$17&" "&ROUND(cal!AC52,1)&IF(cal!$X$4=1," cm",IF(cal!$X$4=2," in"))&" (Type 6)" -> Freedom høyde 0 cm bredde 0 cm lengde 0 cm (Type 6)
A51: =cal!$Z$1&" "&$R$15&" "&ROUND(cal!Y58,1)&IF(cal!$X$4=1," cm",IF(cal!$X$4=2," in"))&" "&$R$16&" "&ROUND(cal!AA58,1)&IF(cal!$X$4=1," cm",IF(cal!$X$4=2," in"))&" "&$R$17&" "&ROUND(cal!AC58,1)&IF(cal!$X$4=1," cm",IF(cal!$X$4=2," in"))&" (Type 7)" -> Freedom høyde 0 cm bredde 0 cm lengde 0 cm (Type 7)
A57: =cal!$Z$1&" "&$R$15&" "&ROUND(cal!Y64,1)&IF(cal!$X$4=1," cm",IF(cal!$X$4=2," in"))&" "&$R$16&" "&ROUND(cal!AA64,1)&IF(cal!$X$4=1," cm",IF(cal!$X$4=2," in"))&" "&$R$17&" "&ROUND(cal!AC64,1)&IF(cal!$X$4=1," cm",IF(cal!$X$4=2," in"))&" (Type 8)" -> Freedom høyde 0 cm bredde 0 cm lengde 0 cm (Type 8)
A63: =cal!$Z$1&" "&$R$15&" "&ROUND(cal!Y70,1)&IF(cal!$X$4=1," cm",IF(cal!$X$4=2," in"))&" "&$R$16&" "&ROUND(cal!AA70,1)&IF(cal!$X$4=1," cm",IF(cal!$X$4=2," in"))&" "&$R$17&" "&ROUND(cal!AC70,1)&IF(cal!$X$4=1," cm",IF(cal!$X$4=2," in"))&" (Type 9)" -> Freedom høyde 0 cm bredde 0 cm lengde 0 cm (Type 9)
A69: *Testé selon EN 16430 | M69: =cal!N70 -> v2022-08-26
A70: **Puissance sonore testé selon ISO 3741:2010
A71: ***Pression sonore avec une atténuation ambiante du 8dB(A)

Sheet SP (hidden)
A2: Model
A4: Conditions
A6: Temperaturas | L6: Altitud
A7: Calefacción: | F7: Enfriamiento: | Q7: Copiar todos los datos
A8: Agua impulsión | B8: 0 | C8: 0 | D8: =cal!E9 -> 75 | E8: =IF(cal!$X$4=1,"°C",IF(cal!$X$4=2,"°F")) -> °C | F8: =A8 -> Agua impulsión | J8: =cal!K9 -> 16 | K8: =E8 -> °C | L8: Convers. de unidades | Q8: Unidades-SI
A9: Agua retorno | B9: 0 | C9: 0 | D9: =cal!E10 -> 65 | E9: =E8 -> °C | F9: =A9 -> Agua retorno | J9: =cal!K10 -> 18 | K9: =E8 -> °C | Q9: Unidades-Imperial
A10: Ambiente (bulbo seco) | B10: 0 | C10: 0 | D10: =cal!E11 -> 20 | E10: =E8 -> °C | F10: =A10 -> Ambiente (bulbo seco) | J10: =cal!K11 -> 27 | K10: =E8 -> °C
F11: Humedad relativa | J11: =cal!K12 -> 0.5
A14: Nivel de velocidad: | B14: Voltaje control [V] | C14: =CONCATENATE("Emisión calefacción * ",ROUND(D8,0),"/",ROUND(D9,0),"/",ROUND(D10,0)," ["&IF(cal!$X$4=1,"W",IF(cal!$X$4=2,"Btu/h"))&"]") -> Emisión calefacción * 75/65/20 [W] | D14: ="Caudal de agua, calefacción ["&IF(cal!$X$4=1,"l/h",IF(cal!$X$4=2,"GPM"))&"]" -> Caudal de agua, calefacción [l/h] | E14: ="Pérdida de carga del agua ["&IF(cal!$X$4=1,"kPa",IF(cal!$X$4=2,"ftH2O"))&"]" -> Pérdida de carga del agua [kPa] | F14: =CONCATENATE("Emisión sensible Frío * ",ROUND(J8,0),"/",ROUND(J9,0),"/",ROUND(J10,0)," ["&IF(cal!$X$4=1,"W",IF(cal!$X$4=2,"Btu/h"))&"]") -> Emisión sensible Frío * 16/18/27 [W] | G14: =CONCATENATE("Emisión total Frío * ",ROUND(J8,0),"/",ROUND(J9,0),"/",ROUND(J10,0)," ["&IF(cal!$X$4=1,"W",IF(cal!$X$4=2,"Btu/h"))&"]") -> Emisión total Frío * 16/18/27 [W] | H14: ="Caudal de agua, calefacción ["&IF(cal!$X$4=1,"l/h",IF(cal!$X$4=2,"GPM"))&"]" -> Caudal de agua, calefacción [l/h] | I14: =E14 -> Pérdida de carga del agua [kPa] | J14: Presión sonora *** [dB(A)] | K14: Potencia sonora ** [dB(A)] | L14: Potencia eléctrica absorbida [W] | M14: ="Caudal de aire ["&IF(cal!$X$4=1,"m³/h",IF(cal!$X$4=2,"CFM"))&"]" -> Caudal de aire [m³/h] | N14: ="Temperatura salida de aire calefacción ["&IF(cal!$X$4=1,"°C",IF(cal!$X$4=2,"°F"))&"]" -> Temperatura salida de aire calefacción [°C] | O14: ="Temperatura salida de aire refrigeración ["&IF(cal!$X$4=1,"°C",IF(cal!$X$4=2,"°F"))&"]" -> Temperatura salida de aire refrigeración [°C]
A15: =cal!$Z$1&" "&$R$15&" "&ROUND(cal!Y22,1)&IF(cal!$X$4=1," cm",IF(cal!$X$4=2," in"))&" "&$R$16&" "&ROUND(cal!AA22,1)&IF(cal!$X$4=1," cm",IF(cal!$X$4=2," in"))&" "&$R$17&" "&ROUND(cal!AC22,1)&IF(cal!$X$4=1," cm",IF(cal!$X$4=2," in"))&" (Type 1)" -> Freedom altura 20 cm ancho 19 cm longitud 74 cm (Type 1) | Q15: Temp. | R15: altura
Q16: calefac. | R16: ancho
Q17: enfria. | R17: longitud
A21: =cal!$Z$1&" "&$R$15&" "&ROUND(cal!Y28,1)&IF(cal!$X$4=1," cm",IF(cal!$X$4=2," in"))&" "&$R$16&" "&ROUND(cal!AA28,1)&IF(cal!$X$4=1," cm",IF(cal!$X$4=2," in"))&" "&$R$17&" "&ROUND(cal!AC28,1)&IF(cal!$X$4=1," cm",IF(cal!$X$4=2," in"))&" (Type 2)" -> Freedom altura 20 cm ancho 19 cm longitud 110 cm (Type 2)
A27: =cal!$Z$1&" "&$R$15&" "&ROUND(cal!Y34,1)&IF(cal!$X$4=1," cm",IF(cal!$X$4=2," in"))&" "&$R$16&" "&ROUND(cal!AA34,1)&IF(cal!$X$4=1," cm",IF(cal!$X$4=2," in"))&" "&$R$17&" "&ROUND(cal!AC34,1)&IF(cal!$X$4=1," cm",IF(cal!$X$4=2," in"))&" (Type 3)" -> Freedom altura 20 cm ancho 19 cm longitud 145 cm (Type 3)
A33: =cal!$Z$1&" "&$R$15&" "&ROUND(cal!Y40,1)&IF(cal!$X$4=1," cm",IF(cal!$X$4=2," in"))&" "&$R$16&" "&ROUND(cal!AA40,1)&IF(cal!$X$4=1," cm",IF(cal!$X$4=2," in"))&" "&$R$17&" "&ROUND(cal!AC40,1)&IF(cal!$X$4=1," cm",IF(cal!$X$4=2," in"))&" (Type 4)" -> Freedom altura 20 cm ancho 19 cm longitud 181 cm (Type 4)
A39: =cal!$Z$1&" "&$R$15&" "&ROUND(cal!Y46,1)&IF(cal!$X$4=1," cm",IF(cal!$X$4=2," in"))&" "&$R$16&" "&ROUND(cal!AA46,1)&IF(cal!$X$4=1," cm",IF(cal!$X$4=2," in"))&" "&$R$17&" "&ROUND(cal!AC46,1)&IF(cal!$X$4=1," cm",IF(cal!$X$4=2," in"))&" (Type 5)" -> Freedom altura 0 cm ancho 0 cm longitud 0 cm (Type 5)
A45: =cal!$Z$1&" "&$R$15&" "&ROUND(cal!Y52,1)&IF(cal!$X$4=1," cm",IF(cal!$X$4=2," in"))&" "&$R$16&" "&ROUND(cal!AA52,1)&IF(cal!$X$4=1," cm",IF(cal!$X$4=2," in"))&" "&$R$17&" "&ROUND(cal!AC52,1)&IF(cal!$X$4=1," cm",IF(cal!$X$4=2," in"))&" (Type 6)" -> Freedom altura 0 cm ancho 0 cm longitud 0 cm (Type 6)
A51: =cal!$Z$1&" "&$R$15&" "&ROUND(cal!Y58,1)&IF(cal!$X$4=1," cm",IF(cal!$X$4=2," in"))&" "&$R$16&" "&ROUND(cal!AA58,1)&IF(cal!$X$4=1," cm",IF(cal!$X$4=2," in"))&" "&$R$17&" "&ROUND(cal!AC58,1)&IF(cal!$X$4=1," cm",IF(cal!$X$4=2," in"))&" (Type 7)" -> Freedom altura 0 cm ancho 0 cm longitud 0 cm (Type 7)
A57: =cal!$Z$1&" "&$R$15&" "&ROUND(cal!Y64,1)&IF(cal!$X$4=1," cm",IF(cal!$X$4=2," in"))&" "&$R$16&" "&ROUND(cal!AA64,1)&IF(cal!$X$4=1," cm",IF(cal!$X$4=2," in"))&" "&$R$17&" "&ROUND(cal!AC64,1)&IF(cal!$X$4=1," cm",IF(cal!$X$4=2," in"))&" (Type 8)" -> Freedom altura 0 cm ancho 0 cm longitud 0 cm (Type 8)
A63: =cal!$Z$1&" "&$R$15&" "&ROUND(cal!Y70,1)&IF(cal!$X$4=1," cm",IF(cal!$X$4=2," in"))&" "&$R$16&" "&ROUND(cal!AA70,1)&IF(cal!$X$4=1," cm",IF(cal!$X$4=2," in"))&" "&$R$17&" "&ROUND(cal!AC70,1)&IF(cal!$X$4=1," cm",IF(cal!$X$4=2," in"))&" (Type 9)" -> Freedom altura 0 cm ancho 0 cm longitud 0 cm (Type 9)
A69: *La potencia de enfriamiento se calcula según la norma EN 16430 con ventiladores de todas las alturas. | M69: =cal!N70 -> v2022-08-26
A70: **Potencia sonora según ISO 3741: 2010.
A71: ***Nivel de presión acústica con una amortiguación ambiental supuesta de 8 dB (A).

Sheet SW (hidden)
A2: Formulary
A4: Conditions
A6: Temperaturer | L6: Höjd över havet
A7: Värme: | F7: Kyla: | Q7: Kopiera all data
A8: Tillopp | D8: =cal!E9 -> 75 | E8: =IF(cal!$X$4=1,"°C",IF(cal!$X$4=2,"°F")) -> °C | F8: =A8 -> Tillopp | J8: =cal!K9 -> 16 | K8: =E8 -> °C | L8: Enhetssystem | Q8: SI-enheter
A9: Retur | D9: =cal!E10 -> 65 | E9: =E8 -> °C | F9: =A9 -> Retur | J9: =cal!K10 -> 18 | K9: =E8 -> °C | Q9: Imperiella-enheter
A10: Rum (torr) | D10: =cal!E11 -> 20 | E10: =E8 -> °C | F10: =A10 -> Rum (torr) | J10: =cal!K11 -> 27 | K10: =E8 -> °C
F11: rel. Fuktighet | J11: =cal!K12 -> 0.5
A14: Fläkthastighet | B14: Spänning, Fläkt [V] | C14: =CONCATENATE("Värme effekt * ",ROUND(D8,0),"/",ROUND(D9,0),"/",ROUND(D10,0)," ["&IF(cal!$X$4=1,"W",IF(cal!$X$4=2,"Btu/h"))&"]") -> Värme effekt * 75/65/20 [W] | D14: ="Vattenflöde, värme ["&IF(cal!$X$4=1,"l/h",IF(cal!$X$4=2,"GPM"))&"]" -> Vattenflöde, värme [l/h] | E14: ="Tryckfall, vatten ["&IF(cal!$X$4=1,"kPa",IF(cal!$X$4=2,"inH2O"))&"]" -> Tryckfall, vatten [kPa] | F14: =CONCATENATE("Märkbar kylkapacitet * ",ROUND(J8,0),"/",ROUND(J9,0),"/",ROUND(J10,0)," ["&IF(cal!$X$4=1,"W",IF(cal!$X$4=2,"Btu/h"))&"]") -> Märkbar kylkapacitet * 16/18/27 [W] | G14: =CONCATENATE("Total kylkapacitet ",ROUND(J8,0),"/",ROUND(J9,0),"/",ROUND(J10,0)," ["&IF(cal!$X$4=1,"W",IF(cal!$X$4=2,"Btu/h"))&"]") -> Total kylkapacitet 16/18/27 [W] | H14: ="Vattenflöde, kyla ["&IF(cal!$X$4=1,"l/h",IF(cal!$X$4=2,"GPM"))&"]" -> Vattenflöde, kyla [l/h] | I14: =E14 -> Tryckfall, vatten [kPa] | J14: Ljudtryck *** [dB(A)] | K14: Ljudeffekt ** [dB(A)] | L14: Effektförbrukning [W] | M14: ="Luftflöde ["&IF(cal!$X$4=1,"m³/h",IF(cal!$X$4=2,"CFM"))&"]" -> Luftflöde [m³/h] | N14: ="Air exhaust temp. heating ["&IF(cal!$X$4=1,"°C",IF(cal!$X$4=2,"°F"))&"]" -> Air exhaust temp. heating [°C] | O14: ="Air exhaust temp. cooling ["&IF(cal!$X$4=1,"°C",IF(cal!$X$4=2,"°F"))&"]" -> Air exhaust temp. cooling [°C]
A15: =cal!$Z$1&" "&$R$15&" "&ROUND(cal!Y22,1)&IF(cal!$X$4=1," cm",IF(cal!$X$4=2," in"))&" "&$R$16&" "&ROUND(cal!AA22,1)&IF(cal!$X$4=1," cm",IF(cal!$X$4=2," in"))&" "&$R$17&" "&ROUND(cal!AC22,1)&IF(cal!$X$4=1," cm",IF(cal!$X$4=2," in"))&" (Typ 1)" -> Freedom höjd 20 cm djup 19 cm längd 74 cm (Typ 1) | Q15: Temp. | R15: höjd
Q16: värme! | R16: djup
Q17: kyla! | R17: längd
A21: =cal!$Z$1&" "&$R$15&" "&ROUND(cal!Y28,1)&IF(cal!$X$4=1," cm",IF(cal!$X$4=2," in"))&" "&$R$16&" "&ROUND(cal!AA28,1)&IF(cal!$X$4=1," cm",IF(cal!$X$4=2," in"))&" "&$R$17&" "&ROUND(cal!AC28,1)&IF(cal!$X$4=1," cm",IF(cal!$X$4=2," in"))&" (Typ 2)" -> Freedom höjd 20 cm djup 19 cm längd 110 cm (Typ 2)
A27: =cal!$Z$1&" "&$R$15&" "&ROUND(cal!Y34,1)&IF(cal!$X$4=1," cm",IF(cal!$X$4=2," in"))&" "&$R$16&" "&ROUND(cal!AA34,1)&IF(cal!$X$4=1," cm",IF(cal!$X$4=2," in"))&" "&$R$17&" "&ROUND(cal!AC34,1)&IF(cal!$X$4=1," cm",IF(cal!$X$4=2," in"))&" (Typ 3)" -> Freedom höjd 20 cm djup 19 cm längd 145 cm (Typ 3)
A33: =cal!$Z$1&" "&$R$15&" "&ROUND(cal!Y40,1)&IF(cal!$X$4=1," cm",IF(cal!$X$4=2," in"))&" "&$R$16&" "&ROUND(cal!AA40,1)&IF(cal!$X$4=1," cm",IF(cal!$X$4=2," in"))&" "&$R$17&" "&ROUND(cal!AC40,1)&IF(cal!$X$4=1," cm",IF(cal!$X$4=2," in"))&" (Typ 4)" -> Freedom höjd 20 cm djup 19 cm längd 181 cm (Typ 4)
A39: =cal!$Z$1&" "&$R$15&" "&ROUND(cal!Y46,1)&IF(cal!$X$4=1," cm",IF(cal!$X$4=2," in"))&" "&$R$16&" "&ROUND(cal!AA46,1)&IF(cal!$X$4=1," cm",IF(cal!$X$4=2," in"))&" "&$R$17&" "&ROUND(cal!AC46,1)&IF(cal!$X$4=1," cm",IF(cal!$X$4=2," in"))&" (Typ 5)" -> Freedom höjd 0 cm djup 0 cm längd 0 cm (Typ 5)
A45: =cal!$Z$1&" "&$R$15&" "&ROUND(cal!Y52,1)&IF(cal!$X$4=1," cm",IF(cal!$X$4=2," in"))&" "&$R$16&" "&ROUND(cal!AA52,1)&IF(cal!$X$4=1," cm",IF(cal!$X$4=2," in"))&" "&$R$17&" "&ROUND(cal!AC52,1)&IF(cal!$X$4=1," cm",IF(cal!$X$4=2," in"))&" (Typ 6)" -> Freedom höjd 0 cm djup 0 cm längd 0 cm (Typ 6)
A51: =cal!$Z$1&" "&$R$15&" "&ROUND(cal!Y58,1)&IF(cal!$X$4=1," cm",IF(cal!$X$4=2," in"))&" "&$R$16&" "&ROUND(cal!AA58,1)&IF(cal!$X$4=1," cm",IF(cal!$X$4=2," in"))&" "&$R$17&" "&ROUND(cal!AC58,1)&IF(cal!$X$4=1," cm",IF(cal!$X$4=2," in"))&" (Typ 7)" -> Freedom höjd 0 cm djup 0 cm längd 0 cm (Typ 7)
A57: =cal!$Z$1&" "&$R$15&" "&ROUND(cal!Y64,1)&IF(cal!$X$4=1," cm",IF(cal!$X$4=2," in"))&" "&$R$16&" "&ROUND(cal!AA64,1)&IF(cal!$X$4=1," cm",IF(cal!$X$4=2," in"))&" "&$R$17&" "&ROUND(cal!AC64,1)&IF(cal!$X$4=1," cm",IF(cal!$X$4=2," in"))&" (Typ 8)" -> Freedom höjd 0 cm djup 0 cm längd 0 cm (Typ 8)
A63: =cal!$Z$1&" "&$R$15&" "&ROUND(cal!Y70,1)&IF(cal!$X$4=1," cm",IF(cal!$X$4=2," in"))&" "&$R$16&" "&ROUND(cal!AA70,1)&IF(cal!$X$4=1," cm",IF(cal!$X$4=2," in"))&" "&$R$17&" "&ROUND(cal!AC70,1)&IF(cal!$X$4=1," cm",IF(cal!$X$4=2," in"))&" (Typ 9)" -> Freedom höjd 0 cm djup 0 cm längd 0 cm (Typ 9)
A69: *Värden enligt EN16430 | M69: =cal!N70 -> v2022-08-26
A70: **Ljudeffekt enligt ISO 3741: 2010
A71: ***Ljudtryck med en antagen rumsdämpning på 8dB (A),

Sheet TS (hidden)
A2: Formulary
A4: Conditions
A6: Teploty | L6: Výška umístění
A7: Topení: | F7: Chlazení: | Q7: Kopírovat všechna data
A8: Voda na přívodu | D8: =cal!E9 -> 75 | E8: =IF(cal!$X$4=1,"°C",IF(cal!$X$4=2,"°F")) -> °C | F8: =A8 -> Voda na přívodu | J8: =cal!K9 -> 16 | K8: =E8 -> °C | L8: Převod jednotek | Q8: Mezinárodní (Sl)
A9: Voda na zpátečce | D9: =cal!E10 -> 65 | E9: =E8 -> °C | F9: =A9 -> Voda na zpátečce | J9: =cal!K10 -> 18 | K9: =E8 -> °C | Q9: Imperiální
A10: "Suchá" Teplota vzduchu | D10: =cal!E11 -> 20 | E10: =E8 -> °C | F10: =A10 -> "Suchá" Teplota vzduchu | J10: =cal!K11 -> 27 | K10: =E8 -> °C
F11: Relativní vlhkost | J11: =cal!K12 -> 0.5
A14: Rychlost | B14: Ovládací napětí [V] | C14: =CONCATENATE("Výkon Topení * ",ROUND(D8,0),"/",ROUND(D9,0),"/",ROUND(D10,0)," ["&IF(cal!$X$4=1,"W",IF(cal!$X$4=2,"Btu/h"))&"]") -> Výkon Topení * 75/65/20 [W] | D14: ="Průtok vody, topení ["&IF(cal!$X$4=1,"l/h",IF(cal!$X$4=2,"GPM"))&"]" -> Průtok vody, topení [l/h] | E14: ="Tlaková ztráta ["&IF(cal!$X$4=1,"kPa",IF(cal!$X$4=2,"inH2O"))&"]" -> Tlaková ztráta [kPa] | F14: =CONCATENATE("Výkon chlazení Znatelný * ",ROUND(J8,0),"/",ROUND(J9,0),"/",ROUND(J10,0)," ["&IF(cal!$X$4=1,"W",IF(cal!$X$4=2,"Btu/h"))&"]") -> Výkon chlazení Znatelný * 16/18/27 [W] | G14: =CONCATENATE("Výkon chlazení Celkový ",ROUND(J8,0),"/",ROUND(J9,0),"/",ROUND(J10,0)," ["&IF(cal!$X$4=1,"W",IF(cal!$X$4=2,"Btu/h"))&"]") -> Výkon chlazení Celkový 16/18/27 [W] | H14: ="Průtok vody,chlazení ["&IF(cal!$X$4=1,"l/h",IF(cal!$X$4=2,"GPM"))&"]" -> Průtok vody,chlazení [l/h] | I14: =E14 -> Tlaková ztráta [kPa] | J14: Akustický tlak *** [dB(A)] | K14: Akustický výkon ** [dB(A)] | L14: Elektrický výkon [W] | M14: ="Průtok vzduchu ["&IF(cal!$X$4=1,"m³/h",IF(cal!$X$4=2,"CFM"))&"]" -> Průtok vzduchu [m³/h] | N14: ="Air exhaust temp. heating ["&IF(cal!$X$4=1,"°C",IF(cal!$X$4=2,"°F"))&"]" -> Air exhaust temp. heating [°C] | O14: ="Air exhaust temp. cooling ["&IF(cal!$X$4=1,"°C",IF(cal!$X$4=2,"°F"))&"]" -> Air exhaust temp. cooling [°C]
A15: =cal!$Z$1&", "&$R$15&" "&ROUND(cal!Y22,1)&IF(cal!$X$4=1," cm",IF(cal!$X$4=2," in"))&", "&$R$16&" "&ROUND(cal!AA22,1)&IF(cal!$X$4=1," cm",IF(cal!$X$4=2," in"))&", "&$R$17&" "&ROUND(cal!AC22,1)&IF(cal!$X$4=1," cm",IF(cal!$X$4=2," in"))&" (Typ 1)" -> Freedom, Výška 20 cm, Šířka 19 cm, Délka 74 cm (Typ 1) | Q15: Teploty | R15: Výška
Q16: topení! | R16: Šířka
Q17: chlazení! | R17: Délka
A21: =cal!$Z$1&" "&$R$15&" "&ROUND(cal!Y28,1)&IF(cal!$X$4=1," cm",IF(cal!$X$4=2," in"))&" "&$R$16&" "&ROUND(cal!AA28,1)&IF(cal!$X$4=1," cm",IF(cal!$X$4=2," in"))&" "&$R$17&" "&ROUND(cal!AC28,1)&IF(cal!$X$4=1," cm",IF(cal!$X$4=2," in"))&" (Typ 2)" -> Freedom Výška 20 cm Šířka 19 cm Délka 110 cm (Typ 2)
A27: =cal!$Z$1&" "&$R$15&" "&ROUND(cal!Y34,1)&IF(cal!$X$4=1," cm",IF(cal!$X$4=2," in"))&" "&$R$16&" "&ROUND(cal!AA34,1)&IF(cal!$X$4=1," cm",IF(cal!$X$4=2," in"))&" "&$R$17&" "&ROUND(cal!AC34,1)&IF(cal!$X$4=1," cm",IF(cal!$X$4=2," in"))&" (Type 3)" -> Freedom Výška 20 cm Šířka 19 cm Délka 145 cm (Type 3)
A33: =cal!$Z$1&" "&$R$15&" "&ROUND(cal!Y40,1)&IF(cal!$X$4=1," cm",IF(cal!$X$4=2," in"))&" "&$R$16&" "&ROUND(cal!AA40,1)&IF(cal!$X$4=1," cm",IF(cal!$X$4=2," in"))&" "&$R$17&" "&ROUND(cal!AC40,1)&IF(cal!$X$4=1," cm",IF(cal!$X$4=2," in"))&" (Typ 4)" -> Freedom Výška 20 cm Šířka 19 cm Délka 181 cm (Typ 4)
A39: =cal!$Z$1&" "&$R$15&" "&ROUND(cal!Y46,1)&IF(cal!$X$4=1," cm",IF(cal!$X$4=2," in"))&" "&$R$16&" "&ROUND(cal!AA46,1)&IF(cal!$X$4=1," cm",IF(cal!$X$4=2," in"))&" "&$R$17&" "&ROUND(cal!AC46,1)&IF(cal!$X$4=1," cm",IF(cal!$X$4=2," in"))&" (Typ 5)" -> Freedom Výška 0 cm Šířka 0 cm Délka 0 cm (Typ 5)
A45: =cal!$Z$1&" "&$R$15&" "&ROUND(cal!Y52,1)&IF(cal!$X$4=1," cm",IF(cal!$X$4=2," in"))&" "&$R$16&" "&ROUND(cal!AA52,1)&IF(cal!$X$4=1," cm",IF(cal!$X$4=2," in"))&" "&$R$17&" "&ROUND(cal!AC52,1)&IF(cal!$X$4=1," cm",IF(cal!$X$4=2," in"))&" (Typ 6)" -> Freedom Výška 0 cm Šířka 0 cm Délka 0 cm (Typ 6)
A51: =cal!$Z$1&" "&$R$15&" "&ROUND(cal!Y58,1)&IF(cal!$X$4=1," cm",IF(cal!$X$4=2," in"))&" "&$R$16&" "&ROUND(cal!AA58,1)&IF(cal!$X$4=1," cm",IF(cal!$X$4=2," in"))&" "&$R$17&" "&ROUND(cal!AC58,1)&IF(cal!$X$4=1," cm",IF(cal!$X$4=2," in"))&" (Typ 7)" -> Freedom Výška 0 cm Šířka 0 cm Délka 0 cm (Typ 7)
A57: =cal!$Z$1&" "&$R$15&" "&ROUND(cal!Y64,1)&IF(cal!$X$4=1," cm",IF(cal!$X$4=2," in"))&" "&$R$16&" "&ROUND(cal!AA64,1)&IF(cal!$X$4=1," cm",IF(cal!$X$4=2," in"))&" "&$R$17&" "&ROUND(cal!AC64,1)&IF(cal!$X$4=1," cm",IF(cal!$X$4=2," in"))&" (Typ 8)" -> Freedom Výška 0 cm Šířka 0 cm Délka 0 cm (Typ 8)
A63: =cal!$Z$1&" "&$R$15&" "&ROUND(cal!Y70,1)&IF(cal!$X$4=1," cm",IF(cal!$X$4=2," in"))&" "&$R$16&" "&ROUND(cal!AA70,1)&IF(cal!$X$4=1," cm",IF(cal!$X$4=2," in"))&" "&$R$17&" "&ROUND(cal!AC70,1)&IF(cal!$X$4=1," cm",IF(cal!$X$4=2," in"))&" (Typ 9)" -> Freedom Výška 0 cm Šířka 0 cm Délka 0 cm (Typ 9)
A69: *Hodnoty podle EN16430 | M69: =cal!N70 -> v2022-08-26
A70: **Akustický tlak podle ISO 3741:2010
A71: ***Akustický výkon s předpokládaným útlumem místnosti 8 dB (A).

Sheet ExtraTaal1 (hidden)
A2: Formulary
A4: Conditions
A6: Temperatures | L6: Altitude
A7: Heating: | F7: Cooling: | Q7: Copy all data
A8: ="Inlet temp." -> Inlet temp. | D8: =cal!E9 -> 75 | E8: =IF(cal!$X$4=1,"°C",IF(cal!$X$4=2,"°F")) -> °C | F8: =A8 -> Inlet temp. | J8: =cal!K9 -> 16 | K8: =E8 -> °C | L8: Unit conversion | Q8: SI-units
A9: ="Return temp." -> Return temp. | D9: =cal!E10 -> 65 | E9: =E8 -> °C | F9: =A9 -> Return temp. | J9: =cal!K10 -> 18 | K9: =E8 -> °C | Q9: Imperial-units
A10: ="Room temp." -> Room temp. | D10: =cal!E11 -> 20 | E10: =E8 -> °C | F10: =A10 -> Room temp. | J10: =cal!K11 -> 27 | K10: =E8 -> °C
F11: Relative humidity | J11: =cal!K12 -> 0.5
A14: Speed level: | B14: Control voltage [V] | C14: =CONCATENATE("Heat output * ",ROUND(D8,0),"/",ROUND(D9,0),"/",ROUND(D10,0)," ["&IF(cal!$X$4=1,"W",IF(cal!$X$4=2,"Btu/h"))&"]") -> Heat output * 75/65/20 [W] | D14: ="Water flowrate, heating ["&IF(cal!$X$4=1,"l/h",IF(cal!$X$4=2,"GPM"))&"]" -> Water flowrate, heating [l/h] | E14: ="Watersided pressure loss ["&IF(cal!$X$4=1,"kPa",IF(cal!$X$4=2,"inH2O"))&"]" -> Watersided pressure loss [kPa] | F14: =CONCATENATE("Sens. cooling capacity * ",ROUND(J8,0),"/",ROUND(J9,0),"/",ROUND(J10,0)," ["&IF(cal!$X$4=1,"W",IF(cal!$X$4=2,"Btu/h"))&"]") -> Sens. cooling capacity * 16/18/27 [W] | G14: =CONCATENATE("Tot. cooling capacity ",ROUND(J8,0),"/",ROUND(J9,0),"/",ROUND(J10,0)," ["&IF(cal!$X$4=1,"W",IF(cal!$X$4=2,"Btu/h"))&"]") -> Tot. cooling capacity 16/18/27 [W] | H14: ="Water flowrate, cooling ["&IF(cal!$X$4=1,"l/h",IF(cal!$X$4=2,"GPM"))&"]" -> Water flowrate, cooling [l/h] | I14: ="Watersided pressure loss ["&IF(cal!$X$4=1,"kPa",IF(cal!$X$4=2,"inH2O"))&"]" -> Watersided pressure loss [kPa] | J14: Sound pressure *** [dB(A)] | K14: Sound power ** [dB(A)] | L14: Electrical power [W] | M14: ="Air flowrate ["&IF(cal!$X$4=1,"m³/h",IF(cal!$X$4=2,"CFM"))&"]" -> Air flowrate [m³/h] | N14: ="Air exhaust temp. heating ["&IF(cal!$X$4=1,"°C",IF(cal!$X$4=2,"°F"))&"]" -> Air exhaust temp. heating [°C] | O14: ="Air exhaust temp. cooling ["&IF(cal!$X$4=1,"°C",IF(cal!$X$4=2,"°F"))&"]" -> Air exhaust temp. cooling [°C]
A15: =cal!$Z$1&" "&$R$15&" "&ROUND(cal!Y22,1)&IF(cal!$X$4=1," cm",IF(cal!$X$4=2," in"))&" "&$R$16&" "&ROUND(cal!AA22,1)&IF(cal!$X$4=1," cm",IF(cal!$X$4=2," in"))&" "&$R$17&" "&ROUND(cal!AC22,1)&IF(cal!$X$4=1," cm",IF(cal!$X$4=2," in"))&" (Type 1)" -> Freedom height 20 cm width 19 cm length 74 cm (Type 1) | Q15: Temp. | R15: height
Q16: heating! | R16: width
Q17: cooling! | R17: length
A21: =cal!$Z$1&" "&$R$15&" "&ROUND(cal!Y28,1)&IF(cal!$X$4=1," cm",IF(cal!$X$4=2," in"))&" "&$R$16&" "&ROUND(cal!AA28,1)&IF(cal!$X$4=1," cm",IF(cal!$X$4=2," in"))&" "&$R$17&" "&ROUND(cal!AC28,1)&IF(cal!$X$4=1," cm",IF(cal!$X$4=2," in"))&" (Type 2)" -> Freedom height 20 cm width 19 cm length 110 cm (Type 2)
A27: =cal!$Z$1&" "&$R$15&" "&ROUND(cal!Y34,1)&IF(cal!$X$4=1," cm",IF(cal!$X$4=2," in"))&" "&$R$16&" "&ROUND(cal!AA34,1)&IF(cal!$X$4=1," cm",IF(cal!$X$4=2," in"))&" "&$R$17&" "&ROUND(cal!AC34,1)&IF(cal!$X$4=1," cm",IF(cal!$X$4=2," in"))&" (Type 3)" -> Freedom height 20 cm width 19 cm length 145 cm (Type 3)
A33: =cal!$Z$1&" "&$R$15&" "&ROUND(cal!Y40,1)&IF(cal!$X$4=1," cm",IF(cal!$X$4=2," in"))&" "&$R$16&" "&ROUND(cal!AA40,1)&IF(cal!$X$4=1," cm",IF(cal!$X$4=2," in"))&" "&$R$17&" "&ROUND(cal!AC40,1)&IF(cal!$X$4=1," cm",IF(cal!$X$4=2," in"))&" (Type 4)" -> Freedom height 20 cm width 19 cm length 181 cm (Type 4)
A39: =cal!$Z$1&" "&$R$15&" "&ROUND(cal!Y46,1)&IF(cal!$X$4=1," cm",IF(cal!$X$4=2," in"))&" "&$R$16&" "&ROUND(cal!AA46,1)&IF(cal!$X$4=1," cm",IF(cal!$X$4=2," in"))&" "&$R$17&" "&ROUND(cal!AC46,1)&IF(cal!$X$4=1," cm",IF(cal!$X$4=2," in"))&" (Type 5)" -> Freedom height 0 cm width 0 cm length 0 cm (Type 5)
A45: =cal!$Z$1&" "&$R$15&" "&ROUND(cal!Y52,1)&IF(cal!$X$4=1," cm",IF(cal!$X$4=2," in"))&" "&$R$16&" "&ROUND(cal!AA52,1)&IF(cal!$X$4=1," cm",IF(cal!$X$4=2," in"))&" "&$R$17&" "&ROUND(cal!AC52,1)&IF(cal!$X$4=1," cm",IF(cal!$X$4=2," in"))&" (Type 6)" -> Freedom height 0 cm width 0 cm length 0 cm (Type 6)
A51: =cal!$Z$1&" "&$R$15&" "&ROUND(cal!Y58,1)&IF(cal!$X$4=1," cm",IF(cal!$X$4=2," in"))&" "&$R$16&" "&ROUND(cal!AA58,1)&IF(cal!$X$4=1," cm",IF(cal!$X$4=2," in"))&" "&$R$17&" "&ROUND(cal!AC58,1)&IF(cal!$X$4=1," cm",IF(cal!$X$4=2," in"))&" (Type 7)" -> Freedom height 0 cm width 0 cm length 0 cm (Type 7)
A57: =cal!$Z$1&" "&$R$15&" "&ROUND(cal!Y64,1)&IF(cal!$X$4=1," cm",IF(cal!$X$4=2," in"))&" "&$R$16&" "&ROUND(cal!AA64,1)&IF(cal!$X$4=1," cm",IF(cal!$X$4=2," in"))&" "&$R$17&" "&ROUND(cal!AC64,1)&IF(cal!$X$4=1," cm",IF(cal!$X$4=2," in"))&" (Type 8)" -> Freedom height 0 cm width 0 cm length 0 cm (Type 8)
A63: =cal!$Z$1&" "&$R$15&" "&ROUND(cal!Y70,1)&IF(cal!$X$4=1," cm",IF(cal!$X$4=2," in"))&" "&$R$16&" "&ROUND(cal!AA70,1)&IF(cal!$X$4=1," cm",IF(cal!$X$4=2," in"))&" "&$R$17&" "&ROUND(cal!AC70,1)&IF(cal!$X$4=1," cm",IF(cal!$X$4=2," in"))&" (Type 9)" -> Freedom height 0 cm width 0 cm length 0 cm (Type 9)
A69: *Values according to EN 16430 | M69: =cal!N70 -> v2022-08-26
A70: **Sound power according to ISO 3741:2010
A71: ***Sound pressure with an assumed room damping of 8dB(A)

Sheet ExtraTaal2 (hidden)
A2: Formulary
A4: Conditions
A6: Temperatures | L6: Altitude
A7: Heating: | F7: Cooling: | Q7: Copy all data
A8: ="Inlet temp." -> Inlet temp. | D8: =cal!E9 -> 75 | E8: =IF(cal!$X$4=1,"°C",IF(cal!$X$4=2,"°F")) -> °C | F8: =A8 -> Inlet temp. | J8: =cal!K9 -> 16 | K8: =E8 -> °C | L8: Unit conversion | Q8: SI-units
A9: ="Return temp." -> Return temp. | D9: =cal!E10 -> 65 | E9: =E8 -> °C | F9: =A9 -> Return temp. | J9: =cal!K10 -> 18 | K9: =E8 -> °C | Q9: Imperial-units
A10: ="Room temp." -> Room temp. | D10: =cal!E11 -> 20 | E10: =E8 -> °C | F10: =A10 -> Room temp. | J10: =cal!K11 -> 27 | K10: =E8 -> °C
F11: Relative humidity | J11: =cal!K12 -> 0.5
A14: Speed level: | B14: Control voltage [V] | C14: =CONCATENATE("Heat output * ",ROUND(D8,0),"/",ROUND(D9,0),"/",ROUND(D10,0)," ["&IF(cal!$X$4=1,"W",IF(cal!$X$4=2,"Btu/h"))&"]") -> Heat output * 75/65/20 [W] | D14: ="Water flowrate, heating ["&IF(cal!$X$4=1,"l/h",IF(cal!$X$4=2,"GPM"))&"]" -> Water flowrate, heating [l/h] | E14: ="Watersided pressure loss ["&IF(cal!$X$4=1,"kPa",IF(cal!$X$4=2,"inH2O"))&"]" -> Watersided pressure loss [kPa] | F14: =CONCATENATE("Sens. cooling capacity * ",ROUND(J8,0),"/",ROUND(J9,0),"/",ROUND(J10,0)," ["&IF(cal!$X$4=1,"W",IF(cal!$X$4=2,"Btu/h"))&"]") -> Sens. cooling capacity * 16/18/27 [W] | G14: =CONCATENATE("Tot. cooling capacity ",ROUND(J8,0),"/",ROUND(J9,0),"/",ROUND(J10,0)," ["&IF(cal!$X$4=1,"W",IF(cal!$X$4=2,"Btu/h"))&"]") -> Tot. cooling capacity 16/18/27 [W] | H14: ="Water flowrate, cooling ["&IF(cal!$X$4=1,"l/h",IF(cal!$X$4=2,"GPM"))&"]" -> Water flowrate, cooling [l/h] | I14: ="Watersided pressure loss ["&IF(cal!$X$4=1,"kPa",IF(cal!$X$4=2,"inH2O"))&"]" -> Watersided pressure loss [kPa] | J14: Sound pressure *** [dB(A)] | K14: Sound power ** [dB(A)] | L14: Electrical power [W] | M14: ="Air flowrate ["&IF(cal!$X$4=1,"m³/h",IF(cal!$X$4=2,"CFM"))&"]" -> Air flowrate [m³/h] | N14: ="Air exhaust temp. heating ["&IF(cal!$X$4=1,"°C",IF(cal!$X$4=2,"°F"))&"]" -> Air exhaust temp. heating [°C] | O14: ="Air exhaust temp. cooling ["&IF(cal!$X$4=1,"°C",IF(cal!$X$4=2,"°F"))&"]" -> Air exhaust temp. cooling [°C]
A15: =cal!$Z$1&" "&$R$15&" "&ROUND(cal!Y22,1)&IF(cal!$X$4=1," cm",IF(cal!$X$4=2," in"))&" "&$R$16&" "&ROUND(cal!AA22,1)&IF(cal!$X$4=1," cm",IF(cal!$X$4=2," in"))&" "&$R$17&" "&ROUND(cal!AC22,1)&IF(cal!$X$4=1," cm",IF(cal!$X$4=2," in"))&" (Type 1)" -> Freedom height 20 cm width 19 cm length 74 cm (Type 1) | Q15: Temp. | R15: height
Q16: heating! | R16: width
Q17: cooling! | R17: length
A21: =cal!$Z$1&" "&$R$15&" "&ROUND(cal!Y28,1)&IF(cal!$X$4=1," cm",IF(cal!$X$4=2," in"))&" "&$R$16&" "&ROUND(cal!AA28,1)&IF(cal!$X$4=1," cm",IF(cal!$X$4=2," in"))&" "&$R$17&" "&ROUND(cal!AC28,1)&IF(cal!$X$4=1," cm",IF(cal!$X$4=2," in"))&" (Type 2)" -> Freedom height 20 cm width 19 cm length 110 cm (Type 2)
A27: =cal!$Z$1&" "&$R$15&" "&ROUND(cal!Y34,1)&IF(cal!$X$4=1," cm",IF(cal!$X$4=2," in"))&" "&$R$16&" "&ROUND(cal!AA34,1)&IF(cal!$X$4=1," cm",IF(cal!$X$4=2," in"))&" "&$R$17&" "&ROUND(cal!AC34,1)&IF(cal!$X$4=1," cm",IF(cal!$X$4=2," in"))&" (Type 3)" -> Freedom height 20 cm width 19 cm length 145 cm (Type 3)
A33: =cal!$Z$1&" "&$R$15&" "&ROUND(cal!Y40,1)&IF(cal!$X$4=1," cm",IF(cal!$X$4=2," in"))&" "&$R$16&" "&ROUND(cal!AA40,1)&IF(cal!$X$4=1," cm",IF(cal!$X$4=2," in"))&" "&$R$17&" "&ROUND(cal!AC40,1)&IF(cal!$X$4=1," cm",IF(cal!$X$4=2," in"))&" (Type 4)" -> Freedom height 20 cm width 19 cm length 181 cm (Type 4)
A39: =cal!$Z$1&" "&$R$15&" "&ROUND(cal!Y46,1)&IF(cal!$X$4=1," cm",IF(cal!$X$4=2," in"))&" "&$R$16&" "&ROUND(cal!AA46,1)&IF(cal!$X$4=1," cm",IF(cal!$X$4=2," in"))&" "&$R$17&" "&ROUND(cal!AC46,1)&IF(cal!$X$4=1," cm",IF(cal!$X$4=2," in"))&" (Type 5)" -> Freedom height 0 cm width 0 cm length 0 cm (Type 5)
A45: =cal!$Z$1&" "&$R$15&" "&ROUND(cal!Y52,1)&IF(cal!$X$4=1," cm",IF(cal!$X$4=2," in"))&" "&$R$16&" "&ROUND(cal!AA52,1)&IF(cal!$X$4=1," cm",IF(cal!$X$4=2," in"))&" "&$R$17&" "&ROUND(cal!AC52,1)&IF(cal!$X$4=1," cm",IF(cal!$X$4=2," in"))&" (Type 6)" -> Freedom height 0 cm width 0 cm length 0 cm (Type 6)
A51: =cal!$Z$1&" "&$R$15&" "&ROUND(cal!Y58,1)&IF(cal!$X$4=1," cm",IF(cal!$X$4=2," in"))&" "&$R$16&" "&ROUND(cal!AA58,1)&IF(cal!$X$4=1," cm",IF(cal!$X$4=2," in"))&" "&$R$17&" "&ROUND(cal!AC58,1)&IF(cal!$X$4=1," cm",IF(cal!$X$4=2," in"))&" (Type 7)" -> Freedom height 0 cm width 0 cm length 0 cm (Type 7)
A57: =cal!$Z$1&" "&$R$15&" "&ROUND(cal!Y64,1)&IF(cal!$X$4=1," cm",IF(cal!$X$4=2," in"))&" "&$R$16&" "&ROUND(cal!AA64,1)&IF(cal!$X$4=1," cm",IF(cal!$X$4=2," in"))&" "&$R$17&" "&ROUND(cal!AC64,1)&IF(cal!$X$4=1," cm",IF(cal!$X$4=2," in"))&" (Type 8)" -> Freedom height 0 cm width 0 cm length 0 cm (Type 8)
A63: =cal!$Z$1&" "&$R$15&" "&ROUND(cal!Y70,1)&IF(cal!$X$4=1," cm",IF(cal!$X$4=2," in"))&" "&$R$16&" "&ROUND(cal!AA70,1)&IF(cal!$X$4=1," cm",IF(cal!$X$4=2," in"))&" "&$R$17&" "&ROUND(cal!AC70,1)&IF(cal!$X$4=1," cm",IF(cal!$X$4=2," in"))&" (Type 9)" -> Freedom height 0 cm width 0 cm length 0 cm (Type 9)
A69: *Values according to EN 16430 | M69: =cal!N70 -> v2022-08-26
A70: **Sound power according to ISO 3741:2010
A71: ***Sound pressure with an assumed room damping of 8dB(A)

Sheet ExtraTaal3 (hidden)
A2: Formulary
A4: Conditions
A6: Temperatures | L6: Altitude
A7: Heating: | F7: Cooling: | Q7: Copy all data
A8: ="Inlet temp." -> Inlet temp. | D8: =cal!E9 -> 75 | E8: =IF(cal!$X$4=1,"°C",IF(cal!$X$4=2,"°F")) -> °C | F8: =A8 -> Inlet temp. | J8: =cal!K9 -> 16 | K8: =E8 -> °C | L8: Unit conversion | Q8: SI-units
A9: ="Return temp." -> Return temp. | D9: =cal!E10 -> 65 | E9: =E8 -> °C | F9: =A9 -> Return temp. | J9: =cal!K10 -> 18 | K9: =E8 -> °C | Q9: Imperial-units
A10: ="Room temp." -> Room temp. | D10: =cal!E11 -> 20 | E10: =E8 -> °C | F10: =A10 -> Room temp. | J10: =cal!K11 -> 27 | K10: =E8 -> °C
F11: Relative humidity | J11: =cal!K12 -> 0.5
A14: Speed level: | B14: Control voltage [V] | C14: =CONCATENATE("Heat output * ",ROUND(D8,0),"/",ROUND(D9,0),"/",ROUND(D10,0)," ["&IF(cal!$X$4=1,"W",IF(cal!$X$4=2,"Btu/h"))&"]") -> Heat output * 75/65/20 [W] | D14: ="Water flowrate, heating ["&IF(cal!$X$4=1,"l/h",IF(cal!$X$4=2,"GPM"))&"]" -> Water flowrate, heating [l/h] | E14: ="Watersided pressure loss ["&IF(cal!$X$4=1,"kPa",IF(cal!$X$4=2,"inH2O"))&"]" -> Watersided pressure loss [kPa] | F14: =CONCATENATE("Sens. cooling capacity * ",ROUND(J8,0),"/",ROUND(J9,0),"/",ROUND(J10,0)," ["&IF(cal!$X$4=1,"W",IF(cal!$X$4=2,"Btu/h"))&"]") -> Sens. cooling capacity * 16/18/27 [W] | G14: =CONCATENATE("Tot. cooling capacity ",ROUND(J8,0),"/",ROUND(J9,0),"/",ROUND(J10,0)," ["&IF(cal!$X$4=1,"W",IF(cal!$X$4=2,"Btu/h"))&"]") -> Tot. cooling capacity 16/18/27 [W] | H14: ="Water flowrate, cooling ["&IF(cal!$X$4=1,"l/h",IF(cal!$X$4=2,"GPM"))&"]" -> Water flowrate, cooling [l/h] | I14: ="Watersided pressure loss ["&IF(cal!$X$4=1,"kPa",IF(cal!$X$4=2,"inH2O"))&"]" -> Watersided pressure loss [kPa] | J14: Sound pressure *** [dB(A)] | K14: Sound power ** [dB(A)] | L14: Electrical power [W] | M14: ="Air flowrate ["&IF(cal!$X$4=1,"m³/h",IF(cal!$X$4=2,"CFM"))&"]" -> Air flowrate [m³/h] | N14: ="Air exhaust temp. heating ["&IF(cal!$X$4=1,"°C",IF(cal!$X$4=2,"°F"))&"]" -> Air exhaust temp. heating [°C] | O14: ="Air exhaust temp. cooling ["&IF(cal!$X$4=1,"°C",IF(cal!$X$4=2,"°F"))&"]" -> Air exhaust temp. cooling [°C]
A15: =cal!$Z$1&" "&$R$15&" "&ROUND(cal!Y22,1)&IF(cal!$X$4=1," cm",IF(cal!$X$4=2," in"))&" "&$R$16&" "&ROUND(cal!AA22,1)&IF(cal!$X$4=1," cm",IF(cal!$X$4=2," in"))&" "&$R$17&" "&ROUND(cal!AC22,1)&IF(cal!$X$4=1," cm",IF(cal!$X$4=2," in"))&" (Type 1)" -> Freedom height 20 cm width 19 cm length 74 cm (Type 1) | Q15: Temp. | R15: height
Q16: heating! | R16: width
Q17: cooling! | R17: length
A21: =cal!$Z$1&" "&$R$15&" "&ROUND(cal!Y28,1)&IF(cal!$X$4=1," cm",IF(cal!$X$4=2," in"))&" "&$R$16&" "&ROUND(cal!AA28,1)&IF(cal!$X$4=1," cm",IF(cal!$X$4=2," in"))&" "&$R$17&" "&ROUND(cal!AC28,1)&IF(cal!$X$4=1," cm",IF(cal!$X$4=2," in"))&" (Type 2)" -> Freedom height 20 cm width 19 cm length 110 cm (Type 2)
A27: =cal!$Z$1&" "&$R$15&" "&ROUND(cal!Y34,1)&IF(cal!$X$4=1," cm",IF(cal!$X$4=2," in"))&" "&$R$16&" "&ROUND(cal!AA34,1)&IF(cal!$X$4=1," cm",IF(cal!$X$4=2," in"))&" "&$R$17&" "&ROUND(cal!AC34,1)&IF(cal!$X$4=1," cm",IF(cal!$X$4=2," in"))&" (Type 3)" -> Freedom height 20 cm width 19 cm length 145 cm (Type 3)
A33: =cal!$Z$1&" "&$R$15&" "&ROUND(cal!Y40,1)&IF(cal!$X$4=1," cm",IF(cal!$X$4=2," in"))&" "&$R$16&" "&ROUND(cal!AA40,1)&IF(cal!$X$4=1," cm",IF(cal!$X$4=2," in"))&" "&$R$17&" "&ROUND(cal!AC40,1)&IF(cal!$X$4=1," cm",IF(cal!$X$4=2," in"))&" (Type 4)" -> Freedom height 20 cm width 19 cm length 181 cm (Type 4)
A39: =cal!$Z$1&" "&$R$15&" "&ROUND(cal!Y46,1)&IF(cal!$X$4=1," cm",IF(cal!$X$4=2," in"))&" "&$R$16&" "&ROUND(cal!AA46,1)&IF(cal!$X$4=1," cm",IF(cal!$X$4=2," in"))&" "&$R$17&" "&ROUND(cal!AC46,1)&IF(cal!$X$4=1," cm",IF(cal!$X$4=2," in"))&" (Type 5)" -> Freedom height 0 cm width 0 cm length 0 cm (Type 5)
A45: =cal!$Z$1&" "&$R$15&" "&ROUND(cal!Y52,1)&IF(cal!$X$4=1," cm",IF(cal!$X$4=2," in"))&" "&$R$16&" "&ROUND(cal!AA52,1)&IF(cal!$X$4=1," cm",IF(cal!$X$4=2," in"))&" "&$R$17&" "&ROUND(cal!AC52,1)&IF(cal!$X$4=1," cm",IF(cal!$X$4=2," in"))&" (Type 6)" -> Freedom height 0 cm width 0 cm length 0 cm (Type 6)
A51: =cal!$Z$1&" "&$R$15&" "&ROUND(cal!Y58,1)&IF(cal!$X$4=1," cm",IF(cal!$X$4=2," in"))&" "&$R$16&" "&ROUND(cal!AA58,1)&IF(cal!$X$4=1," cm",IF(cal!$X$4=2," in"))&" "&$R$17&" "&ROUND(cal!AC58,1)&IF(cal!$X$4=1," cm",IF(cal!$X$4=2," in"))&" (Type 7)" -> Freedom height 0 cm width 0 cm length 0 cm (Type 7)
A57: =cal!$Z$1&" "&$R$15&" "&ROUND(cal!Y64,1)&IF(cal!$X$4=1," cm",IF(cal!$X$4=2," in"))&" "&$R$16&" "&ROUND(cal!AA64,1)&IF(cal!$X$4=1," cm",IF(cal!$X$4=2," in"))&" "&$R$17&" "&ROUND(cal!AC64,1)&IF(cal!$X$4=1," cm",IF(cal!$X$4=2," in"))&" (Type 8)" -> Freedom height 0 cm width 0 cm length 0 cm (Type 8)
A63: =cal!$Z$1&" "&$R$15&" "&ROUND(cal!Y70,1)&IF(cal!$X$4=1," cm",IF(cal!$X$4=2," in"))&" "&$R$16&" "&ROUND(cal!AA70,1)&IF(cal!$X$4=1," cm",IF(cal!$X$4=2," in"))&" "&$R$17&" "&ROUND(cal!AC70,1)&IF(cal!$X$4=1," cm",IF(cal!$X$4=2," in"))&" (Type 9)" -> Freedom height 0 cm width 0 cm length 0 cm (Type 9)
A69: *Values according to EN 16430 | M69: =cal!N70 -> v2022-08-26
A70: **Sound power according to ISO 3741:2010
A71: ***Sound pressure with an assumed room damping of 8dB(A)
